Workbook

Sheet Inputs
C1: StartCell | D1: 9 | E1: EndCell | F1: 9 | J1: Still have to insert Discount Rates into models and get cash flows out from all
B2: Cusip | C2: Name | D2: Date | E2: CDR | F2: CPR | G2: SEV | H2: Del | I2: Disc Rate | J2: Price | K2: Mgmt Fee | L2: Cum Loss | M2: Current Loss | N2: Prior Loss | O2: Curr Balance | P2: Prior Balance | Q2: DataSheet | R2: ModelFile | S2: RunP&I | T2: RunModel | U2: DataPath | V2: Notes
A3: 1 | B3: 1248P8AJ8 | C3: CBASS 2006-MH1 M2 | D3: ='[1]Payment Stmt Pg1'!$C$9 -> 2011-10-25 | E3: 0.7 | F3: 0.01 | G3: 0.8 | H3: 1e-07 | I3: 0.07 | J3: =[2]Inputs!$K$6 -> 6.8951639 | K3: 0.005 | L3: ='[1]Payment Stmt Pg4'!$E$22 -> 35405873.54 | M3: ='[1]Remittance Summary Group'!$C$17 -> 242189.56 | N3: ='[3]Remittance Summary Group'!$C$17 -> 510942.15 | P3: ='[1]Remittance Summary Group'!$C$13 -> 145819590.2 | Q3: =B3&".xlsx" -> 1248P8AJ8.xlsx | R3: CBASS 2006-MH1 M2 Model.xlsx | S3: Y | T3: Y | U3: V:\INVEST\1 Structured Portfolio\MANF Model\
A4: 2 | B4: 09774XBN1 | C4: BCM 2000-A A2 | D4: 2011-10-25 | E4: 0.7 | F4: 0.01 | G4: 0.8 | H4: 0 | I4: 0.07 | J4: =[4]Inputs!$N$8 -> 20.93593622 | K4: 0.01 | L4: Not applicable since permanently triggered | Q4: 09774XBN1.xlsx | R4: BCM 2000-A Model.xlsx | S4: Y | T4: Y | U4: V:\INVEST\1 Structured Portfolio\MANF Model\
A5: 3 | B5: 20846QBP2 | C5: CNF 2000-1 A5 | D5: ='[5]2000-1'!$F$7 -> 2011-09-03 | E5: 0.7 | F5: 0.17 | G5: 0.8 | H5: 0 | I5: 0.07 | J5: =[6]Classes!$B$60*100 -> 31.5671522 | K5: 0.0115 | L5: Not applicable since permanently triggered | Q5: 20846QBP2.xlsx | R5: CNF 2000-1 Model.xlsx | S5: Y | T5: Y | U5: V:\INVEST\1 Structured Portfolio\MANF Model\
A6: 4 | B6: 22540ABE7 | C6: INDMH 1997-1 A5 | D6: 2011-10-25 | E6: 0.7 | F6: 0.03 | G6: 0.8 | H6: 0 | I6: 0.07 | J6: =[7]Classes!$B$76*100 -> 51.07984504 | K6: 0.01 | L6: Not applicable since permanently triggered | Q6: 22540ABE7.xlsx | R6: INDMH 1997-1 Model.xlsx | S6: Y | T6: Y | U6: V:\INVEST\1 Structured Portfolio\MANF Model\
A7: 5 | B7: 393505E57 | C7: GT 1998-3 M1 | D7: ='[8]1998-3'!$F$7 -> 2011-09-03 | E7: 0.7 | F7: 0.04 | G7: 0.8 | H7: 0 | I7: 0.07 | J7: =[9]Classes!$E$32*100 -> 1.71715862 | K7: 0.0115 | L7: Not applicable since permanently triggered | Q7: 393505E57.xlsx | R7: GT 1998-3 M1 Model.xlsx | S7: Y | T7: Y | U7: V:\INVEST\1 Structured Portfolio\MANF Model\
A8: 6 | B8: 393505F56 | C8: GT 1998-4 A6 | D8: ='[10]1998-4'!$F$7 -> 2011-09-03 | E8: 0.7 | F8: 0.05 | G8: 0.8 | H8: 0 | I8: 0.07 | J8: =+[11]Classes!$E$38*100 -> 42.80242648 | K8: 0.0115 | L8: Not applicable since permanently triggered | Q8: 393505F56.xlsx | R8: GT 1998-4 A6 Model.xlsx | S8: Y | T8: Y | U8: V:\INVEST\1 Structured Portfolio\MANF Model\
A9: 7 | B9: 393505K27 | C9: GT 1998-6 A8 | D9: ='[12]1998-6'!$F$7 -> 2011-09-03 | E9: 0.7 | F9: 0.05 | G9: 0.8 | H9: 0 | I9: 0.07 | J9: =[13]Classes!$E$25*100 -> 45.05446288 | K9: 0.0115 | L9: Not applicable since permanently triggered | Q9: =B9&".xlsx" -> 393505K27.xlsx | R9: GT 1998-6 A8 Model.xlsx | S9: Y | T9: Y | U9: V:\INVEST\1 Structured Portfolio\MANF Model\
A10: 8 | B10: 393505LX8 | C10: GT 1996-2 M1 | D10: 2011-12-15 | E10: 0.036 | F10: 0.0315 | G10: 0.85 | H10: 0 | I10: 0.07 | J10: =[14]Classes!$B$62 -> 82.0999128 | K10: 0.0115 | L10: Not applicable since permanently triggered | Q10: 393505LX8.xlsx | R10: GT 1996-2 M1 Model - fixed.xlsx | S10: Y | T10: Y | U10: V:\INVEST\1 Structured Portfolio\MANF Model\
A11: 9 | B11: 393505NC2 | C11: GT 1996-5 M1 | D11: =+'[15]1996-5'!$F$7 -> 2012-05-18 | E11: 0.15 | F11: 0.0256 | G11: 1 | H11: 0 | I11: 0.0805 | J11: =[16]Classes!$E$39*100 -> 48.88317005 | K11: 0.0115 | L11: Not applicable since permanently triggered | Q11: 393505NC2.xlsx | R11: GT 1996-5 M1 Model.xlsx | S11: Y | T11: Y | U11: V:\INVEST\1 Structured Portfolio\MANF Model\
A12: 10 | B12: 393505P22 | C12: GT 1998-8 M1 | D12: ='[17]1998-8'!$F$7 -> 2011-09-03 | E12: 0.7 | F12: 0.03 | G12: 0.8 | H12: 0 | I12: 0.07 | J12: =[18]Classes!$E$32*100 -> 1.547389905 | K12: 0.0115 | L12: Not applicable since permanently triggered | Q12: 393505P22.xlsx | R12: GT 1998-8 M1 Model.xlsx | S12: Y | T12: Y | U12: V:\INVEST\1 Structured Portfolio\MANF Model\
A13: 11 | B13: 393505SK9 | C13: GT 1997-1 M1 | D13: ='[19]1997-1'!$F$7 -> 2011-07-18 | E13: 0.7 | F13: 0.05 | G13: 0.8 | H13: 0 | I13: 0.07 | J13: =[20]Classes!$E$39*100 -> 4.855675621 | K13: 0.0115 | L13: Not applicable since permanently triggered | Q13: 393505SK9.xlsx | R13: GT 1997-1 M1 Model.xlsx | S13: Y | T13: Y | U13: V:\INVEST\1 Structured Portfolio\MANF Model\
A14: 12 | B14: 393505TZ5 | C14: GT 1997-3 M1 | D14: ='[21]1997-3'!$F$7 -> 2011-07-18 | E14: 0.7 | F14: 0.05 | G14: 0.8 | H14: 0 | I14: 0.07 | J14: =[22]Classes!$E$38*100 -> 2.694543173 | K14: 0.0115 | L14: Not applicable since permanently triggered | Q14: 393505TZ5.xlsx | R14: GT 1997-3 M1 Model.xlsx | S14: Y | T14: Y | U14: V:\INVEST\1 Structured Portfolio\MANF Model\
A15: 13 | B15: 393505VY5 | C15: GT 1997-5 M1 | D15: ='[23]1997-5'!$F$7 -> 2011-07-18 | E15: 0.7 | F15: 0.05 | G15: 0.8 | H15: 0 | I15: 0.07 | J15: =[24]Classes!$E$46*100 -> 4.980465532 | K15: 0.0115 | L15: Not applicable since permanently triggered | Q15: 393505VY5.xlsx | R15: GT 1997-5 M1 Model.xlsx | S15: Y | T15: Y | U15: V:\INVEST\1 Structured Portfolio\MANF Model\
A16: 14 | B16: 393505X72 | C16: GT 1999-3 A7 | D16: ='[25]1999-3'!$F$7 -> 2011-09-03 | E16: 0.7 | F16: 0.02 | G16: 0.8 | H16: 0 | I16: 0.07 | J16: =[26]Classes!$E$42*100 -> 41.31249872 | K16: 0.0115 | L16: Not applicable since permanently triggered | Q16: 393505X72.xlsx | R16: GT 1999-3 A7 Model.xlsx | S16: Y | T16: Y | U16: V:\INVEST\1 Structured Portfolio\MANF Model\
A17: 15 | B17: 393505XH0 | C17: GT 1997-6 M1 | D17: ='[27]1997-6'!$F$7 -> 2011-07-18 | E17: 0.7 | F17: 0.02 | G17: 0.8 | H17: 0 | I17: 0.07 | J17: =[28]Classes!$E$58*100 -> 3.332952307 | K17: 0.0115 | L17: Not applicable since permanently triggered | Q17: 393505XH0.xlsx | R17: =C17& " Model.xlsx" -> GT 1997-6 M1 Model.xlsx | S17: Y | T17: Y | U17: V:\INVEST\1 Structured Portfolio\MANF Model\
A18: 16 | B18: 393505Z70 | C18: GT 1999-4 M1 | D18: ='[29]1999-4'!$F$7 -> 2011-09-03 | E18: 0.7 | F18: 0.02 | G18: 0.8 | H18: 0 | I18: 0.07 | J18: =[30]Classes!$E$35 -> 0.5732307517 | K18: 0.0115 | L18: Not applicable since permanently triggered | Q18: 393505Z70.xlsx | R18: =C18& " Model.xlsx" -> GT 1999-4 M1 Model.xlsx | S18: N | T18: N | U18: V:\INVEST\1 Structured Portfolio\MANF Model\
A19: 17 | B19: 59548PAC3 | C19: MDST 2006-1 M2 | D19: ='[31]Deal Summary'!$J$17 -> 2011-11-01 | E19: 0.7 | F19: 0.04 | G19: 0.3 | H19: 0 | I19: 0.07 | J19: =[32]Inputs!$U$10 -> 69.19219053 | L19: ='[31]Deal Summary'!$J$153 -> 14043375.12 | M19: ='[31]Deal Summary'!$I$39 -> 300469.62 | N19: ='[33]Deal Summary'!$I$39 -> 535159.53 | O19: ='[31]Deal Summary'!$J$34 -> 182065291.6 | P19: ='[33]Deal Summary'!$J$34 -> 183032389.7 | R19: MDST 2006-1 Model.xlsx | S19: N | T19: Y | U19: V:\INVEST\1 Structured Portfolio\MANF Model\ | V19: Occasionally update fees
A20: 18 | B20: 59549WAB9 | C20: MDST 11 M1 | D20: 2011-10-15 | E20: 0.7 | F20: 0.02 | G20: 0.3 | H20: 0 | I20: 0.07 | J20: =[34]Inputs!U9 -> 71.5102722 | L20: Cumulative losses put in manual tab | M20: N/A since no avg loss trigger | N20: N/A since no avg loss trigger | O20: Current balance on manual tab | P20: N/A since no avg loss trigger | R20: MDST 11 Model.xlsx | S20: N | T20: Y | U20: V:\INVEST\1 Structured Portfolio\MANF Model\
A21: 19 | B21: 59549WAC7 | C21: MDST 11 M2 | D21: =+D20 -> 2011-10-15 | E21: =+E20 -> 0.7 | F21: =+F20 -> 0.02 | G21: 0.3 | H21: 0 | I21: 0.07 | J21: =[34]Inputs!U10 -> 46.5108465 | L21: Cumulative losses put in manual tab | M21: N/A since no avg loss trigger | N21: N/A since no avg loss trigger | O21: Current balance on manual tab | P21: N/A since no avg loss trigger | S21: N | T21: N
A22: 20 | B22: 59549WAD5 | C22: MDST 11 B | D22: =+D21 -> 2011-10-15 | E22: =+E21 -> 0.7 | F22: 0.02 | G22: 0.3 | H22: 0 | I22: 0.07 | J22: =[34]Inputs!U11 -> 41.88628838 | L22: Cumulative losses put in manual tab | M22: N/A since no avg loss trigger | N22: N/A since no avg loss trigger | O22: Current balance on manual tab | P22: N/A since no avg loss trigger | S22: N | T22: N
A23: 21 | B23: 59560UAD3 | C23: MDST 2004-1 B | D23: ='[35]Deal Summary'!$J$12 -> 2011-11-15 | E23: 0.7 | F23: 0.06 | G23: 0.5 | H23: 0 | I23: 0.07 | J23: =[36]Inputs!$U$11 -> 35.78837599 | L23: ='[35]Deal Summary'!$J$150 -> 9042408.6 | M23: N/A since no avg loss trigger | N23: N/A since no avg loss trigger | O23: ='[35]Deal Summary'!$J$149 -> 165662313.6 | P23: ='[37]Deal Summary'!$J$149 -> 166126717.2 | R23: MDST 2004-1 Model.xlsx | S23: N | T23: Y | U23: V:\INVEST\1 Structured Portfolio\MANF Model\
A24: 22 | B24: 68619AAY3 | C24: ORGN 2004-A M2 | D24: ='[38]Factor Report'!$B$14 -> 12/15/11 | E24: 0.02 | F24: 0.02 | G24: 0.7 | H24: 0 | I24: 0.07 | J24: =[39]Inputs!$R$16 -> 90.62816757 | K24: 0.0125 | L24: ='[38]Trigger Events'!$B$7/100*[39]Inputs!$O$1 -> 21476781.21 | M24: ='[38]Trigger Events'!$B$5/1200*O24 -> 267888.7304 | N24: ='[40]Trigger Events'!$B$5/1200*P24 -> 243733.468 | O24: =IF(ROUND('Manual Instructions'!H60,0)=ROUND('Manual Instructions'!I60,0),'Manual Instructions'!H60,"FIX") -> 85044041.39 | P24: ='[40]Delinquency Totals'!$C$8/'[40]Delinquency Totals'!$D$8 -> 88096434.2 | Q24: =B24&".xlsx" -> 68619AAY3.xlsx | R24: ORGN 2004-A Model.xlsx | S24: Y | T24: Y | U24: V:\INVEST\1 Structured Portfolio\MANF Model\
A25: 23 | B25: 68619ABN6 | C25: ORGN 2005-A B | D25: ='[41]Factor Report'!$B$15 -> 12/15/11 | E25: 0.1 | F25: 0.02 | G25: 0.7 | H25: 0 | I25: 0.07 | J25: =[42]Inputs!$R$16 -> 97.59883866 | K25: 0.0125 | L25: ='[41]Trigger Events'!$B$7/100*[42]Inputs!$O$1 -> 12616196.97 | M25: ='[41]Trigger Events'!$B$5/1200*O25 -> 171305.2971 | N25: ='[43]Trigger Events'!$B$5/1200*P25 -> 212246.2147 | O25: =IF(ROUND('Manual Instructions'!H53,0)=ROUND('Manual Instructions'!I53,0),'Manual Instructions'!H53,"FIX") -> 83904635.32 | P25: ='[43]Delinquency Totals'!$C$8/'[43]Delinquency Totals'!$D$8 -> 86631108.03 | Q25: =B25&".xlsx" -> 68619ABN6.xlsx | R25: ORGN 2005-A Model.xlsx | S25: Y | T25: Y | U25: V:\INVEST\1 Structured Portfolio\MANF Model\
A26: 24 | B26: 92178PAE7 | C26: VALT 2002-1 A5 | D26: =[44]Inputs!$I$1 -> 2011-10-07 | E26: 0.7 | F26: 0.06 | G26: 0.7 | H26: 0 | I26: 0.07 | J26: =[44]Inputs!$U$16 -> 8.985819077 | K26: 0.0125 | L26: ='[45]02-1'!$F$62 -> 0 | M26: ='[45]02-1'!$P$87 -> 551413.3 | N26: ='[46]02-1'!$P$87 -> 551413.3 | O26: ='[45]02-1'!$F$141 -> 191053957.7 | P26: ='[46]02-1'!$F$141 -> 191053957.7 | R26: VALT 2002-1 Model.xlsm | S26: N | T26: Y | U26: V:\INVEST\1 Structured Portfolio\MANF Model\
A27: 25 | B27: 921796MF2 | C27: VMF 2002-B A5 | D27: ='[47]02B'!$J$3 -> 2011-10-07 | E27: 0.7 | F27: 0.06 | G27: 0.7 | H27: 0 | I27: 0.07 | J27: =[48]Inputs!$U$15 -> 0 | K27: 0.0125 | L27: ='[49]03A'!$F$60 -> 0 | M27: ='[49]03A'!$P$85 -> 167064.58 | N27: ='[50]03A'!$P$85 -> 167064.58 | O27: ='[49]03A'!$F$134 -> 73513957.65 | P27: ='[50]03A'!$F$134 -> 73513957.65 | R27: VMF 2002-B Model.xlsx | S27: N | T27: Y | U27: V:\INVEST\1 Structured Portfolio\MANF Model\
A28: 26 | B28: 921796MZ8 | C28: VMF 2003-A A4 | D28: ='[49]03A'!$J$3 -> 2011-09-07 | E28: 0.7 | F28: 0.06 | G28: 0.8 | H28: 0 | I28: 0.07 | J28: =[51]Inputs!U14 -> 84.0454043 | K28: 0.0125 | L28: ='[47]02B'!$F$60 -> 0 | M28: ='[47]02B'!$P$85 -> 81161.6 | N28: ='[52]02B'!$P$85 -> 81161.6 | O28: ='[47]02B'!$F$130 -> 113536522.7 | P28: ='[52]02B'!$F$130 -> 113536522.7 | R28: VMF 2003-A Model.xlsx | S28: N | T28: Y | U28: V:\INVEST\1 Structured Portfolio\MANF Model\
A29: 27 | B29: 921796NA2 | C29: VMF 2003-A A5 | D29: ='[49]03A'!$J$3 -> 2011-09-07 | E29: =+E28 -> 0.7 | F29: =+F28 -> 0.06 | G29: =+G28 -> 0.8 | H29: =+H28 -> 0 | I29: =+I28 -> 0.07 | J29: =[51]Inputs!U15 -> 24.71740799 | K29: 0.0125 | L29: =L28 -> 0 | M29: =M28 -> 81161.6 | N29: =N28 -> 81161.6 | O29: =O28 -> 113536522.7 | P29: =P28 -> 113536522.7 | R29: VMF 2003-A Model.xlsx | S29: N | T29: N | U29: V:\INVEST\1 Structured Portfolio\MANF Model\
F32: Shortfalls | N32: Some of the reports are repoorts don't know if this is a problem
F33: Look for triggers
F34: Discount
F35: make sure interest doesn’t run on if payments don’t justify them (IE Interest = 500k and available funds of 2K
F36: Take out connections

Sheet Manual Instructions
A1: Cusip | B1: Issue | D1: Trustee Reprt at | E1: Action
A2: 1248P8AJ8 | B2: only PDF on bloomberg | C2: =VLOOKUP(A2,Inputs!$B$3:$C$29,2,FALSE) -> CBASS 2006-MH1 M2 | D2: US Bank | E2: Download excel file
A3: 393505LX8 | B3: only PDF on bloomberg | C3: =VLOOKUP(A3,Inputs!$B$3:$C$29,2,FALSE) -> GT 1996-2 M1 | D3: Wells | E3: Copy PDF Info
A4: 22540ABE7 | B4: only PDF on bloomberg | C4: =VLOOKUP(A4,Inputs!$B$3:$C$29,2,FALSE) -> INDMH 1997-1 A5 | D4: BONY | E4: Copy PDF Info
A5: 09774XBN1 | B5: only PDF on bloomberg | C5: =VLOOKUP(A5,Inputs!$B$3:$C$29,2,FALSE) -> BCM 2000-A A2 | D5: BONY | E5: Copy PDF Info
A6: 68619AAY3 | B6: No report available on Bloomberg | C6: =VLOOKUP(A6,Inputs!$B$3:$C$29,2,FALSE) -> ORGN 2004-A M2 | D6: BONY | E6: Download excel file | G6: BONY | H6: Download Loan Data | J6: Make sure the sum of the loan collateral matches the collateral on trustee report for the ORIGENs and proper balances which match collateral are used
A7: 68619ABN6 | B7: only PDF on bloomberg | C7: =VLOOKUP(A7,Inputs!$B$3:$C$29,2,FALSE) -> ORGN 2005-A B | D7: BONY | E7: Download excel file | H7: Download Loan Data
A8: 59560UAD3 | B8: only PDF on bloomberg | C8: =VLOOKUP(A8,Inputs!$B$3:$C$29,2,FALSE) -> MDST 2004-1 B | D8: BONY | E8: Download excel file
A9: 59548PAC3 | B9: only PDF on bloomberg | C9: =VLOOKUP(A9,Inputs!$B$3:$C$29,2,FALSE) -> MDST 2006-1 M2 | D9: BONY | E9: Download excel file
A10: 59549WAB9 | B10: only PDF on bloomberg | C10: =VLOOKUP(A10,Inputs!$B$3:$C$29,2,FALSE) -> MDST 11 M1 | D10: US Bank | E10: Copy PDF Info
A11: 59549WAC7 | B11: only PDF on bloomberg | C11: =VLOOKUP(A11,Inputs!$B$3:$C$29,2,FALSE) -> MDST 11 M2 | D11: BONY | E11: Use same trustee report for 59549WAB9
A12: 59549WAD5 | B12: only PDF on bloomberg | C12: =VLOOKUP(A12,Inputs!$B$3:$C$29,2,FALSE) -> MDST 11 B | D12: BONY | E12: Use same trustee report for 59549WAB9
A15: Starting Libor (2 days before prior dist date) | B15: 0.001865
A18: BCM COPY FROM PDF | B18: Balance | C18: Interest Shortfall
A19: A1 | B19: 13655488.48 | C19: 0
A20: A2 | B20: 40459316.12 | C20: 0
A21: A3 | B21: 26617971.15 | C21: 0
A22: A4 | B22: 39677280.07 | C22: 0
A23: A5 | B23: 13308985.64 | C23: 0
A26: INDMH COPY FROM PDF | B26: Balance | C26: Interest Shortfall
A27: A1 | B27: 0 | C27: 0 | D27: WAC
A28: A2 | B28: 275221.64 | C28: 0 | D28: =SUMPRODUCT([53]Book1!$C$3:$C$386,[53]Book1!$H$3:$H$386)/SUM([53]Book1!$C$3:$C$386)/100 -> 0.1016065812
A29: A3 | B29: 2031931.17 | C29: 0
A30: A4 | B30: 651792.71 | C30: 0
A31: A5 | B31: 2084424.57 | C31: 0
A32: A6 | B32: 2190942.41 | C32: 0
A33: M | B33: 5398372.97 | C33: 0
A35: GT 1996-2 COPY FROM PDF | B35: Balance | C35: Interest Shortfall | D35: Interest Deficiency Amount | E35: Note
A36: A4 | B36: 67246.85 | C36: 0 | D36: 0 | E36: Use 'Principal Balance', not 'Adjusted Principal Balance'
A37: A5 | B37: 153116.83 | C37: 0 | D37: 0
A38: M1 | B38: 41850000 | C38: 0 | D38: 265050
A39: B1 | B39: 18600000 | C39: 0 | D39: 117025
A41: MDST 11 COPY FROM PDF | B41: Ending Balances | C41: Interest shortfall | D41: Allocated losses | E41: interest on losses
A42: A1 | B42: 92492482 | C42: 0 | D42: 0 | E42: 0
A43: M1 | B43: 23880711 | C43: 0 | D43: 0 | E43: 0
A44: M2 | B44: 12129403 | C44: 0 | D44: 0 | E44: 0
A45: B | B45: 16303957 | C45: 0 | D45: 0 | E45: 0
A47: Ending Balance of loans | B47: 163997500
A48: Cumulative Losses | B48: 17392509
A49: REO | B49: 5570579
A52: ORGN 2005-A B | C52: Interest shortfall | D52: Allocated losses | E52: interest on losses | H52: Balance Collateral | I52: Balance Trustee Report
A53: A3 | B53: ='[41]Distribution Report'!I6 -> 10186797.85 | C53: 0 | D53: 0 | E53: 0 | H53: =SUM([54]Book1!$C$3:$C$4042) -> 83904635.32 | I53: ='[41]Factor Report'!$B$29 -> 83,904,635.32
A54: A4 | B54: ='[41]Distribution Report'!I7 -> 21225000 | C54: 0 | D54: 0 | E54: 0
A55: M1 | B55: ='[41]Distribution Report'!I8 -> 13582062.84 | C55: 0 | D55: 0 | E55: 0
A56: M2 | B56: ='[41]Distribution Report'!I9 -> 10278317.83 | C56: 0 | D56: 0 | E56: 0
A57: B | B57: ='[41]Distribution Report'!I10 -> 8809986.71 | C57: 0 | D57: 0 | E57: 0
A59: ORGN 2004-A M2 | C59: Interest shortfall | D59: Allocated losses | E59: interest on losses | H59: Balance Collateral | I59: Balance Trustee Report
A60: A4 | B60: ='[38]Distribution Report'!I7 -> 31466295.31 | C60: 0 | D60: 0 | E60: 0 | H60: =ROUND(SUM([55]Book1!$C$3:$C$5595),2) -> 85044041.39 | I60: ='[38]Factor Report'!$B$28+0 -> 85044041.39
A61: M1 | B61: ='[38]Distribution Report'!I8 -> 14882707.24 | C61: 0 | D61: 0 | E61: 0
A62: M2 | B62: ='[38]Distribution Report'!I9 -> 11906165.79 | C62: 0 | D62: 0 | E62: 0
A63: Prior Target OC | B63: ='[38]Bankruptcy Group Total Report'!$C$40 -> 26,788,873.04

Sheet Forwards
B1: Libor 1 Mo | C1: Libor 3 Mo | D1: Libor 6 Mo
A2: 0 | B2: ='[56]Forward Forecast'!BP4 -> 0 | C2: ='[56]Forward Forecast'!BQ4 -> 0.4129736319 | D2: ='[56]Forward Forecast'!BR4 -> 0.5181288562
A3: 1 | B3: ='[56]Forward Forecast'!BP5 -> 0 | C3: ='[56]Forward Forecast'!BQ5 -> 0.5393387415 | D3: ='[56]Forward Forecast'!BR5 -> 0.5778884452
A4: 2 | B4: ='[56]Forward Forecast'!BP6 -> 0 | C4: ='[56]Forward Forecast'!BQ6 -> 0.6097164331 | D4: ='[56]Forward Forecast'!BR6 -> 0.6154148652
A5: 3 | B5: ='[56]Forward Forecast'!BP7 -> 0 | C5: ='[56]Forward Forecast'!BQ7 -> 0.6233392547 | D5: ='[56]Forward Forecast'!BR7 -> 0.6347746557
A6: 4 | B6: ='[56]Forward Forecast'!BP8 -> 0 | C6: ='[56]Forward Forecast'!BQ8 -> 0.6164455592 | D6: ='[56]Forward Forecast'!BR8 -> 0.6452546899
A7: 5 | B7: ='[56]Forward Forecast'!BP9 -> 0 | C7: ='[56]Forward Forecast'!BQ9 -> 0.6211134593 | D7: ='[56]Forward Forecast'!BR9 -> 0.6594859673
A8: 6 | B8: ='[56]Forward Forecast'!BP10 -> 0 | C8: ='[56]Forward Forecast'!BQ10 -> 0.6462107086 | D8: ='[56]Forward Forecast'!BR10 -> 0.6807076723
A9: 7 | B9: ='[56]Forward Forecast'!BP11 -> 0 | C9: ='[56]Forward Forecast'!BQ11 -> 0.6740679576 | D9: ='[56]Forward Forecast'!BR11 -> 0.7000009003
A10: 8 | B10: ='[56]Forward Forecast'!BP12 -> 0 | C10: ='[56]Forward Forecast'!BQ12 -> 0.6978658149 | D10: ='[56]Forward Forecast'!BR12 -> 0.7142384225
A11: 9 | B11: ='[56]Forward Forecast'!BP13 -> 0 | C11: ='[56]Forward Forecast'!BQ13 -> 0.7152105671 | D11: ='[56]Forward Forecast'!BR13 -> 0.7238697888
A12: 10 | B12: ='[56]Forward Forecast'!BP14 -> 0 | C12: ='[56]Forward Forecast'!BQ14 -> 0.7259371944 | D12: ='[56]Forward Forecast'!BR14 -> 0.7299765352
A13: 11 | B13: ='[56]Forward Forecast'!BP15 -> 0 | C13: ='[56]Forward Forecast'!BQ15 -> 0.7306123658 | D13: ='[56]Forward Forecast'!BR15 -> 0.7340887428
A14: 12 | B14: ='[56]Forward Forecast'!BP16 -> 0 | C14: ='[56]Forward Forecast'!BQ16 -> 0.7325293842 | D14: ='[56]Forward Forecast'!BR16 -> 0.7385010309
A15: 13 | B15: ='[56]Forward Forecast'!BP17 -> 0 | C15: ='[56]Forward Forecast'!BQ17 -> 0.7340159573 | D15: ='[56]Forward Forecast'!BR17 -> 0.7447093247
A16: 14 | B16: ='[56]Forward Forecast'!BP18 -> 0 | C16: ='[56]Forward Forecast'!BQ18 -> 0.73756518 | D16: ='[56]Forward Forecast'!BR18 -> 0.7536108774
A17: 15 | B17: ='[56]Forward Forecast'!BP19 -> 0 | C17: ='[56]Forward Forecast'!BQ19 -> 0.7444728553 | D17: ='[56]Forward Forecast'!BR19 -> 0.7656042032
A18: 16 | B18: ='[56]Forward Forecast'!BP20 -> 0 | C18: ='[56]Forward Forecast'!BQ20 -> 0.7554032617 | D18: ='[56]Forward Forecast'!BR20 -> 0.7802237114
A19: 17 | B19: ='[56]Forward Forecast'!BP21 -> 0 | C19: ='[56]Forward Forecast'!BQ21 -> 0.7696578573 | D19: ='[56]Forward Forecast'!BR21 -> 0.7968375748
A20: 18 | B20: ='[56]Forward Forecast'!BP22 -> 0 | C20: ='[56]Forward Forecast'!BQ22 -> 0.7867377754 | D20: ='[56]Forward Forecast'!BR22 -> 0.8156450244
A21: 19 | B21: ='[56]Forward Forecast'!BP23 -> 0 | C21: ='[56]Forward Forecast'!BQ23 -> 0.8050472299 | D21: ='[56]Forward Forecast'!BR23 -> 0.8358481514
A22: 20 | B22: ='[56]Forward Forecast'!BP24 -> 0 | C22: ='[56]Forward Forecast'!BQ24 -> 0.8240209718 | D22: ='[56]Forward Forecast'!BR24 -> 0.8576463145
A23: 21 | B23: ='[56]Forward Forecast'!BP25 -> 0 | C23: ='[56]Forward Forecast'!BQ25 -> 0.8445564351 | D23: ='[56]Forward Forecast'!BR25 -> 0.881687629
A24: 22 | B24: ='[56]Forward Forecast'!BP26 -> 0 | C24: ='[56]Forward Forecast'!BQ26 -> 0.8666537973 | D24: ='[56]Forward Forecast'!BR26 -> 0.9080222293
A25: 23 | B25: ='[56]Forward Forecast'!BP27 -> 0 | C25: ='[56]Forward Forecast'!BQ27 -> 0.8912772873 | D25: ='[56]Forward Forecast'!BR27 -> 0.9382460619
A26: 24 | B26: ='[56]Forward Forecast'!BP28 -> 0 | C26: ='[56]Forward Forecast'!BQ28 -> 0.9188256875 | D26: ='[56]Forward Forecast'!BR28 -> 0.9723591524
A27: 25 | B27: ='[56]Forward Forecast'!BP29 -> 0 | C27: ='[56]Forward Forecast'!BQ29 -> 0.949399181 | D27: ='[56]Forward Forecast'!BR29 -> 1.010511836
A28: 26 | B28: ='[56]Forward Forecast'!BP30 -> 0 | C28: ='[56]Forward Forecast'!BQ30 -> 0.985225818 | D28: ='[56]Forward Forecast'!BR30 -> 1.053053671
A29: 27 | B29: ='[56]Forward Forecast'!BP31 -> 0 | C29: ='[56]Forward Forecast'!BQ31 -> 1.025906881 | D29: ='[56]Forward Forecast'!BR31 -> 1.099885099
A30: 28 | B30: ='[56]Forward Forecast'!BP32 -> 0 | C30: ='[56]Forward Forecast'!BQ32 -> 1.071643076 | D30: ='[56]Forward Forecast'!BR32 -> 1.150541584
A31: 29 | B31: ='[56]Forward Forecast'!BP33 -> 0 | C31: ='[56]Forward Forecast'!BQ33 -> 1.120904414 | D31: ='[56]Forward Forecast'!BR33 -> 1.204889715
A32: 30 | B32: ='[56]Forward Forecast'!BP34 -> 0 | C32: ='[56]Forward Forecast'!BQ34 -> 1.173890541 | D32: ='[56]Forward Forecast'!BR34 -> 1.260733946
A33: 31 | B33: ='[56]Forward Forecast'!BP35 -> 0 | C33: ='[56]Forward Forecast'!BQ35 -> 1.229471052 | D33: ='[56]Forward Forecast'!BR35 -> 1.319721216
A34: 32 | B34: ='[56]Forward Forecast'!BP36 -> 0 | C34: ='[56]Forward Forecast'!BQ36 -> 1.288910087 | D34: ='[56]Forward Forecast'!BR36 -> 1.380104378
A35: 33 | B35: ='[56]Forward Forecast'!BP37 -> 0 | C35: ='[56]Forward Forecast'!BQ37 -> 1.34761484 | D35: ='[56]Forward Forecast'!BR37 -> 1.441233446
A36: 34 | B36: ='[56]Forward Forecast'!BP38 -> 0 | C36: ='[56]Forward Forecast'!BQ38 -> 1.410011857 | D36: ='[56]Forward Forecast'!BR38 -> 1.503424903
A37: 35 | B37: ='[56]Forward Forecast'!BP39 -> 0 | C37: ='[56]Forward Forecast'!BQ39 -> 1.471339984 | D37: ='[56]Forward Forecast'!BR39 -> 1.5647297
A38: 36 | B38: ='[56]Forward Forecast'!BP40 -> 0 | C38: ='[56]Forward Forecast'!BQ40 -> 1.534895581 | D38: ='[56]Forward Forecast'!BR40 -> 1.625997303
A39: 37 | B39: ='[56]Forward Forecast'!BP41 -> 0 | C39: ='[56]Forward Forecast'!BQ41 -> 1.596881274 | D39: ='[56]Forward Forecast'!BR41 -> 1.685843848
A40: 38 | B40: ='[56]Forward Forecast'!BP42 -> 0 | C40: ='[56]Forward Forecast'!BQ42 -> 1.658162705 | D40: ='[56]Forward Forecast'!BR42 -> 1.744552462
A41: 39 | B41: ='[56]Forward Forecast'!BP43 -> 0 | C41: ='[56]Forward Forecast'!BQ43 -> 1.717140206 | D41: ='[56]Forward Forecast'!BR43 -> 1.801922331
A42: 40 | B42: ='[56]Forward Forecast'!BP44 -> 0 | C42: ='[56]Forward Forecast'!BQ44 -> 1.77484568 | D42: ='[56]Forward Forecast'!BR44 -> 1.859185354
A43: 41 | B43: ='[56]Forward Forecast'!BP45 -> 0 | C43: ='[56]Forward Forecast'!BQ45 -> 1.830979227 | D43: ='[56]Forward Forecast'!BR45 -> 1.916141947
A44: 42 | B44: ='[56]Forward Forecast'!BP46 -> 0 | C44: ='[56]Forward Forecast'!BQ46 -> 1.88674009 | D44: ='[56]Forward Forecast'!BR46 -> 1.974191217
A45: 43 | B45: ='[56]Forward Forecast'!BP47 -> 0 | C45: ='[56]Forward Forecast'!BQ47 -> 1.943560282 | D45: ='[56]Forward Forecast'!BR47 -> 2.03251697
A46: 44 | B46: ='[56]Forward Forecast'!BP48 -> 0 | C46: ='[56]Forward Forecast'!BQ48 -> 2.001340602 | D46: ='[56]Forward Forecast'!BR48 -> 2.091802645
A47: 45 | B47: ='[56]Forward Forecast'!BP49 -> 0 | C47: ='[56]Forward Forecast'!BQ49 -> 2.061680224 | D47: ='[56]Forward Forecast'!BR49 -> 2.152048128
A48: 46 | B48: ='[56]Forward Forecast'!BP50 -> 0 | C48: ='[56]Forward Forecast'!BQ50 -> 2.121512844 | D48: ='[56]Forward Forecast'!BR50 -> 2.210753799
A49: 47 | B49: ='[56]Forward Forecast'!BP51 -> 0 | C49: ='[56]Forward Forecast'!BQ51 -> 2.1823052 | D49: ='[56]Forward Forecast'!BR51 -> 2.267670195
A50: 48 | B50: ='[56]Forward Forecast'!BP52 -> 0 | C50: ='[56]Forward Forecast'!BQ52 -> 2.242456447 | D50: ='[56]Forward Forecast'!BR52 -> 2.322745681
A51: 49 | B51: ='[56]Forward Forecast'!BP53 -> 0 | C51: ='[56]Forward Forecast'!BQ53 -> 2.300034157 | D51: ='[56]Forward Forecast'!BR53 -> 2.375730924
A52: 50 | B52: ='[56]Forward Forecast'!BP54 -> 0 | C52: ='[56]Forward Forecast'!BQ54 -> 2.353071232 | D52: ='[56]Forward Forecast'!BR54 -> 2.42554267
A53: 51 | B53: ='[56]Forward Forecast'!BP55 -> 0 | C53: ='[56]Forward Forecast'!BQ55 -> 2.403066789 | D53: ='[56]Forward Forecast'!BR55 -> 2.47293018
A54: 52 | B54: ='[56]Forward Forecast'!BP56 -> 0 | C54: ='[56]Forward Forecast'!BQ56 -> 2.451456016 | D54: ='[56]Forward Forecast'!BR56 -> 2.518511991
A55: 53 | B55: ='[56]Forward Forecast'!BP57 -> 0 | C55: ='[56]Forward Forecast'!BQ57 -> 2.498040063 | D55: ='[56]Forward Forecast'!BR57 -> 2.565037934
A56: 54 | B56: ='[56]Forward Forecast'!BP58 -> 0 | C56: ='[56]Forward Forecast'!BQ58 -> 2.542817685 | D56: ='[56]Forward Forecast'!BR58 -> 2.609658157
A57: 55 | B57: ='[56]Forward Forecast'!BP59 -> 0 | C57: ='[56]Forward Forecast'!BQ59 -> 2.585590176 | D57: ='[56]Forward Forecast'!BR59 -> 2.655222471
A58: 56 | B58: ='[56]Forward Forecast'!BP60 -> 0 | C58: ='[56]Forward Forecast'!BQ60 -> 2.632057971 | D58: ='[56]Forward Forecast'!BR60 -> 2.700649367
A59: 57 | B59: ='[56]Forward Forecast'!BP61 -> 0 | C59: ='[56]Forward Forecast'!BQ61 -> 2.676520687 | D59: ='[56]Forward Forecast'!BR61 -> 2.74393864
A60: 58 | B60: ='[56]Forward Forecast'!BP62 -> 0 | C60: ='[56]Forward Forecast'!BQ62 -> 2.7248787 | D60: ='[56]Forward Forecast'!BR62 -> 2.784891819
A61: 59 | B61: ='[56]Forward Forecast'!BP63 -> 0 | C61: ='[56]Forward Forecast'!BQ63 -> 2.769263981 | D61: ='[56]Forward Forecast'!BR63 -> 2.821440972
A62: 60 | B62: ='[56]Forward Forecast'!BP64 -> 0 | C62: ='[56]Forward Forecast'!BQ64 -> 2.811379018 | D62: ='[56]Forward Forecast'!BR64 -> 2.854288864
A63: 61 | B63: ='[56]Forward Forecast'!BP65 -> 0 | C63: ='[56]Forward Forecast'!BQ65 -> 2.844922704 | D63: ='[56]Forward Forecast'!BR65 -> 2.879019966
A64: 62 | B64: ='[56]Forward Forecast'!BP66 -> 0 | C64: ='[56]Forward Forecast'!BQ66 -> 2.87363139 | D64: ='[56]Forward Forecast'!BR66 -> 2.899619138
A65: 63 | B65: ='[56]Forward Forecast'!BP67 -> 0 | C65: ='[56]Forward Forecast'!BQ67 -> 2.897207789 | D65: ='[56]Forward Forecast'!BR67 -> 2.91813711
A66: 64 | B66: ='[56]Forward Forecast'!BP68 -> 0 | C66: ='[56]Forward Forecast'!BQ68 -> 2.913122959 | D66: ='[56]Forward Forecast'!BR68 -> 2.936756956
A67: 65 | B67: ='[56]Forward Forecast'!BP69 -> 0 | C67: ='[56]Forward Forecast'!BQ69 -> 2.925610214 | D67: ='[56]Forward Forecast'!BR69 -> 2.956710538
A68: 66 | B68: ='[56]Forward Forecast'!BP70 -> 0 | C68: ='[56]Forward Forecast'!BQ70 -> 2.93906859 | D68: ='[56]Forward Forecast'!BR70 -> 2.980395792
A69: 67 | B69: ='[56]Forward Forecast'!BP71 -> 0 | C69: ='[56]Forward Forecast'!BQ71 -> 2.960393705 | D69: ='[56]Forward Forecast'!BR71 -> 3.01145976
A70: 68 | B70: ='[56]Forward Forecast'!BP72 -> 0 | C70: ='[56]Forward Forecast'!BQ72 -> 2.987815627 | D70: ='[56]Forward Forecast'!BR72 -> 3.047984639
A71: 69 | B71: ='[56]Forward Forecast'!BP73 -> 0 | C71: ='[56]Forward Forecast'!BQ73 -> 3.021731409 | D71: ='[56]Forward Forecast'!BR73 -> 3.085325028
A72: 70 | B72: ='[56]Forward Forecast'!BP74 -> 0 | C72: ='[56]Forward Forecast'!BQ74 -> 3.062538664 | D72: ='[56]Forward Forecast'!BR74 -> 3.122364471
A73: 71 | B73: ='[56]Forward Forecast'!BP75 -> 0 | C73: ='[56]Forward Forecast'!BQ75 -> 3.108171485 | D73: ='[56]Forward Forecast'!BR75 -> 3.157919955
A74: 72 | B74: ='[56]Forward Forecast'!BP76 -> 0 | C74: ='[56]Forward Forecast'!BQ76 -> 3.148938566 | D74: ='[56]Forward Forecast'!BR76 -> 3.186847513
A75: 73 | B75: ='[56]Forward Forecast'!BP77 -> 0 | C75: ='[56]Forward Forecast'!BQ77 -> 3.182207904 | D75: ='[56]Forward Forecast'!BR77 -> 3.207682263
A76: 74 | B76: ='[56]Forward Forecast'!BP78 -> 0 | C76: ='[56]Forward Forecast'!BQ78 -> 3.207680611 | D76: ='[56]Forward Forecast'!BR78 -> 3.220126774
A77: 75 | B77: ='[56]Forward Forecast'!BP79 -> 0 | C77: ='[56]Forward Forecast'!BQ79 -> 3.224763534 | D77: ='[56]Forward Forecast'!BR79 -> 3.228979832
A78: 76 | B78: ='[56]Forward Forecast'!BP80 -> 0 | C78: ='[56]Forward Forecast'!BQ80 -> 3.233159817 | D78: ='[56]Forward Forecast'!BR80 -> 3.235507099
A79: 77 | B79: ='[56]Forward Forecast'!BP81 -> 0 | C79: ='[56]Forward Forecast'!BQ81 -> 3.232573699 | D79: ='[56]Forward Forecast'!BR81 -> 3.238279176
A80: 78 | B80: ='[56]Forward Forecast'!BP82 -> 0 | C80: ='[56]Forward Forecast'!BQ82 -> 3.233196217 | D80: ='[56]Forward Forecast'!BR82 -> 3.243887199
A81: 79 | B81: ='[56]Forward Forecast'!BP83 -> 0 | C81: ='[56]Forward Forecast'!BQ83 -> 3.237854407 | D81: ='[56]Forward Forecast'!BR83 -> 3.25247946
A82: 80 | B82: ='[56]Forward Forecast'!BP84 -> 0 | C82: ='[56]Forward Forecast'!BQ84 -> 3.243984812 | D82: ='[56]Forward Forecast'!BR84 -> 3.264204361
A83: 81 | B83: ='[56]Forward Forecast'!BP85 -> 0 | C83: ='[56]Forward Forecast'!BQ85 -> 3.254578743 | D83: ='[56]Forward Forecast'!BR85 -> 3.274969915
A84: 82 | B84: ='[56]Forward Forecast'!BP86 -> 0 | C84: ='[56]Forward Forecast'!BQ86 -> 3.267105564 | D84: ='[56]Forward Forecast'!BR86 -> 3.284874755
A85: 83 | B85: ='[56]Forward Forecast'!BP87 -> 0 | C85: ='[56]Forward Forecast'!BQ87 -> 3.284425922 | D85: ='[56]Forward Forecast'!BR87 -> 3.293820756
A86: 84 | B86: ='[56]Forward Forecast'!BP88 -> 0 | C86: ='[56]Forward Forecast'!BQ88 -> 3.295363133 | D86: ='[56]Forward Forecast'!BR88 -> 3.297517962
A87: 85 | B87: ='[56]Forward Forecast'!BP89 -> 0 | C87: ='[56]Forward Forecast'!BQ89 -> 3.302645499 | D87: ='[56]Forward Forecast'!BR89 -> 3.295818861
A88: 86 | B88: ='[56]Forward Forecast'!BP90 -> 0 | C88: ='[56]Forward Forecast'!BQ90 -> 3.303216024 | D88: ='[56]Forward Forecast'!BR90 -> 3.290104722
A89: 87 | B89: ='[56]Forward Forecast'!BP91 -> 0 | C89: ='[56]Forward Forecast'!BQ91 -> 3.299672813 | D89: ='[56]Forward Forecast'!BR91 -> 3.284715239
A90: 88 | B90: ='[56]Forward Forecast'!BP92 -> 0 | C90: ='[56]Forward Forecast'!BQ92 -> 3.288992451 | D90: ='[56]Forward Forecast'!BR92 -> 3.279798248
A91: 89 | B91: ='[56]Forward Forecast'!BP93 -> 0 | C91: ='[56]Forward Forecast'!BQ93 -> 3.276994266 | D91: ='[56]Forward Forecast'!BR93 -> 3.276882278
A92: 90 | B92: ='[56]Forward Forecast'!BP94 -> 0 | C92: ='[56]Forward Forecast'!BQ94 -> 3.269758764 | D92: ='[56]Forward Forecast'!BR94 -> 3.282343001
A93: 91 | B93: ='[56]Forward Forecast'!BP95 -> 0 | C93: ='[56]Forward Forecast'!BQ95 -> 3.270604461 | D93: ='[56]Forward Forecast'!BR95 -> 3.298086819
A94: 92 | B94: ='[56]Forward Forecast'!BP96 -> 0 | C94: ='[56]Forward Forecast'!BQ96 -> 3.276770289 | D94: ='[56]Forward Forecast'!BR96 -> 3.318051044
A95: 93 | B95: ='[56]Forward Forecast'!BP97 -> 0 | C95: ='[56]Forward Forecast'!BQ97 -> 3.294928017 | D95: ='[56]Forward Forecast'!BR97 -> 3.342483028
A96: 94 | B96: ='[56]Forward Forecast'!BP98 -> 0 | C96: ='[56]Forward Forecast'!BQ98 -> 3.325572891 | D96: ='[56]Forward Forecast'!BR98 -> 3.368310156
A97: 95 | B97: ='[56]Forward Forecast'!BP99 -> 0 | C97: ='[56]Forward Forecast'!BQ99 -> 3.359340181 | D97: ='[56]Forward Forecast'!BR99 -> 3.392228875
A98: 96 | B98: ='[56]Forward Forecast'!BP100 -> 0 | C98: ='[56]Forward Forecast'!BQ100 -> 3.390049163 | D98: ='[56]Forward Forecast'!BR100 -> 3.411098
A99: 97 | B99: ='[56]Forward Forecast'!BP101 -> 0 | C99: ='[56]Forward Forecast'!BQ101 -> 3.411056403 | D99: ='[56]Forward Forecast'!BR101 -> 3.418028233
A100: 98 | B100: ='[56]Forward Forecast'!BP102 -> 0 | C100: ='[56]Forward Forecast'!BQ102 -> 3.425122888 | D100: ='[56]Forward Forecast'!BR102 -> 3.422735738
A101: 99 | B101: ='[56]Forward Forecast'!BP103 -> 0 | C101: ='[56]Forward Forecast'!BQ103 -> 3.432149015 | D101: ='[56]Forward Forecast'!BR103 -> 3.420042259
A102: 100 | B102: ='[56]Forward Forecast'!BP104 -> 0 | C102: ='[56]Forward Forecast'!BQ104 -> 3.425000303 | D102: ='[56]Forward Forecast'!BR104 -> 3.413170883
A103: 101 | B103: ='[56]Forward Forecast'!BP105 -> 0 | C103: ='[56]Forward Forecast'!BQ105 -> 3.420348617 | D103: ='[56]Forward Forecast'!BR105 -> 3.408927722
A104: 102 | B104: ='[56]Forward Forecast'!BP106 -> 0 | C104: ='[56]Forward Forecast'!BQ106 -> 3.407936223 | D104: ='[56]Forward Forecast'!BR106 -> 3.402134956
A105: 103 | B105: ='[56]Forward Forecast'!BP107 -> 0 | C105: ='[56]Forward Forecast'!BQ107 -> 3.401342151 | D105: ='[56]Forward Forecast'!BR107 -> 3.401487936
A106: 104 | B106: ='[56]Forward Forecast'!BP108 -> 0 | C106: ='[56]Forward Forecast'!BQ108 -> 3.397507468 | D106: ='[56]Forward Forecast'!BR108 -> 3.402005573
A107: 105 | B107: ='[56]Forward Forecast'!BP109 -> 0 | C107: ='[56]Forward Forecast'!BQ109 -> 3.396333853 | D107: ='[56]Forward Forecast'!BR109 -> 3.405381187
A108: 106 | B108: ='[56]Forward Forecast'!BP110 -> 0 | C108: ='[56]Forward Forecast'!BQ110 -> 3.40163372 | D108: ='[56]Forward Forecast'!BR110 -> 3.408097553
A109: 107 | B109: ='[56]Forward Forecast'!BP111 -> 0 | C109: ='[56]Forward Forecast'!BQ111 -> 3.406503778 | D109: ='[56]Forward Forecast'!BR111 -> 3.408477963
A110: 108 | B110: ='[56]Forward Forecast'!BP112 -> 0 | C110: ='[56]Forward Forecast'!BQ112 -> 3.414428922 | D110: ='[56]Forward Forecast'!BR112 -> 3.410056413
A111: 109 | B111: ='[56]Forward Forecast'!BP113 -> 0 | C111: ='[56]Forward Forecast'!BQ113 -> 3.414561591 | D111: ='[56]Forward Forecast'!BR113 -> 3.40736013
A112: 110 | B112: ='[56]Forward Forecast'!BP114 -> 0 | C112: ='[56]Forward Forecast'!BQ114 -> 3.410452167 | D112: ='[56]Forward Forecast'!BR114 -> 3.400291079
A113: 111 | B113: ='[56]Forward Forecast'!BP115 -> 0 | C113: ='[56]Forward Forecast'!BQ115 -> 3.405683997 | D113: ='[56]Forward Forecast'!BR115 -> 3.392530866
A114: 112 | B114: ='[56]Forward Forecast'!BP116 -> 0 | C114: ='[56]Forward Forecast'!BQ116 -> 3.400158923 | D114: ='[56]Forward Forecast'!BR116 -> 3.385936523
A115: 113 | B115: ='[56]Forward Forecast'!BP117 -> 0 | C115: ='[56]Forward Forecast'!BQ117 -> 3.390130498 | D115: ='[56]Forward Forecast'!BR117 -> 3.38065552
A116: 114 | B116: ='[56]Forward Forecast'!BP118 -> 0 | C116: ='[56]Forward Forecast'!BQ118 -> 3.379378585 | D116: ='[56]Forward Forecast'!BR118 -> 3.376737014
A117: 115 | B117: ='[56]Forward Forecast'!BP119 -> 0 | C117: ='[56]Forward Forecast'!BQ119 -> 3.371715117 | D117: ='[56]Forward Forecast'!BR119 -> 3.378140366
A118: 116 | B118: ='[56]Forward Forecast'!BP120 -> 0 | C118: ='[56]Forward Forecast'!BQ120 -> 3.371180982 | D118: ='[56]Forward Forecast'!BR120 -> 3.385013255
A119: 117 | B119: ='[56]Forward Forecast'!BP121 -> 0 | C119: ='[56]Forward Forecast'!BQ121 -> 3.374095479 | D119: ='[56]Forward Forecast'!BR121 -> 3.393527705
A120: 118 | B120: ='[56]Forward Forecast'!BP122 -> 0 | C120: ='[56]Forward Forecast'!BQ122 -> 3.384565818 | D120: ='[56]Forward Forecast'!BR122 -> 3.403733169
A121: 119 | B121: ='[56]Forward Forecast'!BP123 -> 0 | C121: ='[56]Forward Forecast'!BQ123 -> 3.398846468 | D121: ='[56]Forward Forecast'!BR123 -> 3.41370729
A122: 120 | B122: ='[56]Forward Forecast'!BP124 -> 0 | C122: ='[56]Forward Forecast'!BQ124 -> 3.412961788 | D122: ='[56]Forward Forecast'!BR124 -> 3.425536753
A123: 121 | B123: ='[56]Forward Forecast'!BP125 -> 0 | C123: ='[56]Forward Forecast'!BQ125 -> 3.422902327 | D123: ='[56]Forward Forecast'!BR125 -> 3.435163065
A124: 122 | B124: ='[56]Forward Forecast'!BP126 -> 0 | C124: ='[56]Forward Forecast'!BQ126 -> 3.428569198 | D124: ='[56]Forward Forecast'!BR126 -> 3.442536803
A125: 123 | B125: ='[56]Forward Forecast'!BP127 -> 0 | C125: ='[56]Forward Forecast'!BQ127 -> 3.438112495 | D125: ='[56]Forward Forecast'!BR127 -> 3.447510325
A126: 124 | B126: ='[56]Forward Forecast'!BP128 -> 0 | C126: ='[56]Forward Forecast'!BQ128 -> 3.447424542 | D126: ='[56]Forward Forecast'!BR128 -> 3.454339303
A127: 125 | B127: ='[56]Forward Forecast'!BP129 -> 0 | C127: ='[56]Forward Forecast'!BQ129 -> 3.456505368 | D127: ='[56]Forward Forecast'!BR129 -> 3.458735256
A128: 126 | B128: ='[56]Forward Forecast'!BP130 -> 0 | C128: ='[56]Forward Forecast'!BQ130 -> 3.456908588 | D128: ='[56]Forward Forecast'!BR130 -> 3.458561928
A129: 127 | B129: ='[56]Forward Forecast'!BP131 -> 0 | C129: ='[56]Forward Forecast'!BQ131 -> 3.461254298 | D129: ='[56]Forward Forecast'!BR131 -> 3.455824441
A130: 128 | B130: ='[56]Forward Forecast'!BP132 -> 0 | C130: ='[56]Forward Forecast'!BQ132 -> 3.460965168 | D130: ='[56]Forward Forecast'!BR132 -> 3.452691802
A131: 129 | B131: ='[56]Forward Forecast'!BP133 -> 0 | C131: ='[56]Forward Forecast'!BQ133 -> 3.460215281 | D131: ='[56]Forward Forecast'!BR133 -> 3.451300154
A132: 130 | B132: ='[56]Forward Forecast'!BP134 -> 0 | C132: ='[56]Forward Forecast'!BQ134 -> 3.450394729 | D132: ='[56]Forward Forecast'!BR134 -> 3.445143088
A133: 131 | B133: ='[56]Forward Forecast'!BP135 -> 0 | C133: ='[56]Forward Forecast'!BQ135 -> 3.444418772 | D133: ='[56]Forward Forecast'!BR135 -> 3.44299421
A134: 132 | B134: ='[56]Forward Forecast'!BP136 -> 0 | C134: ='[56]Forward Forecast'!BQ136 -> 3.442385418 | D134: ='[56]Forward Forecast'!BR136 -> 3.442668298
A135: 133 | B135: ='[56]Forward Forecast'!BP137 -> 0 | C135: ='[56]Forward Forecast'!BQ137 -> 3.439891584 | D135: ='[56]Forward Forecast'!BR137 -> 3.444214542
A136: 134 | B136: ='[56]Forward Forecast'!BP138 -> 0 | C136: ='[56]Forward Forecast'!BQ138 -> 3.441569658 | D136: ='[56]Forward Forecast'!BR138 -> 3.447780489
A137: 135 | B137: ='[56]Forward Forecast'!BP139 -> 0 | C137: ='[56]Forward Forecast'!BQ139 -> 3.442951179 | D137: ='[56]Forward Forecast'!BR139 -> 3.448750094
A138: 136 | B138: ='[56]Forward Forecast'!BP140 -> 0 | C138: ='[56]Forward Forecast'!BQ140 -> 3.448537593 | D138: ='[56]Forward Forecast'!BR140 -> 3.454023066
A139: 137 | B139: ='[56]Forward Forecast'!BP141 -> 0 | C139: ='[56]Forward Forecast'!BQ141 -> 3.453991509 | D139: ='[56]Forward Forecast'!BR141 -> 3.454432574
A140: 138 | B140: ='[56]Forward Forecast'!BP142 -> 0 | C140: ='[56]Forward Forecast'!BQ142 -> 3.454549175 | D140: ='[56]Forward Forecast'!BR142 -> 3.454545699
A141: 139 | B141: ='[56]Forward Forecast'!BP143 -> 0 | C141: ='[56]Forward Forecast'!BQ143 -> 3.459508687 | D141: ='[56]Forward Forecast'!BR143 -> 3.454362482
A142: 140 | B142: ='[56]Forward Forecast'!BP144 -> 0 | C142: ='[56]Forward Forecast'!BQ144 -> 3.454873639 | D142: ='[56]Forward Forecast'!BR144 -> 3.449152077
A143: 141 | B143: ='[56]Forward Forecast'!BP145 -> 0 | C143: ='[56]Forward Forecast'!BQ145 -> 3.454542223 | D143: ='[56]Forward Forecast'!BR145 -> 3.445912622
A144: 142 | B144: ='[56]Forward Forecast'!BP146 -> 0 | C144: ='[56]Forward Forecast'!BQ146 -> 3.449216407 | D144: ='[56]Forward Forecast'!BR146 -> 3.4399953
A145: 143 | B145: ='[56]Forward Forecast'!BP147 -> 0 | C145: ='[56]Forward Forecast'!BQ147 -> 3.443430675 | D145: ='[56]Forward Forecast'!BR147 -> 3.436081704
A146: 144 | B146: ='[56]Forward Forecast'!BP148 -> 0 | C146: ='[56]Forward Forecast'!BQ148 -> 3.437283387 | D146: ='[56]Forward Forecast'!BR148 -> 3.431839288
A147: 145 | B147: ='[56]Forward Forecast'!BP149 -> 0 | C147: ='[56]Forward Forecast'!BQ149 -> 3.43077461 | D147: ='[56]Forward Forecast'!BR149 -> 3.429764352
A148: 146 | B148: ='[56]Forward Forecast'!BP150 -> 0 | C148: ='[56]Forward Forecast'!BQ150 -> 3.428733 | D148: ='[56]Forward Forecast'!BR150 -> 3.429807701
A149: 147 | B149: ='[56]Forward Forecast'!BP151 -> 0 | C149: ='[56]Forward Forecast'!BQ151 -> 3.426395335 | D149: ='[56]Forward Forecast'!BR151 -> 3.429587787
A150: 148 | B150: ='[56]Forward Forecast'!BP152 -> 0 | C150: ='[56]Forward Forecast'!BQ152 -> 3.428754098 | D150: ='[56]Forward Forecast'!BR152 -> 3.426559244
A151: 149 | B151: ='[56]Forward Forecast'!BP153 -> 0 | C151: ='[56]Forward Forecast'!BQ153 -> 3.430882408 | D151: ='[56]Forward Forecast'!BR153 -> 3.425796514
A152: 150 | B152: ='[56]Forward Forecast'!BP154 -> 0 | C152: ='[56]Forward Forecast'!BQ154 -> 3.432780288 | D152: ='[56]Forward Forecast'!BR154 -> 3.424770612
A153: 151 | B153: ='[56]Forward Forecast'!BP155 -> 0 | C153: ='[56]Forward Forecast'!BQ155 -> 3.424364413 | D153: ='[56]Forward Forecast'!BR155 -> 3.418390942
A154: 152 | B154: ='[56]Forward Forecast'!BP156 -> 0 | C154: ='[56]Forward Forecast'!BQ156 -> 3.420710747 | D154: ='[56]Forward Forecast'!BR156 -> 3.409072089
A155: 153 | B155: ='[56]Forward Forecast'!BP157 -> 0 | C155: ='[56]Forward Forecast'!BQ157 -> 3.416761252 | D155: ='[56]Forward Forecast'!BR157 -> 3.402019261
A156: 154 | B156: ='[56]Forward Forecast'!BP158 -> 0 | C156: ='[56]Forward Forecast'!BQ158 -> 3.412417646 | D156: ='[56]Forward Forecast'!BR158 -> 3.397183078
A157: 155 | B157: ='[56]Forward Forecast'!BP159 -> 0 | C157: ='[56]Forward Forecast'!BQ159 -> 3.397434097 | D157: ='[56]Forward Forecast'!BR159 -> 3.389489889
A158: 156 | B158: ='[56]Forward Forecast'!BP160 -> 0 | C158: ='[56]Forward Forecast'!BQ160 -> 3.387278338 | D158: ='[56]Forward Forecast'!BR160 -> 3.381468447
A159: 157 | B159: ='[56]Forward Forecast'!BP161 -> 0 | C159: ='[56]Forward Forecast'!BQ161 -> 3.381949651 | D159: ='[56]Forward Forecast'!BR161 -> 3.378404928
A160: 158 | B160: ='[56]Forward Forecast'!BP162 -> 0 | C160: ='[56]Forward Forecast'!BQ162 -> 3.38154599 | D160: ='[56]Forward Forecast'!BR162 -> 3.377688789
A161: 159 | B161: ='[56]Forward Forecast'!BP163 -> 0 | C161: ='[56]Forward Forecast'!BQ163 -> 3.375658722 | D161: ='[56]Forward Forecast'!BR163 -> 3.374115816
A162: 160 | B162: ='[56]Forward Forecast'!BP164 -> 0 | C162: ='[56]Forward Forecast'!BQ164 -> 3.374860267 | D162: ='[56]Forward Forecast'!BR164 -> 3.37302133
A163: 161 | B163: ='[56]Forward Forecast'!BP165 -> 0 | C163: ='[56]Forward Forecast'!BQ165 -> 3.373831661 | D163: ='[56]Forward Forecast'!BR165 -> 3.368939002
A164: 162 | B164: ='[56]Forward Forecast'!BP166 -> 0 | C164: ='[56]Forward Forecast'!BQ166 -> 3.372572922 | D164: ='[56]Forward Forecast'!BR166 -> 3.367367919
A165: 163 | B165: ='[56]Forward Forecast'!BP167 -> 0 | C165: ='[56]Forward Forecast'!BQ167 -> 3.371182409 | D165: ='[56]Forward Forecast'!BR167 -> 3.36008429
A166: 164 | B166: ='[56]Forward Forecast'!BP168 -> 0 | C166: ='[56]Forward Forecast'!BQ168 -> 3.364046461 | D166: ='[56]Forward Forecast'!BR168 -> 3.352505287
A167: 165 | B167: ='[56]Forward Forecast'!BP169 -> 0 | C167: ='[56]Forward Forecast'!BQ169 -> 3.362163049 | D167: ='[56]Forward Forecast'!BR169 -> 3.344630945
A168: 166 | B168: ='[56]Forward Forecast'!BP170 -> 0 | C168: ='[56]Forward Forecast'!BQ170 -> 3.348986777 | D168: ='[56]Forward Forecast'!BR170 -> 3.33372045
A169: 167 | B169: ='[56]Forward Forecast'!BP171 -> 0 | C169: ='[56]Forward Forecast'!BQ171 -> 3.340964767 | D169: ='[56]Forward Forecast'!BR171 -> 3.328094756
A170: 168 | B170: ='[56]Forward Forecast'!BP172 -> 0 | C170: ='[56]Forward Forecast'!BQ172 -> 3.327100353 | D170: ='[56]Forward Forecast'!BR172 -> 3.31943299
A171: 169 | B171: ='[56]Forward Forecast'!BP173 -> 0 | C171: ='[56]Forward Forecast'!BQ173 -> 3.318455269 | D171: ='[56]Forward Forecast'!BR173 -> 3.313265744
A172: 170 | B172: ='[56]Forward Forecast'!BP174 -> 0 | C172: ='[56]Forward Forecast'!BQ174 -> 3.31522556 | D172: ='[56]Forward Forecast'!BR174 -> 3.309740335
A173: 171 | B173: ='[56]Forward Forecast'!BP175 -> 0 | C173: ='[56]Forward Forecast'!BQ175 -> 3.311765916 | D173: ='[56]Forward Forecast'!BR175 -> 3.305985017
A174: 172 | B174: ='[56]Forward Forecast'!BP176 -> 0 | C174: ='[56]Forward Forecast'!BQ176 -> 3.308076352 | D174: ='[56]Forward Forecast'!BR176 -> 3.301999806
A175: 173 | B175: ='[56]Forward Forecast'!BP177 -> 0 | C175: ='[56]Forward Forecast'!BQ177 -> 3.304255258 | D175: ='[56]Forward Forecast'!BR177 -> 3.297883094
A176: 174 | B176: ='[56]Forward Forecast'!BP178 -> 0 | C176: ='[56]Forward Forecast'!BQ178 -> 3.300204283 | D176: ='[56]Forward Forecast'!BR178 -> 3.293536526
A177: 175 | B177: ='[56]Forward Forecast'!BP179 -> 0 | C177: ='[56]Forward Forecast'!BQ179 -> 3.295923441 | D177: ='[56]Forward Forecast'!BR179 -> 3.285974012
A178: 176 | B178: ='[56]Forward Forecast'!BP180 -> 0 | C178: ='[56]Forward Forecast'!BQ180 -> 3.291511129 | D178: ='[56]Forward Forecast'!BR180 -> 3.27824744
A179: 177 | B179: ='[56]Forward Forecast'!BP181 -> 0 | C179: ='[56]Forward Forecast'!BQ181 -> 3.286868989 | D179: ='[56]Forward Forecast'!BR181 -> 3.270258457
A180: 178 | B180: ='[56]Forward Forecast'!BP182 -> 0 | C180: ='[56]Forward Forecast'!BQ182 -> 3.276025069 | D180: ='[56]Forward Forecast'!BR182 -> 3.262007087
A181: 179 | B181: ='[56]Forward Forecast'!BP183 -> 0 | C181: ='[56]Forward Forecast'!BQ183 -> 3.264984616 | D181: ='[56]Forward Forecast'!BR183 -> 3.25054056
A182: 180 | B182: ='[56]Forward Forecast'!BP184 -> 0 | C182: ='[56]Forward Forecast'!BQ184 -> 3.253649283 | D182: ='[56]Forward Forecast'!BR184 -> 3.241846622
A183: 181 | B183: ='[56]Forward Forecast'!BP185 -> 0 | C183: ='[56]Forward Forecast'!BQ185 -> 3.247990072 | D183: ='[56]Forward Forecast'!BR185 -> 3.235875707
A184: 182 | B184: ='[56]Forward Forecast'!BP186 -> 0 | C184: ='[56]Forward Forecast'!BQ186 -> 3.23609753 | D184: ='[56]Forward Forecast'!BR186 -> 3.229773492
A185: 183 | B185: ='[56]Forward Forecast'!BP187 -> 0 | C185: ='[56]Forward Forecast'!BQ187 -> 3.230044646 | D185: ='[56]Forward Forecast'!BR187 -> 3.226557983
A186: 184 | B186: ='[56]Forward Forecast'!BP188 -> 0 | C186: ='[56]Forward Forecast'!BQ188 -> 3.223762065 | D186: ='[56]Forward Forecast'!BR188 -> 3.223145455
A187: 185 | B187: ='[56]Forward Forecast'!BP189 -> 0 | C187: ='[56]Forward Forecast'!BQ189 -> 3.22344965 | D187: ='[56]Forward Forecast'!BR189 -> 3.219535916
A188: 186 | B188: ='[56]Forward Forecast'!BP190 -> 0 | C188: ='[56]Forward Forecast'!BQ190 -> 3.22307138 | D188: ='[56]Forward Forecast'!BR190 -> 3.212662347
A189: 187 | B189: ='[56]Forward Forecast'!BP191 -> 0 | C189: ='[56]Forward Forecast'!BQ191 -> 3.222528847 | D189: ='[56]Forward Forecast'!BR191 -> 3.208740886
A190: 188 | B190: ='[56]Forward Forecast'!BP192 -> 0 | C190: ='[56]Forward Forecast'!BQ192 -> 3.215622258 | D190: ='[56]Forward Forecast'!BR192 -> 3.198324746
A191: 189 | B191: ='[56]Forward Forecast'!BP193 -> 0 | C191: ='[56]Forward Forecast'!BQ193 -> 3.202253848 | D191: ='[56]Forward Forecast'!BR193 -> 3.190959176
A192: 190 | B192: ='[56]Forward Forecast'!BP194 -> 0 | C192: ='[56]Forward Forecast'!BQ194 -> 3.19495386 | D192: ='[56]Forward Forecast'!BR194 -> 3.180133463
A193: 191 | B193: ='[56]Forward Forecast'!BP195 -> 0 | C193: ='[56]Forward Forecast'!BQ195 -> 3.181028707 | D193: ='[56]Forward Forecast'!BR195 -> 3.172292465
A194: 192 | B194: ='[56]Forward Forecast'!BP196 -> 0 | C194: ='[56]Forward Forecast'!BQ196 -> 3.179665132 | D194: ='[56]Forward Forecast'!BR196 -> 3.164221918
A195: 193 | B195: ='[56]Forward Forecast'!BP197 -> 0 | C195: ='[56]Forward Forecast'!BQ197 -> 3.165314147 | D195: ='[56]Forward Forecast'!BR197 -> 3.159299689
A196: 194 | B196: ='[56]Forward Forecast'!BP198 -> 0 | C196: ='[56]Forward Forecast'!BQ198 -> 3.163556599 | D196: ='[56]Forward Forecast'!BR198 -> 3.1540821
A197: 195 | B197: ='[56]Forward Forecast'!BP199 -> 0 | C197: ='[56]Forward Forecast'!BQ199 -> 3.148779877 | D197: ='[56]Forward Forecast'!BR199 -> 3.145552437
A198: 196 | B198: ='[56]Forward Forecast'!BP200 -> 0 | C198: ='[56]Forward Forecast'!BQ200 -> 3.15328541 | D198: ='[56]Forward Forecast'!BR200 -> 3.143351546
A199: 197 | B199: ='[56]Forward Forecast'!BP201 -> 0 | C199: ='[56]Forward Forecast'!BQ201 -> 3.144608044 | D199: ='[56]Forward Forecast'!BR201 -> 3.137740154
A200: 198 | B200: ='[56]Forward Forecast'!BP202 -> 0 | C200: ='[56]Forward Forecast'!BQ202 -> 3.142325049 | D200: ='[56]Forward Forecast'!BR202 -> 3.131931879
... 161 more rows

Sheet Prinicpal
A2: Deal | B2: 0 | C2: =+B2+1 -> 1 | D2: =+C2+1 -> 2 | E2: 3 | F2: 4 | G2: 5 | H2: 6 | I2: 7 | J2: 8 | K2: 9 | L2: 10 | M2: 11 | N2: 12 | O2: 13 | P2: 14 | Q2: 15 | R2: 16 | S2: 17 | T2: 18 | U2: 19 | V2: 20 | W2: 21 | X2: 22 | Y2: 23 | Z2: 24 | AA2: 25 | AB2: 26 | AC2: 27 | AD2: 28 | AE2: 29 | AF2: 30 | AG2: 31 | AH2: 32 | AI2: 33 | AJ2: 34 | AK2: 35 | AL2: 36 | AM2: 37 | AN2: 38 | AO2: 39 | AP2: 40 | AQ2: 41 | AR2: 42 | AS2: 43 | AT2: 44 | AU2: 45 | AV2: 46 | AW2: 47 | AX2: 48 | AY2: 49 | AZ2: 50 | BA2: 51 | BB2: 52 | BC2: 53 | BD2: 54 | BE2: 55 | BF2: 56 | BG2: 57 | BH2: 58 | BI2: 59 | BJ2: 60 | BK2: 61 | BL2: 62 | BM2: 63 | BN2: 64 | BO2: 65 | BP2: =+BO2+1 -> 66 | BQ2: 67 | BR2: 68 | BS2: 69 | BT2: 70 | BU2: 71 | BV2: 72 | BW2: 73 | BX2: 74 | BY2: 75 | BZ2: 76 | CA2: 77 | CB2: 78 | CC2: 79 | CD2: 80 | CE2: 81 | CF2: 82 | CG2: 83 | CH2: 84 | CI2: 85 | CJ2: 86 | CK2: 87 | CL2: 88 | CM2: 89 | CN2: 90 | CO2: 91 | CP2: 92 | CQ2: 93 | CR2: 94 | CS2: 95 | CT2: 96 | CU2: 97 | CV2: 98 | CW2: 99 | CX2: 100 | CY2: 101 | CZ2: 102 | DA2: 103 | DB2: 104 | DC2: 105 | DD2: 106 | DE2: 107 | DF2: 108 | DG2: 109 | DH2: 110 | DI2: 111 | DJ2: 112 | DK2: 113 | DL2: 114 | DM2: 115 | DN2: 116 | DO2: 117 | DP2: 118 | DQ2: 119 | DR2: 120 | DS2: 121 | DT2: 122 | DU2: 123 | DV2: 124 | DW2: 125 | DX2: 126 | DY2: 127 | DZ2: 128 | EA2: 129 | EB2: =+EA2+1 -> 130 | EC2: 131 | ED2: 132 | EE2: 133 | EF2: 134 | EG2: 135 | EH2: 136 | EI2: 137 | EJ2: 138 | EK2: 139 | EL2: 140 | EM2: 141 | EN2: 142 | EO2: 143 | EP2: 144 | EQ2: 145 | ER2: 146 | ES2: 147 | ET2: 148 | EU2: 149 | EV2: 150 | EW2: 151 | EX2: 152 | EY2: 153 | EZ2: 154 | FA2: 155 | FB2: 156 | FC2: 157 | FD2: 158 | FE2: 159 | FF2: 160 | FG2: 161 | FH2: 162 | FI2: 163 | FJ2: 164 | FK2: 165 | FL2: 166 | FM2: 167 | FN2: 168 | FO2: 169 | FP2: 170 | FQ2: 171 | FR2: 172 | FS2: 173 | FT2: 174 | FU2: 175 | FV2: 176 | FW2: 177 | FX2: 178 | FY2: 179 | FZ2: 180 | GA2: 181 | GB2: 182 | GC2: 183 | GD2: 184 | GE2: 185 | GF2: 186 | GG2: 187 | GH2: 188 | GI2: 189 | GJ2: 190 | GK2: 191 | GL2: 192 | GM2: 193 | GN2: =+GM2+1 -> 194 | GO2: 195 | GP2: 196 | GQ2: 197 | GR2: 198 | GS2: 199 | GT2: 200 | GU2: 201 | GV2: 202 | GW2: 203 | GX2: 204 | GY2: 205 | GZ2: 206 | HA2: 207 | HB2: 208 | HC2: 209 | HD2: 210 | HE2: 211 | HF2: 212 | HG2: 213 | HH2: 214 | HI2: 215 | HJ2: 216 | HK2: 217 | HL2: 218 | HM2: 219 | HN2: 220 | HO2: 221 | HP2: 222 | HQ2: 223 | HR2: 224 | HS2: 225 | HT2: 226 | HU2: 227 | HV2: 228 | HW2: 229 | HX2: 230 | HY2: 231 | HZ2: 232 | IA2: 233 | IB2: 234 | IC2: 235 | ID2: 236 | IE2: 237 | IF2: 238 | IG2: 239 | IH2: 240 | II2: 241 | IJ2: 242 | IK2: 243 | IL2: 244 | IM2: 245 | IN2: 246 | IO2: 247 | IP2: 248 | IQ2: 249 | IR2: 250 | IS2: 251 | IT2: 252 | IU2: 253 | IV2: 254 | IW2: 255 | IX2: 256 | IY2: 257 | IZ2: =+IY2+1 -> 258 | JA2: 259 | JB2: 260 | JC2: 261 | JD2: 262 | JE2: 263 | JF2: 264 | JG2: 265 | JH2: 266 | JI2: 267 | JJ2: 268 | JK2: 269 | JL2: 270 | JM2: 271 | JN2: 272 | JO2: 273 | JP2: 274 | JQ2: 275 | JR2: 276 | JS2: 277 | JT2: 278 | JU2: 279 | JV2: 280 | JW2: 281 | JX2: 282 | JY2: 283 | JZ2: 284 | KA2: 285 | KB2: 286 | KC2: 287 | KD2: 288 | KE2: 289 | KF2: 290 | KG2: 291 | KH2: 292 | KI2: 293 | KJ2: 294 | KK2: 295 | KL2: 296 | KM2: 297 | KN2: 298 | KO2: 299 | KP2: 300 | KQ2: 301 | KR2: 302 | KS2: 303 | KT2: 304 | KU2: 305 | KV2: 306 | KW2: 307 | KX2: 308 | KY2: 309 | KZ2: 310 | LA2: 311 | LB2: 312 | LC2: 313 | LD2: 314 | LE2: 315 | LF2: 316 | LG2: 317 | LH2: 318 | LI2: 319 | LJ2: 320 | LK2: 321 | LL2: =+LK2+1 -> 322 | LM2: 323 | LN2: 324 | LO2: 325 | LP2: 326 | LQ2: 327 | LR2: 328 | LS2: 329 | LT2: 330 | LU2: 331 | LV2: 332 | LW2: 333 | LX2: 334 | LY2: 335 | LZ2: 336 | MA2: 337 | MB2: 338 | MC2: 339 | MD2: 340 | ME2: 341 | MF2: 342 | MG2: 343 | MH2: 344 | MI2: 345 | MJ2: 346 | MK2: 347 | ML2: 348 | MM2: 349 | MN2: 350 | MO2: 351 | MP2: 352 | MQ2: 353 | MR2: 354 | MS2: 355 | MT2: 356 | MU2: 357 | MV2: 358 | MW2: 359
A3: =Inputs!C3 -> CBASS 2006-MH1 M2 | C3: 3041999.322 | D3: 2747265.212 | E3: 2481227.683 | F3: 2240820.625 | G3: 2023833.442 | H3: 1827639.736 | I3: 1650409.742 | J3: 1490344.989 | K3: 1345803.664 | L3: 1215269.569 | M3: 1097392.34 | N3: 990957.1472 | O3: 894821.759 | P3: 808021.5626 | Q3: 729639.4198 | R3: 658854.9714 | S3: 594934.181 | T3: 537215.7335 | U3: 485092.4536 | V3: 438020.775 | W3: 395514.8404 | X3: 357054.5089 | Y3: 322366.8368 | Z3: 291082.7328 | AA3: 262830.0618 | AB3: 237314.3969 | AC3: 214274.1206 | AD3: 193466.0339 | AE3: 174675.2632 | AF3: 157717.8094 | AG3: 142402.2584 | AH3: 128569.2896 | AI3: 116077.0905 | AJ3: 104795.1642 | AK3: 94606.86994 | AL3: 85419.01082 | AM3: 77120.68457 | AN3: 69627.69458 | AO3: 62840.69615 | AP3: 56728.33384 | AQ3: 51215.74432 | AR3: 46221.98858 | AS3: 41730.99514 | AT3: 37660.25104 | AU3: 33997.15972 | AV3: 30688.96351 | AW3: 27700.34208 | AX3: 25008.6179 | AY3: 22577.99142 | AZ3: 20382.4555 | BA3: 18398.87064 | BB3: 16607.67604 | BC3: 14989.99693 | BD3: 13537.05837 | BE3: 12212.32868 | BF3: 11024.73083 | BG3: 9951.890857 | BH3: 8983.046807 | BI3: 8107.998586 | BJ3: 7319.71226 | BK3: 6608.057337 | BL3: 5965.337141 | BM3: 5384.834829 | BN3: 4860.672291 | BO3: 4387.409324 | BP3: 3960.793517 | BQ3: 3575.660901 | BR3: 3227.892193 | BS3: 2913.820559 | BT3: 2630.182001 | BU3: 2374.001365 | BV3: 2143.062169 | BW3: 1935.19335 | BX3: 1747.306254 | BY3: 1575.203548 | BZ3: 1421.795077 | CA3: 1283.299853 | CB3: 1158.445949 | CC3: 1045.741348 | CD3: 943.9887575 | CE3: 852.1239439 | CF3: 769.5555215 | CG3: 694.1577593 | CH3: 627.1433219 | CI3: 565.4090071 | CJ3: 510.5541505 | CK3: 460.6088432 | CL3: 415.7678463 | CM3: 375.6227143 | CN3: 338.7803 | CO3: 306.0194416 | CP3: 276.040315 | CQ3: 248.8429766 | CR3: 225.0664948 | CS3: 203.0229479 | CT3: 183.0038736 | CU3: 165.2052257 | CV3: 148.7544973 | CW3: 134.5580639 | CX3: 121.2133399 | CY3: 110.2527257 | CZ3: 98.96696621 | DA3: 89.78890661 | DB3: 80.98908245 | DC3: 73.61729701 | DD3: 66.77492239 | DE3: 58.5457075 | DF3: 52.59610014 | DG3: 47.44604929 | DH3: 42.76228036 | DI3: 38.60240674 | DJ3: 34.84714685 | DK3: 31.45744839 | DL3: 28.396914 | DM3: 25.67384108 | DN3: 23.13290127 | DO3: 20.88218393 | DP3: 18.8501641 | DQ3: 17.01542312 | DR3: 15.35907488 | DS3: 13.86380359 | DT3: 12.51380637 | DU3: 11.29490716 | DV3: 10.19446687 | DW3: 9.201030051 | DX3: 8.304871441 | DY3: 7.495958927 | DZ3: 6.776139306 | EA3: 6.105148517 | EB3: 5.520608957 | EC3: 4.972098475 | ED3: 4.487693596 | EE3: 4.050448345 | EF3: 3.655784262 | EG3: 3.299549967 | EH3: 2.995298087 | EI3: 2.685660142 | EJ3: 2.423877108 | EK3: 2.187589115 | EL3: 1.974309431 | EM3: 1.781800434 | EN3: 1.610730905 | EO3: 1.455807884 | EP3: 1.315126647 | EQ3: 1.180721544 | ER3: 1.068594926 | ES3: 0.9671884049 | ET3: 0.866918518 | EU3: 0.7823700144 | EV3: 0.7060433973 | EW3: 0.6371550795 | EX3: 0.5749824272 | EY3: 0.5213680126 | EZ3: 0.4680502783 | FA3: 0.4223844605 | FB3: 0.3825808404 | FC3: 0.3455362447 | FD3: 0.311824603 | FE3: 0.280459186 | FF3: 0.2536439915 | FG3: 0.2317233342 | FH3: 0.2106918128 | FI3: 0.1847397845 | FJ3: 0.1740592664 | FK3: 0.1536073454 | FL3: 0.1423675398 | FM3: 0.1224810184 | FN3: 0.1095481998 | FO3: 0.09885287407 | FP3: 0.08920219768 | FQ3: 0.08097857181 | FR3: 0.07259881018 | FS3: 0.06574989127 | FT3: 0.05909288919 | FU3: 0.05356615939 | FV3: 0.04809846329 | FW3: 0.0440805651 | FX3: 0.03925630742 | FY3: 0.03529135617 | FZ3: 0.03184215263 | GA3: 0.02872967845 | GB3: 0.02592157272 | GC3: 0.0233881585 | GD3: 0.02110245521 | GE3: 0.01904009608 | GF3: 0.01717778593 | GG3: 0.01549733325 | GH3: 0.0140770273 | GI3: 0.01260714331 | GJ3: 0.01153450854 | GK3: 0.01024992314 | GL3: 0.009246747316 | GM3: 0.008422225161 | GN3: 0.007604734811 | GO3: 0.006805470063 | GP3: 0.006116050414 | GQ3: 0.005517545806 | GR3: 0.004977116088 | GS3: 0.004506319775 | GT3: 0.004048766964 | GU3: 0.00365214714 | GV3: 0.00329438609 | GW3: 0.002971663832 | GX3: 0.002680351241 | GY3: 0.002417550912 | GZ3: 0.002180516097 | HA3: 0.001966731722 | HB3: 0.001773903095 | HC3: 0.001609435333 | HD3: 0.001450789373 | HE3: 0.001300640533 | HF3: 0.001182947189 | HG3: 0.001067567575 | HH3: 0.0009531474368 | HI3: 0.0008664155725 | HJ3: 0.0007748980836 | HK3: 0.0006987786481 | HL3: 0.0006301335458 | HM3: 0.0005682283499 | HN3: 0.0005124066025 | HO3: 0.0004620607727 | HP3: 0.0004204765183 | HQ3: 0.0003773950415 | HR3: 0.0003480824308 | HS3: 0.000311945933 | HT3: 0.0002850861531 | HU3: 0.0002487240085 | HV3: 0.000222817836 | HW3: 0.000203270579 | HX3: 0.0001810338612 | HY3: 0.0001720936233 | HZ3: 0.0001467679075 | IA3: 0.0001323147722 | IB3: 0.0001197857862 | IC3: 0.0001075027252 | ID3: 9.93433323e-05 | IE3: 8.726660822e-05 | IF3: 7.866316528e-05 | IG3: 7.178566466e-05 | IH3: 6.387753978e-05 | II3: 5.757562683e-05 | IJ3: 5.292273077e-05 | IK3: 4.762924766e-05 | IL3: 4.208233013e-05 | IM3: 3.792752625e-05 | IN3: 3.595407033e-05 | IO3: 3.124799003e-05 | IP3: 2.921606357e-05 | IQ3: 2.515925065e-05 | IR3: 2.401999632e-05 | IS3: 2.061571511e-05 | IT3: 1.890561495e-05 | IU3: 1.633371466e-05 | IV3: 1.498396325e-05 | IW3: 1.401078209e-05 | IX3: 1.226303178e-05 | IY3: 1.135474257e-05 | IZ3: 9.642003387e-06 | JA3: 8.86923648e-06 | JB3: 8.099913026e-06 | JC3: 7.563981902e-06 | JD3: 6.452754658e-06 | JE3: 6.302898215e-06 | JF3: 5.330656735e-06 | JG3: 5.062173751e-06 | JH3: 4.598069088e-06 | JI3: 3.889684375e-06 | JJ3: 3.582839286e-06 | JK3: 3.098146152e-06 | JL3: 2.916749401e-06 | JM3: 2.903585331e-06 | JN3: 2.541541073e-06 | JO3: 2.275415429e-06 | JP3: 1.953803733e-06 | JQ3: 1.91216932e-06 | JR3: 1.694829567e-06 | JS3: 1.498255447e-06 | JT3: 1.516606533e-06 | JU3: 1.58764385e-06 | JV3: 1.314051896e-06 | JW3: 2.348535771e-06 | JX3: 3.261721065e-06 | JY3: 3.553374814e-06 | JZ3: 4.615063746e-06 | KA3: 4.294243314e-06 | KB3: 4.81966155e-06 | KC3: 6.528383706e-07 | KD3: 0 | KE3: 0 | KF3: 0 | KG3: 0 | KH3: 0 | KI3: 0 | KJ3: 0 | KK3: 0 | KL3: 0 | KM3: 0 | KN3: 0 | KO3: 0 | KP3: 0 | KQ3: 0 | KR3: 0 | KS3: 0 | KT3: 0 | KU3: 0 | KV3: 0 | KW3: 0 | KX3: 0 | KY3: 0 | KZ3: 0 | LA3: 0 | LB3: 0 | LC3: 0 | LD3: 0 | LE3: 0 | LF3: 0 | LG3: 0 | LH3: 0 | LI3: 0 | LJ3: 0 | LK3: 0 | LL3: 0 | LM3: 0 | LN3: 0 | LO3: 0 | LP3: 0 | LQ3: 0 | LR3: 0 | LS3: 0 | LT3: 0 | LU3: 0 | LV3: 0 | LW3: 0 | LX3: 0 | LY3: 0 | LZ3: 0 | MA3: 0 | MB3: 0 | MC3: 0 | MD3: 0 | ME3: 0 | MF3: 0 | MG3: 0 | MH3: 0 | MI3: 0 | MJ3: 0 | MK3: 0 | ML3: 0 | MM3: 0 | MN3: 0 | MO3: 0 | MP3: 0 | MQ3: 0 | MR3: 0 | MS3: 0 | MT3: 0 | MU3: 0 | MV3: 0 | MW3: 0
A4: =Inputs!C4 -> BCM 2000-A A2 | C4: 2129757.684 | D4: 1852571.234 | E4: 1671629.021 | F4: 1509101.816 | G4: 1362231.656 | H4: 1229597.03 | I4: 1110033.931 | J4: 1002085.438 | K4: 904624.2701 | L4: 816521.2078 | M4: 736864.9856 | N4: 665097.379 | O4: 600351.5038 | P4: 541933.6313 | Q4: 489161.4063 | R4: 441517.6144 | S4: 398540.8326 | T4: 359742.7572 | U4: 324717.4817 | V4: 293059.1281 | W4: 264509.8376 | X4: 238638.3656 | Y4: 215393.8052 | Z4: 194413.8163 | AA4: 175449.3566 | AB4: 158246.8553 | AC4: 142753.8384 | AD4: 128866.5207 | AE4: 116255.2337 | AF4: 104887.0388 | AG4: 94643.52108 | AH4: 85357.82342 | AI4: 76919.23296 | AJ4: 69366.78042 | AK4: 83435.91486 | AL4: 80359.76115 | AM4: 78870.94819 | AN4: 72271.75412 | AO4: 56428.60637 | AP4: 35883.66966 | AQ4: 31444.97161 | AR4: 28307.71154 | AS4: 25512.93755 | AT4: 23016.19201 | AU4: 20765.69392 | AV4: 18743.42039 | AW4: 16914.4149 | AX4: 15267.25635 | AY4: 13776.93655 | AZ4: 12423.85505 | BA4: 11206.92519 | BB4: 10105.33888 | BC4: 9122.266867 | BD4: 8227.612368 | BE4: 7426.899867 | BF4: 6697.772748 | BG4: 6048.789159 | BH4: 5451.105108 | BI4: 4919.002583 | BJ4: 4435.37278 | BK4: 4003.204044 | BL4: 3616.302394 | BM4: 3256.260035 | BN4: 2938.489788 | BO4: 2650.463606 | BP4: 2391.378115 | BQ4: 2158.861099 | BR4: 1944.928197 | BS4: 1754.744186 | BT4: 1585.791988 | BU4: 1429.441702 | BV4: 1288.483569 | BW4: 1162.105493 | BX4: 1050.208863 | BY4: 943.6449097 | BZ4: 851.2754258 | CA4: 768.4394047 | CB4: 693.1900615 | CC4: 626.0511082 | CD4: 564.0067204 | CE4: 509.8795744 | CF4: 457.935424 | CG4: 413.5212292 | CH4: 372.6543949 | CI4: 342.2630617 | CJ4: 303.4820585 | CK4: 274.2891102 | CL4: 254.1720873 | CM4: 225.4220982 | CN4: 217.3212619 | CO4: 186.6038373 | CP4: 167.0270787 | CQ4: 148.6470371 | CR4: 136.1729396 | CS4: 234.2226988 | CT4: 246.6334284 | CU4: 267.2585597 | CV4: 212.5412616 | CW4: 146.9213045 | CX4: 144.1306181 | CY4: 49.66180355 | CZ4: 43.84694934 | DA4: 39.17517345 | DB4: 35.22130248 | DC4: 31.53596259 | DD4: 28.59075881 | DE4: 25.64643685 | DF4: 23.055483 | DG4: 20.79723179 | DH4: 18.85445818 | DI4: 16.91191058 | DJ4: 15.25453426 | DK4: 13.75929081 | DL4: 12.43916914 | DM4: 11.20607577 | DN4: 10.12287393 | DO4: 9.097893409 | DP4: 8.260908153 | DQ4: 7.437714014 | DR4: 6.718856542 | DS4: 6.007386899 | DT4: 5.447002529 | DU4: 4.900670497 | DV4: 4.415386281 | DW4: 3.993344812 | DX4: 3.576490902 | DY4: 3.238073331 | DZ4: 2.94100883 | EA4: 2.632691672 | EB4: 2.371292433 | EC4: 2.145037169 | ED4: 1.954467584 | EE4: 1.758685535 | EF4: 1.559950553 | EG4: 1.400758373 | EH4: 1.285485469 | EI4: 1.147734114 | EJ4: 1.038368132 | EK4: 0.9475794691 | EL4: 0.8781791168 | EM4: 0.7516702553 | EN4: 0.7042445046 | EO4: 0.6204376162 | EP4: 0.568782572 | EQ4: 0.5008537109 | ER4: 0.4561212269 | ES4: 0.4119301432 | ET4: 0.3791263454 | EU4: 0.3472663502 | EV4: 0.2960402624 | EW4: 0.3029967042 | EX4: 0.2679260206 | EY4: 0.2381725283 | EZ4: 0.2407307292 | FA4: 0.4413755102 | FB4: 0.4538961782 | FC4: 0.5335852123 | FD4: 0.4659641275 | FE4: 0.2818023445 | FF4: 0.0970819253 | FG4: 0.06253414338 | FH4: 0.05549221626 | FI4: 0.04922337876 | FJ4: 0.04396954053 | FK4: 0.03946136862 | FL4: 0.03365904348 | FM4: 0.03166915464 | FN4: 0.02728883437 | FO4: 0.02459334896 | FP4: 0.02239890161 | FQ4: 0.02029624439 | FR4: 0.01858740558 | FS4: 0.01711902378 | FT4: 0.0154163603 | FU4: 0.01504170919 | FV4: 0.01194327263 | FW4: 0.0108487363 | FX4: 0.01004432618 | FY4: 0.008631677715 | FZ4: 0.008659776411 | GA4: 0.007120374625 | GB4: 0.007080106075 | GC4: 0.006187803388 | GD4: 0.005584940193 | GE4: 0.004904395121 | GF4: 0.004178272482 | GG4: 0.00398722524 | GH4: 0.003349721301 | GI4: 0.003049653983 | GJ4: 0.002780275929 | GK4: 0.002548579351 | GL4: 0.002220909888 | GM4: 0.001997517776 | GN4: 0.001896039505 | GO4: 0.001749893845 | GP4: 0.001614671973 | GQ4: 0.00136628589 | GR4: 0.001160453943 | GS4: 0.001114861381 | GT4: 0.001442585343 | GU4: 0.001138393899 | GV4: 0.0009212376735 | GW4: 0.0009958560082 | GX4: 0.0006191217723 | GY4: 0.0006721686858 | GZ4: 0.0007192116078 | HA4: 0.0007148200746 | HB4: 0.0005371929206 | HC4: 0.0006737062857 | HD4: 0.0004853577871 | HE4: 0.0006671183667 | HF4: 0.000448992809 | HG4: 0.00043169214 | HH4: 0.0005308690537 | HI4: 0.0006713030081 | HJ4: 0.0007884837943 | HK4: 0.0007931132173 | HL4: 0.0005385520555 | HM4: 0.0003980467951 | HN4: 6.779597784e-05 | HO4: 1.170942384e-07 | HP4: 4.318237603e-06 | HQ4: 0 | HR4: 0 | HS4: 0 | HT4: 0 | HU4: 0 | HV4: 0 | HW4: 0 | HX4: 0 | HY4: 0 | HZ4: 0 | IA4: 0 | IB4: 0 | IC4: 0 | ID4: 0 | IE4: 0 | IF4: 0 | IG4: 0 | IH4: 0 | II4: 0 | IJ4: 0 | IK4: 0 | IL4: 0 | IM4: 0 | IN4: 0 | IO4: 0 | IP4: 0 | IQ4: 0 | IR4: 0 | IS4: 0 | IT4: 0 | IU4: 0 | IV4: 0 | IW4: 0 | IX4: 0 | IY4: 0 | IZ4: 0 | JA4: 0 | JB4: 0 | JC4: 0 | JD4: 0 | JE4: 0 | JF4: 0 | JG4: 0 | JH4: 0 | JI4: 0 | JJ4: 0 | JK4: 0 | JL4: 0 | JM4: 0 | JN4: 0 | JO4: 0 | JP4: 0 | JQ4: 0 | JR4: 0 | JS4: 0 | JT4: 0 | JU4: 0 | JV4: 0 | JW4: 0 | JX4: 0 | JY4: 0 | JZ4: 0 | KA4: 0 | KB4: 0 | KC4: 0 | KD4: 0 | KE4: 0 | KF4: 0 | KG4: 0 | KH4: 0 | KI4: 0 | KJ4: 0 | KK4: 0 | KL4: 0 | KM4: 0 | KN4: 0 | KO4: 0 | KP4: 0 | KQ4: 0 | KR4: 0 | KS4: 0 | KT4: 0 | KU4: 0 | KV4: 0 | KW4: 0 | KX4: 0 | KY4: 0 | KZ4: 0 | LA4: 0 | LB4: 0 | LC4: 0 | LD4: 0 | LE4: 0 | LF4: 0 | LG4: 0 | LH4: 0 | LI4: 0 | LJ4: 0 | LK4: 0 | LL4: 0 | LM4: 0 | LN4: 0 | LO4: 0 | LP4: 0 | LQ4: 0 | LR4: 0 | LS4: 0 | LT4: 0 | LU4: 0 | LV4: 0 | LW4: 0 | LX4: 0 | LY4: 0 | LZ4: 0 | MA4: 0 | MB4: 0 | MC4: 0 | MD4: 0 | ME4: 0 | MF4: 0 | MG4: 0 | MH4: 0 | MI4: 0 | MJ4: 0 | MK4: 0 | ML4: 0 | MM4: 0 | MN4: 0 | MO4: 0 | MP4: 0 | MQ4: 0 | MR4: 0 | MS4: 0 | MT4: 0 | MU4: 0 | MV4: 0 | MW4: 0
A5: =Inputs!C5 -> CNF 2000-1 A5 | C5: 6310187.799 | D5: 5602663.253 | E5: 4973762.397 | F5: 4415541.883 | G5: 3920276.909 | H5: 3479421.037 | I5: 3088506.761 | J5: 2741783.09 | K5: 2434227.447 | L5: 2161121.164 | M5: 1918607.508 | N5: 1703131.154 | O5: 1511933.204 | P5: 1342312.204 | Q5: 1191592.934 | R5: 1057486.549 | S5: 938719.0686 | T5: 833294.8987 | U5: 739721.0851 | V5: 656525.213 | W5: 582722.005 | X5: 517231.8837 | Y5: 459104.0201 | Z5: 407504.328 | AA5: 361736.4434 | AB5: 321047.6861 | AC5: 284943.8941 | AD5: 252826.0032 | AE5: 224337.4656 | AF5: 199114.3368 | AG5: 176674.1182 | AH5: 156809.3148 | AI5: 139111.1017 | AJ5: 123444.1218 | AK5: 109520.9534 | AL5: 97099.23351 | AM5: 86120.75401 | AN5: 76439.03613 | AO5: 67731.0264 | AP5: 60151.63843 | AQ5: 53432.88142 | AR5: 47163.645 | AS5: 41663.57198 | AT5: 36766.42822 | AU5: 32645.02255 | AV5: 28962.58848 | AW5: 25710.49769 | AX5: 22828.19401 | AY5: 20255.98034 | AZ5: 17976.12475 | BA5: 15960.8621 | BB5: 14167.85863 | BC5: 12574.15588 | BD5: 11162.68312 | BE5: 9914.037653 | BF5: 8795.399483 | BG5: 7806.713899 | BH5: 6925.918087 | BI5: 6147.611547 | BJ5: 5455.830083 | BK5: 4844.512224 | BL5: 4298.900726 | BM5: 3814.421684 | BN5: 3384.804981 | BO5: 3006.682351 | BP5: 2665.81755 | BQ5: 2365.845045 | BR5: 2101.605613 | BS5: 1862.825488 | BT5: 1653.786092 | BU5: 1468.308431 | BV5: 1303.51589 | BW5: 1155.631807 | BX5: 1025.461427 | BY5: 909.146878 | BZ5: 807.3739173 | CA5: 716.335257 | CB5: 635.4562537 | CC5: 564.2633138 | CD5: 500.7559095 | CE5: 443.3964582 | CF5: 393.3366092 | CG5: 349.2494493 | CH5: 310.1986785 | CI5: 275.0232861 | CJ5: 244.1912283 | CK5: 216.7813498 | CL5: 191.9410135 | CM5: 170.5351223 | CN5: 151.5007397 | CO5: 134.1969845 | CP5: 119.2310939 | CQ5: 105.5663003 | CR5: 93.57096475 | CS5: 83.59149318 | CT5: 74.11487632 | CU5: 65.46855872 | CV5: 58.12307404 | CW5: 52.15167076 | CX5: 46.1454709 | CY5: 42.2987734 | CZ5: 37.13590795 | DA5: 31.98730312 | DB5: 27.22826839 | DC5: 24.18133851 | DD5: 21.4250628 | DE5: 18.99383384 | DF5: 16.8544948 | DG5: 14.95615447 | DH5: 13.2926105 | DI5: 11.78925797 | DJ5: 10.44004058 | DK5: 9.338063831 | DL5: 8.24144604 | DM5: 7.297609701 | DN5: 6.495306959 | DO5: 5.754979653 | DP5: 5.100329249 | DQ5: 4.515750938 | DR5: 4.004109443 | DS5: 3.563525922 | DT5: 3.161320356 | DU5: 2.802509088 | DV5: 2.483646966 | DW5: 2.214872528 | DX5: 1.956276412 | DY5: 1.736112628 | DZ5: 1.546847949 | EA5: 1.363020256 | EB5: 1.215493272 | EC5: 1.070705547 | ED5: 0.9538345548 | EE5: 0.8415202678 | EF5: 0.7472076422 | EG5: 0.6647605177 | EH5: 0.5888859722 | EI5: 0.5222332426 | EJ5: 0.4627349041 | EK5: 0.4111627983 | EL5: 0.3664492728 | EM5: 0.3238984107 | EN5: 0.2866390735 | EO5: 0.2549110119 | EP5: 0.2261292864 | EQ5: 0.1985773864 | ER5: 0.1781122952 | ES5: 0.1569274732 | ET5: 0.1404174859 | EU5: 0.125746667 | EV5: 0.1104697042 | EW5: 0.09663137648 | EX5: 0.08698255598 | EY5: 0.07933075533 | EZ5: 0.06740753953 | FA5: 0.06021037259 | FB5: 0.05417801215 | FC5: 0.04807626979 | FD5: 0.04250528696 | FE5: 0.03777390182 | FF5: 0.03492382855 | FG5: 0.03361871312 | FH5: 0.02851692211 | FI5: 0.02518194258 | FJ5: 0.01929205686 | FK5: 0.0169515689 | FL5: 0.01506846348 | FM5: 0.01354997564 | FN5: 0.01204404547 | FO5: 0.01051376667 | FP5: 0.009384240927 | FQ5: 0.008223861207 | FR5: 0.007385550309 | FS5: 0.006470342881 | FT5: 0.005692061824 | FU5: 0.005047999752 | FV5: 0.004628957854 | FW5: 0.003981010301 | FX5: 0.003563524747 | FY5: 0.00322755653 | FZ5: 0.002798006208 | GA5: 0.002522585776 | GB5: 0.002179780462 | GC5: 0.001933691904 | GD5: 0.001708139588 | GE5: 0.001527956572 | GF5: 0.001397085462 | GG5: 0.00121394502 | GH5: 0.001079803937 | GI5: 0.0009549459558 | GJ5: 0.0008203972489 | GK5: 0.0007823860192 | GL5: 0.0006715712211 | GM5: 0.0006067495568 | GN5: 0.0005173240899 | GO5: 0.0004640710288 | GP5: 0.0004092220131 | GQ5: 0.000360669802 | GR5: 0.0003395104162 | GS5: 0.0002901024356 | GT5: 0.000268402634 | GU5: 0.0002258719881 | GV5: 0.0002101075929 | GW5: 0.0001911240609 | GX5: 0.0001671227385 | GY5: 0.0001563072482 | GZ5: 0.0001409782065 | HA5: 0.0001239342886 | HB5: 0.0001140822962 | HC5: 0.0001036291907 | HD5: 8.907341864e-05 | HE5: 8.495201388e-05 | HF5: 6.92522343e-05 | HG5: 6.93943513e-05 | HH5: 5.490115638e-05 | HI5: 5.607300009e-05 | HJ5: 5.436240878e-05 | HK5: 5.319039295e-05 | HL5: 4.470745745e-05 | HM5: 4.867702007e-05 | HN5: 6.160331609e-05 | HO5: 8.138989969e-05 | HP5: 4.927794179e-05 | HQ5: 2.778814105e-05 | HR5: 9.698474729e-07 | HS5: 1.473044104e-06 | HT5: 1.46319243e-08 | HU5: 5.519784917e-08 | HV5: 7.043569464e-08 | HW5: 3.636736125e-09 | HX5: 3.203823191e-09 | HY5: 5.736696845e-08 | HZ5: 0 | IA5: 0 | IB5: 0 | IC5: 0 | ID5: 0 | IE5: 0 | IF5: 0 | IG5: 0 | IH5: 0 | II5: 0 | IJ5: 0 | IK5: 0 | IL5: 0 | IM5: 0 | IN5: 0 | IO5: 0 | IP5: 0 | IQ5: 0 | IR5: 0 | IS5: 0 | IT5: 0 | IU5: 0 | IV5: 0 | IW5: 0 | IX5: 0 | IY5: 0 | IZ5: 0 | JA5: 0 | JB5: 0 | JC5: 0 | JD5: 0 | JE5: 0 | JF5: 0 | JG5: 0 | JH5: 0 | JI5: 0 | JJ5: 0 | JK5: 0 | JL5: 0 | JM5: 0 | JN5: 0 | JO5: 0 | JP5: 0 | JQ5: 0 | JR5: 0 | JS5: 0 | JT5: 0 | JU5: 0 | JV5: 0 | JW5: 0 | JX5: 0 | JY5: 0 | JZ5: 0 | KA5: 0 | KB5: 0 | KC5: 0 | KD5: 0 | KE5: 0 | KF5: 0 | KG5: 0 | KH5: 0 | KI5: 0 | KJ5: 0 | KK5: 0 | KL5: 0 | KM5: 0 | KN5: 0 | KO5: 0 | KP5: 0 | KQ5: 0 | KR5: 0 | KS5: 0 | KT5: 0 | KU5: 0 | KV5: 0 | KW5: 0 | KX5: 0 | KY5: 0 | KZ5: 0 | LA5: 0 | LB5: 0 | LC5: 0 | LD5: 0 | LE5: 0 | LF5: 0 | LG5: 0 | LH5: 0 | LI5: 0 | LJ5: 0 | LK5: 0 | LL5: 0 | LM5: 0 | LN5: 0 | LO5: 0 | LP5: 0 | LQ5: 0 | LR5: 0 | LS5: 0 | LT5: 0 | LU5: 0 | LV5: 0 | LW5: 0 | LX5: 0 | LY5: 0 | LZ5: 0 | MA5: 0 | MB5: 0 | MC5: 0 | MD5: 0 | ME5: 0 | MF5: 0 | MG5: 0 | MH5: 0 | MI5: 0 | MJ5: 0 | MK5: 0 | ML5: 0 | MM5: 0 | MN5: 0 | MO5: 0 | MP5: 0 | MQ5: 0 | MR5: 0 | MS5: 0 | MT5: 0 | MU5: 0 | MV5: 0 | MW5: 0
A6: =Inputs!C6 -> INDMH 1997-1 A5 | C6: 309755.2361 | D6: 278562.4918 | E6: 250767.7314 | F6: 225380.3519 | G6: 202926.9219 | H6: 182719.1902 | I6: 164530.774 | J6: 147527.7202 | K6: 132599.9925 | L6: 120102.2795 | M6: 107004.0552 | N6: 96341.22472 | O6: 86662.13467 | P6: 78012.24274 | Q6: 70234.83295 | R6: 63231.42562 | S6: 56925.11223 | T6: 51246.61574 | U6: 46133.53427 | V6: 41529.65959 | W6: 37372.29259 | X6: 33624.48892 | Y6: 30236.17523 | Z6: 27204.14817 | AA6: 24487.05692 | AB6: 22040.80639 | AC6: 19838.44605 | AD6: 17855.70301 | AE6: 16080.0213 | AF6: 14432.8353 | AG6: 12970.86086 | AH6: 11666.23241 | AI6: 10488.98371 | AJ6: 9439.768438 | AK6: 8495.279524 | AL6: 7645.083647 | AM6: 6884.55373 | AN6: 6185.352025 | AO6: 5566.018806 | AP6: 5003.09157 | AQ6: 4501.857803 | AR6: 4050.721802 | AS6: 3644.686672 | AT6: 3282.22172 | AU6: 2947.85678 | AV6: 2655.868781 | AW6: 2384.733367 | AX6: 2143.918923 | AY6: 1925.5864 | AZ6: 1728.202449 | BA6: 1554.683853 | BB6: 1399.788921 | BC6: 1257.632918 | BD6: 1135.009299 | BE6: 1021.861514 | BF6: 919.8688031 | BG6: 819.6241763 | BH6: 742.6853568 | BI6: 653.2910035 | BJ6: 588.3719397 | BK6: 531.9563198 | BL6: 480.5576519 | BM6: 431.5389277 | BN6: 377.3068383 | BO6: 341.6203506 | BP6: 313.7785945 | BQ6: 324.7448186 | BR6: 253.2455884 | BS6: 213.5069911 | BT6: 192.0901974 | BU6: 176.8918726 | BV6: 156.1598547 | BW6: 138.9108553 | BX6: 124.969294 | BY6: 112.4234215 | BZ6: 102.307247 | CA6: 90.72092308 | CB6: 81.60743384 | CC6: 73.40703614 | CD6: 66.02845713 | CE6: 59.625737 | CF6: 53.63653227 | CG6: 47.9385757 | CH6: 43.86085818 | CI6: 38.64125983 | CJ6: 35.09700741 | CK6: 31.18649599 | CL6: 28.04586069 | CM6: 25.56795713 | CN6: 22.70823423 | CO6: 20.45855311 | CP6: 18.22345296 | CQ6: 16.52256726 | CR6: 14.71001988 | CS6: 13.30166628 | CT6: 11.87989423 | CU6: 10.80512347 | CV6: 9.649833973 | CW6: 8.843915586 | CX6: 7.708014588 | CY6: 7.000059519 | CZ6: 6.410515828 | DA6: 5.56094921 | DB6: 4.998740404 | DC6: 4.493172664 | DD6: 4.124713822 | DE6: 3.619636927 | DF6: 3.293602209 | DG6: 3.020390858 | DH6: 2.612344931 | DI6: 2.431134319 | DJ6: 2.123613825 | DK6: 1.97905715 | DL6: 1.756619312 | DM6: 1.525953147 | DN6: 1.407572628 | DO6: 1.240919147 | DP6: 1.085024557 | DQ6: 1.111408657 | DR6: 0.9241710322 | DS6: 0.7704214755 | DT6: 0.7097652468 | DU6: 0.7118009769 | DV6: 0.6167127588 | DW6: 0.5138985283 | DX6: 0.4464727867 | DY6: 0.4708435713 | DZ6: 0.3888994565 | EA6: 0.3277339484 | EB6: 0.2845797522 | EC6: 0.2845565889 | ED6: 0.2384580045 | EE6: 0.196607802 | EF6: 0.176612605 | EG6: 0.1677755279 | EH6: 0.1463019079 | EI6: 0.1314313227 | EJ6: 0.1168050759 | EK6: 0.1021361316 | EL6: 0.1007867006 | EM6: 0.08176165492 | EN6: 0.07624700205 | EO6: 0.06846681608 | EP6: 0.05889112729 | EQ6: 0.05287418219 | ER6: 0.04746897115 | ES6: 0.04261356021 | ET6: 0.03947633933 | EU6: 0.03541857061 | EV6: 0.03723064515 | EW6: 0.02842187974 | EX6: 0.02804332178 | EY6: 0.02164704331 | EZ6: 0.02149397296 | FA6: 0.02218363838 | FB6: 0.01722183152 | FC6: 0.01513987966 | FD6: 0.01274279712 | FE6: 0.01139262161 | FF6: 0.01057581979 | FG6: 0.0105733429 | FH6: 0.009795782928 | FI6: 0.009017550568 | FJ6: 0.006243734271 | FK6: 0.006576175732 | FL6: 0.00561406835 | FM6: 0.005298495093 | FN6: 0.004094898668 | FO6: 0.004128380502 | FP6: 0.004771539769 | FQ6: 0.002836985661 | FR6: 0.003442598332 | FS6: 0.002506837937 | FT6: 0.003234347234 | FU6: 0.002407213102 | FV6: 0.002374511519 | FW6: 0.002382353478 | FX6: 0.002211872345 | FY6: 0.002375938545 | FZ6: 0.001808533305 | GA6: 0.002195553079 | GB6: 0.001158391818 | GC6: 0.001262793554 | GD6: 0.001262395432 | GE6: 0.0007303155016 | GF6: 0.0009939582191 | GG6: 0.000772123595 | GH6: 0.0008687076569 | GI6: 0.0002586077809 | GJ6: 8.37900876e-05 | GK6: 0.0006673985573 | GL6: 0.0001391024022 | GM6: 1.44532799e-06 | GN6: 1.301111577e-06 | GO6: 4.563406781e-05 | GP6: 0 | GQ6: 0 | GR6: 0 | GS6: 0 | GT6: 0 | GU6: 0 | GV6: 0 | GW6: 0 | GX6: 0 | GY6: 0 | GZ6: 0 | HA6: 0 | HB6: 0 | HC6: 0 | HD6: 0 | HE6: 0 | HF6: 0 | HG6: 0 | HH6: 0 | HI6: 0 | HJ6: 0 | HK6: 0 | HL6: 0 | HM6: 0 | HN6: 0 | HO6: 0 | HP6: 0 | HQ6: 0 | HR6: 0 | HS6: 0 | HT6: 0 | HU6: 0 | HV6: 0 | HW6: 0 | HX6: 0 | HY6: 0 | HZ6: 0 | IA6: 0 | IB6: 0 | IC6: 0 | ID6: 0 | IE6: 0 | IF6: 0 | IG6: 0 | IH6: 0 | II6: 0 | IJ6: 0 | IK6: 0 | IL6: 0 | IM6: 0 | IN6: 0 | IO6: 0 | IP6: 0 | IQ6: 0 | IR6: 0 | IS6: 0 | IT6: 0 | IU6: 0 | IV6: 0 | IW6: 0 | IX6: 0 | IY6: 0 | IZ6: 0 | JA6: 0 | JB6: 0 | JC6: 0 | JD6: 0 | JE6: 0 | JF6: 0 | JG6: 0 | JH6: 0 | JI6: 0 | JJ6: 0 | JK6: 0 | JL6: 0 | JM6: 0 | JN6: 0 | JO6: 0 | JP6: 0 | JQ6: 0 | JR6: 0 | JS6: 0 | JT6: 0 | JU6: 0 | JV6: 0 | JW6: 0 | JX6: 0 | JY6: 0 | JZ6: 0 | KA6: 0 | KB6: 0 | KC6: 0 | KD6: 0 | KE6: 0 | KF6: 0 | KG6: 0 | KH6: 0 | KI6: 0 | KJ6: 0 | KK6: 0 | KL6: 0 | KM6: 0 | KN6: 0 | KO6: 0 | KP6: 0 | KQ6: 0 | KR6: 0 | KS6: 0 | KT6: 0 | KU6: 0 | KV6: 0 | KW6: 0 | KX6: 0 | KY6: 0 | KZ6: 0 | LA6: 0 | LB6: 0 | LC6: 0 | LD6: 0 | LE6: 0 | LF6: 0 | LG6: 0 | LH6: 0 | LI6: 0 | LJ6: 0 | LK6: 0 | LL6: 0 | LM6: 0 | LN6: 0 | LO6: 0 | LP6: 0 | LQ6: 0 | LR6: 0 | LS6: 0 | LT6: 0 | LU6: 0 | LV6: 0 | LW6: 0 | LX6: 0 | LY6: 0 | LZ6: 0 | MA6: 0 | MB6: 0 | MC6: 0 | MD6: 0 | ME6: 0 | MF6: 0 | MG6: 0 | MH6: 0 | MI6: 0 | MJ6: 0 | MK6: 0 | ML6: 0 | MM6: 0 | MN6: 0 | MO6: 0 | MP6: 0 | MQ6: 0 | MR6: 0 | MS6: 0 | MT6: 0 | MU6: 0 | MV6: 0 | MW6: 0
A7: =Inputs!C7 -> GT 1998-3 M1 | C7: 2441617.591 | D7: 2194770.235 | E7: 1972662.517 | F7: 1773124.773 | G7: 1593909.533 | H7: 1432438.92 | I7: 1287007.439 | J7: 1155676.759 | K7: 1038002.4 | L7: 932545.569 | M7: 838149.9882 | N7: 753071.9743 | O7: 676694.0344 | P7: 607790.7322 | Q7: 546134.8908 | R7: 490426.4776 | S7: 440046.5129 | T7: 395050.7128 | U7: 355142.3061 | V7: 317442.9654 | W7: 278084.921 | X7: 249538.5887 | Y7: 224351.8118 | Z7: 201696.7366 | AA7: 181315.6627 | AB7: 162984.4192 | AC7: 146489.5006 | AD7: 131660.5495 | AE7: 118332.012 | AF7: 106309.8001 | AG7: 95540.39339 | AH7: 85877.53725 | AI7: 77158.39133 | AJ7: 69354.59628 | AK7: 62317.26883 | AL7: 55972.51975 | AM7: 50288.62546 | AN7: 45213.13945 | AO7: 40628.71685 | AP7: 36492.09091 | AQ7: 32802.23299 | AR7: 29483.7686 | AS7: 26462.02794 | AT7: 23777.71123 | AU7: 21357.52585 | AV7: 19169.91712 | AW7: 17219.97865 | AX7: 15466.54918 | AY7: 13907.13841 | AZ7: 12488.72427 | BA7: 11215.39835 | BB7: 10075.75546 | BC7: 9053.131465 | BD7: 8129.313867 | BE7: 7308.133531 | BF7: 6560.651012 | BG7: 5885.762855 | BH7: 5287.354033 | BI7: 4753.602203 | BJ7: 4267.990895 | BK7: 3831.935726 | BL7: 3440.818744 | BM7: 3089.736738 | BN7: 2776.880562 | BO7: 2491.024639 | BP7: 2237.49313 | BQ7: 2007.287686 | BR7: 1810.534841 | BS7: 1613.324607 | BT7: 1444.471287 | BU7: 1298.154423 | BV7: 1163.995359 | BW7: 1047.543502 | BX7: 940.1139214 | BY7: 846.2992788 | BZ7: 759.0539711 | CA7: 682.1065016 | CB7: 611.3777905 | CC7: 560.7480825 | CD7: 554.6075777 | CE7: 409.7672224 | CF7: 363.7754845 | CG7: 327.2285522 | CH7: 293.781746 | CI7: 263.6304644 | CJ7: 237.1557801 | CK7: 212.8685391 | CL7: 191.1946833 | CM7: 171.6853343 | CN7: 154.2755521 | CO7: 138.9296168 | CP7: 124.4989801 | CQ7: 111.8644408 | CR7: 100.6984675 | CS7: 90.70735963 | CT7: 81.03839099 | CU7: 73.16649919 | CV7: 65.59925997 | CW7: 58.89629058 | CX7: 52.73591266 | CY7: 47.49204416 | CZ7: 42.4965546 | DA7: 38.25718477 | DB7: 34.30437117 | DC7: 30.81902426 | DD7: 27.66406766 | DE7: 24.82375289 | DF7: 22.3110291 | DG7: 20.00716157 | DH7: 18.0539921 | DI7: 16.13551177 | DJ7: 14.48518518 | DK7: 12.96121716 | DL7: 11.6614131 | DM7: 10.6003589 | DN7: 9.417161453 | DO7: 8.482217586 | DP7: 7.578058769 | DQ7: 6.812234632 | DR7: 6.071957465 | DS7: 5.450243778 | DT7: 4.93002551 | DU7: 4.429353234 | DV7: 3.976609071 | DW7: 3.572101204 | DX7: 3.163953452 | DY7: 2.860639212 | DZ7: 2.593505363 | EA7: 2.310976213 | EB7: 2.052258042 | EC7: 1.879701447 | ED7: 1.663867 | EE7: 1.490919399 | EF7: 1.361069811 | EG7: 1.212119212 | EH7: 1.082747591 | EI7: 1.012785993 | EJ7: 0.8990935775 | EK7: 0.848382367 | EL7: 0.9156333659 | EM7: 0.5974755601 | EN7: 0.5171249397 | EO7: 0.4662254277 | EP7: 0.4188466504 | EQ7: 0.3710177099 | ER7: 0.3326672639 | ES7: 0.2994509455 | ET7: 0.2703692202 | EU7: 0.2406974912 | EV7: 0.2140964165 | EW7: 0.1940416967 | EX7: 0.1751992006 | EY7: 0.1566990666 | EZ7: 0.1391801864 | FA7: 0.1255177917 | FB7: 0.1116640306 | FC7: 0.1013159112 | FD7: 0.08927269285 | FE7: 0.08048370643 | FF7: 0.07366709769 | FG7: 0.06415800958 | FH7: 0.05798270484 | FI7: 0.05338428589 | FJ7: 0.04617129222 | FK7: 0.04204186249 | FL7: 0.03780652876 | FM7: 0.03294612385 | FN7: 0.03064155434 | FO7: 0.02705981619 | FP7: 0.02441062243 | FQ7: 0.02189314808 | FR7: 0.01939052802 | FS7: 0.01743547182 | FT7: 0.01501084507 | FU7: 0.01407028671 | FV7: 0.01233986039 | FW7: 0.01137958003 | FX7: 0.01019935839 | FY7: 0.009018703816 | FZ7: 0.008066991492 | GA7: 0.007292086226 | GB7: 0.006812732978 | GC7: 0.005952653859 | GD7: 0.005129325312 | GE7: 0.005133650809 | GF7: 0.004470539279 | GG7: 0.003998963968 | GH7: 0.00362345032 | GI7: 0.003504333459 | GJ7: 0.003145209928 | GK7: 0.003038702382 | GL7: 0.002767489729 | GM7: 0.002243902308 | GN7: 0.002225594847 | GO7: 0.002125102372 | GP7: 0.001997379585 | GQ7: 0.001868940119 | GR7: 0.001975026705 | GS7: 0.002626093367 | GT7: 0.007470560556 | GU7: 0.0009851788847 | GV7: 0.0002046248775 | GW7: 0.0003232245371 | GX7: 7.958071499e-06 | GY7: 1.348212582e-06 | GZ7: 1.203144489e-06 | HA7: 1.073497332e-06 | HB7: 1.829231398e-06 | HC7: 1.366842587e-05 | HD7: 0 | HE7: 0 | HF7: 0 | HG7: 0 | HH7: 0 | HI7: 0 | HJ7: 0 | HK7: 0 | HL7: 0 | HM7: 0 | HN7: 0 | HO7: 0 | HP7: 0 | HQ7: 0 | HR7: 0 | HS7: 0 | HT7: 0 | HU7: 0 | HV7: 0 | HW7: 0 | HX7: 0 | HY7: 0 | HZ7: 0 | IA7: 0 | IB7: 0 | IC7: 0 | ID7: 0 | IE7: 0 | IF7: 0 | IG7: 0 | IH7: 0 | II7: 0 | IJ7: 0 | IK7: 0 | IL7: 0 | IM7: 0 | IN7: 0 | IO7: 0 | IP7: 0 | IQ7: 0 | IR7: 0 | IS7: 0 | IT7: 0 | IU7: 0 | IV7: 0 | IW7: 0 | IX7: 0 | IY7: 0 | IZ7: 0 | JA7: 0 | JB7: 0 | JC7: 0 | JD7: 0 | JE7: 0 | JF7: 0 | JG7: 0 | JH7: 0 | JI7: 0 | JJ7: 0 | JK7: 0 | JL7: 0 | JM7: 0 | JN7: 0 | JO7: 0 | JP7: 0 | JQ7: 0 | JR7: 0 | JS7: 0 | JT7: 0 | JU7: 0 | JV7: 0 | JW7: 0 | JX7: 0 | JY7: 0 | JZ7: 0 | KA7: 0 | KB7: 0 | KC7: 0 | KD7: 0 | KE7: 0 | KF7: 0 | KG7: 0 | KH7: 0 | KI7: 0 | KJ7: 0 | KK7: 0 | KL7: 0 | KM7: 0 | KN7: 0 | KO7: 0 | KP7: 0 | KQ7: 0 | KR7: 0 | KS7: 0 | KT7: 0 | KU7: 0 | KV7: 0 | KW7: 0 | KX7: 0 | KY7: 0 | KZ7: 0 | LA7: 0 | LB7: 0 | LC7: 0 | LD7: 0 | LE7: 0 | LF7: 0 | LG7: 0 | LH7: 0 | LI7: 0 | LJ7: 0 | LK7: 0 | LL7: 0 | LM7: 0 | LN7: 0 | LO7: 0 | LP7: 0 | LQ7: 0 | LR7: 0 | LS7: 0 | LT7: 0 | LU7: 0 | LV7: 0 | LW7: 0 | LX7: 0 | LY7: 0 | LZ7: 0 | MA7: 0 | MB7: 0 | MC7: 0 | MD7: 0 | ME7: 0 | MF7: 0 | MG7: 0 | MH7: 0 | MI7: 0 | MJ7: 0 | MK7: 0 | ML7: 0 | MM7: 0 | MN7: 0 | MO7: 0 | MP7: 0 | MQ7: 0 | MR7: 0 | MS7: 0 | MT7: 0 | MU7: 0 | MV7: 0 | MW7: 0
A8: =Inputs!C8 -> GT 1998-4 A6 | C8: 2599711.338 | D8: 2334898.579 | E8: 2096937.736 | F8: 1883222.94 | G8: 1691771.253 | H8: 1519155.56 | I8: 1364339.221 | J8: 1225102.743 | K8: 1100300.394 | L8: 987814.8197 | M8: 886877.3102 | N8: 795986.3616 | O8: 714595.1832 | P8: 641361.5716 | Q8: 575691.434 | R8: 516735.8337 | S8: 463721.5244 | T8: 415760.9182 | U8: 372667.8592 | V8: 334328.4435 | W8: 299480.937 | X8: 262336.3573 | Y8: 235186.4122 | Z8: 211233.6499 | AA8: 189727.7547 | AB8: 170369.1392 | AC8: 153017.5878 | AD8: 137346.0163 | AE8: 123362.9652 | AF8: 110816.9676 | AG8: 99517.23883 | AH8: 89365.04562 | AI8: 80257.93327 | AJ8: 72043.62572 | AK8: 64701.80866 | AL8: 58114.60103 | AM8: 52157.07598 | AN8: 46848.67814 | AO8: 42050.35987 | AP8: 37750.37708 | AQ8: 33891.40232 | AR8: 30433.98511 | AS8: 27322.78873 | AT8: 24543.56053 | AU8: 22037.60136 | AV8: 19745.0526 | AW8: 17728.55226 | AX8: 15914.98695 | AY8: 14294.20311 | AZ8: 12826.59853 | BA8: 11512.98789 | BB8: 10327.93098 | BC8: 9276.417951 | BD8: 8319.930356 | BE8: 7468.331263 | BF8: 6705.286758 | BG8: 6018.441523 | BH8: 5391.970064 | BI8: 4836.142611 | BJ8: 4342.863824 | BK8: 3892.446909 | BL8: 3493.671246 | BM8: 3135.521477 | BN8: 2815.790683 | BO8: 2525.190218 | BP8: 2262.218306 | BQ8: 2029.870246 | BR8: 1820.480285 | BS8: 1634.81207 | BT8: 1464.135024 | BU8: 1313.141273 | BV8: 1179.926446 | BW8: 1055.484425 | BX8: 947.9211275 | BY8: 850.0592418 | BZ8: 763.6491281 | CA8: 682.9028514 | CB8: 618.0769122 | CC8: 555.0956855 | CD8: 511.6605388 | CE8: 496.6650179 | CF8: 374.9533662 | CG8: 327.8442543 | CH8: 295.0012075 | CI8: 263.9979711 | CJ8: 236.8182162 | CK8: 213.1325181 | CL8: 191.3620957 | CM8: 171.2094503 | CN8: 153.5727715 | CO8: 137.9324851 | CP8: 124.2097518 | CQ8: 110.9895121 | CR8: 99.61607647 | CS8: 89.71138634 | CT8: 80.39099001 | CU8: 71.99923088 | CV8: 64.60900526 | CW8: 58.01776579 | CX8: 52.10518129 | CY8: 46.7807615 | CZ8: 41.92269993 | DA8: 37.60845437 | DB8: 33.78674398 | DC8: 30.32816232 | DD8: 27.07155251 | DE8: 24.3011653 | DF8: 21.90718758 | DG8: 19.603194 | DH8: 17.53919601 | DI8: 15.69518187 | DJ8: 14.07882519 | DK8: 12.64760084 | DL8: 11.39552665 | DM8: 10.18797771 | DN8: 9.120940565 | DO8: 8.186998035 | DP8: 7.378311374 | DQ8: 6.601369747 | DR8: 5.886422847 | DS8: 5.344604762 | DT8: 4.755880066 | DU8: 4.228557543 | DV8: 3.82439129 | DW8: 3.418369515 | DX8: 3.068672848 | DY8: 2.781181162 | DZ8: 2.479232452 | EA8: 2.229966087 | EB8: 2.000813742 | EC8: 1.768883205 | ED8: 1.59057445 | EE8: 1.444029762 | EF8: 1.288737295 | EG8: 1.155178961 | EH8: 1.039950997 | EI8: 0.9224409424 | EJ8: 0.843839014 | EK8: 0.7581096901 | EL8: 0.6938254184 | EM8: 0.7773707411 | EN8: 0.5074343971 | EO8: 0.4476063223 | EP8: 0.3972698174 | EQ8: 0.3574642874 | ER8: 0.3217709367 | ES8: 0.2859333173 | ET8: 0.2551118206 | EU8: 0.2307413897 | EV8: 0.2057046517 | EW8: 0.1840606826 | EX8: 0.1652879068 | EY8: 0.148570432 | EZ8: 0.131543504 | FA8: 0.1173346345 | FB8: 0.1052533817 | FC8: 0.09410975136 | FD8: 0.08467980204 | FE8: 0.07502837835 | FF8: 0.06851813055 | FG8: 0.06014302286 | FH8: 0.05513014293 | FI8: 0.04818729152 | FJ8: 0.04449766227 | FK8: 0.0401421686 | FL8: 0.03474695717 | FM8: 0.03270819051 | FN8: 0.02842224889 | FO8: 0.02459518964 | FP8: 0.02262992497 | FQ8: 0.02023214628 | FR8: 0.01828149911 | FS8: 0.01591060953 | FT8: 0.01433713799 | FU8: 0.01336298737 | FV8: 0.01217135871 | FW8: 0.01045650453 | FX8: 0.009318176415 | FY8: 0.008510457901 | FZ8: 0.007204234177 | GA8: 0.006582410575 | GB8: 0.005672302457 | GC8: 0.005570129447 | GD8: 0.004619359063 | GE8: 0.004421028596 | GF8: 0.003970249714 | GG8: 0.003347974717 | GH8: 0.003332588314 | GI8: 0.00292023724 | GJ8: 0.002861833368 | GK8: 0.002819719454 | GL8: 0.002278947141 | GM8: 0.002294244131 | GN8: 0.001950421133 | GO8: 0.001898524426 | GP8: 0.001805991032 | GQ8: 0.00156606761 | GR8: 0.001400779969 | GS8: 0.00141111773 | GT8: 0.002578648728 | GU8: 0.005571240704 | GV8: 0.0009258003648 | GW8: 0.0002589145813 | GX8: 0.0001055713524 | GY8: 8.972376226e-06 | GZ8: 1.177454702e-06 | HA8: 9.798792442e-07 | HB8: 6.795935631e-07 | HC8: 3.94186462e-07 | HD8: 4.259150952e-06 | HE8: 0 | HF8: 0 | HG8: 0 | HH8: 0 | HI8: 0 | HJ8: 0 | HK8: 0 | HL8: 0 | HM8: 0 | HN8: 0 | HO8: 0 | HP8: 0 | HQ8: 0 | HR8: 0 | HS8: 0 | HT8: 0 | HU8: 0 | HV8: 0 | HW8: 0 | HX8: 0 | HY8: 0 | HZ8: 0 | IA8: 0 | IB8: 0 | IC8: 0 | ID8: 0 | IE8: 0 | IF8: 0 | IG8: 0 | IH8: 0 | II8: 0 | IJ8: 0 | IK8: 0 | IL8: 0 | IM8: 0 | IN8: 0 | IO8: 0 | IP8: 0 | IQ8: 0 | IR8: 0 | IS8: 0 | IT8: 0 | IU8: 0 | IV8: 0 | IW8: 0 | IX8: 0 | IY8: 0 | IZ8: 0 | JA8: 0 | JB8: 0 | JC8: 0 | JD8: 0 | JE8: 0 | JF8: 0 | JG8: 0 | JH8: 0 | JI8: 0 | JJ8: 0 | JK8: 0 | JL8: 0 | JM8: 0 | JN8: 0 | JO8: 0 | JP8: 0 | JQ8: 0 | JR8: 0 | JS8: 0 | JT8: 0 | JU8: 0 | JV8: 0 | JW8: 0 | JX8: 0 | JY8: 0 | JZ8: 0 | KA8: 0 | KB8: 0 | KC8: 0 | KD8: 0 | KE8: 0 | KF8: 0 | KG8: 0 | KH8: 0 | KI8: 0 | KJ8: 0 | KK8: 0 | KL8: 0 | KM8: 0 | KN8: 0 | KO8: 0 | KP8: 0 | KQ8: 0 | KR8: 0 | KS8: 0 | KT8: 0 | KU8: 0 | KV8: 0 | KW8: 0 | KX8: 0 | KY8: 0 | KZ8: 0 | LA8: 0 | LB8: 0 | LC8: 0 | LD8: 0 | LE8: 0 | LF8: 0 | LG8: 0 | LH8: 0 | LI8: 0 | LJ8: 0 | LK8: 0 | LL8: 0 | LM8: 0 | LN8: 0 | LO8: 0 | LP8: 0 | LQ8: 0 | LR8: 0 | LS8: 0 | LT8: 0 | LU8: 0 | LV8: 0 | LW8: 0 | LX8: 0 | LY8: 0 | LZ8: 0 | MA8: 0 | MB8: 0 | MC8: 0 | MD8: 0 | ME8: 0 | MF8: 0 | MG8: 0 | MH8: 0 | MI8: 0 | MJ8: 0 | MK8: 0 | ML8: 0 | MM8: 0 | MN8: 0 | MO8: 0 | MP8: 0 | MQ8: 0 | MR8: 0 | MS8: 0 | MT8: 0 | MU8: 0 | MV8: 0 | MW8: 0
A9: =Inputs!C9 -> GT 1998-6 A8 | C9: 4138284.302 | D9: 3717358.743 | E9: 3339256.048 | F9: 2999235.938 | G9: 2693224.17 | H9: 2418138.134 | I9: 2171539.931 | J9: 1949856.601 | K9: 1750796.786 | L9: 1571874.138 | M9: 1411401.896 | N9: 1267035.272 | O9: 1137556.143 | P9: 1021370.518 | Q9: 916937.6944 | R9: 823004.351 | S9: 738432.0239 | T9: 662341.6806 | U9: 594006.7544 | V9: 532602.9562 | W9: 477348.0037 | X9: 429906.2493 | Y9: 382818.6159 | Z9: 337523.4163 | AA9: 301040.5173 | AB9: 270393.6096 | AC9: 242927.3692 | AD9: 218069.5063 | AE9: 195834.9393 | AF9: 175875.0111 | AG9: 157952.6328 | AH9: 141879.195 | AI9: 127457.1991 | AJ9: 114420.4863 | AK9: 102766.5547 | AL9: 92287.25371 | AM9: 82883.33488 | AN9: 74420.9144 | AO9: 66817.84562 | AP9: 60005.20639 | AQ9: 53850.83713 | AR9: 48333.58181 | AS9: 43393.59736 | AT9: 38938.6786 | AU9: 34960.39749 | AV9: 31411.17617 | AW9: 28181.24989 | AX9: 25281.5851 | AY9: 22696.97047 | AZ9: 20375.14422 | BA9: 18291.5553 | BB9: 16412.15675 | BC9: 14737.1638 | BD9: 13220.00581 | BE9: 11871.35026 | BF9: 10649.28429 | BG9: 9556.265083 | BH9: 8573.103709 | BI9: 7696.46093 | BJ9: 6894.436815 | BK9: 6182.818135 | BL9: 5544.226434 | BM9: 4981.322381 | BN9: 4465.005956 | BO9: 4010.7381 | BP9: 3592.514247 | BQ9: 3227.762293 | BR9: 2892.099745 | BS9: 2597.923018 | BT9: 2326.491736 | BU9: 2090.588205 | BV9: 1872.654802 | BW9: 1677.797527 | BX9: 1502.851419 | BY9: 1345.457787 | BZ9: 1210.792566 | CA9: 1085.038417 | CB9: 973.0802085 | CC9: 876.3945474 | CD9: 787.2143249 | CE9: 702.7678127 | CF9: 661.6572556 | CG9: 602.7867222 | CH9: 487.0739784 | CI9: 422.2069195 | CJ9: 377.8841818 | CK9: 339.4169043 | CL9: 304.5510157 | CM9: 273.8162323 | CN9: 245.515861 | CO9: 220.5898076 | CP9: 197.609106 | CQ9: 177.4822217 | CR9: 159.6182798 | CS9: 142.8230943 | CT9: 128.5418572 | CU9: 114.9992646 | CV9: 103.4338969 | CW9: 92.98499031 | CX9: 83.03512619 | CY9: 74.79247756 | CZ9: 66.97792043 | DA9: 60.03067939 | DB9: 53.81156996 | DC9: 48.64425423 | DD9: 43.35010739 | DE9: 38.94856576 | DF9: 34.80829987 | DG9: 31.26106152 | DH9: 28.10264022 | DI9: 25.34185144 | DJ9: 22.53895327 | DK9: 20.20682141 | DL9: 18.18539618 | DM9: 16.25653682 | DN9: 14.54833463 | DO9: 13.14589653 | DP9: 11.77668741 | DQ9: 10.5048488 | DR9: 9.444896554 | DS9: 8.480545936 | DT9: 7.603486489 | DU9: 6.773796706 | DV9: 6.098184431 | DW9: 5.476962465 | DX9: 4.908611382 | DY9: 4.398349109 | DZ9: 3.923539317 | EA9: 3.517646303 | EB9: 3.202843568 | EC9: 2.833238539 | ED9: 2.560776328 | EE9: 2.261303995 | EF9: 2.03241507 | EG9: 1.823943421 | EH9: 1.650535185 | EI9: 1.516889644 | EJ9: 1.319774218 | EK9: 1.178075508 | EL9: 1.081636667 | EM9: 0.9610493708 | EN9: 0.9822626763 | EO9: 0.9479282918 | EP9: 0.7177252768 | EQ9: 0.5600008982 | ER9: 0.4997458889 | ES9: 0.4428948447 | ET9: 0.4056414169 | EU9: 0.3586386079 | EV9: 0.3213651123 | EW9: 0.287891704 | EX9: 0.2574499225 | EY9: 0.2326011189 | EZ9: 0.206982662 | FA9: 0.1853305769 | FB9: 0.1669330796 | FC9: 0.1511639951 | FD9: 0.1332641643 | FE9: 0.1195390112 | FF9: 0.1053560891 | FG9: 0.09618289095 | FH9: 0.08593323882 | FI9: 0.07615411361 | FJ9: 0.06938321997 | FK9: 0.06200823716 | FL9: 0.05410677987 | FM9: 0.04950024287 | FN9: 0.04365122591 | FO9: 0.04001526977 | FP9: 0.03508202909 | FQ9: 0.03194647889 | FR9: 0.02752797025 | FS9: 0.02572570436 | FT9: 0.02299912818 | FU9: 0.02008101091 | FV9: 0.01833293474 | FW9: 0.0161268591 | FX9: 0.01471194916 | FY9: 0.01395719517 | FZ9: 0.01189595451 | GA9: 0.0108530536 | GB9: 0.009421667309 | GC9: 0.008303677848 | GD9: 0.007646135757 | GE9: 0.006903327827 | GF9: 0.006074642699 | GG9: 0.005692307362 | GH9: 0.005087907573 | GI9: 0.004601080822 | GJ9: 0.004231683438 | GK9: 0.004024343089 | GL9: 0.003377929339 | GM9: 0.003044108656 | GN9: 0.003013224878 | GO9: 0.002530658087 | GP9: 0.002718935953 | GQ9: 0.002258824888 | GR9: 0.002176139054 | GS9: 0.002225246067 | GT9: 0.001767287581 | GU9: 0.002032326702 | GV9: 0.004250563342 | GW9: 0.005104100855 | GX9: 0.001830527939 | GY9: 0.0002330663406 | GZ9: 0.0001098138022 | HA9: 3.464144652e-06 | HB9: 3.245341819e-07 | HC9: 2.897762628e-07 | HD9: 2.587053579e-07 | HE9: 2.309334166e-07 | HF9: 4.437133851e-06 | HG9: 0 | HH9: 0 | HI9: 0 | HJ9: 0 | HK9: 0 | HL9: 0 | HM9: 0 | HN9: 0 | HO9: 0 | HP9: 0 | HQ9: 0 | HR9: 0 | HS9: 0 | HT9: 0 | HU9: 0 | HV9: 0 | HW9: 0 | HX9: 0 | HY9: 0 | HZ9: 0 | IA9: 0 | IB9: 0 | IC9: 0 | ID9: 0 | IE9: 0 | IF9: 0 | IG9: 0 | IH9: 0 | II9: 0 | IJ9: 0 | IK9: 0 | IL9: 0 | IM9: 0 | IN9: 0 | IO9: 0 | IP9: 0 | IQ9: 0 | IR9: 0 | IS9: 0 | IT9: 0 | IU9: 0 | IV9: 0 | IW9: 0 | IX9: 0 | IY9: 0 | IZ9: 0 | JA9: 0 | JB9: 0 | JC9: 0 | JD9: 0 | JE9: 0 | JF9: 0 | JG9: 0 | JH9: 0 | JI9: 0 | JJ9: 0 | JK9: 0 | JL9: 0 | JM9: 0 | JN9: 0 | JO9: 0 | JP9: 0 | JQ9: 0 | JR9: 0 | JS9: 0 | JT9: 0 | JU9: 0 | JV9: 0 | JW9: 0 | JX9: 0 | JY9: 0 | JZ9: 0 | KA9: 0 | KB9: 0 | KC9: 0 | KD9: 0 | KE9: 0 | KF9: 0 | KG9: 0 | KH9: 0 | KI9: 0 | KJ9: 0 | KK9: 0 | KL9: 0 | KM9: 0 | KN9: 0 | KO9: 0 | KP9: 0 | KQ9: 0 | KR9: 0 | KS9: 0 | KT9: 0 | KU9: 0 | KV9: 0 | KW9: 0 | KX9: 0 | KY9: 0 | KZ9: 0 | LA9: 0 | LB9: 0 | LC9: 0 | LD9: 0 | LE9: 0 | LF9: 0 | LG9: 0 | LH9: 0 | LI9: 0 | LJ9: 0 | LK9: 0 | LL9: 0 | LM9: 0 | LN9: 0 | LO9: 0 | LP9: 0 | LQ9: 0 | LR9: 0 | LS9: 0 | LT9: 0 | LU9: 0 | LV9: 0 | LW9: 0 | LX9: 0 | LY9: 0 | LZ9: 0 | MA9: 0 | MB9: 0 | MC9: 0 | MD9: 0 | ME9: 0 | MF9: 0 | MG9: 0 | MH9: 0 | MI9: 0 | MJ9: 0 | MK9: 0 | ML9: 0 | MM9: 0 | MN9: 0 | MO9: 0 | MP9: 0 | MQ9: 0 | MR9: 0 | MS9: 0 | MT9: 0 | MU9: 0 | MV9: 0 | MW9: 0
A10: =Inputs!C10 -> GT 1996-2 M1 | C10: 460168.6911 | D10: 459011.3645 | E10: 444086.107 | F10: 442953.3117 | G10: 441830.4568 | H10: 440719.1765 | I10: 439122.6733 | J10: 438030.4216 | K10: 436947.9142 | L10: 435875.1045 | M10: 434812.7483 | N10: 433613.265 | O10: 432570.3765 | P10: 431358.7726 | Q10: 430334.6774 | R10: 429320.0021 | S10: 428314.7024 | T10: 427318.7343 | U10: 426332.054 | V10: 425354.6181 | W10: 424386.3834 | X10: 423427.3071 | Y10: 422477.3465 | Z10: 421536.4592 | AA10: 420608.7764 | AB10: 419364.0169 | AC10: 418021.2241 | AD10: 416565.6239 | AE10: 415578.2172 | AF10: 414708.5482 | AG10: 412941.0669 | AH10: 411853.9833 | AI10: 410997.7572 | AJ10: 410150.1504 | AK10: 409499.3237 | AL10: 408190.7457 | AM10: 407090.7071 | AN10: 406279.7386 | AO10: 405477.1737 | AP10: 404682.9744 | AQ10: 403897.1032 | AR10: 403379.3654 | AS10: 401947.1798 | AT10: 401196.0458 | AU10: 400185.2504 | AV10: 399205.6158 | AW10: 398166.8003 | AX10: 397547.0822 | AY10: 391312.2786 | AZ10: 382041.3884 | BA10: 365515.9573 | BB10: 280585.9311 | BC10: 235613.6867 | BD10: 233681.8697 | BE10: 232734.5831 | BF10: 232161.3991 | BG10: 231369.1366 | BH10: 230648.6895 | BI10: 230072.8544 | BJ10: 229501.9622 | BK10: 228935.9889 | BL10: 228418.8761 | BM10: 227371.0338 | BN10: 226820.3691 | BO10: 226274.5213 | BP10: 225733.467 | BQ10: 225197.1829 | BR10: 224665.6461 | BS10: 224138.8335 | BT10: 223616.7224 | BU10: 223099.2901 | BV10: 222586.5141 | BW10: 222078.372 | BX10: 221574.8417 | BY10: 221075.901 | BZ10: 220581.5279 | CA10: 220091.7007 | CB10: 219606.3977 | CC10: 219125.5972 | CD10: 218649.278 | CE10: 218177.4187 | CF10: 217709.9982 | CG10: 217246.9955 | CH10: 216788.3897 | CI10: 216334.1601 | CJ10: 215884.2859 | CK10: 215438.7469 | CL10: 214997.5225 | CM10: 214560.5926 | CN10: 214127.937 | CO10: 213699.5358 | CP10: 213275.3692 | CQ10: 212855.4173 | CR10: 212439.6607 | CS10: 212028.0799 | CT10: 211620.6554 | CU10: 211217.368 | CV10: 210818.1987 | CW10: 210423.1285 | CX10: 210032.1385 | CY10: 209645.21 | CZ10: 209262.3242 | DA10: 208984.2152 | DB10: 208248.4935 | DC10: 207903.1583 | DD10: 207443.4112 | DE10: 207123.3347 | DF10: 207505.7839 | DG10: 205438.5145 | DH10: 202993.8594 | DI10: 204413.7252 | DJ10: 164145.7952 | DK10: 131512.4386 | DL10: 130060.8646 | DM10: 129914.7865 | DN10: 129252.6089 | DO10: 128719.0305 | DP10: 128448.5348 | DQ10: 128180.5437 | DR10: 127915.0451 | DS10: 127652.0269 | DT10: 127391.4774 | DU10: 127133.3846 | DV10: 126877.7367 | DW10: 126624.5222 | DX10: 126373.7294 | DY10: 126125.3467 | DZ10: 125879.3626 | EA10: 125635.7659 | EB10: 125394.5451 | EC10: 125155.6889 | ED10: 124919.1863 | EE10: 124685.0261 | EF10: 124453.1972 | EG10: 124223.6886 | EH10: 123996.4895 | EI10: 123771.589 | EJ10: 123548.9764 | EK10: 123328.6408 | EL10: 123110.5718 | EM10: 123047.2809 | EN10: 122497.1725 | EO10: 122285.8199 | EP10: 122076.6887 | EQ10: 121869.7683 | ER10: 121665.0487 | ES10: 121462.5197 | ET10: 121262.171 | EU10: 121063.9928 | EV10: 120867.975 | EW10: 120674.1078 | EX10: 120482.3812 | EY10: 120292.7854 | EZ10: 120105.3109 | FA10: 119919.9478 | FB10: 119736.6866 | FC10: 119555.5177 | FD10: 119484.7066 | FE10: 119098.0549 | FF10: 118923.117 | FG10: 118750.2322 | FH10: 118579.3911 | FI10: 118410.5846 | FJ10: 118243.8037 | FK10: 118079.0391 | FL10: 117916.282 | FM10: 118210.1529 | FN10: 120794.3187 | FO10: 118866.5831 | FP10: 123968.9748 | FQ10: 151049.0767 | FR10: 75753.41583 | FS10: 8932.296889 | FT10: 5717.537336 | FU10: 3404.818497 | FV10: 1608.634359 | FW10: 286.7900129 | FX10: 0 | FY10: 0 | FZ10: 0 | GA10: 0 | GB10: 0 | GC10: 0 | GD10: 0 | GE10: 0 | GF10: 0 | GG10: 0 | GH10: 0 | GI10: 0 | GJ10: 0 | GK10: 0 | GL10: 0 | GM10: 0 | GN10: 0 | GO10: 0 | GP10: 0 | GQ10: 0 | GR10: 0 | GS10: 0 | GT10: 0 | GU10: 0 | GV10: 0 | GW10: 0 | GX10: 0 | GY10: 0 | GZ10: 0 | HA10: 0 | HB10: 0 | HC10: 0 | HD10: 0 | HE10: 0 | HF10: 0 | HG10: 0 | HH10: 0 | HI10: 0 | HJ10: 0 | HK10: 0 | HL10: 0 | HM10: 0 | HN10: 0 | HO10: 0 | HP10: 0 | HQ10: 0 | HR10: 0 | HS10: 0 | HT10: 0 | HU10: 0 | HV10: 0 | HW10: 0 | HX10: 0 | HY10: 0 | HZ10: 0 | IA10: 0 | IB10: 0 | IC10: 0 | ID10: 0 | IE10: 0 | IF10: 0 | IG10: 0 | IH10: 0 | II10: 0 | IJ10: 0 | IK10: 0 | IL10: 0 | IM10: 0 | IN10: 0 | IO10: 0 | IP10: 0 | IQ10: 0 | IR10: 0 | IS10: 0 | IT10: 0 | IU10: 0 | IV10: 0 | IW10: 0 | IX10: 0 | IY10: 0 | IZ10: 0 | JA10: 0 | JB10: 0 | JC10: 0 | JD10: 0 | JE10: 0 | JF10: 0 | JG10: 0 | JH10: 0 | JI10: 0 | JJ10: 0 | JK10: 0 | JL10: 0 | JM10: 0 | JN10: 0 | JO10: 0 | JP10: 0 | JQ10: 0 | JR10: 0 | JS10: 0 | JT10: 0 | JU10: 0 | JV10: 0 | JW10: 0 | JX10: 0 | JY10: 0 | JZ10: 0 | KA10: 0 | KB10: 0 | KC10: 0 | KD10: 0 | KE10: 0 | KF10: 0 | KG10: 0 | KH10: 0 | KI10: 0 | KJ10: 0 | KK10: 0 | KL10: 0 | KM10: 0 | KN10: 0 | KO10: 0 | KP10: 0 | KQ10: 0 | KR10: 0 | KS10: 0 | KT10: 0 | KU10: 0 | KV10: 0 | KW10: 0 | KX10: 0 | KY10: 0 | KZ10: 0 | LA10: 0 | LB10: 0 | LC10: 0 | LD10: 0 | LE10: 0 | LF10: 0 | LG10: 0 | LH10: 0 | LI10: 0 | LJ10: 0 | LK10: 0 | LL10: 0 | LM10: 0 | LN10: 0 | LO10: 0 | LP10: 0 | LQ10: 0 | LR10: 0 | LS10: 0 | LT10: 0 | LU10: 0 | LV10: 0 | LW10: 0 | LX10: 0 | LY10: 0 | LZ10: 0 | MA10: 0 | MB10: 0 | MC10: 0 | MD10: 0 | ME10: 0 | MF10: 0 | MG10: 0 | MH10: 0 | MI10: 0 | MJ10: 0 | MK10: 0 | ML10: 0 | MM10: 0 | MN10: 0 | MO10: 0 | MP10: 0 | MQ10: 0 | MR10: 0 | MS10: 0 | MT10: 0 | MU10: 0 | MV10: 0 | MW10: 0
A11: =Inputs!C11 -> GT 1996-5 M1 | C11: 452717.0159 | D11: 447649.4078 | E11: 441894.9174 | F11: 436143.711 | G11: 431324.5145 | H11: 426439.3398 | I11: 421303.2089 | J11: 416584.8666 | K11: 411408.9911 | L11: 406239.5191 | M11: 401021.702 | N11: 396112.9209 | O11: 391347.2053 | P11: 386523.5736 | Q11: 381958.8879 | R11: 377486.1642 | S11: 372550.5014 | T11: 367657.4527 | U11: 363364.6082 | V11: 358426.209 | W11: 353287.0465 | X11: 348644.0783 | Y11: 343953.2617 | Z11: 339934.4288 | AA11: 335014.6679 | AB11: 330587.0542 | AC11: 326668.0264 | AD11: 322614.9484 | AE11: 318278.3732 | AF11: 314075.8229 | AG11: 310289.0906 | AH11: 306535.268 | AI11: 302556.108 | AJ11: 298406.4496 | AK11: 294166.2179 | AL11: 290202.343 | AM11: 286467.2947 | AN11: 282024.5891 | AO11: 277295.9656 | AP11: 273115.6724 | AQ11: 269350.716 | AR11: 264638.8328 | AS11: 259524.3999 | AT11: 253627.5229 | AU11: 247187.1536 | AV11: 239373.9138 | AW11: 229814.2742 | AX11: 217550.2827 | AY11: 196633.1436 | AZ11: 161480.0974 | BA11: 156721.9168 | BB11: 154873.9611 | BC11: 153245.0535 | BD11: 150859.0987 | BE11: 148908.689 | BF11: 147277.2068 | BG11: 145666.1442 | BH11: 144075.2199 | BI11: 142450.3984 | BJ11: 140838.002 | BK11: 139322.9196 | BL11: 137555.2744 | BM11: 135976.2972 | BN11: 134414.9315 | BO11: 132708.4763 | BP11: 131154.4844 | BQ11: 129495.5336 | BR11: 128101.4353 | BS11: 126724.5322 | BT11: 125244.4082 | BU11: 123834.3285 | BV11: 122509.1401 | BW11: 121143.8986 | BX11: 119720.1023 | BY11: 118261.4549 | BZ11: 116853.8093 | CA11: 115626.1235 | CB11: 114171.8288 | CC11: 112693.2241 | CD11: 111221.0806 | CE11: 109849.9643 | CF11: 108160.6562 | CG11: 106734.8949 | CH11: 105310.8642 | CI11: 103856.1532 | CJ11: 102636.8932 | CK11: 101349.1485 | CL11: 99807.15137 | CM11: 98180.04986 | CN11: 96752.95448 | CO11: 95448.49184 | CP11: 94360.03006 | CQ11: 92788.70093 | CR11: 91681.45573 | CS11: 90650.95537 | CT11: 89613.44124 | CU11: 88303.92317 | CV11: 86927.37727 | CW11: 85791.87407 | CX11: 84422.50687 | CY11: 83245.93759 | CZ11: 82060.06958 | DA11: 80696.92922 | DB11: 78795.36561 | DC11: 77144.17099 | DD11: 75243.74382 | DE11: 73632.20209 | DF11: 80379.87608 | DG11: 74939.46297 | DH11: 54485.46366 | DI11: 52437.49361 | DJ11: 51784.35553 | DK11: 51078.55942 | DL11: 50440.87426 | DM11: 50000.1775 | DN11: 49389.41608 | DO11: 48827.96549 | DP11: 47883.6325 | DQ11: 47382.97856 | DR11: 47066.97981 | DS11: 46292.90911 | DT11: 45724.70237 | DU11: 45214.53365 | DV11: 44546.96546 | DW11: 44019.86684 | DX11: 43433.20393 | DY11: 42598.45785 | DZ11: 42135.78068 | EA11: 41790.708 | EB11: 41099.64012 | EC11: 40541.41512 | ED11: 40171.00166 | EE11: 39237.6099 | EF11: 38877.91984 | EG11: 38408.74777 | EH11: 38025.26569 | EI11: 37470.24418 | EJ11: 37025.53118 | EK11: 36512.29956 | EL11: 36142.22661 | EM11: 35003.32542 | EN11: 34620.1226 | EO11: 33899.77946 | EP11: 33583.50114 | EQ11: 32657.55867 | ER11: 32311.4643 | ES11: 31695.42986 | ET11: 31281.69588 | EU11: 30733.1528 | EV11: 30500.74497 | EW11: 29911.67531 | EX11: 29019.77676 | EY11: 28614.17138 | EZ11: 28069.13509 | FA11: 28197.1322 | FB11: 26838.58774 | FC11: 27030.45705 | FD11: 25701.66009 | FE11: 25052.62775 | FF11: 24557.85308 | FG11: 23636.66641 | FH11: 22822.13769 | FI11: 23310.17127 | FJ11: 20316.62194 | FK11: 20355.94673 | FL11: 20266.7505 | FM11: 23390.92115 | FN11: 28806.18314 | FO11: 49661.47084 | FP11: 2948.49763 | FQ11: 0 | FR11: 0 | FS11: 0 | FT11: 0 | FU11: 0 | FV11: 0 | FW11: 0 | FX11: 0 | FY11: 0 | FZ11: 0 | GA11: 0 | GB11: 0 | GC11: 0 | GD11: 0 | GE11: 0 | GF11: 0 | GG11: 0 | GH11: 0 | GI11: 0 | GJ11: 0 | GK11: 0 | GL11: 0 | GM11: 0 | GN11: 0 | GO11: 0 | GP11: 0 | GQ11: 0 | GR11: 0 | GS11: 0 | GT11: 0 | GU11: 0 | GV11: 0 | GW11: 0 | GX11: 0 | GY11: 0 | GZ11: 0 | HA11: 0 | HB11: 0 | HC11: 0 | HD11: 0 | HE11: 0 | HF11: 0 | HG11: 0 | HH11: 0 | HI11: 0 | HJ11: 0 | HK11: 0 | HL11: 0 | HM11: 0 | HN11: 0 | HO11: 0 | HP11: 0 | HQ11: 0 | HR11: 0 | HS11: 0 | HT11: 0 | HU11: 0 | HV11: 0 | HW11: 0 | HX11: 0 | HY11: 0 | HZ11: 0 | IA11: 0 | IB11: 0 | IC11: 0 | ID11: 0 | IE11: 0 | IF11: 0 | IG11: 0 | IH11: 0 | II11: 0 | IJ11: 0 | IK11: 0 | IL11: 0 | IM11: 0 | IN11: 0 | IO11: 0 | IP11: 0 | IQ11: 0 | IR11: 0 | IS11: 0 | IT11: 0 | IU11: 0 | IV11: 0 | IW11: 0 | IX11: 0 | IY11: 0 | IZ11: 0 | JA11: 0 | JB11: 0 | JC11: 0 | JD11: 0 | JE11: 0 | JF11: 0 | JG11: 0 | JH11: 0 | JI11: 0 | JJ11: 0 | JK11: 0 | JL11: 0 | JM11: 0 | JN11: 0 | JO11: 0 | JP11: 0 | JQ11: 0 | JR11: 0 | JS11: 0 | JT11: 0 | JU11: 0 | JV11: 0 | JW11: 0 | JX11: 0 | JY11: 0 | JZ11: 0 | KA11: 0 | KB11: 0 | KC11: 0 | KD11: 0 | KE11: 0 | KF11: 0 | KG11: 0 | KH11: 0 | KI11: 0 | KJ11: 0 | KK11: 0 | KL11: 0 | KM11: 0 | KN11: 0 | KO11: 0 | KP11: 0 | KQ11: 0 | KR11: 0 | KS11: 0 | KT11: 0 | KU11: 0 | KV11: 0 | KW11: 0 | KX11: 0 | KY11: 0 | KZ11: 0 | LA11: 0 | LB11: 0 | LC11: 0 | LD11: 0 | LE11: 0 | LF11: 0 | LG11: 0 | LH11: 0 | LI11: 0 | LJ11: 0 | LK11: 0 | LL11: 0 | LM11: 0 | LN11: 0 | LO11: 0 | LP11: 0 | LQ11: 0 | LR11: 0 | LS11: 0 | LT11: 0 | LU11: 0 | LV11: 0 | LW11: 0 | LX11: 0 | LY11: 0 | LZ11: 0 | MA11: 0 | MB11: 0 | MC11: 0 | MD11: 0 | ME11: 0 | MF11: 0 | MG11: 0 | MH11: 0 | MI11: 0 | MJ11: 0 | MK11: 0 | ML11: 0 | MM11: 0 | MN11: 0 | MO11: 0 | MP11: 0 | MQ11: 0 | MR11: 0 | MS11: 0 | MT11: 0 | MU11: 0 | MV11: 0 | MW11: 0
A12: =Inputs!C12 -> GT 1998-8 M1 | C12: 7430568.379 | D12: 6689174.235 | E12: 6021821.873 | F12: 5420487.721 | G12: 4879228.448 | H12: 4391676.039 | I12: 3952651.983 | J12: 3557856.589 | K12: 3201982.098 | L12: 2881374.7 | M12: 2592828.429 | N12: 2333392.842 | O12: 2099798.445 | P12: 1889522.31 | Q12: 1700023.142 | R12: 1529468.915 | S12: 1375695.336 | T12: 1237708.934 | U12: 1113779.171 | V12: 1002296.671 | W12: 901623.8516 | X12: 810926.466 | Y12: 728966.6661 | Z12: 655010.505 | AA12: 589122.9241 | AB12: 529394.6026 | AC12: 473023.2932 | AD12: 421547.945 | AE12: 378244.7736 | AF12: 340441.4239 | AG12: 306413.4265 | AH12: 275747.7192 | AI12: 248160.5092 | AJ12: 223335.8342 | AK12: 201006.6658 | AL12: 180885.984 | AM12: 162811.5952 | AN12: 146491.9771 | AO12: 131792.7348 | AP12: 118554.871 | AQ12: 106689.4474 | AR12: 95990.33498 | AS12: 86389.52698 | AT12: 77716.86172 | AU12: 69923.47583 | AV12: 62923.66749 | AW12: 56619.03354 | AX12: 50933.59795 | AY12: 45834.14776 | AZ12: 41236.913 | BA12: 37088.24877 | BB12: 33357.10808 | BC12: 30008.94111 | BD12: 26999.8696 | BE12: 24278.58003 | BF12: 21842.61288 | BG12: 19653.90583 | BH12: 17674.78184 | BI12: 15894.85256 | BJ12: 14293.26716 | BK12: 12854.40471 | BL12: 11573.48952 | BM12: 10392.95483 | BN12: 9345.39856 | BO12: 8403.916621 | BP12: 7551.013752 | BQ12: 6797.195711 | BR12: 6109.694253 | BS12: 5500.875406 | BT12: 4938.304939 | BU12: 4441.563491 | BV12: 3992.02173 | BW12: 3591.939944 | BX12: 3224.705247 | BY12: 2897.809445 | BZ12: 2604.23359 | CA12: 2338.145233 | CB12: 2099.256625 | CC12: 1891.430225 | CD12: 1698.551692 | CE12: 1526.01355 | CF12: 1376.090247 | CG12: 1236.495757 | CH12: 1117.068682 | CI12: 1022.166858 | CJ12: 943.1513821 | CK12: 816.8045156 | CL12: 699.2516945 | CM12: 614.8576537 | CN12: 552.1287289 | CO12: 497.1211737 | CP12: 447.2889406 | CQ12: 401.9999963 | CR12: 361.3471521 | CS12: 325.2697885 | CT12: 292.150791 | CU12: 262.8920002 | CV12: 236.382445 | CW12: 212.5369461 | CX12: 191.2878719 | CY12: 171.9329373 | CZ12: 154.5326141 | DA12: 138.7027512 | DB12: 125.0942709 | DC12: 112.2154821 | DD12: 101.0257822 | DE12: 90.82852701 | DF12: 81.41375226 | DG12: 73.22577401 | DH12: 65.90272429 | DI12: 59.39658266 | DJ12: 53.25280582 | DK12: 47.8613296 | DL12: 42.92996477 | DM12: 38.67723457 | DN12: 34.6906633 | DO12: 31.22987319 | DP12: 28.02628809 | DQ12: 25.23276811 | DR12: 22.65912379 | DS12: 20.38569078 | DT12: 18.30451877 | DU12: 16.43779756 | DV12: 14.74092565 | DW12: 13.27261996 | DX12: 11.93977318 | DY12: 10.73525669 | DZ12: 9.66070319 | EA12: 8.671775838 | EB12: 7.804468784 | EC12: 6.93685452 | ED12: 6.267246917 | EE12: 5.647617683 | EF12: 5.044976722 | EG12: 4.526522389 | EH12: 4.061621175 | EI12: 3.660795835 | EJ12: 3.301758077 | EK12: 2.99334227 | EL12: 2.646428764 | EM12: 2.396343996 | EN12: 2.17895243 | EO12: 1.961917803 | EP12: 1.736557712 | EQ12: 1.650625858 | ER12: 1.592810144 | ES12: 1.369624074 | ET12: 1.120041068 | EU12: 0.9534691863 | EV12: 0.8428713704 | EW12: 0.7579988621 | EX12: 0.6818090467 | EY12: 0.6122773539 | EZ12: 0.5455037109 | FA12: 0.495481717 | FB12: 0.4395360125 | FC12: 0.3963181642 | FD12: 0.355057817 | FE12: 0.3181199834 | FF12: 0.2898658543 | FG12: 0.2598563914 | FH12: 0.2328964253 | FI12: 0.2082555258 | FJ12: 0.1836928389 | FK12: 0.1673375717 | FL12: 0.1499549277 | FM12: 0.1335549438 | FN12: 0.1194358477 | FO12: 0.1097674323 | FP12: 0.09721182859 | FQ12: 0.08850099601 | FR12: 0.07754150782 | FS12: 0.07036931637 | FT12: 0.06363540383 | FU12: 0.05660187568 | FV12: 0.04977973543 | FW12: 0.04459224808 | FX12: 0.04073366922 | FY12: 0.03646898679 | FZ12: 0.0336732854 | GA12: 0.03023874287 | GB12: 0.02609837358 | GC12: 0.02381788689 | GD12: 0.02134790986 | GE12: 0.01874983901 | GF12: 0.01733376044 | GG12: 0.01531193646 | GH12: 0.01353471769 | GI12: 0.01259685274 | GJ12: 0.01132236513 | GK12: 0.01030548883 | GL12: 0.009437879784 | GM12: 0.008673781476 | GN12: 0.008092656446 | GO12: 0.007413378301 | GP12: 0.006448334937 | GQ12: 0.006215933498 | GR12: 0.005713554988 | GS12: 0.004910151198 | GT12: 0.004827102742 | GU12: 0.004243468836 | GV12: 0.004540717657 | GW12: 0.003817871394 | GX12: 0.004511115186 | GY12: 0.00644796077 | GZ12: 0.008745466171 | HA12: 0.006497612718 | HB12: 0.002355072689 | HC12: 0.0002726933461 | HD12: 4.929872628e-05 | HE12: 1.679944303e-05 | HF12: 2.505283714e-05 | HG12: 1.186062384e-06 | HH12: 7.534384168e-06 | HI12: 1.006481413e-05 | HJ12: 0 | HK12: 0 | HL12: 0 | HM12: 0 | HN12: 0 | HO12: 0 | HP12: 0 | HQ12: 0 | HR12: 0 | HS12: 0 | HT12: 0 | HU12: 0 | HV12: 0 | HW12: 0 | HX12: 0 | HY12: 0 | HZ12: 0 | IA12: 0 | IB12: 0 | IC12: 0 | ID12: 0 | IE12: 0 | IF12: 0 | IG12: 0 | IH12: 0 | II12: 0 | IJ12: 0 | IK12: 0 | IL12: 0 | IM12: 0 | IN12: 0 | IO12: 0 | IP12: 0 | IQ12: 0 | IR12: 0 | IS12: 0 | IT12: 0 | IU12: 0 | IV12: 0 | IW12: 0 | IX12: 0 | IY12: 0 | IZ12: 0 | JA12: 0 | JB12: 0 | JC12: 0 | JD12: 0 | JE12: 0 | JF12: 0 | JG12: 0 | JH12: 0 | JI12: 0 | JJ12: 0 | JK12: 0 | JL12: 0 | JM12: 0 | JN12: 0 | JO12: 0 | JP12: 0 | JQ12: 0 | JR12: 0 | JS12: 0 | JT12: 0 | JU12: 0 | JV12: 0 | JW12: 0 | JX12: 0 | JY12: 0 | JZ12: 0 | KA12: 0 | KB12: 0 | KC12: 0 | KD12: 0 | KE12: 0 | KF12: 0 | KG12: 0 | KH12: 0 | KI12: 0 | KJ12: 0 | KK12: 0 | KL12: 0 | KM12: 0 | KN12: 0 | KO12: 0 | KP12: 0 | KQ12: 0 | KR12: 0 | KS12: 0 | KT12: 0 | KU12: 0 | KV12: 0 | KW12: 0 | KX12: 0 | KY12: 0 | KZ12: 0 | LA12: 0 | LB12: 0 | LC12: 0 | LD12: 0 | LE12: 0 | LF12: 0 | LG12: 0 | LH12: 0 | LI12: 0 | LJ12: 0 | LK12: 0 | LL12: 0 | LM12: 0 | LN12: 0 | LO12: 0 | LP12: 0 | LQ12: 0 | LR12: 0 | LS12: 0 | LT12: 0 | LU12: 0 | LV12: 0 | LW12: 0 | LX12: 0 | LY12: 0 | LZ12: 0 | MA12: 0 | MB12: 0 | MC12: 0 | MD12: 0 | ME12: 0 | MF12: 0 | MG12: 0 | MH12: 0 | MI12: 0 | MJ12: 0 | MK12: 0 | ML12: 0 | MM12: 0 | MN12: 0 | MO12: 0 | MP12: 0 | MQ12: 0 | MR12: 0 | MS12: 0 | MT12: 0 | MU12: 0 | MV12: 0 | MW12: 0
A13: =Inputs!C13 -> GT 1997-1 M1 | C13: 1768983.725 | D13: 1586652.584 | E13: 1422105.761 | F13: 1272046.138 | G13: 1140753.266 | H13: 1013246.598 | I13: 893516.8821 | J13: 801128.5874 | K13: 719618.8544 | L13: 646470.4071 | M13: 580755.8531 | N13: 521546.6349 | O13: 468499.2773 | P13: 420760.9846 | Q13: 377859.9028 | R13: 339403.1134 | S13: 304803.0001 | T13: 273631.0611 | U13: 245691.1439 | V13: 220642.1955 | W13: 198117.2673 | X13: 177924.0676 | Y13: 159743.6494 | Z13: 143466.0462 | AA13: 128800.9926 | AB13: 115654.3473 | AC13: 103839.589 | AD13: 93193.82095 | AE13: 83662.0185 | AF13: 75098.44522 | AG13: 67360.57756 | AH13: 60463.06635 | AI13: 54272.74393 | AJ13: 48643.69536 | AK13: 43677.81215 | AL13: 39176.36493 | AM13: 35149.65581 | AN13: 31543.77165 | AO13: 28299.42396 | AP13: 25388.31985 | AQ13: 22805.56977 | AR13: 20446.38256 | AS13: 18336.36899 | AT13: 16451.09352 | AU13: 14753.01041 | AV13: 13232.1586 | AW13: 11869.01372 | AX13: 10649.52106 | AY13: 9544.075306 | AZ13: 8561.391326 | BA13: 7681.644037 | BB13: 6893.382269 | BC13: 6191.834947 | BD13: 5542.270113 | BE13: 4977.503687 | BF13: 4454.404302 | BG13: 3995.174766 | BH13: 3577.940979 | BI13: 3213.756531 | BJ13: 2877.872056 | BK13: 2572.678057 | BL13: 2302.45286 | BM13: 2067.263609 | BN13: 1882.670937 | BO13: 1748.234942 | BP13: 1568.087495 | BQ13: 1226.946692 | BR13: 1083.899043 | BS13: 972.7611898 | BT13: 873.4453884 | BU13: 784.7927018 | BV13: 704.2973644 | BW13: 631.923358 | BX13: 567.339287 | BY13: 509.8431184 | BZ13: 457.1266272 | CA13: 410.368789 | CB13: 368.8019105 | CC13: 330.9142099 | CD13: 296.9905397 | CE13: 266.1031429 | CF13: 239.2157347 | CG13: 214.991302 | CH13: 192.1484854 | CI13: 172.4519768 | CJ13: 154.9738851 | CK13: 139.3279808 | CL13: 124.4553403 | CM13: 112.1401535 | CN13: 100.1527323 | CO13: 89.99491879 | CP13: 80.61795049 | CQ13: 72.3334814 | CR13: 65.17301706 | CS13: 58.29876284 | CT13: 52.2790717 | CU13: 46.86401161 | CV13: 42.10952009 | CW13: 37.80681101 | CX13: 33.86213274 | CY13: 30.3641042 | CZ13: 27.15334834 | DA13: 24.28450287 | DB13: 21.96904491 | DC13: 19.54448488 | DD13: 17.5109199 | DE13: 15.86642066 | DF13: 14.11570227 | DG13: 12.63355557 | DH13: 11.42846362 | DI13: 10.15935646 | DJ13: 9.124554903 | DK13: 8.23923392 | DL13: 7.289670205 | DM13: 6.552318047 | DN13: 5.905195799 | DO13: 5.312886926 | DP13: 4.747207625 | DQ13: 4.310284963 | DR13: 3.834300519 | DS13: 3.460303211 | DT13: 3.092210563 | DU13: 2.842122409 | DV13: 2.675326231 | DW13: 2.674211021 | DX13: 2.732220243 | DY13: 1.61674474 | DZ13: 1.388897868 | EA13: 1.248261726 | EB13: 1.109573523 | EC13: 1.000684164 | ED13: 0.902162895 | EE13: 0.810675017 | EF13: 0.7292139217 | EG13: 0.6464083933 | EH13: 0.577213694 | EI13: 0.5117114382 | EJ13: 0.4683987836 | EK13: 0.4218864913 | EL13: 0.3758464846 | EM13: 0.3322942945 | EN13: 0.2953238773 | EO13: 0.2677889329 | EP13: 0.2412330908 | EQ13: 0.2179630345 | ER13: 0.1891862487 | ES13: 0.1706139229 | ET13: 0.1515459085 | EU13: 0.1378136161 | EV13: 0.1202000084 | EW13: 0.1089918892 | EX13: 0.1017520928 | EY13: 0.08989519097 | EZ13: 0.08040257618 | FA13: 0.06841860576 | FB13: 0.06255164079 | FC13: 0.05757647689 | FD13: 0.05138961218 | FE13: 0.04670567821 | FF13: 0.04152428308 | FG13: 0.0364518058 | FH13: 0.03309391135 | FI13: 0.02906649124 | FJ13: 0.02574445626 | FK13: 0.02374069894 | FL13: 0.021002926 | FM13: 0.02115318358 | FN13: 0.01820405253 | FO13: 0.01581343494 | FP13: 0.01458363948 | FQ13: 0.01355256178 | FR13: 0.01170251727 | FS13: 0.01003080667 | FT13: 0.009360544244 | FU13: 0.008992518532 | FV13: 0.007907269693 | FW13: 0.008332711597 | FX13: 0.006651827018 | FY13: 0.006311382453 | FZ13: 0.005711056913 | GA13: 0.005072610543 | GB13: 0.005919582889 | GC13: 0.005590908739 | GD13: 0.007080066103 | GE13: 0.01233127918 | GF13: 0.01178353344 | GG13: 0.001119085523 | GH13: 0 | GI13: 0 | GJ13: 0 | GK13: 0 | GL13: 0 | GM13: 0 | GN13: 0 | GO13: 0 | GP13: 0 | GQ13: 0 | GR13: 0 | GS13: 0 | GT13: 0 | GU13: 0 | GV13: 0 | GW13: 0 | GX13: 0 | GY13: 0 | GZ13: 0 | HA13: 0 | HB13: 0 | HC13: 0 | HD13: 0 | HE13: 0 | HF13: 0 | HG13: 0 | HH13: 0 | HI13: 0 | HJ13: 0 | HK13: 0 | HL13: 0 | HM13: 0 | HN13: 0 | HO13: 0 | HP13: 0 | HQ13: 0 | HR13: 0 | HS13: 0 | HT13: 0 | HU13: 0 | HV13: 0 | HW13: 0 | HX13: 0 | HY13: 0 | HZ13: 0 | IA13: 0 | IB13: 0 | IC13: 0 | ID13: 0 | IE13: 0 | IF13: 0 | IG13: 0 | IH13: 0 | II13: 0 | IJ13: 0 | IK13: 0 | IL13: 0 | IM13: 0 | IN13: 0 | IO13: 0 | IP13: 0 | IQ13: 0 | IR13: 0 | IS13: 0 | IT13: 0 | IU13: 0 | IV13: 0 | IW13: 0 | IX13: 0 | IY13: 0 | IZ13: 0 | JA13: 0 | JB13: 0 | JC13: 0 | JD13: 0 | JE13: 0 | JF13: 0 | JG13: 0 | JH13: 0 | JI13: 0 | JJ13: 0 | JK13: 0 | JL13: 0 | JM13: 0 | JN13: 0 | JO13: 0 | JP13: 0 | JQ13: 0 | JR13: 0 | JS13: 0 | JT13: 0 | JU13: 0 | JV13: 0 | JW13: 0 | JX13: 0 | JY13: 0 | JZ13: 0 | KA13: 0 | KB13: 0 | KC13: 0 | KD13: 0 | KE13: 0 | KF13: 0 | KG13: 0 | KH13: 0 | KI13: 0 | KJ13: 0 | KK13: 0 | KL13: 0 | KM13: 0 | KN13: 0 | KO13: 0 | KP13: 0 | KQ13: 0 | KR13: 0 | KS13: 0 | KT13: 0 | KU13: 0 | KV13: 0 | KW13: 0 | KX13: 0 | KY13: 0 | KZ13: 0 | LA13: 0 | LB13: 0 | LC13: 0 | LD13: 0 | LE13: 0 | LF13: 0 | LG13: 0 | LH13: 0 | LI13: 0 | LJ13: 0 | LK13: 0 | LL13: 0 | LM13: 0 | LN13: 0 | LO13: 0 | LP13: 0 | LQ13: 0 | LR13: 0 | LS13: 0 | LT13: 0 | LU13: 0 | LV13: 0 | LW13: 0 | LX13: 0 | LY13: 0 | LZ13: 0 | MA13: 0 | MB13: 0 | MC13: 0 | MD13: 0 | ME13: 0 | MF13: 0 | MG13: 0 | MH13: 0 | MI13: 0 | MJ13: 0 | MK13: 0 | ML13: 0 | MM13: 0 | MN13: 0 | MO13: 0 | MP13: 0 | MQ13: 0 | MR13: 0 | MS13: 0 | MT13: 0 | MU13: 0 | MV13: 0 | MW13: 0
A14: =Inputs!C14 -> GT 1997-3 M1 | C14: 3263522.492 | D14: 2930116.583 | E14: 2628834.346 | F14: 2358435.955 | G14: 2114407.397 | H14: 1894150.198 | I14: 1695836.028 | J14: 1514106.039 | K14: 1345305.903 | L14: 1190733.569 | M14: 1065519.143 | N14: 957044.8556 | O14: 859493.9871 | P14: 771938.5273 | Q14: 693169.8453 | R14: 622607.9125 | S14: 559128.8236 | T14: 502066.4307 | U14: 450876.7813 | V14: 404885.5479 | W14: 363596.364 | X14: 326490.6851 | Y14: 293115.0609 | Z14: 263248.9804 | AA14: 236382.2236 | AB14: 212217.0643 | AC14: 190488.2281 | AD14: 170974.0417 | AE14: 153428.9898 | AF14: 137754.2811 | AG14: 123669.2868 | AH14: 110940.2691 | AI14: 99543.07053 | AJ14: 89336.41276 | AK14: 80185.23022 | AL14: 71979.53205 | AM14: 64568.95201 | AN14: 57932.07226 | AO14: 52007.96649 | AP14: 46658.07809 | AQ14: 41868.75008 | AR14: 37538.55566 | AS14: 33711.52244 | AT14: 30241.47054 | AU14: 27108.99056 | AV14: 24309.78551 | AW14: 21816.52075 | AX14: 19557.94391 | AY14: 17557.37703 | AZ14: 15738.75711 | BA14: 14120.86909 | BB14: 12653.34557 | BC14: 11351.57578 | BD14: 10193.73152 | BE14: 9142.546527 | BF14: 8180.755428 | BG14: 7337.915089 | BH14: 6576.644822 | BI14: 5900.351653 | BJ14: 5283.753545 | BK14: 4735.617483 | BL14: 4249.62639 | BM14: 3811.766436 | BN14: 3418.561894 | BO14: 3053.717869 | BP14: 2762.739359 | BQ14: 2472.35708 | BR14: 2326.807737 | BS14: 2045.041595 | BT14: 1654.514262 | BU14: 1436.491259 | BV14: 1290.051653 | BW14: 1157.850203 | BX14: 1039.079465 | BY14: 932.9746631 | BZ14: 837.0085221 | CA14: 751.4361922 | CB14: 674.8708814 | CC14: 606.0204798 | CD14: 543.7962722 | CE14: 487.8191617 | CF14: 437.9464851 | CG14: 392.9433216 | CH14: 353.455885 | CI14: 316.6865876 | CJ14: 284.7232312 | CK14: 254.8559691 | CL14: 228.1748604 | CM14: 205.3657841 | CN14: 183.9867722 | CO14: 165.1010959 | CP14: 147.8379444 | CQ14: 132.7883723 | CR14: 119.4832427 | CS14: 106.9010444 | CT14: 95.77817408 | CU14: 85.65507471 | CV14: 76.71779638 | CW14: 69.15192952 | CX14: 61.77658569 | CY14: 55.37920725 | CZ14: 49.92582565 | DA14: 44.55973047 | DB14: 40.23023803 | DC14: 35.86748619 | DD14: 32.30546388 | DE14: 28.86744492 | DF14: 25.87501604 | DG14: 23.15420384 | DH14: 20.72710393 | DI14: 18.60038767 | DJ14: 16.74746894 | DK14: 15.14527083 | DL14: 13.36504961 | DM14: 12.09937542 | DN14: 10.83554801 | DO14: 9.679393991 | DP14: 8.649174762 | DQ14: 7.743681922 | DR14: 7.028481691 | DS14: 6.377933069 | DT14: 5.637246314 | DU14: 5.016488656 | DV14: 4.506227486 | DW14: 4.059586371 | DX14: 3.680201686 | DY14: 3.373181489 | DZ14: 3.498264239 | EA14: 3.328127912 | EB14: 2.22083772 | EC14: 1.868451942 | ED14: 1.661924973 | EE14: 1.502694285 | EF14: 1.336843327 | EG14: 1.20295462 | EH14: 1.073594246 | EI14: 0.9617031557 | EJ14: 0.8590981725 | EK14: 0.7759625142 | EL14: 0.6941063842 | EM14: 0.6246778566 | EN14: 0.5528865746 | EO14: 0.5002693318 | EP14: 0.449058512 | EQ14: 0.3958334694 | ER14: 0.3582369148 | ES14: 0.3244494721 | ET14: 0.2884047715 | EU14: 0.2556030963 | EV14: 0.2310661875 | EW14: 0.2076188066 | EX14: 0.1877784574 | EY14: 0.1641400121 | EZ14: 0.1460254091 | FA14: 0.128923486 | FB14: 0.1157076245 | FC14: 0.1056518916 | FD14: 0.09444195776 | FE14: 0.0856335402 | FF14: 0.07472784082 | FG14: 0.06742051465 | FH14: 0.06046738724 | FI14: 0.05450342521 | FJ14: 0.04968896586 | FK14: 0.04283066307 | FL14: 0.03998924092 | FM14: 0.03500228658 | FN14: 0.03197939076 | FO14: 0.02769170636 | FP14: 0.02495903167 | FQ14: 0.02367061593 | FR14: 0.01986562682 | FS14: 0.02012180081 | FT14: 0.01743482658 | FU14: 0.01566591751 | FV14: 0.01382876666 | FW14: 0.01252156621 | FX14: 0.01222461759 | FY14: 0.01151172116 | FZ14: 0.00936884565 | GA14: 0.009869434753 | GB14: 0.007651872779 | GC14: 0.008568602347 | GD14: 0.007865447011 | GE14: 0.007061151389 | GF14: 0.005763693566 | GG14: 0.006775663802 | GH14: 0.01892737457 | GI14: 0.01920860426 | GJ14: 0.002756325026 | GK14: 3.189406395e-05 | GL14: 3.745385436e-05 | GM14: 0.0001165993413 | GN14: 0 | GO14: 0 | GP14: 0 | GQ14: 0 | GR14: 0 | GS14: 0 | GT14: 0 | GU14: 0 | GV14: 0 | GW14: 0 | GX14: 0 | GY14: 0 | GZ14: 0 | HA14: 0 | HB14: 0 | HC14: 0 | HD14: 0 | HE14: 0 | HF14: 0 | HG14: 0 | HH14: 0 | HI14: 0 | HJ14: 0 | HK14: 0 | HL14: 0 | HM14: 0 | HN14: 0 | HO14: 0 | HP14: 0 | HQ14: 0 | HR14: 0 | HS14: 0 | HT14: 0 | HU14: 0 | HV14: 0 | HW14: 0 | HX14: 0 | HY14: 0 | HZ14: 0 | IA14: 0 | IB14: 0 | IC14: 0 | ID14: 0 | IE14: 0 | IF14: 0 | IG14: 0 | IH14: 0 | II14: 0 | IJ14: 0 | IK14: 0 | IL14: 0 | IM14: 0 | IN14: 0 | IO14: 0 | IP14: 0 | IQ14: 0 | IR14: 0 | IS14: 0 | IT14: 0 | IU14: 0 | IV14: 0 | IW14: 0 | IX14: 0 | IY14: 0 | IZ14: 0 | JA14: 0 | JB14: 0 | JC14: 0 | JD14: 0 | JE14: 0 | JF14: 0 | JG14: 0 | JH14: 0 | JI14: 0 | JJ14: 0 | JK14: 0 | JL14: 0 | JM14: 0 | JN14: 0 | JO14: 0 | JP14: 0 | JQ14: 0 | JR14: 0 | JS14: 0 | JT14: 0 | JU14: 0 | JV14: 0 | JW14: 0 | JX14: 0 | JY14: 0 | JZ14: 0 | KA14: 0 | KB14: 0 | KC14: 0 | KD14: 0 | KE14: 0 | KF14: 0 | KG14: 0 | KH14: 0 | KI14: 0 | KJ14: 0 | KK14: 0 | KL14: 0 | KM14: 0 | KN14: 0 | KO14: 0 | KP14: 0 | KQ14: 0 | KR14: 0 | KS14: 0 | KT14: 0 | KU14: 0 | KV14: 0 | KW14: 0 | KX14: 0 | KY14: 0 | KZ14: 0 | LA14: 0 | LB14: 0 | LC14: 0 | LD14: 0 | LE14: 0 | LF14: 0 | LG14: 0 | LH14: 0 | LI14: 0 | LJ14: 0 | LK14: 0 | LL14: 0 | LM14: 0 | LN14: 0 | LO14: 0 | LP14: 0 | LQ14: 0 | LR14: 0 | LS14: 0 | LT14: 0 | LU14: 0 | LV14: 0 | LW14: 0 | LX14: 0 | LY14: 0 | LZ14: 0 | MA14: 0 | MB14: 0 | MC14: 0 | MD14: 0 | ME14: 0 | MF14: 0 | MG14: 0 | MH14: 0 | MI14: 0 | MJ14: 0 | MK14: 0 | ML14: 0 | MM14: 0 | MN14: 0 | MO14: 0 | MP14: 0 | MQ14: 0 | MR14: 0 | MS14: 0 | MT14: 0 | MU14: 0 | MV14: 0 | MW14: 0
A15: =Inputs!C15 -> GT 1997-5 M1 | C15: 2216085.22 | D15: 1988946.516 | E15: 1784471.767 | F15: 1600666.126 | G15: 1435520.136 | H15: 1289398.959 | I15: 1153825.962 | J15: 1033237.547 | K15: 924441.9496 | L15: 827499.7765 | M15: 741293.2046 | N15: 652116.9393 | O15: 582175.0918 | P15: 522656.1772 | Q15: 469334.9869 | R15: 421515.9289 | S15: 378493.47 | T15: 339809.1812 | U15: 305148.401 | V15: 273980.7178 | W15: 245906.7762 | X15: 220787.2426 | Y15: 198157.1485 | Z15: 177898.2291 | AA15: 159690.9409 | AB15: 143274.9156 | AC15: 128658.208 | AD15: 115492.1044 | AE15: 103652.6559 | AF15: 93004.80386 | AG15: 83398.53894 | AH15: 74831.93733 | AI15: 67173.45777 | AJ15: 60267.94226 | AK15: 54074.88757 | AL15: 48549.46341 | AM15: 43577.36491 | AN15: 39097.37957 | AO15: 35063.97551 | AP15: 31455.26198 | AQ15: 28163.0104 | AR15: 25237.41766 | AS15: 22671.97002 | AT15: 20299.72813 | AU15: 18227.91986 | AV15: 16359.4796 | AW15: 14657.31897 | AX15: 13127.28056 | AY15: 11763.11083 | AZ15: 10558.87007 | BA15: 9484.164757 | BB15: 8486.547347 | BC15: 7604.095812 | BD15: 6824.087576 | BE15: 6123.020337 | BF15: 5481.970679 | BG15: 4918.197511 | BH15: 4398.765309 | BI15: 3944.550232 | BJ15: 3527.394021 | BK15: 3164.520994 | BL15: 2838.080158 | BM15: 2539.463036 | BN15: 2280.23739 | BO15: 2037.872832 | BP15: 1814.224259 | BQ15: 1629.954591 | BR15: 1462.699372 | BS15: 1321.765183 | BT15: 1190.818239 | BU15: 1129.09791 | BV15: 916.4324645 | BW15: 779.5381826 | BX15: 698.5508206 | BY15: 626.9432747 | BZ15: 563.0309445 | CA15: 504.4610783 | CB15: 452.458404 | CC15: 406.385729 | CD15: 364.2454054 | CE15: 327.1507573 | CF15: 294.3595416 | CG15: 263.5621812 | CH15: 236.3702743 | CI15: 212.4972927 | CJ15: 190.7955408 | CK15: 170.9626349 | CL15: 153.5789413 | CM15: 137.4318815 | CN15: 123.4156459 | CO15: 110.6981626 | CP15: 99.74378516 | CQ15: 89.11291601 | CR15: 79.88233726 | CS15: 71.58008413 | CT15: 64.21277675 | CU15: 57.68023617 | CV15: 51.72925585 | CW15: 46.39587818 | CX15: 41.65279014 | CY15: 37.2985944 | CZ15: 33.46417584 | DA15: 30.07280365 | DB15: 26.9601833 | DC15: 24.02215368 | DD15: 21.74436784 | DE15: 19.36958197 | DF15: 17.42814613 | DG15: 15.72343081 | DH15: 13.919242 | DI15: 12.52502901 | DJ15: 11.22382923 | DK15: 10.10267718 | DL15: 9.052046707 | DM15: 8.021406592 | DN15: 7.32561764 | DO15: 6.600906072 | DP15: 5.817206086 | DQ15: 5.313189328 | DR15: 4.645899645 | DS15: 4.207122739 | DT15: 3.813288233 | DU15: 3.320662503 | DV15: 3.00870036 | DW15: 2.748494612 | DX15: 2.44273645 | DY15: 2.209954309 | DZ15: 2.006206415 | EA15: 1.770146454 | EB15: 1.654874111 | EC15: 1.901640426 | ED15: 1.254062038 | EE15: 1.01943557 | EF15: 0.9201315525 | EG15: 0.812427636 | EH15: 0.7325825317 | EI15: 0.6480409995 | EJ15: 0.5863114601 | EK15: 0.5271667288 | EL15: 0.4693527484 | EM15: 0.4226679864 | EN15: 0.3751530155 | EO15: 0.3378255516 | EP15: 0.2994164018 | EQ15: 0.2750808882 | ER15: 0.2395635448 | ES15: 0.2150026596 | ET15: 0.1958936058 | EU15: 0.1728061476 | EV15: 0.1569034747 | EW15: 0.1432617987 | EX15: 0.122617961 | EY15: 0.1112630115 | EZ15: 0.101069986 | FA15: 0.08900674866 | FB15: 0.07879736326 | FC15: 0.07148773975 | FD15: 0.06315425643 | FE15: 0.05820168484 | FF15: 0.05293696445 | FG15: 0.04943767471 | FH15: 0.041137279 | FI15: 0.03739682222 | FJ15: 0.03294031436 | FK15: 0.02920521755 | FL15: 0.02704785142 | FM15: 0.02408129551 | FN15: 0.02267217857 | FO15: 0.01970591388 | FP15: 0.01707692981 | FQ15: 0.01474640337 | FR15: 0.01336263961 | FS15: 0.01335119163 | FT15: 0.01158242804 | FU15: 0.009573002559 | FV15: 0.01027170474 | FW15: 0.007891911112 | FX15: 0.007838823495 | FY15: 0.007608223802 | FZ15: 0.006559201324 | GA15: 0.005929264177 | GB15: 0.006006225228 | GC15: 0.005339132834 | GD15: 0.004918796549 | GE15: 0.00395594209 | GF15: 0.003798798884 | GG15: 0.003092343715 | GH15: 0.00346512219 | GI15: 0.003576338515 | GJ15: 0.004236095591 | GK15: 0.01266851736 | GL15: 0.003430277484 | GM15: 0.0004284831306 | GN15: 0.0002107717736 | GO15: 0.0001522851503 | GP15: 3.657058647e-06 | GQ15: 1.172217053e-05 | GR15: 2.43728601e-06 | GS15: 2.18144216e-06 | GT15: 5.53827466e-05 | GU15: 0 | GV15: 0 | GW15: 0 | GX15: 0 | GY15: 0 | GZ15: 0 | HA15: 0 | HB15: 0 | HC15: 0 | HD15: 0 | HE15: 0 | HF15: 0 | HG15: 0 | HH15: 0 | HI15: 0 | HJ15: 0 | HK15: 0 | HL15: 0 | HM15: 0 | HN15: 0 | HO15: 0 | HP15: 0 | HQ15: 0 | HR15: 0 | HS15: 0 | HT15: 0 | HU15: 0 | HV15: 0 | HW15: 0 | HX15: 0 | HY15: 0 | HZ15: 0 | IA15: 0 | IB15: 0 | IC15: 0 | ID15: 0 | IE15: 0 | IF15: 0 | IG15: 0 | IH15: 0 | II15: 0 | IJ15: 0 | IK15: 0 | IL15: 0 | IM15: 0 | IN15: 0 | IO15: 0 | IP15: 0 | IQ15: 0 | IR15: 0 | IS15: 0 | IT15: 0 | IU15: 0 | IV15: 0 | IW15: 0 | IX15: 0 | IY15: 0 | IZ15: 0 | JA15: 0 | JB15: 0 | JC15: 0 | JD15: 0 | JE15: 0 | JF15: 0 | JG15: 0 | JH15: 0 | JI15: 0 | JJ15: 0 | JK15: 0 | JL15: 0 | JM15: 0 | JN15: 0 | JO15: 0 | JP15: 0 | JQ15: 0 | JR15: 0 | JS15: 0 | JT15: 0 | JU15: 0 | JV15: 0 | JW15: 0 | JX15: 0 | JY15: 0 | JZ15: 0 | KA15: 0 | KB15: 0 | KC15: 0 | KD15: 0 | KE15: 0 | KF15: 0 | KG15: 0 | KH15: 0 | KI15: 0 | KJ15: 0 | KK15: 0 | KL15: 0 | KM15: 0 | KN15: 0 | KO15: 0 | KP15: 0 | KQ15: 0 | KR15: 0 | KS15: 0 | KT15: 0 | KU15: 0 | KV15: 0 | KW15: 0 | KX15: 0 | KY15: 0 | KZ15: 0 | LA15: 0 | LB15: 0 | LC15: 0 | LD15: 0 | LE15: 0 | LF15: 0 | LG15: 0 | LH15: 0 | LI15: 0 | LJ15: 0 | LK15: 0 | LL15: 0 | LM15: 0 | LN15: 0 | LO15: 0 | LP15: 0 | LQ15: 0 | LR15: 0 | LS15: 0 | LT15: 0 | LU15: 0 | LV15: 0 | LW15: 0 | LX15: 0 | LY15: 0 | LZ15: 0 | MA15: 0 | MB15: 0 | MC15: 0 | MD15: 0 | ME15: 0 | MF15: 0 | MG15: 0 | MH15: 0 | MI15: 0 | MJ15: 0 | MK15: 0 | ML15: 0 | MM15: 0 | MN15: 0 | MO15: 0 | MP15: 0 | MQ15: 0 | MR15: 0 | MS15: 0 | MT15: 0 | MU15: 0 | MV15: 0 | MW15: 0
A16: GT 1999-3 A7 | C16: 4251617.787 | D16: 3832341.262 | E16: 3454217.066 | F16: 3113097.228 | G16: 2805613.019 | H16: 2528286.303 | I16: 2278616.512 | J16: 2053647.961 | K16: 1850331.406 | L16: 1667472.763 | M16: 1502824.856 | N16: 1354478.641 | O16: 1220620.279 | P16: 1100023.443 | Q16: 991249.7205 | R16: 892899.1936 | S16: 804534.5783 | T16: 724782.3144 | U16: 652920.4521 | V16: 588236.1952 | W16: 529868.6107 | X16: 477372.8322 | Y16: 430069.2422 | Z16: 387468.2197 | AA16: 349020.7378 | AB16: 314351.9236 | AC16: 283045.2135 | AD16: 254914.6481 | AE16: 229289.9286 | AF16: 206395.2533 | AG16: 185526.601 | AH16: 167650.1952 | AI16: 148575.6722 | AJ16: 132958.931 | AK16: 119759.4178 | AL16: 107906.7133 | AM16: 97221.09063 | AN16: 87604.08757 | AO16: 78952.39168 | AP16: 71073.41919 | AQ16: 64035.59433 | AR16: 57694.20542 | AS16: 51972.67162 | AT16: 46833.99042 | AU16: 42164.35935 | AV16: 37990.02764 | AW16: 34245.31819 | AX16: 30824.35574 | AY16: 27778.76254 | AZ16: 25014.81137 | BA16: 22537.07949 | BB16: 20310.20082 | BC16: 18288.22436 | BD16: 16461.05741 | BE16: 14830.89465 | BF16: 13367.37465 | BG16: 12024.72464 | BH16: 10838.16791 | BI16: 9762.40887 | BJ16: 8793.021775 | BK16: 7911.977292 | BL16: 7128.834012 | BM16: 6421.611716 | BN16: 5781.4436 | BO16: 5205.670881 | BP16: 4690.044685 | BQ16: 4223.262295 | BR16: 3810.200981 | BS16: 3425.414526 | BT16: 3084.78858 | BU16: 2772.500319 | BV16: 2498.791522 | BW16: 2247.102815 | BX16: 2026.988263 | BY16: 1825.253338 | BZ16: 1640.735264 | CA16: 1478.569134 | CB16: 1330.876718 | CC16: 1197.454573 | CD16: 1080.374003 | CE16: 969.9606776 | CF16: 875.1663876 | CG16: 786.7835913 | CH16: 706.6076773 | CI16: 636.9856699 | CJ16: 572.796168 | CK16: 517.7850456 | CL16: 468.8746864 | CM16: 418.3664229 | CN16: 379.5694803 | CO16: 346.3950408 | CP16: 332.6262334 | CQ16: 279.3683824 | CR16: 232.6124402 | CS16: 209.423824 | CT16: 188.7178762 | CU16: 169.7867465 | CV16: 152.9105559 | CW16: 137.9732149 | CX16: 124.0289662 | CY16: 111.6882161 | CZ16: 100.285954 | DA16: 90.44713534 | DB16: 81.60787949 | DC16: 73.24170259 | DD16: 66.02099551 | DE16: 59.47963561 | DF16: 53.39155524 | DG16: 48.18817347 | DH16: 43.46976358 | DI16: 38.97635124 | DJ16: 35.0281421 | DK16: 31.58014107 | DL16: 28.44247016 | DM16: 25.63450809 | DN16: 23.04273948 | DO16: 20.72205722 | DP16: 18.68906886 | DQ16: 16.74286448 | DR16: 15.07369089 | DS16: 13.58385406 | DT16: 12.23022159 | DU16: 10.98725399 | DV16: 9.924348802 | DW16: 8.915260586 | DX16: 8.056462926 | DY16: 7.25523365 | DZ16: 6.566685902 | EA16: 5.822786954 | EB16: 5.218030061 | EC16: 4.711000479 | ED16: 4.285456083 | EE16: 3.816352114 | EF16: 3.446070407 | EG16: 3.078034871 | EH16: 2.775835256 | EI16: 2.493863875 | EJ16: 2.263088553 | EK16: 2.038948134 | EL16: 1.826508646 | EM16: 1.647104897 | EN16: 1.494613984 | EO16: 1.33539725 | EP16: 1.211279275 | EQ16: 1.083313337 | ER16: 0.9862436184 | ES16: 0.8784288824 | ET16: 0.7902435185 | EU16: 0.7305845827 | EV16: 0.6416460053 | EW16: 0.6071000245 | EX16: 0.626654091 | EY16: 0.5014301754 | EZ16: 0.39181321 | FA16: 0.3481635181 | FB16: 0.3104282151 | FC16: 0.2778513575 | FD16: 0.2553219617 | FE16: 0.2271633802 | FF16: 0.2044624849 | FG16: 0.1841759749 | FH16: 0.1627119968 | FI16: 0.1458032982 | FJ16: 0.1330848429 | FK16: 0.1193482529 | FL16: 0.1064863629 | FM16: 0.09552821789 | FN16: 0.0860182655 | FO16: 0.07774764531 | FP16: 0.07006193522 | FQ16: 0.06327412919 | FR16: 0.0560139571 | FS16: 0.05161686636 | FT16: 0.04645330095 | FU16: 0.04085537843 | FV16: 0.0374201783 | FW16: 0.03303198207 | FX16: 0.03039571374 | FY16: 0.02650226409 | FZ16: 0.02405246346 | GA16: 0.02137945546 | GB16: 0.0202790582 | GC16: 0.01800138915 | GD16: 0.01639139223 | GE16: 0.0137428886 | GF16: 0.01290369917 | GG16: 0.01150720973 | GH16: 0.01050336006 | GI16: 0.009007362298 | GJ16: 0.008155459506 | GK16: 0.007935800283 | GL16: 0.007097672509 | GM16: 0.006283282736 | GN16: 0.005351509152 | GO16: 0.00508515423 | GP16: 0.004486386743 | GQ16: 0.003892386141 | GR16: 0.003649089485 | GS16: 0.003722091776 | GT16: 0.00344568012 | GU16: 0.002859071292 | GV16: 0.002713182266 | GW16: 0.002541000299 | GX16: 0.002307403509 | GY16: 0.002321136621 | GZ16: 0.002211156206 | HA16: 0.00193682901 | HB16: 0.001796967892 | HC16: 0.001944352341 | HD16: 0.001951374479 | HE16: 0.002567678686 | HF16: 0.004488605991 | HG16: 0.002584636686 | HH16: 0.0001198073838 | HI16: 5.158804872e-05 | HJ16: 6.93891465e-05 | HK16: 3.856974275e-05 | HL16: 5.303411098e-07 | HM16: 9.403557991e-07 | HN16: 2.894716242e-06 | HO16: 0 | HP16: 0 | HQ16: 0 | HR16: 0 | HS16: 0 | HT16: 0 | HU16: 0 | HV16: 0 | HW16: 0 | HX16: 0 | HY16: 0 | HZ16: 0 | IA16: 0 | IB16: 0 | IC16: 0 | ID16: 0 | IE16: 0 | IF16: 0 | IG16: 0 | IH16: 0 | II16: 0 | IJ16: 0 | IK16: 0 | IL16: 0 | IM16: 0 | IN16: 0 | IO16: 0 | IP16: 0 | IQ16: 0 | IR16: 0 | IS16: 0 | IT16: 0 | IU16: 0 | IV16: 0 | IW16: 0 | IX16: 0 | IY16: 0 | IZ16: 0 | JA16: 0 | JB16: 0 | JC16: 0 | JD16: 0 | JE16: 0 | JF16: 0 | JG16: 0 | JH16: 0 | JI16: 0 | JJ16: 0 | JK16: 0 | JL16: 0 | JM16: 0 | JN16: 0 | JO16: 0 | JP16: 0 | JQ16: 0 | JR16: 0 | JS16: 0 | JT16: 0 | JU16: 0 | JV16: 0 | JW16: 0 | JX16: 0 | JY16: 0 | JZ16: 0 | KA16: 0 | KB16: 0 | KC16: 0 | KD16: 0 | KE16: 0 | KF16: 0 | KG16: 0 | KH16: 0 | KI16: 0 | KJ16: 0 | KK16: 0 | KL16: 0 | KM16: 0 | KN16: 0 | KO16: 0 | KP16: 0 | KQ16: 0 | KR16: 0 | KS16: 0 | KT16: 0 | KU16: 0 | KV16: 0 | KW16: 0 | KX16: 0 | KY16: 0 | KZ16: 0 | LA16: 0 | LB16: 0 | LC16: 0 | LD16: 0 | LE16: 0 | LF16: 0 | LG16: 0 | LH16: 0 | LI16: 0 | LJ16: 0 | LK16: 0 | LL16: 0 | LM16: 0 | LN16: 0 | LO16: 0 | LP16: 0 | LQ16: 0 | LR16: 0 | LS16: 0 | LT16: 0 | LU16: 0 | LV16: 0 | LW16: 0 | LX16: 0 | LY16: 0 | LZ16: 0 | MA16: 0 | MB16: 0 | MC16: 0 | MD16: 0 | ME16: 0 | MF16: 0 | MG16: 0 | MH16: 0 | MI16: 0 | MJ16: 0 | MK16: 0 | ML16: 0 | MM16: 0 | MN16: 0 | MO16: 0 | MP16: 0 | MQ16: 0 | MR16: 0 | MS16: 0 | MT16: 0 | MU16: 0 | MV16: 0 | MW16: 0
A17: GT 1997-6 M1 | C17: 3996449.313 | D17: 3599582.759 | E17: 3241370.197 | F17: 2919007.925 | G17: 2628317.699 | H17: 2365490.183 | I17: 2127771.509 | J17: 1914194.76 | K17: 1721067.465 | L17: 1546188.175 | M17: 1387410.931 | N17: 1247923.219 | O17: 1107134.697 | P17: 983531.4406 | Q17: 884782.224 | R17: 796957.5416 | S17: 717938.1621 | T17: 646815.7609 | U17: 582771.5491 | V17: 524785.5683 | W17: 472731.6001 | X17: 425736.8692 | Y17: 383366.651 | Z17: 345270.6375 | AA17: 310954.0122 | AB17: 279959.637 | AC17: 252120.2544 | AD17: 227017.5428 | AE17: 204478.1199 | AF17: 184106.3854 | AG17: 165735.478 | AH17: 149261.1963 | AI17: 134422.9022 | AJ17: 120918.5002 | AK17: 108895.3211 | AL17: 97987.02757 | AM17: 88195.32541 | AN17: 79413.23277 | AO17: 71486.08947 | AP17: 64379.87526 | AQ17: 57912.25296 | AR17: 52139.90138 | AS17: 46946.49577 | AT17: 42226.13023 | AU17: 38022.52709 | AV17: 34194.42845 | AW17: 30774.19425 | AX17: 27680.94206 | AY17: 24882.34263 | AZ17: 22374.52011 | BA17: 20145.90995 | BB17: 18120.32331 | BC17: 16317.87911 | BD17: 14679.82779 | BE17: 13198.48674 | BF17: 11864.58726 | BG17: 10674.52687 | BH17: 9583.051914 | BI17: 8630.229449 | BJ17: 7756.565315 | BK17: 6971.788954 | BL17: 6269.349298 | BM17: 5627.807065 | BN17: 5066.489466 | BO17: 4559.166483 | BP17: 4104.443059 | BQ17: 3696.090055 | BR17: 3307.583869 | BS17: 2984.309601 | BT17: 2674.43812 | BU17: 2424.019657 | BV17: 2305.725324 | BW17: 2017.936529 | BX17: 1618.805023 | BY17: 1442.276075 | BZ17: 1297.664012 | CA17: 1167.802761 | CB17: 1051.846246 | CC17: 946.9765943 | CD17: 852.3965848 | CE17: 768.8075445 | CF17: 691.1302036 | CG17: 622.1243104 | CH17: 560.1609553 | CI17: 503.8639612 | CJ17: 453.6341447 | CK17: 408.0159726 | CL17: 368.191956 | CM17: 330.876707 | CN17: 297.2911402 | CO17: 267.9603258 | CP17: 241.200396 | CQ17: 217.1974222 | CR17: 195.0101233 | CS17: 175.4728786 | CT17: 157.628041 | CU17: 142.2845793 | CV17: 128.0698526 | CW17: 114.9876987 | CX17: 103.7431245 | CY17: 92.7190937 | CZ17: 83.45370577 | DA17: 75.34498414 | DB17: 67.42951365 | DC17: 60.7814228 | DD17: 54.62542724 | DE17: 49.25234194 | DF17: 44.45948655 | DG17: 39.92610572 | DH17: 35.76283344 | DI17: 32.18817877 | DJ17: 29.01827179 | DK17: 26.08822079 | DL17: 23.42842154 | DM17: 21.05579043 | DN17: 18.96138098 | DO17: 17.05064354 | DP17: 15.31432742 | DQ17: 13.89000573 | DR17: 12.41578588 | DS17: 11.28392184 | DT17: 9.98776745 | DU17: 8.987231066 | DV17: 8.097258389 | DW17: 7.383308706 | DX17: 6.552741926 | DY17: 5.973519174 | DZ17: 5.309474349 | EA17: 4.877967346 | EB17: 4.368826921 | EC17: 4.023480396 | ED17: 4.199102893 | EE17: 3.605819659 | EF17: 2.674411698 | EG17: 2.304288415 | EH17: 2.067858887 | EI17: 1.855120223 | EJ17: 1.650089139 | EK17: 1.487563108 | EL17: 1.342281514 | EM17: 1.216996746 | EN17: 1.079017211 | EO17: 0.9704984288 | EP17: 0.8681214611 | EQ17: 0.793872245 | ER17: 0.7110118975 | ES17: 0.6342609877 | ET17: 0.5656521499 | EU17: 0.5102008079 | EV17: 0.4671234722 | EW17: 0.4172015211 | EX17: 0.368198965 | EY17: 0.3326331945 | EZ17: 0.3061755735 | FA17: 0.2769675874 | FB17: 0.2385615014 | FC17: 0.2191539604 | FD17: 0.1920682195 | FE17: 0.1773155418 | FF17: 0.1545573729 | FG17: 0.1418728912 | FH17: 0.1264313639 | FI17: 0.1145516379 | FJ17: 0.09995869392 | FK17: 0.09490899006 | FL17: 0.08256829344 | FM17: 0.07491459272 | FN17: 0.0661996331 | FO17: 0.05975228146 | FP17: 0.05397371549 | FQ17: 0.04989476158 | FR17: 0.04302478565 | FS17: 0.0389734743 | FT17: 0.03645470444 | FU17: 0.03382288563 | FV17: 0.02842956278 | FW17: 0.02567863942 | FX17: 0.02486129461 | FY17: 0.02402475418 | FZ17: 0.01997635362 | GA17: 0.01792894789 | GB17: 0.01630502406 | GC17: 0.01538521596 | GD17: 0.01450047983 | GE17: 0.01333101682 | GF17: 0.01450133253 | GG17: 0.01094353039 | GH17: 0.01150600563 | GI17: 0.01025993 | GJ17: 0.01072279337 | GK17: 0.01212140664 | GL17: 0.02457699095 | GM17: 0.02366453273 | GN17: 0.004158752069 | GO17: 0.0006787416326 | GP17: 0.0005855643609 | GQ17: 0.0001904451359 | GR17: 3.360360617e-05 | GS17: 8.799321554e-06 | GT17: 7.900833415e-06 | GU17: 7.093588407e-06 | GV17: 0.0001954136278 | GW17: 0 | GX17: 0 | GY17: 0 | GZ17: 0 | HA17: 0 | HB17: 0 | HC17: 0 | HD17: 0 | HE17: 0 | HF17: 0 | HG17: 0 | HH17: 0 | HI17: 0 | HJ17: 0 | HK17: 0 | HL17: 0 | HM17: 0 | HN17: 0 | HO17: 0 | HP17: 0 | HQ17: 0 | HR17: 0 | HS17: 0 | HT17: 0 | HU17: 0 | HV17: 0 | HW17: 0 | HX17: 0 | HY17: 0 | HZ17: 0 | IA17: 0 | IB17: 0 | IC17: 0 | ID17: 0 | IE17: 0 | IF17: 0 | IG17: 0 | IH17: 0 | II17: 0 | IJ17: 0 | IK17: 0 | IL17: 0 | IM17: 0 | IN17: 0 | IO17: 0 | IP17: 0 | IQ17: 0 | IR17: 0 | IS17: 0 | IT17: 0 | IU17: 0 | IV17: 0 | IW17: 0 | IX17: 0 | IY17: 0 | IZ17: 0 | JA17: 0 | JB17: 0 | JC17: 0 | JD17: 0 | JE17: 0 | JF17: 0 | JG17: 0 | JH17: 0 | JI17: 0 | JJ17: 0 | JK17: 0 | JL17: 0 | JM17: 0 | JN17: 0 | JO17: 0 | JP17: 0 | JQ17: 0 | JR17: 0 | JS17: 0 | JT17: 0 | JU17: 0 | JV17: 0 | JW17: 0 | JX17: 0 | JY17: 0 | JZ17: 0 | KA17: 0 | KB17: 0 | KC17: 0 | KD17: 0 | KE17: 0 | KF17: 0 | KG17: 0 | KH17: 0 | KI17: 0 | KJ17: 0 | KK17: 0 | KL17: 0 | KM17: 0 | KN17: 0 | KO17: 0 | KP17: 0 | KQ17: 0 | KR17: 0 | KS17: 0 | KT17: 0 | KU17: 0 | KV17: 0 | KW17: 0 | KX17: 0 | KY17: 0 | KZ17: 0 | LA17: 0 | LB17: 0 | LC17: 0 | LD17: 0 | LE17: 0 | LF17: 0 | LG17: 0 | LH17: 0 | LI17: 0 | LJ17: 0 | LK17: 0 | LL17: 0 | LM17: 0 | LN17: 0 | LO17: 0 | LP17: 0 | LQ17: 0 | LR17: 0 | LS17: 0 | LT17: 0 | LU17: 0 | LV17: 0 | LW17: 0 | LX17: 0 | LY17: 0 | LZ17: 0 | MA17: 0 | MB17: 0 | MC17: 0 | MD17: 0 | ME17: 0 | MF17: 0 | MG17: 0 | MH17: 0 | MI17: 0 | MJ17: 0 | MK17: 0 | ML17: 0 | MM17: 0 | MN17: 0 | MO17: 0 | MP17: 0 | MQ17: 0 | MR17: 0 | MS17: 0 | MT17: 0 | MU17: 0 | MV17: 0 | MW17: 0
A18: GT 1999-4 M1 | C18: 1166001.706 | D18: 1168437.786 | E18: 1170798.315 | F18: 1172639.824 | G18: 1174475.971 | H18: 1175913.156 | I18: 1178201.22 | J18: 1179237.309 | K18: 1181340.326 | L18: 1182678.269 | M18: 1184176.175 | N18: 1185629.473 | O18: 1187858.17 | P18: 1189228.814 | Q18: 1190734.631 | R18: 1191867.932 | S18: 1194115.033 | T18: 1195488.229 | U18: 1196916.465 | V18: 1197677.446 | W18: 1199380.364 | X18: 1199652.668 | Y18: 1199728.935 | Z18: 1199677.942 | AA18: 1200215.956 | AB18: 1200215.802 | AC18: 1199966.137 | AD18: 1199830.934 | AE18: 1199607.673 | AF18: 1197240.014 | AG18: 1193144.596 | AH18: 1185287.483 | AI18: 1179879.818 | AJ18: 1136968.277 | AK18: 1094081.099 | AL18: 1075604.972 | AM18: 1077535.757 | AN18: 1079671.385 | AO18: 1081215.513 | AP18: 1082258.17 | AQ18: 1083497.618 | AR18: 1085450.301 | AS18: 1086861.179 | AT18: 1087881.511 | AU18: 1089165.33 | AV18: 1090867.483 | AW18: 1092453.731 | AX18: 1094177.721 | AY18: 1096840.338 | AZ18: 1099043.733 | BA18: 1101606.609 | BB18: 1103041.633 | BC18: 1103636.608 | BD18: 1105384.296 | BE18: 1106895.656 | BF18: 1108122.551 | BG18: 1109159.817 | BH18: 1110397.075 | BI18: 1111657.292 | BJ18: 1113021.451 | BK18: 1114077.402 | BL18: 1115789.585 | BM18: 1117071.259 | BN18: 1118285.723 | BO18: 1120262.742 | BP18: 1122518.759 | BQ18: 1123805.871 | BR18: 1125736.902 | BS18: 1128070.023 | BT18: 1128315.913 | BU18: 1129024.132 | BV18: 1131122.589 | BW18: 1132811.809 | BX18: 1133716.82 | BY18: 1134596.262 | BZ18: 1134557.214 | CA18: 1135448.648 | CB18: 1136831.085 | CC18: 1138876.039 | CD18: 1139353 | CE18: 1139344.193 | CF18: 1140598.361 | CG18: 1142614.446 | CH18: 1142118.677 | CI18: 1140329.451 | CJ18: 1139750.441 | CK18: 1137847.513 | CL18: 1133342.305 | CM18: 1127860.289 | CN18: 1121052.475 | CO18: 1111456.747 | CP18: 1100809.249 | CQ18: 1083454.699 | CR18: 1038575.636 | CS18: 983027.1514 | CT18: 954842.7361 | CU18: 956437.9583 | CV18: 958143.7646 | CW18: 959496.425 | CX18: 961652.8015 | CY18: 963943.065 | CZ18: 965752.9941 | DA18: 967762.7811 | DB18: 969128.373 | DC18: 971468.7953 | DD18: 973673.1332 | DE18: 975827.53 | DF18: 978135.7286 | DG18: 980666.5609 | DH18: 982198.2717 | DI18: 984474.4906 | DJ18: 985750.706 | DK18: 987114.29 | DL18: 989099.5136 | DM18: 990871.2839 | DN18: 993773.1554 | DO18: 996745.637 | DP18: 998746.4432 | DQ18: 1001131.004 | DR18: 1003714.729 | DS18: 1005703.89 | DT18: 1008324.109 | DU18: 1011283.054 | DV18: 1014583.215 | DW18: 1016486.183 | DX18: 1019483.245 | DY18: 1021419.787 | DZ18: 1023190.492 | EA18: 1024988.453 | EB18: 1026687.829 | EC18: 1029601.548 | ED18: 1030151.767 | EE18: 1031903.073 | EF18: 1033354.176 | EG18: 1035600.989 | EH18: 1036676.068 | EI18: 1037253.127 | EJ18: 1037582.204 | EK18: 1039269.67 | EL18: 1039425.331 | EM18: 1040552.931 | EN18: 1041901.435 | EO18: 1041554.88 | EP18: 1041648.5 | EQ18: 1042533.03 | ER18: 1042462.257 | ES18: 1040997.937 | ET18: 1038741.525 | EU18: 1037019.989 | EV18: 1032318.874 | EW18: 1030155.787 | EX18: 1023556.77 | EY18: 1019895.918 | EZ18: 998107.2041 | FA18: 966956.6232 | FB18: 947280.7516 | FC18: 948543.1289 | FD18: 950555.5993 | FE18: 952428.384 | FF18: 953819.745 | FG18: 955371.803 | FH18: 957032.474 | FI18: 958261.5357 | FJ18: 959814.0614 | FK18: 961983.7911 | FL18: 962668.9124 | FM18: 964825.3082 | FN18: 966876.1906 | FO18: 967617.0249 | FP18: 968064.8739 | FQ18: 968649.7176 | FR18: 969465.0546 | FS18: 970285.9193 | FT18: 972382.6762 | FU18: 973911.1559 | FV18: 973731.7695 | FW18: 973678.607 | FX18: 975238.2915 | FY18: 973930.749 | FZ18: 974660.5281 | GA18: 975114.6388 | GB18: 975163.415 | GC18: 975101.4784 | GD18: 973606.8181 | GE18: 972495.9178 | GF18: 972781.9041 | GG18: 971722.9544 | GH18: 971165.9086 | GI18: 969695.0267 | GJ18: 966798.4655 | GK18: 965083.7983 | GL18: 962924.124 | GM18: 959290.8879 | GN18: 957627.1071 | GO18: 952376.0761 | GP18: 947106.4253 | GQ18: 941666.3564 | GR18: 934498.8123 | GS18: 928384.155 | GT18: 922466.8588 | GU18: 910979.5103 | GV18: 898851.7251 | GW18: 887917.8757 | GX18: 864604.5789 | GY18: 844996.275 | GZ18: 820007.1298 | HA18: 792705.8599 | HB18: 763705.9384 | HC18: 727958.8417 | HD18: 690070.091 | HE18: 647062.8445 | HF18: 622550.8134 | HG18: 593509.7264 | HH18: 464329.6233 | HI18: 171037.2966 | HJ18: 19312.05618 | HK18: 8351.540681 | HL18: 6361.554118 | HM18: 1480.188682 | HN18: 0 | HO18: 0 | HP18: 0 | HQ18: 0 | HR18: 0 | HS18: 0 | HT18: 0 | HU18: 0 | HV18: 0 | HW18: 0 | HX18: 0 | HY18: 0 | HZ18: 0 | IA18: 0 | IB18: 0 | IC18: 0 | ID18: 0 | IE18: 0 | IF18: 0 | IG18: 0 | IH18: 0 | II18: 0 | IJ18: 0 | IK18: 0 | IL18: 0 | IM18: 0 | IN18: 0 | IO18: 0 | IP18: 0 | IQ18: 0 | IR18: 0 | IS18: 0 | IT18: 0 | IU18: 0 | IV18: 0 | IW18: 0 | IX18: 0 | IY18: 0 | IZ18: 0 | JA18: 0 | JB18: 0 | JC18: 0 | JD18: 0 | JE18: 0 | JF18: 0 | JG18: 0 | JH18: 0 | JI18: 0 | JJ18: 0 | JK18: 0 | JL18: 0 | JM18: 0 | JN18: 0 | JO18: 0 | JP18: 0 | JQ18: 0 | JR18: 0 | JS18: 0 | JT18: 0 | JU18: 0 | JV18: 0 | JW18: 0 | JX18: 0 | JY18: 0 | JZ18: 0 | KA18: 0 | KB18: 0 | KC18: 0 | KD18: 0 | KE18: 0 | KF18: 0 | KG18: 0 | KH18: 0 | KI18: 0 | KJ18: 0 | KK18: 0 | KL18: 0 | KM18: 0 | KN18: 0 | KO18: 0 | KP18: 0 | KQ18: 0 | KR18: 0 | KS18: 0 | KT18: 0 | KU18: 0 | KV18: 0 | KW18: 0 | KX18: 0 | KY18: 0 | KZ18: 0 | LA18: 0 | LB18: 0 | LC18: 0 | LD18: 0 | LE18: 0 | LF18: 0 | LG18: 0 | LH18: 0 | LI18: 0 | LJ18: 0 | LK18: 0 | LL18: 0 | LM18: 0 | LN18: 0 | LO18: 0 | LP18: 0 | LQ18: 0 | LR18: 0 | LS18: 0 | LT18: 0 | LU18: 0 | LV18: 0 | LW18: 0 | LX18: 0 | LY18: 0 | LZ18: 0 | MA18: 0 | MB18: 0 | MC18: 0 | MD18: 0 | ME18: 0 | MF18: 0 | MG18: 0 | MH18: 0 | MI18: 0 | MJ18: 0 | MK18: 0 | ML18: 0 | MM18: 0 | MN18: 0 | MO18: 0 | MP18: 0 | MQ18: 0 | MR18: 0 | MS18: 0 | MT18: 0 | MU18: 0 | MV18: 0 | MW18: 0
A24: ORGN 2004-A M2 | C24: -390057.9978 | D24: -392550.8874 | E24: -394925.1043 | F24: -398431.5563 | G24: -401536.0354 | H24: -405627.661 | I24: -410178.1867 | J24: -414462.2576 | K24: -416348.7228 | L24: -421592.9214 | M24: -423745.1295 | N24: -424590.8033 | O24: -432767.4444 | P24: -436624.1651 | Q24: -437987.7772 | R24: -444283.669 | S24: -448160.0325 | T24: -445717.3613 | U24: -454589.6561 | V24: -456672.2645 | W24: -460745.7977 | X24: -462968.5961 | Y24: -465464.889 | Z24: -470093.403 | AA24: -472655.3408 | AB24: -475253.9286 | AC24: -478633.5827 | AD24: -468645.1165 | AE24: -484882.0434 | AF24: -487756.66 | AG24: -490359.2473 | AH24: -493935.784 | AI24: -494860.3493 | AJ24: -501787.59 | AK24: -485763.9033 | AL24: -508461.6581 | AM24: -512314.1473 | AN24: -513129.9073 | AO24: -519108.5232 | AP24: -521807.3264 | AQ24: -525033.8056 | AR24: -465817.2199 | AS24: -531177.199 | AT24: -535051.3927 | AU24: -539042.0069 | AV24: -541859.4517 | AW24: -545134.6384 | AX24: -548870.2744 | AY24: -541294.2476 | AZ24: -555968.3465 | BA24: -551464.2062 | BB24: -562608.8895 | BC24: -565681.8412 | BD24: -569628.5011 | BE24: -573235.4441 | BF24: -576932.1325 | BG24: -580890.9468 | BH24: -584393.4515 | BI24: -588262.762 | BJ24: -592013.3205 | BK24: -596118.535 | BL24: -600362.4227 | BM24: -519389.5084 | BN24: -427190.587 | BO24: -351187.7528 | BP24: -7854.293799 | BQ24: -114421.7447 | BR24: -373790.9963 | BS24: -105229.3768 | BT24: -275820.8159 | BU24: 188936.013 | BV24: -85542.48338 | BW24: -140845.9962 | BX24: -145787.2688 | BY24: 221227.4861 | BZ24: 271192.3869 | CA24: 228251.6246 | CB24: 455380.4016 | CC24: -83579.63008 | CD24: 115147.2097 | CE24: -360019.2952 | CF24: -281479.7426 | CG24: -377856.4968 | CH24: -590209.8322 | CI24: -654305.2947 | CJ24: -657689.3779 | CK24: -591669.3734 | CL24: -524014.4186 | CM24: -607251.1602 | CN24: -669808.389 | CO24: -673278.5281 | CP24: -676767.8578 | CQ24: -680276.4911 | CR24: -683438.5045 | CS24: -687491.0107 | CT24: -644609.7915 | CU24: -632182.8359 | CV24: -633045.9111 | CW24: -560721.6462 | CX24: -699558.4523 | CY24: -621036.6287 | CZ24: -710675.8825 | DA24: -649047.8943 | DB24: -717851.1534 | DC24: -721588.0719 | DD24: -679323.1464 | DE24: -729144.2811 | DF24: -700851.5558 | DG24: -736568.8551 | DH24: -740410.5167 | DI24: -744273.5665 | DJ24: -748158.131 | DK24: -752127.5657 | DL24: -756112.1475 | DM24: -760062.6317 | DN24: -721646.6214 | DO24: -767751.9521 | DP24: -726725.3772 | DQ24: -775379.213 | DR24: -779436.1315 | DS24: -603083.4649 | DT24: -786617.6475 | DU24: -59837.86339 | DV24: 423154.8686 | DW24: 2114016.028 | DX24: 3733964.564 | DY24: 3713999.398 | DZ24: 3009605.812 | EA24: 3650265.188 | EB24: 3178224.649 | EC24: 2453954.395 | ED24: 3304761.678 | EE24: 2520800.286 | EF24: 2844451.976 | EG24: 3049360.901 | EH24: 4982353.301 | EI24: 4485494.698 | EJ24: 4940749.823 | EK24: 6249569.52 | EL24: 4328565.704 | EM24: 2042737.005 | EN24: 1603778.011 | EO24: 2758664.007 | EP24: 758513.3371 | EQ24: -125734.7459 | ER24: -268467.9003 | ES24: -176052.0644 | ET24: -297880.7591 | EU24: -361889.8277 | EV24: -363699.4775 | EW24: -256162.7371 | EX24: -296891.8787 | EY24: -367984.0818 | EZ24: -369825.934 | FA24: -371677.663 | FB24: -201188.6999 | FC24: -256392.4592 | FD24: -375288.5801 | FE24: -377168.6511 | FF24: -232810.9696 | FG24: -379756.9302 | FH24: -260423.4085 | FI24: -382877.3699 | FJ24: -384796.7254 | FK24: -386726.3905 | FL24: -388666.4241 | FM24: -390616.8858 | FN24: -392577.8351 | FO24: -326009.9524 | FP24: -396139.1754 | FQ24: -398130.1647 | FR24: -400131.8765 | FS24: -402144.3723 | FT24: -404167.7141 | FU24: -273044.0388 | FV24: -407291.1367 | FW24: -409341.6456 | FX24: -411403.2176 | FY24: -413475.9164 | FZ24: -415559.8062 | GA24: -417654.9512 | GB24: -419761.4164 | GC24: -284904.2379 | GD24: -179578.7307 | GE24: 1001064.296 | GF24: 3196144.898 | GG24: 1740457.654 | GH24: 3993494.828 | GI24: 3400245.042 | GJ24: 3908287.559 | GK24: 2260849.071 | GL24: 2999191.066 | GM24: 1087928.054 | GN24: 835028.7592 | GO24: 300796.4255 | GP24: -127281.4138 | GQ24: 332155.6089 | GR24: -89719.27278 | GS24: -31586.56515 | GT24: 150905.2237 | GU24: -151306.6748 | GV24: -58518.69755 | GW24: -41652.90556 | GX24: -263026.1758 | GY24: -264323.6208 | GZ24: -265628.0359 | HA24: -266939.4616 | HB24: -268257.9389 | HC24: -269583.509 | HD24: -270916.2131 | HE24: -272256.0931 | HF24: -273603.1909 | HG24: -274957.5486 | HH24: -276319.2087 | HI24: -277688.214 | HJ24: -279064.6075 | HK24: -280448.4324 | HL24: -281839.7323 | HM24: -104537.2199 | HN24: -283473.4496 | HO24: -138725.9279 | HP24: -285064.5782 | HQ24: -286478.5946 | HR24: 30454.15301 | HS24: -286778.8888 | HT24: -190137.4843 | HU24: -289064.5728 | HV24: -290497.0032 | HW24: -291937.1708 | HX24: -293385.1212 | HY24: -294840.9 | HZ24: -156666.9055 | IA24: -296715.4403 | IB24: -179097.4056 | IC24: -76497.25681 | ID24: 414226.3852 | IE24: -3447.644202 | IF24: 17315.74854 | IG24: -27081.77603 | IH24: -125677.466 | II24: -293201.9966 | IJ24: 121138.6452 | IK24: 2779042.087 | IL24: 2780777.728 | IM24: 3803629.782 | IN24: 3715484.416 | IO24: 3176063.747 | IP24: 1698058.776 | IQ24: 5653325.635 | IR24: 4559537.613 | IS24: 5033602.191 | IT24: 4347227.087 | IU24: 1978116.328 | IV24: 1627814.653 | IW24: 685313.8439 | IX24: 1435613.453 | IY24: 924185.6418 | IZ24: 1100273.366 | JA24: 1019352.671 | JB24: 906210.5015 | JC24: 751268.7941 | JD24: 1344472.955 | JE24: 919863.3756 | JF24: -1563.598721 | JG24: 80693.94736 | JH24: -1276.992812 | JI24: -1282.806171 | JJ24: -1288.645994 | JK24: -1294.512402 | JL24: -1300.405517 | JM24: -1306.325459 | JN24: -1312.272351 | JO24: -1318.246315 | JP24: -1324.247475 | JQ24: -1330.275955 | JR24: -1336.331879 | JS24: -1342.415372 | JT24: -1348.526559 | JU24: -1354.665566 | JV24: -1360.83252 | JW24: -1367.027549 | JX24: -1373.25078 | JY24: -1379.502342 | JZ24: -1385.782363 | KA24: -1392.090973 | KB24: -1398.428302 | KC24: -1404.794482 | KD24: -1411.189642 | KE24: 247407.2026 | KF24: 0 | KG24: 0 | KH24: 0 | KI24: 0 | KJ24: 0 | KK24: 0 | KL24: 0 | KM24: 0 | KN24: 0 | KO24: 0 | KP24: 0 | KQ24: 0 | KR24: 0 | KS24: 0 | KT24: 0 | KU24: 0 | KV24: 0 | KW24: 0 | KX24: 0 | KY24: 0 | KZ24: 0 | LA24: 0 | LB24: 0 | LC24: 0 | LD24: 0 | LE24: 0 | LF24: 0 | LG24: 0 | LH24: 0 | LI24: 0 | LJ24: 0 | LK24: 0 | LL24: 0 | LM24: 0 | LN24: 0 | LO24: 0 | LP24: 0 | LQ24: 0 | LR24: 0 | LS24: 0 | LT24: 0 | LU24: 0 | LV24: 0 | LW24: 0 | LX24: 0 | LY24: 0 | LZ24: 0 | MA24: 0 | MB24: 0 | MC24: 0 | MD24: 0 | ME24: 0 | MF24: 0 | MG24: 0 | MH24: 0 | MI24: 0 | MJ24: 0 | MK24: 0 | ML24: 0 | MM24: 0 | MN24: 0 | MO24: 0 | MP24: 0 | MQ24: 0 | MR24: 0 | MS24: 0 | MT24: 0 | MU24: 0 | MV24: 0 | MW24: 0
A25: ORGN 2005-A B | C25: 686320.2951 | D25: 681180.7599 | E25: 672316.9011 | F25: 665296.4573 | G25: 659383.0773 | H25: 653030.6192 | I25: 647021.7182 | J25: 641305.4774 | K25: 635632.8519 | L25: 629736.5763 | M25: 624055.6098 | N25: 618426.4904 | O25: 612982.334 | P25: 606658.4536 | Q25: 600795.1067 | R25: 594222.0102 | S25: 589350.3235 | T25: 590964.0822 | U25: 577138.561 | V25: 583153.2293 | W25: 594416.0264 | X25: 567318.5865 | Y25: 555398.9763 | Z25: 553824.1845 | AA25: 545327.9676 | AB25: 555630.7848 | AC25: 535647.6877 | AD25: 529321.7333 | AE25: 525239.4419 | AF25: 518805.0853 | AG25: 513408.5423 | AH25: 527309.0517 | AI25: 527385.5548 | AJ25: 506723.5742 | AK25: 489874.2041 | AL25: 498864.9827 | AM25: 478376.8953 | AN25: 480654.484 | AO25: 482293.7222 | AP25: 451168.0083 | AQ25: 444203.1451 | AR25: 436189.7067 | AS25: 432411.1462 | AT25: 428458.7875 | AU25: 424579.1269 | AV25: 431778.0588 | AW25: 416575.8076 | AX25: 412371.4277 | AY25: 408600.9529 | AZ25: 404918.8136 | BA25: 401347.7954 | BB25: 421377.315 | BC25: 393407.6572 | BD25: 389907.6494 | BE25: 401755.4568 | BF25: 382272.9716 | BG25: 378465.8996 | BH25: 374546.8796 | BI25: 375495.0854 | BJ25: 376704.6986 | BK25: 385845.076 | BL25: 356854.2208 | BM25: 352572.1917 | BN25: 387997.6929 | BO25: 391468.903 | BP25: 374024.2216 | BQ25: 349951.0356 | BR25: 345549.9398 | BS25: 358559.9768 | BT25: 336670.5684 | BU25: 364781.2476 | BV25: 326693.5794 | BW25: 322413.4059 | BX25: 325804.4872 | BY25: 311443.6536 | BZ25: 304792.3846 | CA25: 300448.6166 | CB25: 296714.8647 | CC25: 295552.3155 | CD25: 295084.4427 | CE25: 283839.5789 | CF25: 279391.0293 | CG25: 275067.8199 | CH25: 270956.8604 | CI25: 278985.0061 | CJ25: 275828.215 | CK25: 260208.0615 | CL25: 257428.8421 | CM25: 254159.1128 | CN25: 252245.6404 | CO25: 242171.4321 | CP25: 272960.6683 | CQ25: 340570.3251 | CR25: 251480.3996 | CS25: 285589.3062 | CT25: 314788.517 | CU25: 241874.7699 | CV25: 260009.0926 | CW25: 273543.3155 | CX25: 255830.8147 | CY25: 220760.1723 | CZ25: 269176.528 | DA25: 214310.7912 | DB25: 277352.5357 | DC25: 199325.2492 | DD25: 191445.5173 | DE25: 227830.244 | DF25: 210477.2779 | DG25: 190145.4716 | DH25: 359950.3285 | DI25: 189659.2763 | DJ25: 231819.3207 | DK25: 213422.4952 | DL25: 250223.6424 | DM25: 212275.7524 | DN25: 184141.1628 | DO25: 172208.8279 | DP25: 223349.3504 | DQ25: 172184.4609 | DR25: 168674.8826 | DS25: 229803.3288 | DT25: 136992.6902 | DU25: 131310.0647 | DV25: 128596.1967 | DW25: 129365.5924 | DX25: 123680.8572 | DY25: 121231.3 | DZ25: 119128.1305 | EA25: 117318.5992 | EB25: 129544.3776 | EC25: 113428.459 | ED25: 113537.1525 | EE25: 104470.0392 | EF25: 102606.9033 | EG25: 99179.95004 | EH25: 96632.39217 | EI25: 99186.09335 | EJ25: 93201.04859 | EK25: 86955.92305 | EL25: 86115.25612 | EM25: 84223.95386 | EN25: 84323.23346 | EO25: 80370.36496 | EP25: 74860.41925 | EQ25: 78418.86644 | ER25: 86747.12753 | ES25: 74680.00322 | ET25: 79779.43199 | EU25: 86859.97737 | EV25: 69971.93976 | EW25: 74234.74591 | EX25: 348596.944 | EY25: 276989.6832 | EZ25: 382175.5817 | FA25: 389060.6842 | FB25: 248914.2475 | FC25: 268370.1858 | FD25: 198387.2272 | FE25: 250047.2029 | FF25: 207749.7036 | FG25: 69822.97828 | FH25: 13389.72739 | FI25: 6751.578664 | FJ25: 6677.267532 | FK25: 6603.730096 | FL25: 6530.958316 | FM25: 6458.944233 | FN25: 6225.153128 | FO25: 6005.545585 | FP25: 5845.410676 | FQ25: 5751.263067 | FR25: 5603.899705 | FS25: 34378.83973 | FT25: 5537.547713 | FU25: 5451.9518 | FV25: 5319.738902 | FW25: 5204.062813 | FX25: 5144.961397 | FY25: 5086.47882 | FZ25: 5020.762963 | GA25: 4846.611755 | GB25: 4727.799932 | GC25: 4635.192304 | GD25: 4535.408778 | GE25: 4478.762483 | GF25: 4232.769706 | GG25: 4182.685662 | GH25: 4097.551931 | GI25: 4008.044163 | GJ25: 3960.270127 | GK25: 3913.001191 | GL25: 3866.232082 | GM25: 3806.841028 | GN25: 3695.353214 | GO25: 9397.12563 | GP25: 3450.182725 | GQ25: 3407.959102 | GR25: 3366.183556 | GS25: 3324.851407 | GT25: 3283.958023 | GU25: 3243.498821 | GV25: 3203.469265 | GW25: 3163.864867 | GX25: 3079.286261 | GY25: 3031.668857 | GZ25: 2993.807021 | HA25: 2950.877874 | HB25: 2857.994903 | HC25: 2821.759273 | HD25: 2785.910092 | HE25: 2658.736108 | HF25: 2590.090833 | HG25: 16878.01818 | HH25: 29712.32674 | HI25: 76807.09901 | HJ25: 27602.87484 | HK25: 15868.51225 | HL25: 45587.16468 | HM25: 4410.29385 | HN25: 1888.527134 | HO25: 2327.886703 | HP25: 1737.083836 | HQ25: 1677.845395 | HR25: 1655.34 | HS25: 1633.078573 | HT25: 1584.042473 | HU25: 1539.748114 | HV25: 1518.560982 | HW25: 1497.604473 | HX25: 1476.876164 | HY25: 1456.37366 | HZ25: 2295.112583 | IA25: 1381.404245 | IB25: 1337.380642 | IC25: 1318.161565 | ID25: 1299.152936 | IE25: 1280.352541 | IF25: 1261.75819 | IG25: 1232.457512 | IH25: 1167.177207 | II25: 3364.464901 | IJ25: 1083.271914 | IK25: 1049.935236 | IL25: 1033.44924 | IM25: 1017.146014 | IN25: 1001.023632 | IO25: 14327.47902 | IP25: 973.489171 | IQ25: 957.9858549 | IR25: 942.6544342 | IS25: 927.4930973 | IT25: 912.5000517 | IU25: 897.6735233 | IV25: 883.0117568 | IW25: 868.5130152 | IX25: 854.1755794 | IY25: 787.603855 | IZ25: 765.737763 | JA25: 22150.83043 | JB25: 10943.07987 | JC25: 6611.735208 | JD25: 635.4023185 | JE25: 19235.16668 | JF25: 10212.22088 | JG25: 24117.02087 | JH25: 9029.212332 | JI25: 324.9732841 | JJ25: 316.7064154 | JK25: 398.0645652 | JL25: 11072.43314 | JM25: 3245.889085 | JN25: 10165.39272 | JO25: 58974.38255 | JP25: 32612.37345 | JQ25: 90333.46194 | JR25: 46483.35529 | JS25: 23649.10691 | JT25: 18153.72132 | JU25: 25244.96513 | JV25: 288.4550203 | JW25: 8855.444491 | JX25: 0 | JY25: 0 | JZ25: 0 | KA25: 0 | KB25: 0 | KC25: 0 | KD25: 0 | KE25: 0 | KF25: 0 | KG25: 0 | KH25: 0 | KI25: 0 | KJ25: 0 | KK25: 0 | KL25: 0 | KM25: 0 | KN25: 0 | KO25: 0 | KP25: 0 | KQ25: 0 | KR25: 0 | KS25: 0 | KT25: 0 | KU25: 0 | KV25: 0 | KW25: 0 | KX25: 0 | KY25: 0 | KZ25: 0 | LA25: 0 | LB25: 0 | LC25: 0 | LD25: 0 | LE25: 0 | LF25: 0 | LG25: 0 | LH25: 0 | LI25: 0 | LJ25: 0 | LK25: 0 | LL25: 0 | LM25: 0 | LN25: 0 | LO25: 0 | LP25: 0 | LQ25: 0 | LR25: 0 | LS25: 0 | LT25: 0 | LU25: 0 | LV25: 0 | LW25: 0 | LX25: 0 | LY25: 0 | LZ25: 0 | MA25: 0 | MB25: 0 | MC25: 0 | MD25: 0 | ME25: 0 | MF25: 0 | MG25: 0 | MH25: 0 | MI25: 0 | MJ25: 0 | MK25: 0 | ML25: 0 | MM25: 0 | MN25: 0 | MO25: 0 | MP25: 0 | MQ25: 0 | MR25: 0 | MS25: 0 | MT25: 0 | MU25: 0 | MV25: 0 | MW25: 0

Sheet Loss
A2: Deal | B2: 0 | C2: =+B2+1 -> 1 | D2: =+C2+1 -> 2 | E2: 3 | F2: 4 | G2: 5 | H2: 6 | I2: 7 | J2: 8 | K2: 9 | L2: 10 | M2: 11 | N2: 12 | O2: 13 | P2: 14 | Q2: 15 | R2: 16 | S2: 17 | T2: 18 | U2: 19 | V2: 20 | W2: 21 | X2: 22 | Y2: 23 | Z2: 24 | AA2: 25 | AB2: 26 | AC2: 27 | AD2: 28 | AE2: 29 | AF2: 30 | AG2: 31 | AH2: 32 | AI2: 33 | AJ2: 34 | AK2: 35 | AL2: 36 | AM2: 37 | AN2: 38 | AO2: 39 | AP2: 40 | AQ2: 41 | AR2: 42 | AS2: 43 | AT2: 44 | AU2: 45 | AV2: 46 | AW2: 47 | AX2: 48 | AY2: 49 | AZ2: 50 | BA2: 51 | BB2: 52 | BC2: 53 | BD2: 54 | BE2: 55 | BF2: 56 | BG2: 57 | BH2: 58 | BI2: 59 | BJ2: 60 | BK2: 61 | BL2: 62 | BM2: 63 | BN2: 64 | BO2: 65 | BP2: =+BO2+1 -> 66 | BQ2: 67 | BR2: 68 | BS2: 69 | BT2: 70 | BU2: 71 | BV2: 72 | BW2: 73 | BX2: 74 | BY2: 75 | BZ2: 76 | CA2: 77 | CB2: 78 | CC2: 79 | CD2: 80 | CE2: 81 | CF2: 82 | CG2: 83 | CH2: 84 | CI2: 85 | CJ2: 86 | CK2: 87 | CL2: 88 | CM2: 89 | CN2: 90 | CO2: 91 | CP2: 92 | CQ2: 93 | CR2: 94 | CS2: 95 | CT2: 96 | CU2: 97 | CV2: 98 | CW2: 99 | CX2: 100 | CY2: 101 | CZ2: 102 | DA2: 103 | DB2: 104 | DC2: 105 | DD2: 106 | DE2: 107 | DF2: 108 | DG2: 109 | DH2: 110 | DI2: 111 | DJ2: 112 | DK2: 113 | DL2: 114 | DM2: 115 | DN2: 116 | DO2: 117 | DP2: 118 | DQ2: 119 | DR2: 120 | DS2: 121 | DT2: 122 | DU2: 123 | DV2: 124 | DW2: 125 | DX2: 126 | DY2: 127 | DZ2: 128 | EA2: 129 | EB2: =+EA2+1 -> 130 | EC2: 131 | ED2: 132 | EE2: 133 | EF2: 134 | EG2: 135 | EH2: 136 | EI2: 137 | EJ2: 138 | EK2: 139 | EL2: 140 | EM2: 141 | EN2: 142 | EO2: 143 | EP2: 144 | EQ2: 145 | ER2: 146 | ES2: 147 | ET2: 148 | EU2: 149 | EV2: 150 | EW2: 151 | EX2: 152 | EY2: 153 | EZ2: 154 | FA2: 155 | FB2: 156 | FC2: 157 | FD2: 158 | FE2: 159 | FF2: 160 | FG2: 161 | FH2: 162 | FI2: 163 | FJ2: 164 | FK2: 165 | FL2: 166 | FM2: 167 | FN2: 168 | FO2: 169 | FP2: 170 | FQ2: 171 | FR2: 172 | FS2: 173 | FT2: 174 | FU2: 175 | FV2: 176 | FW2: 177 | FX2: 178 | FY2: 179 | FZ2: 180 | GA2: 181 | GB2: 182 | GC2: 183 | GD2: 184 | GE2: 185 | GF2: 186 | GG2: 187 | GH2: 188 | GI2: 189 | GJ2: 190 | GK2: 191 | GL2: 192 | GM2: 193 | GN2: =+GM2+1 -> 194 | GO2: 195 | GP2: 196 | GQ2: 197 | GR2: 198 | GS2: 199 | GT2: 200 | GU2: 201 | GV2: 202 | GW2: 203 | GX2: 204 | GY2: 205 | GZ2: 206 | HA2: 207 | HB2: 208 | HC2: 209 | HD2: 210 | HE2: 211 | HF2: 212 | HG2: 213 | HH2: 214 | HI2: 215 | HJ2: 216 | HK2: 217 | HL2: 218 | HM2: 219 | HN2: 220 | HO2: 221 | HP2: 222 | HQ2: 223 | HR2: 224 | HS2: 225 | HT2: 226 | HU2: 227 | HV2: 228 | HW2: 229 | HX2: 230 | HY2: 231 | HZ2: 232 | IA2: 233 | IB2: 234 | IC2: 235 | ID2: 236 | IE2: 237 | IF2: 238 | IG2: 239 | IH2: 240 | II2: 241 | IJ2: 242 | IK2: 243 | IL2: 244 | IM2: 245 | IN2: 246 | IO2: 247 | IP2: 248 | IQ2: 249 | IR2: 250 | IS2: 251 | IT2: 252 | IU2: 253 | IV2: 254 | IW2: 255 | IX2: 256 | IY2: 257 | IZ2: =+IY2+1 -> 258 | JA2: 259 | JB2: 260 | JC2: 261 | JD2: 262 | JE2: 263 | JF2: 264 | JG2: 265 | JH2: 266 | JI2: 267 | JJ2: 268 | JK2: 269 | JL2: 270 | JM2: 271 | JN2: 272 | JO2: 273 | JP2: 274 | JQ2: 275 | JR2: 276 | JS2: 277 | JT2: 278 | JU2: 279 | JV2: 280 | JW2: 281 | JX2: 282 | JY2: 283 | JZ2: 284 | KA2: 285 | KB2: 286 | KC2: 287 | KD2: 288 | KE2: 289 | KF2: 290 | KG2: 291 | KH2: 292 | KI2: 293 | KJ2: 294 | KK2: 295 | KL2: 296 | KM2: 297 | KN2: 298 | KO2: 299 | KP2: 300 | KQ2: 301 | KR2: 302 | KS2: 303 | KT2: 304 | KU2: 305 | KV2: 306 | KW2: 307 | KX2: 308 | KY2: 309 | KZ2: 310 | LA2: 311 | LB2: 312 | LC2: 313 | LD2: 314 | LE2: 315 | LF2: 316 | LG2: 317 | LH2: 318 | LI2: 319 | LJ2: 320 | LK2: 321 | LL2: =+LK2+1 -> 322 | LM2: 323 | LN2: 324 | LO2: 325 | LP2: 326 | LQ2: 327 | LR2: 328 | LS2: 329 | LT2: 330 | LU2: 331 | LV2: 332 | LW2: 333 | LX2: 334 | LY2: 335 | LZ2: 336 | MA2: 337 | MB2: 338 | MC2: 339 | MD2: 340 | ME2: 341 | MF2: 342 | MG2: 343 | MH2: 344 | MI2: 345 | MJ2: 346 | MK2: 347 | ML2: 348 | MM2: 349 | MN2: 350 | MO2: 351 | MP2: 352 | MQ2: 353 | MR2: 354 | MS2: 355 | MT2: 356 | MU2: 357 | MV2: 358 | MW2: 359
A3: =Inputs!C3 -> CBASS 2006-MH1 M2 | C3: 11136194.77 | D3: 10053410.69 | E3: 9075827.226 | F3: 8193218.695 | G3: 7396374.499 | H3: 6676956.277 | I3: 6027463.04 | J3: 5441106.388 | K3: 4911753.696 | L3: 4433866.072 | M3: 4002443.417 | N3: 3612970.616 | O3: 3261370.147 | P3: 2943963.121 | Q3: 2657425.268 | R3: 2398756.238 | S3: 2165247.462 | T3: 1954453.286 | U3: 1764165.332 | V3: 1592390.245 | W3: 1437328.415 | X3: 1297354.77 | Y3: 1171008.272 | Z3: 1056959.7 | AA3: 954010.1371 | AB3: 861080.4462 | AC3: 777196.3886 | AD3: 701478.1077 | AE3: 633131.5141 | AF3: 571439.5727 | AG3: 515754.0602 | AH3: 465490.8758 | AI3: 420122.6938 | AJ3: 379173.2903 | AK3: 342212.7766 | AL3: 308853.002 | AM3: 278742.5763 | AN3: 251565.4146 | AO3: 227036.1118 | AP3: 204898.3141 | AQ3: 184917.9719 | AR3: 166884.6371 | AS3: 150609.7533 | AT3: 135920.8427 | AU3: 122664.5109 | AV3: 110700.31 | AW3: 99902.45709 | AX3: 90157.47274 | AY3: 81362.27579 | AZ3: 73424.39132 | BA3: 66260.39288 | BB3: 59794.99241 | BC3: 53960.14542 | BD3: 48694.44544 | BE3: 43941.90304 | BF3: 39653.4226 | BG3: 35783.14847 | BH3: 32290.37836 | BI3: 29138.34028 | BJ3: 26293.84947 | BK3: 23726.79268 | BL3: 21410.13003 | BM3: 19319.47449 | BN3: 17432.8144 | BO3: 15730.26806 | BP3: 14193.88757 | BQ3: 12807.42047 | BR3: 11556.24986 | BS3: 10427.18973 | BT3: 9408.341109 | BU3: 8488.963007 | BV3: 7659.361944 | BW3: 6910.753997 | BX3: 6235.197347 | BY3: 5625.588923 | BZ3: 5075.66674 | CA3: 4579.45769 | CB3: 4131.7208 | CC3: 3727.712482 | CD3: 3363.165363 | CE3: 3034.229401 | CF3: 2737.429858 | CG3: 2469.60564 | CH3: 2227.990057 | CI3: 2009.948974 | CJ3: 1813.269721 | CK3: 1635.801619 | CL3: 1475.699432 | CM3: 1331.24869 | CN3: 1200.89818 | CO3: 1083.314559 | CP3: 977.2146345 | CQ3: 881.5060485 | CR3: 795.1816604 | CS3: 717.2692079 | CT3: 646.9900375 | CU3: 583.6055622 | CV3: 526.4214321 | CW3: 474.8584655 | CX3: 428.319731 | CY3: 386.3529184 | CZ3: 348.4344636 | DA3: 314.2705432 | DB3: 283.4202107 | DC3: 255.5980609 | DD3: 230.4672916 | DE3: 207.7802323 | DF3: 187.4432189 | DG3: 169.1121106 | DH3: 152.5740777 | DI3: 137.6563035 | DJ3: 124.195483 | DK3: 112.049449 | DL3: 101.0898738 | DM3: 91.20100986 | DN3: 82.27559338 | DO3: 74.22558086 | DP3: 66.96223174 | DQ3: 60.40876692 | DR3: 54.49590666 | DS3: 49.1611044 | DT3: 44.34791264 | DU3: 40.00540162 | DV3: 36.08761369 | DW3: 32.55306622 | DX3: 29.36431944 | DY3: 26.48753556 | DZ3: 23.89222712 | EA3: 21.55016405 | EB3: 19.43813681 | EC3: 17.53211445 | ED3: 15.81347501 | EE3: 14.26308135 | EF3: 12.86448304 | EG3: 11.60283559 | EH3: 10.46474524 | EI3: 9.436920597 | EJ3: 8.511123041 | EK3: 7.67602063 | EL3: 6.922739955 | EM3: 6.243275182 | EN3: 5.630402762 | EO3: 5.077417086 | EP3: 4.578508803 | EQ3: 4.128453543 | ER3: 3.722993565 | ES3: 3.357080729 | ET3: 3.026876149 | EU3: 2.729508314 | EV3: 2.461307306 | EW3: 2.219417761 | EX3: 2.00126222 | EY3: 1.804515253 | EZ3: 1.62690411 | FA3: 1.466913124 | FB3: 1.322628081 | FC3: 1.192410887 | FD3: 1.074969261 | FE3: 0.9690711817 | FF3: 0.8736498202 | FG3: 0.7875671686 | FH3: 0.7097501047 | FI3: 0.6394910228 | FJ3: 0.5765447836 | FK3: 0.5192671677 | FL3: 0.467902796 | FM3: 0.421341954 | FN3: 0.3798166806 | FO3: 0.3424440436 | FP3: 0.3087423412 | FQ3: 0.278351446 | FR3: 0.2509126 | FS3: 0.2262061387 | FT3: 0.2039110676 | FU3: 0.1838255408 | FV3: 0.1656975292 | FW3: 0.1493699986 | FX3: 0.1346004662 | FY3: 0.1213239253 | FZ3: 0.1093632671 | GA3: 0.098579455 | GB3: 0.0888568978 | GC3: 0.08009130327 | GD3: 0.07218861037 | GE3: 0.06506400197 | GF3: 0.05864099931 | GG3: 0.05285074329 | GH3: 0.04763102287 | GI3: 0.04291899867 | GJ3: 0.03867848524 | GK3: 0.0348447465 | GL3: 0.03140088122 | GM3: 0.02829663503 | GN3: 0.02549292646 | GO3: 0.02296578237 | GP3: 0.02069231271 | GQ3: 0.01864496672 | GR3: 0.01679968349 | GS3: 0.01513659637 | GT3: 0.01363657723 | GU3: 0.01228595323 | GV3: 0.01106876568 | GW3: 0.009971856444 | GX3: 0.008983364002 | GY3: 0.008092609856 | GZ3: 0.00728995229 | HA3: 0.006566695693 | HB3: 0.005915000612 | HC3: 0.005327801532 | HD3: 0.00479806514 | HE3: 0.004320892358 | HF3: 0.003891577716 | HG3: 0.003504099037 | HH3: 0.003155024662 | HI3: 0.002841284892 | HJ3: 0.00255817056 | HK3: 0.00230362519 | HL3: 0.002074332584 | HM3: 0.001867793383 | HN3: 0.001681755194 | HO3: 0.00151418777 | HP3: 0.001363262311 | HQ3: 0.001227062069 | HR3: 0.001104541669 | HS3: 0.0009936636447 | HT3: 0.0008939980237 | HU3: 0.0008040153505 | HV3: 0.0007236272305 | HW3: 0.000651347528 | HX3: 0.000586095024 | HY3: 0.00052750964 | HZ3: 0.0004741353918 | IA3: 0.0004267172084 | IB3: 0.0003840241175 | IC3: 0.0003455514214 | ID3: 0.0003109518233 | IE3: 0.0002796324927 | IF3: 0.0002516125275 | IG3: 0.00022638948 | IH3: 0.0002036232957 | II3: 0.0001831943437 | IJ3: 0.0001648068193 | IK3: 0.0001481851443 | IL3: 0.0001332363339 | IM3: 0.0001198473044 | IN3: 0.0001077980918 | IO3: 9.683052048e-05 | IP3: 8.705225372e-05 | IQ3: 7.81820897e-05 | IR3: 7.02914826e-05 | IS3: 6.30985236e-05 | IT3: 5.670801794e-05 | IU3: 5.093797631e-05 | IV3: 4.580045911e-05 | IW3: 4.115998256e-05 | IX3: 3.69511954e-05 | IY3: 3.319481974e-05 | IZ3: 2.979639568e-05 | JA3: 2.678449794e-05 | JB3: 2.406272615e-05 | JC3: 2.160815908e-05 | JD3: 1.938346443e-05 | JE3: 1.741113514e-05 | JF3: 1.560378009e-05 | JG3: 1.400635434e-05 | JH3: 1.255290203e-05 | JI3: 1.124593349e-05 | JJ3: 1.009115949e-05 | JK3: 9.048406854e-06 | JL3: 8.121421553e-06 | JM3: 7.279800724e-06 | JN3: 6.505028508e-06 | JO3: 5.816424117e-06 | JP3: 5.200491608e-06 | JQ3: 4.65543639e-06 | JR3: 4.156009953e-06 | JS3: 3.71100353e-06 | JT3: 3.314696218e-06 | JU3: 2.948151879e-06 | JV3: 2.60533849e-06 | JW3: 2.308646459e-06 | JX3: 1.962413832e-06 | JY3: 1.579054941e-06 | JZ3: 1.205236187e-06 | KA3: 7.859936133e-07 | KB3: 4.221636541e-07 | KC3: 4.985705444e-08 | KD3: 0 | KE3: 0 | KF3: 0 | KG3: 0 | KH3: 0 | KI3: 0 | KJ3: 0 | KK3: 0 | KL3: 0 | KM3: 0 | KN3: 0 | KO3: 0 | KP3: 0 | KQ3: 0 | KR3: 0 | KS3: 0 | KT3: 0 | KU3: 0 | KV3: 0 | KW3: 0 | KX3: 0 | KY3: 0 | KZ3: 0 | LA3: 0 | LB3: 0 | LC3: 0 | LD3: 0 | LE3: 0 | LF3: 0 | LG3: 0 | LH3: 0 | LI3: 0 | LJ3: 0 | LK3: 0 | LL3: 0 | LM3: 0 | LN3: 0 | LO3: 0 | LP3: 0 | LQ3: 0 | LR3: 0 | LS3: 0 | LT3: 0 | LU3: 0 | LV3: 0 | LW3: 0 | LX3: 0 | LY3: 0 | LZ3: 0 | MA3: 0 | MB3: 0 | MC3: 0 | MD3: 0 | ME3: 0 | MF3: 0 | MG3: 0 | MH3: 0 | MI3: 0 | MJ3: 0 | MK3: 0 | ML3: 0 | MM3: 0 | MN3: 0 | MO3: 0 | MP3: 0 | MQ3: 0 | MR3: 0 | MS3: 0 | MT3: 0 | MU3: 0 | MV3: 0 | MW3: 0
A4: =Inputs!C4 -> BCM 2000-A A2 | C4: 7215756.324 | D4: 6502495.161 | E4: 5864425.596 | F4: 5288899.852 | G4: 4769739.786 | H4: 4301444.334 | I4: 3879040.501 | J4: 3498026.506 | K4: 3154354.418 | L4: 2844371.533 | M4: 2564791.398 | N4: 2312645.064 | O4: 2085236.068 | P4: 1880138.617 | Q4: 1695165.745 | R4: 1528349.616 | S4: 1377911.495 | T4: 1242244.408 | U4: 1119901.168 | V4: 1009576.111 | W4: 910094.3838 | X4: 820390.9524 | Y4: 739513.2271 | Z4: 666587.2871 | AA4: 600833.0914 | AB4: 541549.4651 | AC4: 488106.718 | AD4: 439928.1021 | AE4: 396489.7972 | AF4: 357331.9177 | AG4: 322032.654 | AH4: 290211.8711 | AI4: 261530.7247 | AJ4: 235684.0877 | AK4: 212388.3266 | AL4: 189921.8813 | AM4: 169427.7224 | AN4: 150639.7197 | AO4: 133784.4796 | AP4: 119361.7089 | AQ4: 107512.011 | AR4: 96900.50268 | AS4: 87338.66701 | AT4: 78720.31354 | AU4: 70950.77453 | AV4: 63946.41761 | AW4: 57631.45632 | AX4: 51938.44768 | AY4: 46806.04682 | AZ4: 42179.44484 | BA4: 38009.47216 | BB4: 34250.88545 | BC4: 30863.415 | BD4: 27809.75046 | BE4: 25057.58876 | BF4: 22576.77938 | BG4: 20341.09174 | BH4: 18325.75869 | BI4: 16509.941 | BJ4: 14873.44062 | BK4: 13398.83281 | BL4: 12069.85422 | BM4: 10871.95553 | BN4: 9792.99446 | BO4: 8820.705668 | BP4: 7944.662161 | BQ4: 7155.309439 | BR4: 6444.007783 | BS4: 5803.347466 | BT4: 5226.13846 | BU4: 4705.934019 | BV4: 4237.392437 | BW4: 3815.392804 | BX4: 3435.27207 | BY4: 3092.7418 | BZ4: 2784.484257 | CA4: 2506.82247 | CB4: 2256.695342 | CC4: 2031.41747 | CD4: 1828.477235 | CE4: 1645.76998 | CF4: 1481.158406 | CG4: 1333.072408 | CH4: 1199.690946 | CI4: 1079.614865 | CJ4: 971.0689062 | CK4: 873.7410816 | CL4: 786.0800476 | CM4: 706.6901333 | CN4: 635.5348014 | CO4: 570.5159512 | CP4: 512.7453385 | CQ4: 460.8738677 | CR4: 414.3540593 | CS4: 372.3528751 | CT4: 326.7369204 | CU4: 283.8178247 | CV4: 242.8059577 | CW4: 208.8563312 | CX4: 182.1820401 | CY4: 157.792332 | CZ4: 141.9604376 | DA4: 127.7756341 | DB4: 115.0284684 | DC4: 103.5559753 | DD4: 93.23954814 | DE4: 83.93685377 | DF4: 75.56852673 | DG4: 68.03664312 | DH4: 61.25242893 | DI4: 55.13530723 | DJ4: 49.63308459 | DK4: 44.67763821 | DL4: 40.21482891 | DM4: 36.19384885 | DN4: 32.57403778 | DO4: 29.31349545 | DP4: 26.38003015 | DQ4: 23.73486863 | DR4: 21.35449677 | DS4: 19.21087967 | DT4: 17.28496884 | DU4: 15.54912235 | DV4: 13.98748803 | DW4: 12.58214783 | DX4: 11.31644105 | DY4: 10.17907267 | DZ4: 9.154491073 | EA4: 8.230977194 | EB4: 7.401410547 | EC4: 6.655141725 | ED4: 5.983185437 | EE4: 5.377223556 | EF4: 4.832459826 | EG4: 4.34430987 | EH4: 3.905560873 | EI4: 3.509262295 | EJ4: 3.15367481 | EK4: 2.833616483 | EL4: 2.545004024 | EM4: 2.283874509 | EN4: 2.052088897 | EO4: 1.841790892 | EP4: 1.653856308 | EQ4: 1.484274034 | ER4: 1.332750451 | ES4: 1.196239789 | ET4: 1.073530225 | EU4: 0.9627409408 | EV4: 0.8628708764 | EW4: 0.7744269394 | EX4: 0.6924219146 | EY4: 0.6193114987 | EZ4: 0.5540248947 | FA4: 0.4936740408 | FB4: 0.4239294317 | FC4: 0.3587697283 | FD4: 0.2931085064 | FE4: 0.2373529852 | FF4: 0.1989291012 | FG4: 0.1765169924 | FH4: 0.1582913935 | FI4: 0.1419883178 | FJ4: 0.1274029991 | FK4: 0.1143296007 | FL4: 0.1025969782 | FM4: 0.09219115008 | FN4: 0.08274008783 | FO4: 0.07433721476 | FP4: 0.06678191972 | FQ4: 0.05997266388 | FR4: 0.0538446158 | FS4: 0.04831675871 | FT4: 0.04332528957 | FU4: 0.03884465422 | FV4: 0.03474145146 | FW4: 0.03117771873 | FX4: 0.02797016701 | FY4: 0.0250705394 | FZ4: 0.02249749396 | GA4: 0.02012411751 | GB4: 0.01804505075 | GC4: 0.01613180457 | GD4: 0.01443133046 | GE4: 0.01290657599 | GF4: 0.01154921652 | GG4: 0.01034934048 | GH4: 0.009256956145 | GI4: 0.008295060956 | GJ4: 0.007429692521 | GK4: 0.006651122898 | GL4: 0.005949894071 | GM4: 0.005326701985 | GN4: 0.004768084312 | GO4: 0.004260417725 | GP4: 0.003802861414 | GQ4: 0.003390712048 | GR4: 0.003028368326 | GS4: 0.002708927593 | GT4: 0.00241776194 | GU4: 0.002126379433 | GV4: 0.001879271619 | GW4: 0.00166683578 | GX4: 0.00146582095 | GY4: 0.001307093412 | GZ4: 0.001157095153 | HA4: 0.001015557222 | HB4: 0.0008854439237 | HC4: 0.0007780483706 | HD4: 0.0006694807691 | HE4: 0.0005826952229 | HF4: 0.0004899477616 | HG4: 0.0004198414772 | HH4: 0.0003564636694 | HI4: 0.0002910850002 | HJ4: 0.0002209698111 | HK4: 0.0001481228966 | HL4: 8.068052738e-05 | HM4: 3.644866365e-05 | HN4: 5.575431763e-06 | HO4: 3.667320614e-07 | HP4: 3.297824039e-07 | HQ4: 0 | HR4: 0 | HS4: 0 | HT4: 0 | HU4: 0 | HV4: 0 | HW4: 0 | HX4: 0 | HY4: 0 | HZ4: 0 | IA4: 0 | IB4: 0 | IC4: 0 | ID4: 0 | IE4: 0 | IF4: 0 | IG4: 0 | IH4: 0 | II4: 0 | IJ4: 0 | IK4: 0 | IL4: 0 | IM4: 0 | IN4: 0 | IO4: 0 | IP4: 0 | IQ4: 0 | IR4: 0 | IS4: 0 | IT4: 0 | IU4: 0 | IV4: 0 | IW4: 0 | IX4: 0 | IY4: 0 | IZ4: 0 | JA4: 0 | JB4: 0 | JC4: 0 | JD4: 0 | JE4: 0 | JF4: 0 | JG4: 0 | JH4: 0 | JI4: 0 | JJ4: 0 | JK4: 0 | JL4: 0 | JM4: 0 | JN4: 0 | JO4: 0 | JP4: 0 | JQ4: 0 | JR4: 0 | JS4: 0 | JT4: 0 | JU4: 0 | JV4: 0 | JW4: 0 | JX4: 0 | JY4: 0 | JZ4: 0 | KA4: 0 | KB4: 0 | KC4: 0 | KD4: 0 | KE4: 0 | KF4: 0 | KG4: 0 | KH4: 0 | KI4: 0 | KJ4: 0 | KK4: 0 | KL4: 0 | KM4: 0 | KN4: 0 | KO4: 0 | KP4: 0 | KQ4: 0 | KR4: 0 | KS4: 0 | KT4: 0 | KU4: 0 | KV4: 0 | KW4: 0 | KX4: 0 | KY4: 0 | KZ4: 0 | LA4: 0 | LB4: 0 | LC4: 0 | LD4: 0 | LE4: 0 | LF4: 0 | LG4: 0 | LH4: 0 | LI4: 0 | LJ4: 0 | LK4: 0 | LL4: 0 | LM4: 0 | LN4: 0 | LO4: 0 | LP4: 0 | LQ4: 0 | LR4: 0 | LS4: 0 | LT4: 0 | LU4: 0 | LV4: 0 | LW4: 0 | LX4: 0 | LY4: 0 | LZ4: 0 | MA4: 0 | MB4: 0 | MC4: 0 | MD4: 0 | ME4: 0 | MF4: 0 | MG4: 0 | MH4: 0 | MI4: 0 | MJ4: 0 | MK4: 0 | ML4: 0 | MM4: 0 | MN4: 0 | MO4: 0 | MP4: 0 | MQ4: 0 | MR4: 0 | MS4: 0 | MT4: 0 | MU4: 0 | MV4: 0 | MW4: 0
A5: =Inputs!C5 -> CNF 2000-1 A5 | C5: 13323730.36 | D5: 11824295.9 | E5: 10493411.9 | F5: 9312193.437 | G5: 8263813.37 | H5: 7333325.891 | I5: 6507564.854 | J5: 5774719.454 | K5: 5124317.987 | L5: 4547074.525 | M5: 4034772.31 | N5: 3580116.363 | O5: 3176637.252 | P5: 2818572.875 | Q5: 2500807.432 | R5: 2218822.457 | S5: 1968612.661 | T5: 1746581.009 | U5: 1549556.781 | V5: 1374726.093 | W5: 1219600.877 | X5: 1081958.411 | Y5: 959829.0896 | Z5: 851466.0261 | AA5: 755319.037 | AB5: 670010.3809 | AC5: 594324.1938 | AD5: 527175.7274 | AE5: 467607.8868 | AF5: 414764.4319 | AG5: 367883.1589 | AH5: 326295.758 | AI5: 289401.8732 | AJ5: 256676.9779 | AK5: 227647.9705 | AL5: 201899.4684 | AM5: 179065.731 | AN5: 158814.2124 | AO5: 140849.2726 | AP5: 124921.0362 | AQ5: 110789.1258 | AR5: 98251.02498 | AS5: 87148.17727 | AT5: 77312.3811 | AU5: 68600.29081 | AV5: 60868.37216 | AW5: 54008.05745 | AX5: 47920.01964 | AY5: 42517.09002 | AZ5: 37723.16986 | BA5: 33469.4342 | BB5: 29694.48794 | BC5: 26344.76307 | BD5: 23372.54787 | BE5: 20735.11968 | BF5: 18394.51712 | BG5: 16318.06627 | BH5: 14475.69996 | BI5: 12841.27732 | BJ5: 11391.1173 | BK5: 10104.53024 | BL5: 8962.899877 | BM5: 7950.11841 | BN5: 7051.674807 | BO5: 6254.649173 | BP5: 5547.388169 | BQ5: 4920.153993 | BR5: 4363.729709 | BS5: 3869.992769 | BT5: 3432.182207 | BU5: 3043.77541 | BV5: 2699.200606 | BW5: 2393.529686 | BX5: 2122.489295 | BY5: 1882.088713 | BZ5: 1668.924757 | CA5: 1479.816436 | CB5: 1312.102549 | CC5: 1163.372392 | CD5: 1031.440363 | CE5: 914.4347209 | CF5: 810.7390647 | CG5: 718.7849245 | CH5: 637.2218368 | CI5: 564.8721602 | CJ5: 500.732927 | CK5: 443.8478131 | CL5: 393.4011935 | CM5: 348.7016644 | CN5: 309.0522275 | CO5: 273.8859049 | CP5: 242.7253023 | CQ5: 215.0885949 | CR5: 190.6046836 | CS5: 168.906128 | CT5: 149.6305596 | CU5: 132.5506057 | CV5: 117.4335466 | CW5: 104.0322531 | CX5: 92.11421718 | CY5: 81.56417311 | CZ5: 72.12224452 | DA5: 63.79277386 | DB5: 56.48606045 | DC5: 50.09317266 | DD5: 44.42130133 | DE5: 39.39285328 | DF5: 34.93396463 | DG5: 30.97896932 | DH5: 27.47098446 | DI5: 24.35807437 | DJ5: 21.59765621 | DK5: 19.1509477 | DL5: 16.9757217 | DM5: 15.05006693 | DN5: 13.34345149 | DO5: 11.82856577 | DP5: 10.4858494 | DQ5: 9.295628575 | DR5: 8.240884014 | DS5: 7.305747417 | DT5: 6.475743616 | DU5: 5.73983809 | DV5: 5.087518909 | DW5: 4.509348699 | DX5: 3.99592943 | DY5: 3.541409698 | DZ5: 3.138418014 | EA5: 2.780695791 | EB5: 2.464269859 | EC5: 2.183314405 | ED5: 1.934822398 | EE5: 1.714257327 | EF5: 1.519083351 | EG5: 1.346021717 | EH5: 1.192485295 | EI5: 1.056462825 | EJ5: 0.9359168653 | EK5: 0.8291169592 | EL5: 0.7344159441 | EM5: 0.6503720531 | EN5: 0.575987815 | EO5: 0.5101247499 | EP5: 0.4517181016 | EQ5: 0.3999692335 | ER5: 0.3542633701 | ES5: 0.3136230894 | ET5: 0.2776971245 | EU5: 0.2457828996 | EV5: 0.2174328001 | EW5: 0.1924066152 | EX5: 0.1703394241 | EY5: 0.1507019709 | EZ5: 0.1331611692 | FA5: 0.1178508417 | FB5: 0.1042617231 | FC5: 0.09217537964 | FD5: 0.08147744466 | FE5: 0.07202041937 | FF5: 0.06364674682 | FG5: 0.05613831377 | FH5: 0.04931790217 | FI5: 0.0433977122 | FJ5: 0.03818201764 | FK5: 0.03379437926 | FL5: 0.02991953202 | FM5: 0.02648462112 | FN5: 0.0234291215 | FO5: 0.02072204822 | FP5: 0.01833744719 | FQ5: 0.01622157222 | FR5: 0.01435524127 | FS5: 0.01269601986 | FT5: 0.01123286766 | FU5: 0.009940592378 | FV5: 0.008796198547 | FW5: 0.007772138131 | FX5: 0.00687493769 | FY5: 0.006078326468 | FZ5: 0.005368592041 | GA5: 0.004745418437 | GB5: 0.004191101119 | GC5: 0.003704904971 | GD5: 0.003274622125 | GE5: 0.002894368179 | GF5: 0.002556980014 | GG5: 0.002255594576 | GH5: 0.001991023011 | GI5: 0.001756897377 | GJ5: 0.001550148062 | GK5: 0.001369281314 | GL5: 0.001205454401 | GM5: 0.001062433055 | GN5: 0.0009353317435 | GO5: 0.0008246168908 | GP5: 0.0007264445665 | GQ5: 0.0006399290313 | GR5: 0.0005637016487 | GS5: 0.0004950192698 | GT5: 0.0004352688089 | GU5: 0.0003817933679 | GV5: 0.0003355585529 | GW5: 0.0002941073551 | GX5: 0.0002572858342 | GY5: 0.0002250794439 | GZ5: 0.0001961931834 | HA5: 0.000170681115 | HB5: 0.0001483961047 | HC5: 0.0001285752832 | HD5: 0.0001110653939 | HE5: 9.597100569e-05 | HF5: 8.236710074e-05 | HG5: 7.094887355e-05 | HH5: 6.042909373e-05 | HI5: 5.176472798e-05 | HJ5: 4.370727945e-05 | HK5: 3.641110406e-05 | HL5: 2.977809522e-05 | HM5: 2.426945523e-05 | HN5: 1.892040758e-05 | HO5: 1.308804291e-05 | HP5: 6.327283662e-06 | HQ5: 2.36064084e-06 | HR5: 2.193572222e-07 | HS5: 1.336486331e-07 | HT5: 1.944006506e-08 | HU5: 1.683799829e-08 | HV5: 1.160147545e-08 | HW5: 5.723054287e-09 | HX5: 5.008250132e-09 | HY5: 4.381096758e-09 | HZ5: 0 | IA5: 0 | IB5: 0 | IC5: 0 | ID5: 0 | IE5: 0 | IF5: 0 | IG5: 0 | IH5: 0 | II5: 0 | IJ5: 0 | IK5: 0 | IL5: 0 | IM5: 0 | IN5: 0 | IO5: 0 | IP5: 0 | IQ5: 0 | IR5: 0 | IS5: 0 | IT5: 0 | IU5: 0 | IV5: 0 | IW5: 0 | IX5: 0 | IY5: 0 | IZ5: 0 | JA5: 0 | JB5: 0 | JC5: 0 | JD5: 0 | JE5: 0 | JF5: 0 | JG5: 0 | JH5: 0 | JI5: 0 | JJ5: 0 | JK5: 0 | JL5: 0 | JM5: 0 | JN5: 0 | JO5: 0 | JP5: 0 | JQ5: 0 | JR5: 0 | JS5: 0 | JT5: 0 | JU5: 0 | JV5: 0 | JW5: 0 | JX5: 0 | JY5: 0 | JZ5: 0 | KA5: 0 | KB5: 0 | KC5: 0 | KD5: 0 | KE5: 0 | KF5: 0 | KG5: 0 | KH5: 0 | KI5: 0 | KJ5: 0 | KK5: 0 | KL5: 0 | KM5: 0 | KN5: 0 | KO5: 0 | KP5: 0 | KQ5: 0 | KR5: 0 | KS5: 0 | KT5: 0 | KU5: 0 | KV5: 0 | KW5: 0 | KX5: 0 | KY5: 0 | KZ5: 0 | LA5: 0 | LB5: 0 | LC5: 0 | LD5: 0 | LE5: 0 | LF5: 0 | LG5: 0 | LH5: 0 | LI5: 0 | LJ5: 0 | LK5: 0 | LL5: 0 | LM5: 0 | LN5: 0 | LO5: 0 | LP5: 0 | LQ5: 0 | LR5: 0 | LS5: 0 | LT5: 0 | LU5: 0 | LV5: 0 | LW5: 0 | LX5: 0 | LY5: 0 | LZ5: 0 | MA5: 0 | MB5: 0 | MC5: 0 | MD5: 0 | ME5: 0 | MF5: 0 | MG5: 0 | MH5: 0 | MI5: 0 | MJ5: 0 | MK5: 0 | ML5: 0 | MM5: 0 | MN5: 0 | MO5: 0 | MP5: 0 | MQ5: 0 | MR5: 0 | MS5: 0 | MT5: 0 | MU5: 0 | MV5: 0 | MW5: 0
A6: =Inputs!C6 -> INDMH 1997-1 A5 | C6: 957505.0384 | D6: 860727.0076 | E6: 773719.8384 | F6: 695482.7067 | G6: 625156.6938 | H6: 561916.2169 | I6: 505049.4609 | J6: 453917.3508 | K6: 407986.6641 | L6: 366702.2366 | M6: 329532.4691 | N6: 296194.3164 | O6: 266216.5046 | P6: 239267.3539 | Q6: 215036.8141 | R6: 193250.711 | S6: 173663.2535 | T6: 156053.2948 | U6: 140221.868 | V6: 125989.9664 | W6: 113196.5469 | X6: 101697.7578 | Y6: 91363.34513 | Z6: 82076.91189 | AA6: 73731.15281 | AB6: 66230.26002 | AC6: 59489.02733 | AD6: 53430.81394 | AE6: 47986.68578 | AF6: 43094.21661 | AG6: 38700.99931 | AH6: 34754.87319 | AI6: 31209.77679 | AJ6: 28025.25598 | AK6: 25164.06423 | AL6: 22593.51108 | AM6: 20284.19941 | AN6: 18209.39489 | AO6: 16346.37599 | AP6: 14672.96878 | AQ6: 13170.31443 | AR6: 11820.69638 | AS6: 10608.60132 | AT6: 9520.082346 | AU6: 8542.408323 | AV6: 7664.900507 | AW6: 6876.756867 | AX6: 6169.493715 | AY6: 5534.639182 | AZ6: 4964.930777 | BA6: 4453.778365 | BB6: 3994.914056 | BC6: 3582.93687 | BD6: 3213.277354 | BE6: 2881.249247 | BF6: 2583.24735 | BG6: 2315.814047 | BH6: 2076.430382 | BI6: 1861.243912 | BJ6: 1669.226993 | BK6: 1496.845043 | BL6: 1341.964991 | BM6: 1202.852842 | BN6: 1078.120362 | BO6: 966.9894805 | BP6: 867.0921418 | BQ6: 776.9980374 | BR6: 693.2019418 | BS6: 621.0150251 | BT6: 557.2828496 | BU6: 500.0534733 | BV6: 448.3847758 | BW6: 402.2261454 | BX6: 360.8996884 | BY6: 323.7940319 | BZ6: 290.4802466 | CA6: 260.4916988 | CB6: 233.6697049 | CC6: 209.5920922 | CD6: 187.9795406 | CE6: 168.5810323 | CF6: 151.1546874 | CG6: 135.5168111 | CH6: 121.5063827 | CI6: 108.8825673 | CJ6: 97.61622054 | CK6: 87.48340076 | CL6: 78.42061926 | CM6: 70.28980875 | CN6: 62.97174645 | CO6: 56.42919875 | CP6: 50.55842974 | CQ6: 45.30557969 | CR6: 40.58473403 | CS6: 36.36189163 | CT6: 32.5696182 | CU6: 29.17502336 | CV6: 26.12259689 | CW6: 23.39112628 | CX6: 20.93092081 | CY6: 18.74377461 | CZ6: 16.77821827 | DA6: 15.00861091 | DB6: 13.43772029 | DC6: 12.02973377 | DD6: 10.76788477 | DE6: 9.631110643 | DF6: 8.619155353 | DG6: 7.709645631 | DH6: 6.890858969 | DI6: 6.165102372 | DJ6: 5.509152821 | DK6: 4.926387098 | DL6: 4.399621549 | DM6: 3.929926704 | DN6: 3.513377094 | DO6: 3.137916377 | DP6: 2.803700526 | DQ6: 2.506719854 | DR6: 2.231281752 | DS6: 1.990689966 | DT6: 1.779824782 | DU6: 1.589806291 | DV6: 1.414607853 | DW6: 1.259891804 | DX6: 1.124581251 | DY6: 1.004653346 | DZ6: 0.8924566587 | EA6: 0.7948559745 | EB6: 0.7092393338 | EC6: 0.6333914179 | ED6: 0.5635174455 | EE6: 0.5023851716 | EF6: 0.4490033051 | EG6: 0.4012252211 | EH6: 0.3578284771 | EI6: 0.3193559685 | EJ6: 0.2849562468 | EK6: 0.2542918298 | EL6: 0.2270715421 | EM6: 0.2020899274 | EN6: 0.1804122742 | EO6: 0.1608289656 | EP6: 0.1433345073 | EQ6: 0.1278906013 | ER6: 0.1140856534 | ES6: 0.1017477792 | ET6: 0.09072295058 | EU6: 0.08078726855 | EV6: 0.07191983404 | EW6: 0.06362452483 | EX6: 0.05660259433 | EY6: 0.05016108994 | EZ6: 0.04467712612 | FA6: 0.03963645906 | FB6: 0.034945435 | FC6: 0.03097346855 | FD6: 0.02746128788 | FE6: 0.02439468686 | FF6: 0.02166494567 | FG6: 0.01920808982 | FH6: 0.01694541976 | FI6: 0.01491633319 | FJ6: 0.01310239222 | FK6: 0.01162673563 | FL6: 0.01024422338 | FM6: 0.009038594546 | FN6: 0.007950470179 | FO6: 0.007032926364 | FP6: 0.006185603145 | FQ6: 0.00536012509 | FR6: 0.004735944328 | FS6: 0.00411854961 | FT6: 0.003615803045 | FU6: 0.00310175137 | FV6: 0.002686571115 | FW6: 0.002306570301 | FX6: 0.001956156646 | FY6: 0.001645497215 | FZ6: 0.001347952622 | GA6: 0.001113926278 | GB6: 0.0008712599372 | GC6: 0.0007207619764 | GD6: 0.0005748479593 | GE6: 0.0004405361725 | GF6: 0.0003542983546 | GG6: 0.0002563582659 | GH6: 0.0001817885458 | GI6: 0.0001063438431 | GJ6: 7.97728295e-05 | GK6: 6.759509252e-05 | GL6: 1.531182401e-05 | GM6: 4.321186691e-06 | GN6: 3.880799837e-06 | GO6: 3.485058945e-06 | GP6: 0 | GQ6: 0 | GR6: 0 | GS6: 0 | GT6: 0 | GU6: 0 | GV6: 0 | GW6: 0 | GX6: 0 | GY6: 0 | GZ6: 0 | HA6: 0 | HB6: 0 | HC6: 0 | HD6: 0 | HE6: 0 | HF6: 0 | HG6: 0 | HH6: 0 | HI6: 0 | HJ6: 0 | HK6: 0 | HL6: 0 | HM6: 0 | HN6: 0 | HO6: 0 | HP6: 0 | HQ6: 0 | HR6: 0 | HS6: 0 | HT6: 0 | HU6: 0 | HV6: 0 | HW6: 0 | HX6: 0 | HY6: 0 | HZ6: 0 | IA6: 0 | IB6: 0 | IC6: 0 | ID6: 0 | IE6: 0 | IF6: 0 | IG6: 0 | IH6: 0 | II6: 0 | IJ6: 0 | IK6: 0 | IL6: 0 | IM6: 0 | IN6: 0 | IO6: 0 | IP6: 0 | IQ6: 0 | IR6: 0 | IS6: 0 | IT6: 0 | IU6: 0 | IV6: 0 | IW6: 0 | IX6: 0 | IY6: 0 | IZ6: 0 | JA6: 0 | JB6: 0 | JC6: 0 | JD6: 0 | JE6: 0 | JF6: 0 | JG6: 0 | JH6: 0 | JI6: 0 | JJ6: 0 | JK6: 0 | JL6: 0 | JM6: 0 | JN6: 0 | JO6: 0 | JP6: 0 | JQ6: 0 | JR6: 0 | JS6: 0 | JT6: 0 | JU6: 0 | JV6: 0 | JW6: 0 | JX6: 0 | JY6: 0 | JZ6: 0 | KA6: 0 | KB6: 0 | KC6: 0 | KD6: 0 | KE6: 0 | KF6: 0 | KG6: 0 | KH6: 0 | KI6: 0 | KJ6: 0 | KK6: 0 | KL6: 0 | KM6: 0 | KN6: 0 | KO6: 0 | KP6: 0 | KQ6: 0 | KR6: 0 | KS6: 0 | KT6: 0 | KU6: 0 | KV6: 0 | KW6: 0 | KX6: 0 | KY6: 0 | KZ6: 0 | LA6: 0 | LB6: 0 | LC6: 0 | LD6: 0 | LE6: 0 | LF6: 0 | LG6: 0 | LH6: 0 | LI6: 0 | LJ6: 0 | LK6: 0 | LL6: 0 | LM6: 0 | LN6: 0 | LO6: 0 | LP6: 0 | LQ6: 0 | LR6: 0 | LS6: 0 | LT6: 0 | LU6: 0 | LV6: 0 | LW6: 0 | LX6: 0 | LY6: 0 | LZ6: 0 | MA6: 0 | MB6: 0 | MC6: 0 | MD6: 0 | ME6: 0 | MF6: 0 | MG6: 0 | MH6: 0 | MI6: 0 | MJ6: 0 | MK6: 0 | ML6: 0 | MM6: 0 | MN6: 0 | MO6: 0 | MP6: 0 | MQ6: 0 | MR6: 0 | MS6: 0 | MT6: 0 | MU6: 0 | MV6: 0 | MW6: 0
A7: =Inputs!C7 -> GT 1998-3 M1 | C7: 7162757.103 | D7: 6429277.078 | E7: 5770666.309 | F7: 5179310.801 | G7: 4648357.716 | H7: 4171638.734 | I7: 3743660.286 | J7: 3359477.528 | K7: 3014660.673 | L7: 2705163.587 | M7: 2427354.089 | N7: 2177970.775 | O7: 1954128.618 | P7: 1753216.729 | Q7: 1572909.174 | R7: 1411081.222 | S7: 1265867.664 | T7: 1135590.375 | U7: 1018704.891 | V7: 913809.764 | W7: 819827.7776 | X7: 735983.8995 | Y7: 660719.867 | Z7: 593127.3879 | AA7: 532427.0333 | AB7: 477919.0019 | AC7: 428973.7118 | AD7: 385026.1143 | AE7: 345567.1548 | AF7: 310139.8892 | AG7: 278336.0902 | AH7: 249783.4887 | AI7: 224149.503 | AJ7: 201138.7864 | AK7: 180481.5285 | AL7: 161939.4261 | AM7: 145297.7333 | AN7: 130360.9167 | AO7: 116952.5733 | AP7: 104918.3538 | AQ7: 94118.95055 | AR7: 84426.18837 | AS7: 75727.24208 | AT7: 67923.20472 | AU7: 60920.20595 | AV7: 54636.90086 | AW7: 49000.38235 | AX7: 43943.21013 | AY7: 39406.12247 | AZ7: 35334.70252 | BA7: 31682.51678 | BB7: 28406.45967 | BC7: 25467.63134 | BD7: 22831.35578 | BE7: 20466.94029 | BF7: 18345.85272 | BG7: 16443.81962 | BH7: 14738.53526 | BI7: 13209.1819 | BJ7: 11837.42041 | BK7: 10607.50121 | BL7: 9504.808434 | BM7: 8516.198144 | BN7: 7629.900468 | BO7: 6835.204364 | BP7: 6123.0165 | BQ7: 5484.592518 | BR7: 4912.496451 | BS7: 4399.187711 | BT7: 3940.065981 | BU7: 3528.875703 | BV7: 3160.272224 | BW7: 2830.056548 | BX7: 2533.974834 | BY7: 2268.713267 | BZ7: 2030.900813 | CA7: 1817.919168 | CB7: 1627.097621 | CC7: 1456.256806 | CD7: 1302.430196 | CE7: 1161.212181 | CF7: 1041.26822 | CG7: 933.9679268 | CH7: 837.6556475 | CI7: 751.2516028 | CJ7: 673.7463677 | CK7: 604.1839091 | CL7: 541.7872185 | CM7: 485.8104488 | CN7: 435.5977093 | CO7: 390.5492798 | CP7: 350.1153262 | CQ7: 313.8691857 | CR7: 281.3560469 | CS7: 252.1799632 | CT7: 225.996735 | CU7: 202.5485621 | CV7: 181.4947701 | CW7: 162.6260005 | CX7: 145.7099613 | CY7: 130.5551423 | CZ7: 116.9590533 | DA7: 104.7817399 | DB7: 93.85874468 | DC7: 84.07142515 | DD7: 75.29780164 | DE7: 67.43505644 | DF7: 60.38955864 | DG7: 54.07413792 | DH7: 48.41680255 | DI7: 43.34125737 | DJ7: 38.79934463 | DK7: 34.73032028 | DL7: 31.08813305 | DM7: 27.82351852 | DN7: 24.89010064 | DO7: 22.27041539 | DP7: 19.92238735 | DQ7: 17.82248431 | DR7: 15.94150173 | DS7: 14.2604213 | DT7: 12.75519933 | DU7: 11.40490546 | DV7: 10.19599108 | DW7: 9.113987701 | DX7: 8.145522989 | DY7: 7.281918011 | DZ7: 6.507561911 | EA7: 5.812906683 | EB7: 5.192767929 | EC7: 4.639604325 | ED7: 4.14209835 | EE7: 3.698917987 | EF7: 3.302772618 | EG7: 2.946937921 | EH7: 2.629584358 | EI7: 2.346311972 | EJ7: 2.090272074 | EK7: 1.862390839 | EL7: 1.656032608 | EM7: 1.461245049 | EN7: 1.30416977 | EO7: 1.16510232 | EP7: 1.040555564 | EQ7: 0.9291411456 | ER7: 0.8298567908 | ES7: 0.7410822818 | ET7: 0.6616304873 | EU7: 0.5904776436 | EV7: 0.5270127206 | EW7: 0.4704144564 | EX7: 0.419683235 | EY7: 0.3742723744 | EZ7: 0.3337392981 | FA7: 0.2976309154 | FB7: 0.2653276346 | FC7: 0.2365434823 | FD7: 0.210755073 | FE7: 0.1878455866 | FF7: 0.1673595509 | FG7: 0.148967841 | FH7: 0.1326946021 | FI7: 0.1181385997 | FJ7: 0.1050539591 | FK7: 0.09350839609 | FL7: 0.08316409658 | FM7: 0.07393390612 | FN7: 0.06577366904 | FO7: 0.05841957558 | FP7: 0.05189773811 | FQ7: 0.04607698732 | FR7: 0.0408927962 | FS7: 0.03629398384 | FT7: 0.03219587474 | FU7: 0.02859192049 | FV7: 0.02533881006 | FW7: 0.02246438521 | FX7: 0.01988470585 | FY7: 0.0175919671 | FZ7: 0.01556352033 | GA7: 0.01376238978 | GB7: 0.01215823894 | GC7: 0.01071476092 | GD7: 0.009445999416 | GE7: 0.008335547444 | GF7: 0.007312762745 | GG7: 0.006417623566 | GH7: 0.005626568514 | GI7: 0.004924598048 | GJ7: 0.00428667086 | GK7: 0.003724597448 | GL7: 0.003214617179 | GM7: 0.002764211744 | GN7: 0.002386374474 | GO7: 0.00203984564 | GP7: 0.001727932032 | GQ7: 0.001449799786 | GR7: 0.001202821984 | GS7: 0.0009680549343 | GT7: 0.000706259148 | GU7: 0.0001248860746 | GV7: 4.567166588e-05 | GW7: 2.764049858e-05 | GX7: 2.718511751e-06 | GY7: 1.940748818e-06 | GZ7: 1.689571904e-06 | HA7: 1.468656092e-06 | HB7: 1.27451266e-06 | HC7: 1.043853247e-06 | HD7: 0 | HE7: 0 | HF7: 0 | HG7: 0 | HH7: 0 | HI7: 0 | HJ7: 0 | HK7: 0 | HL7: 0 | HM7: 0 | HN7: 0 | HO7: 0 | HP7: 0 | HQ7: 0 | HR7: 0 | HS7: 0 | HT7: 0 | HU7: 0 | HV7: 0 | HW7: 0 | HX7: 0 | HY7: 0 | HZ7: 0 | IA7: 0 | IB7: 0 | IC7: 0 | ID7: 0 | IE7: 0 | IF7: 0 | IG7: 0 | IH7: 0 | II7: 0 | IJ7: 0 | IK7: 0 | IL7: 0 | IM7: 0 | IN7: 0 | IO7: 0 | IP7: 0 | IQ7: 0 | IR7: 0 | IS7: 0 | IT7: 0 | IU7: 0 | IV7: 0 | IW7: 0 | IX7: 0 | IY7: 0 | IZ7: 0 | JA7: 0 | JB7: 0 | JC7: 0 | JD7: 0 | JE7: 0 | JF7: 0 | JG7: 0 | JH7: 0 | JI7: 0 | JJ7: 0 | JK7: 0 | JL7: 0 | JM7: 0 | JN7: 0 | JO7: 0 | JP7: 0 | JQ7: 0 | JR7: 0 | JS7: 0 | JT7: 0 | JU7: 0 | JV7: 0 | JW7: 0 | JX7: 0 | JY7: 0 | JZ7: 0 | KA7: 0 | KB7: 0 | KC7: 0 | KD7: 0 | KE7: 0 | KF7: 0 | KG7: 0 | KH7: 0 | KI7: 0 | KJ7: 0 | KK7: 0 | KL7: 0 | KM7: 0 | KN7: 0 | KO7: 0 | KP7: 0 | KQ7: 0 | KR7: 0 | KS7: 0 | KT7: 0 | KU7: 0 | KV7: 0 | KW7: 0 | KX7: 0 | KY7: 0 | KZ7: 0 | LA7: 0 | LB7: 0 | LC7: 0 | LD7: 0 | LE7: 0 | LF7: 0 | LG7: 0 | LH7: 0 | LI7: 0 | LJ7: 0 | LK7: 0 | LL7: 0 | LM7: 0 | LN7: 0 | LO7: 0 | LP7: 0 | LQ7: 0 | LR7: 0 | LS7: 0 | LT7: 0 | LU7: 0 | LV7: 0 | LW7: 0 | LX7: 0 | LY7: 0 | LZ7: 0 | MA7: 0 | MB7: 0 | MC7: 0 | MD7: 0 | ME7: 0 | MF7: 0 | MG7: 0 | MH7: 0 | MI7: 0 | MJ7: 0 | MK7: 0 | ML7: 0 | MM7: 0 | MN7: 0 | MO7: 0 | MP7: 0 | MQ7: 0 | MR7: 0 | MS7: 0 | MT7: 0 | MU7: 0 | MV7: 0 | MW7: 0
A8: =Inputs!C8 -> GT 1998-4 A6 | C8: 7445978.39 | D8: 6678792.327 | E8: 5990422.398 | F8: 5372796.073 | G8: 4818656.555 | H8: 4321460.847 | I8: 3875415.951 | J8: 3475258.814 | K8: 3116294.024 | L8: 2794276.773 | M8: 2505440.485 | N8: 2246373.407 | O8: 2014031.159 | P8: 1805649.2 | Q8: 1618773.11 | R8: 1451184.211 | S8: 1300896.297 | T8: 1166137.172 | U8: 1045331.096 | V8: 937045.9724 | W8: 839970.8023 | X8: 752995.3377 | Y8: 675458.0826 | Z8: 605912.7976 | AA8: 543507.7351 | AB8: 487511.1967 | AC8: 437269.3629 | AD8: 392190.0171 | AE8: 351749.5976 | AF8: 315465.4054 | AG8: 282910.4897 | AH8: 253704.7955 | AI8: 227504.8266 | AJ8: 204001.3615 | AK8: 182919.8955 | AL8: 164009.1702 | AM8: 147045.8871 | AN8: 131832.851 | AO8: 118187.2085 | AP8: 105950.0301 | AQ8: 94975.74645 | AR8: 85134.22872 | AS8: 76308.37205 | AT8: 68394.12527 | AU8: 61296.6817 | AV8: 54932.76153 | AW8: 49229.66095 | AX8: 44116.10687 | AY8: 39531.55173 | AZ8: 35420.96743 | BA8: 31736.37337 | BB8: 28433.49272 | BC8: 25473.31012 | BD8: 22819.5614 | BE8: 20441.48701 | BF8: 18310.07213 | BG8: 16399.73447 | BH8: 14687.76602 | BI8: 13154.32612 | BJ8: 11780.42444 | BK8: 10549.14588 | BL8: 9446.264869 | BM8: 8458.070478 | BN8: 7572.700522 | BO8: 6779.383738 | BP8: 6068.840381 | BQ8: 5432.622682 | BR8: 4862.742629 | BS8: 4352.373462 | BT8: 3895.174332 | BU8: 3485.911669 | BV8: 3119.435858 | BW8: 2791.139573 | BX8: 2497.401303 | BY8: 2234.322722 | BZ8: 1998.811071 | CA8: 1787.89707 | CB8: 1599.247815 | CC8: 1430.003234 | CD8: 1278.510174 | CE8: 1142.015482 | CF8: 1017.384445 | CG8: 911.110835 | CH8: 816.4938831 | CI8: 731.6159345 | CJ8: 655.5823482 | CK8: 587.4301152 | CL8: 526.2952871 | CM8: 471.4925622 | CN8: 422.4104406 | CO8: 378.4227897 | CP8: 338.9894481 | CQ8: 303.6183755 | CR8: 271.9549057 | CS8: 243.5782023 | CT8: 218.1270973 | CU8: 195.3307406 | CV8: 174.9152581 | CW8: 156.6232254 | CX8: 140.2317343 | CY8: 125.5438676 | CZ8: 112.3845559 | DA8: 100.6008812 | DB8: 90.04654508 | DC8: 80.5904013 | DD8: 72.1206458 | DE8: 64.54551384 | DF8: 57.76054399 | DG8: 51.6772578 | DH8: 46.2341657 | DI8: 41.36407539 | DJ8: 37.00649047 | DK8: 33.1051215 | DL8: 29.61111922 | DM8: 26.47991298 | DN8: 23.6798382 | DO8: 21.17497618 | DP8: 18.93277356 | DQ8: 16.92379074 | DR8: 15.12745679 | DS8: 13.52268734 | DT8: 12.08227592 | DU8: 10.79658785 | DV8: 9.649122377 | DW8: 8.620363705 | DX8: 7.701108464 | DY8: 6.878783843 | DZ8: 6.141407527 | EA8: 5.483303272 | EB8: 4.894533348 | EC8: 4.368231971 | ED8: 3.899671923 | EE8: 3.480540156 | EF8: 3.104719679 | EG8: 2.769416627 | EH8: 2.469916463 | EI8: 2.202109416 | EJ8: 1.963662174 | EK8: 1.74953229 | EL8: 1.558305675 | EM8: 1.386675011 | EN8: 1.222736506 | EO8: 1.090697151 | EP8: 0.9732625044 | EQ8: 0.8686142646 | ER8: 0.7750068375 | ES8: 0.6912816682 | ET8: 0.6166707339 | EU8: 0.5501041336 | EV8: 0.4904953484 | EW8: 0.4373436146 | EX8: 0.389901503 | EY8: 0.3475179835 | EZ8: 0.3096504581 | FA8: 0.2759650242 | FB8: 0.2459337915 | FC8: 0.2191196797 | FD8: 0.1952031937 | FE8: 0.173835782 | FF8: 0.1548319295 | FG8: 0.1377846843 | FH8: 0.1226709541 | FI8: 0.1091022129 | FJ8: 0.09709228506 | FK8: 0.08628960792 | FL8: 0.0766458596 | FM8: 0.06814265868 | FN8: 0.06045430456 | FO8: 0.05367441303 | FP8: 0.04769900335 | FQ8: 0.04233374703 | FR8: 0.03756093256 | FS8: 0.033302402 | FT8: 0.0295470947 | FU8: 0.02619918759 | FV8: 0.02318448399 | FW8: 0.02049194427 | FX8: 0.01813293677 | FY8: 0.01604054425 | FZ8: 0.01417048537 | GA8: 0.01254024073 | GB8: 0.01108272467 | GC8: 0.009804559629 | GD8: 0.008634790286 | GE8: 0.007624500097 | GF8: 0.006708198621 | GG8: 0.005896201349 | GH8: 0.005192305567 | GI8: 0.004545286737 | GJ8: 0.003978570759 | GK8: 0.003460941012 | GL8: 0.002987370131 | GM8: 0.002589401145 | GN8: 0.002221960004 | GO8: 0.001907886737 | GP8: 0.001622438834 | GQ8: 0.001366198887 | GR8: 0.001147204419 | GS8: 0.0009572597057 | GT8: 0.0007817224636 | GU8: 0.0005381418558 | GV8: 0.0001036554295 | GW8: 3.03098319e-05 | GX8: 9.688784642e-06 | GY8: 1.491250983e-06 | GZ8: 7.367201726e-07 | HA8: 5.905352588e-07 | HB8: 4.712728561e-07 | HC8: 3.847576874e-07 | HD8: 3.252699756e-07 | HE8: 0 | HF8: 0 | HG8: 0 | HH8: 0 | HI8: 0 | HJ8: 0 | HK8: 0 | HL8: 0 | HM8: 0 | HN8: 0 | HO8: 0 | HP8: 0 | HQ8: 0 | HR8: 0 | HS8: 0 | HT8: 0 | HU8: 0 | HV8: 0 | HW8: 0 | HX8: 0 | HY8: 0 | HZ8: 0 | IA8: 0 | IB8: 0 | IC8: 0 | ID8: 0 | IE8: 0 | IF8: 0 | IG8: 0 | IH8: 0 | II8: 0 | IJ8: 0 | IK8: 0 | IL8: 0 | IM8: 0 | IN8: 0 | IO8: 0 | IP8: 0 | IQ8: 0 | IR8: 0 | IS8: 0 | IT8: 0 | IU8: 0 | IV8: 0 | IW8: 0 | IX8: 0 | IY8: 0 | IZ8: 0 | JA8: 0 | JB8: 0 | JC8: 0 | JD8: 0 | JE8: 0 | JF8: 0 | JG8: 0 | JH8: 0 | JI8: 0 | JJ8: 0 | JK8: 0 | JL8: 0 | JM8: 0 | JN8: 0 | JO8: 0 | JP8: 0 | JQ8: 0 | JR8: 0 | JS8: 0 | JT8: 0 | JU8: 0 | JV8: 0 | JW8: 0 | JX8: 0 | JY8: 0 | JZ8: 0 | KA8: 0 | KB8: 0 | KC8: 0 | KD8: 0 | KE8: 0 | KF8: 0 | KG8: 0 | KH8: 0 | KI8: 0 | KJ8: 0 | KK8: 0 | KL8: 0 | KM8: 0 | KN8: 0 | KO8: 0 | KP8: 0 | KQ8: 0 | KR8: 0 | KS8: 0 | KT8: 0 | KU8: 0 | KV8: 0 | KW8: 0 | KX8: 0 | KY8: 0 | KZ8: 0 | LA8: 0 | LB8: 0 | LC8: 0 | LD8: 0 | LE8: 0 | LF8: 0 | LG8: 0 | LH8: 0 | LI8: 0 | LJ8: 0 | LK8: 0 | LL8: 0 | LM8: 0 | LN8: 0 | LO8: 0 | LP8: 0 | LQ8: 0 | LR8: 0 | LS8: 0 | LT8: 0 | LU8: 0 | LV8: 0 | LW8: 0 | LX8: 0 | LY8: 0 | LZ8: 0 | MA8: 0 | MB8: 0 | MC8: 0 | MD8: 0 | ME8: 0 | MF8: 0 | MG8: 0 | MH8: 0 | MI8: 0 | MJ8: 0 | MK8: 0 | ML8: 0 | MM8: 0 | MN8: 0 | MO8: 0 | MP8: 0 | MQ8: 0 | MR8: 0 | MS8: 0 | MT8: 0 | MU8: 0 | MV8: 0 | MW8: 0
A9: =Inputs!C9 -> GT 1998-6 A8 | C9: 11858774.89 | D9: 10637086.46 | E9: 9540842.137 | F9: 8557193.368 | G9: 7674635.861 | H9: 6882849.859 | I9: 6172538.882 | J9: 5535308.575 | K9: 4963672.86 | L9: 4450894.163 | M9: 3990939.764 | N9: 3578367.336 | O9: 3208328.023 | P9: 2876436.092 | Q9: 2578762.808 | R9: 2311799.527 | S9: 2072398.148 | T9: 1857739.825 | U9: 1665285.443 | V9: 1492748.841 | W9: 1338079.047 | X9: 1199444.704 | Y9: 1075049.852 | Z9: 963757.8526 | AA9: 864393.6299 | AB9: 775390.1591 | AC9: 695524.318 | AD9: 623856.0957 | AE9: 559558.9715 | AF9: 501870.1009 | AG9: 450111.114 | AH9: 403673.483 | AI9: 362009.8021 | AJ9: 324629.6719 | AK9: 291099.6084 | AL9: 261020.2687 | AM9: 234038.3204 | AN9: 209835.2757 | AO9: 188126.9024 | AP9: 168657.0194 | AQ9: 151194.5857 | AR9: 135535.5827 | AS9: 121493.6973 | AT9: 108901.5169 | AU9: 97611.06396 | AV9: 87486.66146 | AW9: 78406.72829 | AX9: 70266.80895 | AY9: 62969.86502 | AZ9: 56427.58322 | BA9: 50562.25366 | BB9: 45304.00061 | BC9: 40590.81019 | BD9: 36365.54207 | BE9: 32578.7685 | BF9: 29184.24017 | BG9: 26142.25961 | BH9: 23416.07292 | BI9: 20973.16736 | BJ9: 18783.82113 | BK9: 16822.85351 | BL9: 15065.96467 | BM9: 13491.98639 | BN9: 12081.24946 | BO9: 10817.64994 | BP9: 9685.276109 | BQ9: 8671.280193 | BR9: 7762.615312 | BS9: 6948.957081 | BT9: 6219.933905 | BU9: 5567.290678 | BV9: 4982.534579 | BW9: 4459.068012 | BX9: 3990.45056 | BY9: 3570.970786 | BZ9: 3195.531748 | CA9: 2859.083033 | CB9: 2557.933383 | CC9: 2288.338345 | CD9: 2046.749208 | CE9: 1830.441888 | CF9: 1637.093371 | CG9: 1461.884806 | CH9: 1304.653338 | CI9: 1167.924248 | CJ9: 1046.494132 | CK9: 937.714823 | CL9: 840.1817796 | CM9: 752.7589076 | CN9: 674.3626842 | CO9: 604.1130053 | CP9: 541.1333739 | CQ9: 484.7158506 | CR9: 434.1447188 | CS9: 388.8021528 | CT9: 348.2021052 | CU9: 311.7957442 | CV9: 279.2015479 | CW9: 249.9813255 | CX9: 223.7918 | CY9: 200.3595272 | CZ9: 179.3481373 | DA9: 160.5372867 | DB9: 143.6931309 | DC9: 128.6099533 | DD9: 115.0757183 | DE9: 102.977479 | DF9: 92.13973122 | DG9: 82.44495315 | DH9: 73.76167888 | DI9: 65.98313621 | DJ9: 59.01035044 | DK9: 52.78285379 | DL9: 47.2089839 | DM9: 42.21555687 | DN9: 37.75042912 | DO9: 33.75654349 | DP9: 30.1754064 | DQ9: 26.97224382 | DR9: 24.1104532 | DS9: 21.54831394 | DT9: 19.25555337 | DU9: 17.20485586 | DV9: 15.37384287 | DW9: 13.73440855 | DX9: 12.26767293 | DY9: 10.95632938 | DZ9: 9.784074678 | EA9: 8.737472721 | EB9: 7.801798008 | EC9: 6.961935048 | ED9: 6.214183717 | EE9: 5.544472508 | EF9: 4.948548567 | EG9: 4.415643458 | EH9: 3.93936479 | EI9: 3.512797325 | EJ9: 3.129240326 | EK9: 2.789762146 | EL9: 2.486993139 | EM9: 2.214866263 | EN9: 1.972666322 | EO9: 1.748090242 | EP9: 1.543669719 | EQ9: 1.371559938 | ER9: 1.224095438 | ES9: 1.092478953 | ET9: 0.9752229546 | EU9: 0.8698219376 | EV9: 0.7760270204 | EW9: 0.6922405779 | EX9: 0.6174081137 | EY9: 0.5506113946 | EZ9: 0.4908253857 | FA9: 0.4375515865 | FB9: 0.3899985419 | FC9: 0.3474871324 | FD9: 0.3094357918 | FE9: 0.2756427946 | FF9: 0.2454791036 | FG9: 0.218690748 | FH9: 0.1946599879 | FI9: 0.1732453214 | FJ9: 0.1542072855 | FK9: 0.1371471725 | FL9: 0.1219516444 | FM9: 0.1085106091 | FN9: 0.09645419117 | FO9: 0.08576056054 | FP9: 0.0761667532 | FQ9: 0.06767723329 | FR9: 0.06007851096 | FS9: 0.05339050528 | FT9: 0.04735747585 | FU9: 0.04199277144 | FV9: 0.03725708523 | FW9: 0.03301853797 | FX9: 0.02927008867 | FY9: 0.02591749824 | FZ9: 0.02288307116 | GA9: 0.02023352901 | GB9: 0.01786688062 | GC9: 0.01578807959 | GD9: 0.01395235946 | GE9: 0.01230816089 | GF9: 0.01084634611 | GG9: 0.009558532779 | GH9: 0.008399583732 | GI9: 0.007374933781 | GJ9: 0.006465712605 | GK9: 0.005654521841 | GL9: 0.004922244196 | GM9: 0.00429349319 | GN9: 0.003738096475 | GO9: 0.003228936303 | GP9: 0.002794112874 | GQ9: 0.002380581587 | GR9: 0.002032245342 | GS9: 0.001717420234 | GT9: 0.001424185419 | GU9: 0.001186481023 | GV9: 0.0009490853889 | GW9: 0.0005747174169 | GX9: 0.0001701839786 | GY9: 2.79549599e-05 | GZ9: 9.344625138e-06 | HA9: 8.814922589e-07 | HB9: 5.677018639e-07 | HC9: 4.995620867e-07 | HD9: 4.392805732e-07 | HE9: 3.859756142e-07 | HF9: 3.388624718e-07 | HG9: 0 | HH9: 0 | HI9: 0 | HJ9: 0 | HK9: 0 | HL9: 0 | HM9: 0 | HN9: 0 | HO9: 0 | HP9: 0 | HQ9: 0 | HR9: 0 | HS9: 0 | HT9: 0 | HU9: 0 | HV9: 0 | HW9: 0 | HX9: 0 | HY9: 0 | HZ9: 0 | IA9: 0 | IB9: 0 | IC9: 0 | ID9: 0 | IE9: 0 | IF9: 0 | IG9: 0 | IH9: 0 | II9: 0 | IJ9: 0 | IK9: 0 | IL9: 0 | IM9: 0 | IN9: 0 | IO9: 0 | IP9: 0 | IQ9: 0 | IR9: 0 | IS9: 0 | IT9: 0 | IU9: 0 | IV9: 0 | IW9: 0 | IX9: 0 | IY9: 0 | IZ9: 0 | JA9: 0 | JB9: 0 | JC9: 0 | JD9: 0 | JE9: 0 | JF9: 0 | JG9: 0 | JH9: 0 | JI9: 0 | JJ9: 0 | JK9: 0 | JL9: 0 | JM9: 0 | JN9: 0 | JO9: 0 | JP9: 0 | JQ9: 0 | JR9: 0 | JS9: 0 | JT9: 0 | JU9: 0 | JV9: 0 | JW9: 0 | JX9: 0 | JY9: 0 | JZ9: 0 | KA9: 0 | KB9: 0 | KC9: 0 | KD9: 0 | KE9: 0 | KF9: 0 | KG9: 0 | KH9: 0 | KI9: 0 | KJ9: 0 | KK9: 0 | KL9: 0 | KM9: 0 | KN9: 0 | KO9: 0 | KP9: 0 | KQ9: 0 | KR9: 0 | KS9: 0 | KT9: 0 | KU9: 0 | KV9: 0 | KW9: 0 | KX9: 0 | KY9: 0 | KZ9: 0 | LA9: 0 | LB9: 0 | LC9: 0 | LD9: 0 | LE9: 0 | LF9: 0 | LG9: 0 | LH9: 0 | LI9: 0 | LJ9: 0 | LK9: 0 | LL9: 0 | LM9: 0 | LN9: 0 | LO9: 0 | LP9: 0 | LQ9: 0 | LR9: 0 | LS9: 0 | LT9: 0 | LU9: 0 | LV9: 0 | LW9: 0 | LX9: 0 | LY9: 0 | LZ9: 0 | MA9: 0 | MB9: 0 | MC9: 0 | MD9: 0 | ME9: 0 | MF9: 0 | MG9: 0 | MH9: 0 | MI9: 0 | MJ9: 0 | MK9: 0 | ML9: 0 | MM9: 0 | MN9: 0 | MO9: 0 | MP9: 0 | MQ9: 0 | MR9: 0 | MS9: 0 | MT9: 0 | MU9: 0 | MV9: 0 | MW9: 0
A10: =Inputs!C10 -> GT 1996-2 M1 | C10: 129682.9142 | D10: 128153.3884 | E10: 126630.9224 | F10: 125151.0139 | G10: 123677.8802 | H10: 122211.4782 | I10: 120751.7635 | J10: 119299.9706 | K10: 117854.7745 | L10: 116416.1329 | M10: 114984.0037 | N10: 113558.3438 | O10: 112139.4902 | P10: 110727.0212 | Q10: 109321.3554 | R10: 107921.9901 | S10: 106528.8846 | T10: 105141.9984 | U10: 103761.291 | V10: 102386.7225 | W10: 101018.2528 | X10: 99655.84243 | Y10: 98299.4518 | Z10: 96949.0417 | AA10: 95604.57309 | AB10: 94265.99856 | AC10: 92934.12353 | AD10: 91609.18485 | AE10: 90291.45321 | AF10: 88979.69831 | AG10: 87673.60606 | AH10: 86375.47923 | AI10: 85083.53593 | AJ10: 83797.16297 | AK10: 82516.32357 | AL10: 81240.49641 | AM10: 79971.36938 | AN10: 78708.38388 | AO10: 77450.77628 | AP10: 76198.51084 | AQ10: 74951.55204 | AR10: 73709.8645 | AS10: 72472.74374 | AT10: 71242.54021 | AU10: 70017.47626 | AV10: 68798.20989 | AW10: 67584.64594 | AX10: 66376.92243 | AY10: 65173.977 | AZ10: 63990.34457 | BA10: 62833.90166 | BB10: 61723.74983 | BC10: 60836.41621 | BD10: 60067.70978 | BE10: 59305.99925 | BF10: 58548.71791 | BG10: 57794.888 | BH10: 57045.06671 | BI10: 56299.05698 | BJ10: 55556.4749 | BK10: 54817.29874 | BL10: 54081.50692 | BM10: 53348.96728 | BN10: 52621.04099 | BO10: 51896.43017 | BP10: 51175.11374 | BQ10: 50457.07072 | BR10: 49742.28025 | BS10: 49030.7216 | BT10: 48322.37413 | BU10: 47617.21733 | BV10: 46915.23078 | BW10: 46216.3942 | BX10: 45520.68739 | BY10: 44828.09029 | BZ10: 44138.58293 | CA10: 43452.14545 | CB10: 42768.75811 | CC10: 42088.40126 | CD10: 41411.05538 | CE10: 40736.70102 | CF10: 40065.31888 | CG10: 39396.88973 | CH10: 38731.39446 | CI10: 38068.81407 | CJ10: 37409.12963 | CK10: 36752.32236 | CL10: 36098.37356 | CM10: 35447.2646 | CN10: 34798.97701 | CO10: 34153.49238 | CP10: 33510.79241 | CQ10: 32870.8589 | CR10: 32233.67374 | CS10: 31599.21894 | CT10: 30967.47657 | CU10: 30338.42884 | CV10: 29712.05803 | CW10: 29088.34651 | CX10: 28467.27676 | CY10: 27848.83135 | CZ10: 27232.99294 | DA10: 26619.7443 | DB10: 26008.80943 | DC10: 25401.36412 | DD10: 24796.39005 | DE10: 24194.17625 | DF10: 23594.35527 | DG10: 22995.11889 | DH10: 22402.81264 | DI10: 21818.42786 | DJ10: 21232.12475 | DK10: 20751.64679 | DL10: 20356.82339 | DM10: 19966.77997 | DN10: 19578.12982 | DO10: 19192.20322 | DP10: 18808.6592 | DQ10: 18426.81116 | DR10: 18046.64819 | DS10: 17668.15947 | DT10: 17291.33422 | DU10: 16916.16172 | DV10: 16542.63133 | DW10: 16170.73244 | DX10: 15800.45451 | DY10: 15431.78706 | DZ10: 15064.71966 | EA10: 14699.24195 | EB10: 14335.34361 | EC10: 13973.01439 | ED10: 13612.24408 | EE10: 13253.02254 | EF10: 12895.33968 | EG10: 12539.18547 | EH10: 12184.54992 | EI10: 11831.4231 | EJ10: 11479.79515 | EK10: 11129.65625 | EL10: 10780.99663 | EM10: 10433.80657 | EN10: 10087.68318 | EO10: 9743.881518 | EP10: 9401.519409 | EQ10: 9060.587361 | ER10: 8721.075932 | ES10: 8382.975732 | ET10: 8046.277421 | EU10: 7710.971709 | EV10: 7377.049358 | EW10: 7044.501178 | EX10: 6713.318029 | EY10: 6383.490822 | EZ10: 6055.010514 | FA10: 5727.868112 | FB10: 5402.054673 | FC10: 5077.561299 | FD10: 4754.379142 | FE10: 4432.220047 | FF10: 4111.897537 | FG10: 3792.859271 | FH10: 3475.096596 | FI10: 3158.600904 | FJ10: 2843.363634 | FK10: 2529.37627 | FL10: 2216.630343 | FM10: 1905.117428 | FN10: 1593.656094 | FO10: 1276.343366 | FP10: 964.8740637 | FQ10: 641.1148363 | FR10: 248.5178826 | FS10: 51.90502836 | FT10: 28.64179582 | FU10: 13.76543167 | FV10: 4.917834024 | FW10: 0.7436662534 | FX10: 0 | FY10: 0 | FZ10: 0 | GA10: 0 | GB10: 0 | GC10: 0 | GD10: 0 | GE10: 0 | GF10: 0 | GG10: 0 | GH10: 0 | GI10: 0 | GJ10: 0 | GK10: 0 | GL10: 0 | GM10: 0 | GN10: 0 | GO10: 0 | GP10: 0 | GQ10: 0 | GR10: 0 | GS10: 0 | GT10: 0 | GU10: 0 | GV10: 0 | GW10: 0 | GX10: 0 | GY10: 0 | GZ10: 0 | HA10: 0 | HB10: 0 | HC10: 0 | HD10: 0 | HE10: 0 | HF10: 0 | HG10: 0 | HH10: 0 | HI10: 0 | HJ10: 0 | HK10: 0 | HL10: 0 | HM10: 0 | HN10: 0 | HO10: 0 | HP10: 0 | HQ10: 0 | HR10: 0 | HS10: 0 | HT10: 0 | HU10: 0 | HV10: 0 | HW10: 0 | HX10: 0 | HY10: 0 | HZ10: 0 | IA10: 0 | IB10: 0 | IC10: 0 | ID10: 0 | IE10: 0 | IF10: 0 | IG10: 0 | IH10: 0 | II10: 0 | IJ10: 0 | IK10: 0 | IL10: 0 | IM10: 0 | IN10: 0 | IO10: 0 | IP10: 0 | IQ10: 0 | IR10: 0 | IS10: 0 | IT10: 0 | IU10: 0 | IV10: 0 | IW10: 0 | IX10: 0 | IY10: 0 | IZ10: 0 | JA10: 0 | JB10: 0 | JC10: 0 | JD10: 0 | JE10: 0 | JF10: 0 | JG10: 0 | JH10: 0 | JI10: 0 | JJ10: 0 | JK10: 0 | JL10: 0 | JM10: 0 | JN10: 0 | JO10: 0 | JP10: 0 | JQ10: 0 | JR10: 0 | JS10: 0 | JT10: 0 | JU10: 0 | JV10: 0 | JW10: 0 | JX10: 0 | JY10: 0 | JZ10: 0 | KA10: 0 | KB10: 0 | KC10: 0 | KD10: 0 | KE10: 0 | KF10: 0 | KG10: 0 | KH10: 0 | KI10: 0 | KJ10: 0 | KK10: 0 | KL10: 0 | KM10: 0 | KN10: 0 | KO10: 0 | KP10: 0 | KQ10: 0 | KR10: 0 | KS10: 0 | KT10: 0 | KU10: 0 | KV10: 0 | KW10: 0 | KX10: 0 | KY10: 0 | KZ10: 0 | LA10: 0 | LB10: 0 | LC10: 0 | LD10: 0 | LE10: 0 | LF10: 0 | LG10: 0 | LH10: 0 | LI10: 0 | LJ10: 0 | LK10: 0 | LL10: 0 | LM10: 0 | LN10: 0 | LO10: 0 | LP10: 0 | LQ10: 0 | LR10: 0 | LS10: 0 | LT10: 0 | LU10: 0 | LV10: 0 | LW10: 0 | LX10: 0 | LY10: 0 | LZ10: 0 | MA10: 0 | MB10: 0 | MC10: 0 | MD10: 0 | ME10: 0 | MF10: 0 | MG10: 0 | MH10: 0 | MI10: 0 | MJ10: 0 | MK10: 0 | ML10: 0 | MM10: 0 | MN10: 0 | MO10: 0 | MP10: 0 | MQ10: 0 | MR10: 0 | MS10: 0 | MT10: 0 | MU10: 0 | MV10: 0 | MW10: 0
A11: =Inputs!C11 -> GT 1996-5 M1 | C11: 757579.694 | D11: 741298.8472 | E11: 725305.2189 | F11: 709604.2685 | G11: 694191.7274 | H11: 679051.3723 | I11: 664180.3698 | J11: 649578.5152 | K11: 635236.5822 | L11: 621157.2286 | M11: 607336.7727 | N11: 593772.4576 | O11: 580456.6229 | P11: 567384.0767 | Q11: 554552.1615 | R11: 541954.3101 | S11: 529586.0676 | T11: 517450.7104 | U11: 505544.289 | V11: 493855.9128 | W11: 482391.1356 | X11: 471149.7447 | Y11: 460122.0351 | Z11: 449305.7051 | AA11: 438689.0626 | AB11: 428281.306 | AC11: 418073.0703 | AD11: 408054.9238 | AE11: 398226.0963 | AF11: 388587.8586 | AG11: 379135.7205 | AH11: 369861.6826 | AI11: 360762.9085 | AJ11: 351840.0535 | AK11: 343093.0739 | AL11: 334520.8121 | AM11: 326117.1318 | AN11: 317876.8243 | AO11: 309807.117 | AP11: 301909.6714 | AQ11: 294174.5435 | AR11: 286594.2854 | AS11: 279179.3884 | AT11: 271933.1312 | AU11: 264863.7438 | AV11: 257976.1253 | AW11: 251286.7592 | AX11: 244816.7835 | AY11: 238601.1259 | AZ11: 232752.6939 | BA11: 227450.0074 | BB11: 222282.1693 | BC11: 217208.685 | BD11: 212225.4717 | BE11: 207341.3313 | BF11: 202549.0749 | BG11: 197843.2303 | BH11: 193222.3604 | BI11: 188685.0512 | BJ11: 184230.6459 | BK11: 179857.8397 | BL11: 175564.2771 | BM11: 171352.2255 | BN11: 167218.0585 | BO11: 163160.5437 | BP11: 159180.544 | BQ11: 155275.0173 | BR11: 151444.299 | BS11: 147683.8645 | BT11: 143992.5373 | BU11: 140370.7886 | BV11: 136816.7154 | BW11: 133328.2777 | BX11: 129905.1474 | BY11: 126547.2302 | BZ11: 123254.104 | CA11: 120024.1851 | CB11: 116854.2642 | CC11: 113746.5561 | CD11: 110700.5458 | CE11: 107715.3162 | CF11: 104788.7287 | CG11: 101924.2069 | CH11: 99117.39716 | CI11: 96367.49701 | CJ11: 93674.13576 | CK11: 91033.44934 | CL11: 88445.64395 | CM11: 85913.40028 | CN11: 83437.07537 | CO11: 81013.24195 | CP11: 78639.5343 | CQ11: 76312.46129 | CR11: 74037.75858 | CS11: 71808.54567 | CT11: 69623.19491 | CU11: 67481.24543 | CV11: 65385.73752 | CW11: 63336.89035 | CX11: 61330.92155 | CY11: 59370.33486 | CZ11: 57451.9972 | DA11: 55575.50039 | DB11: 53742.67005 | DC11: 51960.07826 | DD11: 50223.77526 | DE11: 48536.47177 | DF11: 46893.84973 | DG11: 45184.92749 | DH11: 43572.76008 | DI11: 42253.96714 | DJ11: 40980.21402 | DK11: 39732.38732 | DL11: 38510.82161 | DM11: 37314.24811 | DN11: 36139.73765 | DO11: 34989.25277 | DP11: 33861.82718 | DQ11: 32762.19159 | DR11: 31684.08301 | DS11: 30624.79784 | DT11: 29590.14128 | DU11: 28577.04752 | DV11: 27584.46747 | DW11: 26614.20443 | DX11: 25664.1051 | DY11: 24734.68962 | DZ11: 23828.94135 | EA11: 22941.60451 | EB11: 22070.90365 | EC11: 21221.18794 | ED11: 20390.40321 | EE11: 19575.83804 | EF11: 18784.69608 | EG11: 18009.0592 | EH11: 17250.17322 | EI11: 16506.68769 | EJ11: 15780.66385 | EK11: 15070.41757 | EL11: 14376.64806 | EM11: 13697.25055 | EN11: 13042.20718 | EO11: 12401.17127 | EP11: 11778.41699 | EQ11: 11168.3495 | ER11: 10578.8746 | ES11: 10002.01734 | ET11: 9441.190752 | EU11: 8893.489771 | EV11: 8360.525599 | EW11: 7837.932665 | EX11: 7330.306499 | EY11: 6841.437699 | EZ11: 6364.624173 | FA11: 5901.557831 | FB11: 5443.191596 | FC11: 5009.1395 | FD11: 4578.544763 | FE11: 4171.51442 | FF11: 3778.738559 | FG11: 3397.99022 | FH11: 3034.761427 | FI11: 2687.407677 | FJ11: 2338.530901 | FK11: 2034.249929 | FL11: 1733.779946 | FM11: 1438.860559 | FN11: 1106.902046 | FO11: 708.3751343 | FP11: 39.66303389 | FQ11: 0 | FR11: 0 | FS11: 0 | FT11: 0 | FU11: 0 | FV11: 0 | FW11: 0 | FX11: 0 | FY11: 0 | FZ11: 0 | GA11: 0 | GB11: 0 | GC11: 0 | GD11: 0 | GE11: 0 | GF11: 0 | GG11: 0 | GH11: 0 | GI11: 0 | GJ11: 0 | GK11: 0 | GL11: 0 | GM11: 0 | GN11: 0 | GO11: 0 | GP11: 0 | GQ11: 0 | GR11: 0 | GS11: 0 | GT11: 0 | GU11: 0 | GV11: 0 | GW11: 0 | GX11: 0 | GY11: 0 | GZ11: 0 | HA11: 0 | HB11: 0 | HC11: 0 | HD11: 0 | HE11: 0 | HF11: 0 | HG11: 0 | HH11: 0 | HI11: 0 | HJ11: 0 | HK11: 0 | HL11: 0 | HM11: 0 | HN11: 0 | HO11: 0 | HP11: 0 | HQ11: 0 | HR11: 0 | HS11: 0 | HT11: 0 | HU11: 0 | HV11: 0 | HW11: 0 | HX11: 0 | HY11: 0 | HZ11: 0 | IA11: 0 | IB11: 0 | IC11: 0 | ID11: 0 | IE11: 0 | IF11: 0 | IG11: 0 | IH11: 0 | II11: 0 | IJ11: 0 | IK11: 0 | IL11: 0 | IM11: 0 | IN11: 0 | IO11: 0 | IP11: 0 | IQ11: 0 | IR11: 0 | IS11: 0 | IT11: 0 | IU11: 0 | IV11: 0 | IW11: 0 | IX11: 0 | IY11: 0 | IZ11: 0 | JA11: 0 | JB11: 0 | JC11: 0 | JD11: 0 | JE11: 0 | JF11: 0 | JG11: 0 | JH11: 0 | JI11: 0 | JJ11: 0 | JK11: 0 | JL11: 0 | JM11: 0 | JN11: 0 | JO11: 0 | JP11: 0 | JQ11: 0 | JR11: 0 | JS11: 0 | JT11: 0 | JU11: 0 | JV11: 0 | JW11: 0 | JX11: 0 | JY11: 0 | JZ11: 0 | KA11: 0 | KB11: 0 | KC11: 0 | KD11: 0 | KE11: 0 | KF11: 0 | KG11: 0 | KH11: 0 | KI11: 0 | KJ11: 0 | KK11: 0 | KL11: 0 | KM11: 0 | KN11: 0 | KO11: 0 | KP11: 0 | KQ11: 0 | KR11: 0 | KS11: 0 | KT11: 0 | KU11: 0 | KV11: 0 | KW11: 0 | KX11: 0 | KY11: 0 | KZ11: 0 | LA11: 0 | LB11: 0 | LC11: 0 | LD11: 0 | LE11: 0 | LF11: 0 | LG11: 0 | LH11: 0 | LI11: 0 | LJ11: 0 | LK11: 0 | LL11: 0 | LM11: 0 | LN11: 0 | LO11: 0 | LP11: 0 | LQ11: 0 | LR11: 0 | LS11: 0 | LT11: 0 | LU11: 0 | LV11: 0 | LW11: 0 | LX11: 0 | LY11: 0 | LZ11: 0 | MA11: 0 | MB11: 0 | MC11: 0 | MD11: 0 | ME11: 0 | MF11: 0 | MG11: 0 | MH11: 0 | MI11: 0 | MJ11: 0 | MK11: 0 | ML11: 0 | MM11: 0 | MN11: 0 | MO11: 0 | MP11: 0 | MQ11: 0 | MR11: 0 | MS11: 0 | MT11: 0 | MU11: 0 | MV11: 0 | MW11: 0
A12: =Inputs!C12 -> GT 1998-8 M1 | C12: 23192976.3 | D12: 20854267.44 | E12: 18750785.67 | F12: 16858911.83 | G12: 15157444.77 | H12: 13627252.78 | I12: 12251157.31 | J12: 11013678.71 | K12: 9900860.787 | L12: 8900204.217 | M12: 8000453.965 | N12: 7191451.952 | O12: 6464046.056 | P12: 5810031.427 | Q12: 5222023.124 | R12: 4693392.693 | S12: 4218160.176 | T12: 3790962.708 | U12: 3406926.41 | V12: 3061682.734 | W12: 2751321.279 | X12: 2472350.148 | Y12: 2221612.622 | Z12: 1996284.547 | AA12: 1793813.692 | AB12: 1611847.973 | AC12: 1448358.086 | AD12: 1301653.895 | AE12: 1170061.563 | AF12: 1051818.423 | AG12: 945492.6173 | AH12: 849885.5381 | AI12: 763921.7478 | AJ12: 686629.7223 | AK12: 617136.2015 | AL12: 554655.252 | AM12: 498482.416 | AN12: 447980.0884 | AO12: 402581.0106 | AP12: 361771.5515 | AQ12: 325089.3669 | AR12: 292114.8147 | AS12: 262475.4467 | AT12: 235833.0139 | AU12: 211887.4759 | AV12: 190365.7585 | AW12: 171022.264 | AX12: 153637.5431 | AY12: 138014.6195 | AZ12: 123974.33 | BA12: 111357.4086 | BB12: 100020.8214 | BC12: 89834.88899 | BD12: 80682.54882 | BE12: 72459.01396 | BF12: 65071.25665 | BG12: 58433.74419 | BH12: 52470.34052 | BI12: 47113.48921 | BJ12: 42301.66185 | BK12: 37979.60532 | BL12: 34097.49763 | BM12: 30609.80719 | BN12: 27478.52671 | BO12: 24666.37563 | BP12: 22140.88681 | BQ12: 19873.35386 | BR12: 17836.60813 | BS12: 16007.89207 | BT12: 14365.39141 | BU12: 12891.24182 | BV12: 11567.62073 | BW12: 10379.41119 | BX12: 9312.527025 | BY12: 8355.14276 | BZ12: 7495.83416 | CA12: 6724.570268 | CB12: 6032.50989 | CC12: 5411.528096 | CD12: 4853.874191 | CE12: 4353.532237 | CF12: 3904.577028 | CG12: 3501.394072 | CH12: 3139.669379 | CI12: 2814.740431 | CJ12: 2522.01568 | CK12: 2257.879864 | CL12: 2023.387905 | CM12: 1815.55941 | CN12: 1629.956658 | CO12: 1463.31259 | CP12: 1313.599278 | CQ12: 1179.126456 | CR12: 1058.380048 | CS12: 949.958106 | CT12: 852.5735546 | CU12: 765.1529672 | CV12: 686.6441903 | CW12: 616.1553704 | CX12: 552.8704759 | CY12: 496.042518 | CZ12: 445.0320378 | DA12: 399.2455446 | DB12: 358.1629949 | DC12: 321.2597333 | DD12: 288.1565506 | DE12: 258.4368889 | DF12: 231.7656134 | DG12: 207.8485731 | DH12: 186.3835436 | DI12: 167.1174974 | DJ12: 149.8206713 | DK12: 134.3130664 | DL12: 120.4014549 | DM12: 107.9282655 | DN12: 96.73299005 | DO12: 86.69665444 | DP12: 77.69139872 | DQ12: 69.61824489 | DR12: 62.37524428 | DS12: 55.88180485 | DT12: 50.05802321 | DU12: 44.83783043 | DV12: 40.15878558 | DW12: 35.96646363 | DX12: 32.20660378 | DY12: 28.83575141 | DZ12: 25.81435527 | EA12: 23.10585727 | EB12: 20.6796634 | EC12: 18.50506355 | ED12: 16.56230772 | EE12: 14.8192803 | EF12: 13.25679322 | EG12: 11.85946338 | EH12: 10.60839996 | EI12: 9.48834839 | EJ12: 8.48451491 | EK12: 7.584840627 | EL12: 6.777589402 | EM12: 6.058198858 | EN12: 5.412963719 | EO12: 4.833760366 | EP12: 4.315378899 | EQ12: 3.853620719 | ER12: 3.434247585 | ES12: 3.051970717 | ET12: 2.715493138 | EU12: 2.423039435 | EV12: 2.165296696 | EW12: 1.935596456 | EX12: 1.729926511 | EY12: 1.545788008 | EZ12: 1.381021881 | FA12: 1.233910361 | FB12: 1.101889317 | FC12: 0.9841881162 | FD12: 0.8787866488 | FE12: 0.7845800747 | FF12: 0.7003845578 | FG12: 0.6248034204 | FH12: 0.5572828066 | FI12: 0.4969741543 | FJ12: 0.4431464147 | FK12: 0.3952841739 | FL12: 0.3523412995 | FM12: 0.3140033872 | FN12: 0.2798386938 | FO12: 0.2493583787 | FP12: 0.2219598083 | FQ12: 0.1976035275 | FR12: 0.1757797312 | FS12: 0.1564469127 | FT12: 0.13914269 | FU12: 0.1236766245 | FV12: 0.1099249609 | FW12: 0.09773771027 | FX12: 0.08687657653 | FY12: 0.07714376546 | FZ12: 0.06847898248 | GA12: 0.06069477834 | GB12: 0.05376665594 | GC12: 0.04767670135 | GD12: 0.04222809965 | GE12: 0.03738354005 | GF12: 0.0331044308 | GG12: 0.02926312707 | GH12: 0.02586763452 | GI12: 0.02286554401 | GJ12: 0.02016679272 | GK12: 0.01777116497 | GL12: 0.01563660788 | GM12: 0.01373204739 | GN12: 0.01203201677 | GO12: 0.01050750338 | GP12: 0.009151562849 | GQ12: 0.007970955202 | GR12: 0.006900290326 | GS12: 0.005949871103 | GT12: 0.005131340713 | GU12: 0.004383631066 | GV12: 0.003736344738 | GW12: 0.003119604614 | GX12: 0.002602708147 | GY12: 0.002078236621 | GZ12: 0.001459447497 | HA12: 0.0007284784537 | HB12: 0.0002137509726 | HC12: 3.117529203e-05 | HD12: 9.519231545e-06 | HE12: 5.289274633e-06 | HF12: 3.682638226e-06 | HG12: 1.626486943e-06 | HH12: 1.411693464e-06 | HI12: 7.686465879e-07 | HJ12: 0 | HK12: 0 | HL12: 0 | HM12: 0 | HN12: 0 | HO12: 0 | HP12: 0 | HQ12: 0 | HR12: 0 | HS12: 0 | HT12: 0 | HU12: 0 | HV12: 0 | HW12: 0 | HX12: 0 | HY12: 0 | HZ12: 0 | IA12: 0 | IB12: 0 | IC12: 0 | ID12: 0 | IE12: 0 | IF12: 0 | IG12: 0 | IH12: 0 | II12: 0 | IJ12: 0 | IK12: 0 | IL12: 0 | IM12: 0 | IN12: 0 | IO12: 0 | IP12: 0 | IQ12: 0 | IR12: 0 | IS12: 0 | IT12: 0 | IU12: 0 | IV12: 0 | IW12: 0 | IX12: 0 | IY12: 0 | IZ12: 0 | JA12: 0 | JB12: 0 | JC12: 0 | JD12: 0 | JE12: 0 | JF12: 0 | JG12: 0 | JH12: 0 | JI12: 0 | JJ12: 0 | JK12: 0 | JL12: 0 | JM12: 0 | JN12: 0 | JO12: 0 | JP12: 0 | JQ12: 0 | JR12: 0 | JS12: 0 | JT12: 0 | JU12: 0 | JV12: 0 | JW12: 0 | JX12: 0 | JY12: 0 | JZ12: 0 | KA12: 0 | KB12: 0 | KC12: 0 | KD12: 0 | KE12: 0 | KF12: 0 | KG12: 0 | KH12: 0 | KI12: 0 | KJ12: 0 | KK12: 0 | KL12: 0 | KM12: 0 | KN12: 0 | KO12: 0 | KP12: 0 | KQ12: 0 | KR12: 0 | KS12: 0 | KT12: 0 | KU12: 0 | KV12: 0 | KW12: 0 | KX12: 0 | KY12: 0 | KZ12: 0 | LA12: 0 | LB12: 0 | LC12: 0 | LD12: 0 | LE12: 0 | LF12: 0 | LG12: 0 | LH12: 0 | LI12: 0 | LJ12: 0 | LK12: 0 | LL12: 0 | LM12: 0 | LN12: 0 | LO12: 0 | LP12: 0 | LQ12: 0 | LR12: 0 | LS12: 0 | LT12: 0 | LU12: 0 | LV12: 0 | LW12: 0 | LX12: 0 | LY12: 0 | LZ12: 0 | MA12: 0 | MB12: 0 | MC12: 0 | MD12: 0 | ME12: 0 | MF12: 0 | MG12: 0 | MH12: 0 | MI12: 0 | MJ12: 0 | MK12: 0 | ML12: 0 | MM12: 0 | MN12: 0 | MO12: 0 | MP12: 0 | MQ12: 0 | MR12: 0 | MS12: 0 | MT12: 0 | MU12: 0 | MV12: 0 | MW12: 0
A13: =Inputs!C13 -> GT 1997-1 M1 | C13: 4920062.835 | D13: 4409231.596 | E13: 3951341.65 | F13: 3540993.952 | G13: 3173443.013 | H13: 2844067.987 | I13: 2549595.598 | J13: 2286656.298 | K13: 2050843.773 | L13: 1839264.442 | M13: 1649429.678 | N13: 1479112.124 | O13: 1326322.464 | P13: 1189252.51 | Q13: 1066296.872 | R13: 956007.0884 | S13: 857077.0318 | T13: 768345.2125 | U13: 688770.2971 | V13: 617405.9785 | W13: 553404.809 | X13: 496011.312 | Y13: 444543.379 | Z13: 398394.1748 | AA13: 357012.6648 | AB13: 319911.2934 | AC13: 286647.4513 | AD13: 256826.3285 | AE13: 230095.4548 | AF13: 206134.1218 | AG13: 184656.8498 | AH13: 165410.5496 | AI13: 148160.8539 | AJ13: 132701.611 | AK13: 118852.3288 | AL13: 106440.1986 | AM13: 95319.65671 | AN13: 85355.85069 | AO13: 76428.40707 | AP13: 68430.4778 | AQ13: 61265.56668 | AR13: 54845.33121 | AS13: 49095.49399 | AT13: 43945.87177 | AU13: 39333.50456 | AV13: 35203.03912 | AW13: 31504.1371 | AX13: 28191.82917 | AY13: 25225.63783 | AZ13: 22570.32463 | BA13: 20192.83352 | BB13: 18064.09842 | BC13: 16158.15097 | BD13: 14451.41716 | BE13: 12924.56338 | BF13: 11557.52598 | BG13: 10334.79011 | BH13: 9240.528902 | BI13: 8261.690198 | BJ13: 7385.474436 | BK13: 6601.840411 | BL13: 5901.339665 | BM13: 5274.972499 | BN13: 4714.464526 | BO13: 4211.150025 | BP13: 3757.125834 | BQ13: 3351.714829 | BR13: 3002.162245 | BS13: 2690.114345 | BT13: 2410.38173 | BU13: 2159.596919 | BV13: 1934.738954 | BW13: 1733.19929 | BX13: 1552.575641 | BY13: 1390.678426 | BZ13: 1245.53999 | CA13: 1115.507893 | CB13: 998.9771864 | CC13: 894.5235379 | CD13: 800.9397593 | CE13: 717.0942819 | CF13: 642.0078137 | CG13: 574.711962 | CH13: 514.4078552 | CI13: 460.4483768 | CJ13: 412.1139823 | CK13: 368.8071722 | CL13: 330.0048166 | CM13: 295.2978419 | CN13: 264.1850253 | CO13: 236.3606691 | CP13: 211.437858 | CQ13: 189.1336507 | CR13: 169.1654907 | CS13: 151.2710349 | CT13: 135.2670761 | CU13: 120.9449403 | CV13: 108.1299119 | CW13: 96.65716134 | CX13: 86.38942107 | CY13: 77.2067759 | CZ13: 68.99258241 | DA13: 61.6503974 | DB13: 55.08757696 | DC13: 49.20407727 | DD13: 43.95405322 | DE13: 39.26017988 | DF13: 35.05144956 | DG13: 31.29711627 | DH13: 27.942551 | DI13: 24.93687248 | DJ13: 22.25709785 | DK13: 19.86110061 | DL13: 17.71608552 | DM13: 15.80677488 | DN13: 14.09970274 | DO13: 12.57262267 | DP13: 11.20751871 | DQ13: 9.989764717 | DR13: 8.898723371 | DS13: 7.927154498 | DT13: 7.05849311 | DU13: 6.284208577 | DV13: 5.58859863 | DW13: 4.959637277 | DX13: 4.380520612 | DY13: 3.843188098 | DZ13: 3.426649945 | EA13: 3.058928289 | EB13: 2.730051037 | EC13: 2.436820156 | ED13: 2.174337798 | EE13: 1.939457274 | EF13: 1.72951398 | EG13: 1.541838594 | EH13: 1.374773655 | EI13: 1.225737219 | EJ13: 1.093048829 | EK13: 0.9738636329 | EL13: 0.8673442702 | EM13: 0.772460299 | EN13: 0.6881182298 | EO13: 0.6130248488 | EP13: 0.5457892311 | EQ13: 0.485723761 | ER13: 0.4320335157 | ES13: 0.3846013001 | ET13: 0.3422165905 | EU13: 0.3045163624 | EV13: 0.2707566758 | EW13: 0.2408994408 | EX13: 0.2141869911 | EY13: 0.1900930325 | EZ13: 0.1687354522 | FA13: 0.1497320349 | FB13: 0.1330719413 | FC13: 0.1181404132 | FD13: 0.1047388222 | FE13: 0.09283138889 | FF13: 0.08219480521 | FG13: 0.07276351314 | FH13: 0.06443471791 | FI13: 0.05700077333 | FJ13: 0.05043806488 | FK13: 0.04462821165 | FL13: 0.03941890268 | FM13: 0.03481453026 | FN13: 0.03056432229 | FO13: 0.02685821683 | FP13: 0.02361384401 | FQ13: 0.02071311177 | FR13: 0.01811483519 | FS13: 0.01585271854 | FT13: 0.01388756434 | FU13: 0.01212528371 | FV13: 0.01052872354 | FW13: 0.009135180841 | FX13: 0.007822388365 | FY13: 0.006732048141 | FZ13: 0.005752352429 | GA13: 0.004892757778 | GB13: 0.004146360406 | GC13: 0.003399869736 | GD13: 0.00273596001 | GE13: 0.002020304616 | GF13: 0.0009927640701 | GG13: 8.546419813e-05 | GH13: 0 | GI13: 0 | GJ13: 0 | GK13: 0 | GL13: 0 | GM13: 0 | GN13: 0 | GO13: 0 | GP13: 0 | GQ13: 0 | GR13: 0 | GS13: 0 | GT13: 0 | GU13: 0 | GV13: 0 | GW13: 0 | GX13: 0 | GY13: 0 | GZ13: 0 | HA13: 0 | HB13: 0 | HC13: 0 | HD13: 0 | HE13: 0 | HF13: 0 | HG13: 0 | HH13: 0 | HI13: 0 | HJ13: 0 | HK13: 0 | HL13: 0 | HM13: 0 | HN13: 0 | HO13: 0 | HP13: 0 | HQ13: 0 | HR13: 0 | HS13: 0 | HT13: 0 | HU13: 0 | HV13: 0 | HW13: 0 | HX13: 0 | HY13: 0 | HZ13: 0 | IA13: 0 | IB13: 0 | IC13: 0 | ID13: 0 | IE13: 0 | IF13: 0 | IG13: 0 | IH13: 0 | II13: 0 | IJ13: 0 | IK13: 0 | IL13: 0 | IM13: 0 | IN13: 0 | IO13: 0 | IP13: 0 | IQ13: 0 | IR13: 0 | IS13: 0 | IT13: 0 | IU13: 0 | IV13: 0 | IW13: 0 | IX13: 0 | IY13: 0 | IZ13: 0 | JA13: 0 | JB13: 0 | JC13: 0 | JD13: 0 | JE13: 0 | JF13: 0 | JG13: 0 | JH13: 0 | JI13: 0 | JJ13: 0 | JK13: 0 | JL13: 0 | JM13: 0 | JN13: 0 | JO13: 0 | JP13: 0 | JQ13: 0 | JR13: 0 | JS13: 0 | JT13: 0 | JU13: 0 | JV13: 0 | JW13: 0 | JX13: 0 | JY13: 0 | JZ13: 0 | KA13: 0 | KB13: 0 | KC13: 0 | KD13: 0 | KE13: 0 | KF13: 0 | KG13: 0 | KH13: 0 | KI13: 0 | KJ13: 0 | KK13: 0 | KL13: 0 | KM13: 0 | KN13: 0 | KO13: 0 | KP13: 0 | KQ13: 0 | KR13: 0 | KS13: 0 | KT13: 0 | KU13: 0 | KV13: 0 | KW13: 0 | KX13: 0 | KY13: 0 | KZ13: 0 | LA13: 0 | LB13: 0 | LC13: 0 | LD13: 0 | LE13: 0 | LF13: 0 | LG13: 0 | LH13: 0 | LI13: 0 | LJ13: 0 | LK13: 0 | LL13: 0 | LM13: 0 | LN13: 0 | LO13: 0 | LP13: 0 | LQ13: 0 | LR13: 0 | LS13: 0 | LT13: 0 | LU13: 0 | LV13: 0 | LW13: 0 | LX13: 0 | LY13: 0 | LZ13: 0 | MA13: 0 | MB13: 0 | MC13: 0 | MD13: 0 | ME13: 0 | MF13: 0 | MG13: 0 | MH13: 0 | MI13: 0 | MJ13: 0 | MK13: 0 | ML13: 0 | MM13: 0 | MN13: 0 | MO13: 0 | MP13: 0 | MQ13: 0 | MR13: 0 | MS13: 0 | MT13: 0 | MU13: 0 | MV13: 0 | MW13: 0
A14: =Inputs!C14 -> GT 1997-3 M1 | C14: 9077702.906 | D14: 8135209.123 | E14: 7290163.254 | F14: 6532656.831 | G14: 5853655.335 | H14: 5245147.637 | I14: 4699938.594 | J14: 4211534.071 | K14: 3774374.473 | L14: 3383515.201 | M14: 3034208.141 | N14: 2721114.134 | O14: 2440214.864 | P14: 2188217.885 | Q14: 1962152.826 | R14: 1759366.833 | S14: 1577456.444 | T14: 1414286.69 | U14: 1267935.906 | V14: 1136670.98 | W14: 1018942.902 | X14: 913359.0314 | Y14: 818672.7891 | Z14: 733765.9119 | AA14: 657624.4268 | AB14: 589349.7053 | AC14: 528134.9027 | AD14: 473254.4397 | AE14: 424055.5694 | AF14: 379953.4502 | AG14: 340416.5505 | AH14: 304975.1734 | AI14: 273212.2654 | AJ14: 244745.3652 | AK14: 219231.9045 | AL14: 196365.7431 | AM14: 175872.7314 | AN14: 157510.5431 | AO14: 141057.3526 | AP14: 126313.26 | AQ14: 113103.7023 | AR14: 101268.8155 | AS14: 90668.20272 | AT14: 81169.65567 | AU14: 72661.55273 | AV14: 65042.31745 | AW14: 58218.6452 | AX14: 52106.57795 | AY14: 46633.6623 | AZ14: 41731.6054 | BA14: 37342.73105 | BB14: 33412.63064 | BC14: 29894.64365 | BD14: 26744.74538 | BE14: 23923.93415 | BF14: 21398.86823 | BG14: 19139.97786 | BH14: 17117.98269 | BI14: 15308.53602 | BJ14: 13688.96819 | BK14: 12240.1428 | BL14: 10943.82541 | BM14: 9783.666212 | BN14: 8745.595084 | BO14: 7816.886397 | BP14: 6986.929833 | BQ14: 6242.833365 | BR14: 5577.808312 | BS14: 4975.641038 | BT14: 4440.926147 | BU14: 3975.741754 | BV14: 3562.415332 | BW14: 3191.841274 | BX14: 2859.661987 | BY14: 2561.91921 | BZ14: 2295.019255 | CA14: 2055.827311 | CB14: 1841.437508 | CC14: 1649.270467 | CD14: 1477.038872 | CE14: 1322.71153 | CF14: 1184.443253 | CG14: 1060.543815 | CH14: 949.5427761 | CI14: 850.040247 | CJ14: 760.9414364 | CK14: 681.0920905 | CL14: 609.6179966 | CM14: 545.6364682 | CN14: 488.2874327 | CO14: 436.9489984 | CP14: 390.973806 | CQ14: 349.8262369 | CR14: 312.9715251 | CS14: 279.9501489 | CT14: 250.4098108 | CU14: 223.9741576 | CV14: 200.3287226 | CW14: 179.1707699 | CX14: 160.2086909 | CY14: 143.2563035 | CZ14: 128.086884 | DA14: 114.4941201 | DB14: 102.3477984 | DC14: 91.46147911 | DD14: 81.73834707 | DE14: 73.0307234 | DF14: 65.25001218 | DG14: 58.29197018 | DH14: 52.07276279 | DI14: 46.51364046 | DJ14: 41.54158752 | DK14: 37.09120675 | DL14: 33.10388242 | DM14: 29.55564768 | DN14: 26.37581097 | DO14: 23.53526848 | DP14: 20.99971817 | DQ14: 18.73629194 | DR14: 16.71481871 | DS14: 14.90288817 | DT14: 13.27949544 | DU14: 11.83611586 | DV14: 10.55012697 | DW14: 9.401361825 | DX14: 8.374548734 | DY14: 7.455364659 | DZ14: 6.63028008 | EA14: 5.861628121 | EB14: 5.165731141 | EC14: 4.60255209 | ED14: 4.108494687 | EE14: 3.667854303 | EF14: 3.273106433 | EG14: 2.921105357 | EH14: 2.606240601 | EI14: 2.325270722 | EJ14: 2.07429926 | EK14: 1.85031044 | EL14: 1.64981361 | EM14: 1.470871387 | EN14: 1.310911962 | EO14: 1.168605671 | EP14: 1.041215353 | EQ14: 0.9274675974 | ER14: 0.8264284176 | ES14: 0.7359987266 | ET14: 0.6550761559 | EU14: 0.5830696348 | EV14: 0.5190489811 | EW14: 0.4618044105 | EX14: 0.4107248618 | EY14: 0.3650714736 | EZ14: 0.3246826239 | FA14: 0.2887543306 | FB14: 0.2568637749 | FC14: 0.2284194439 | FD14: 0.2029279624 | FE14: 0.1802374671 | FF14: 0.1599581213 | FG14: 0.1420473124 | FH14: 0.1260651158 | FI14: 0.1118344907 | FJ14: 0.0991477315 | FK14: 0.08780224686 | FL14: 0.07783584259 | FM14: 0.06885724667 | FN14: 0.06093942846 | FO14: 0.05386048737 | FP14: 0.04764299057 | FQ14: 0.04210958654 | FR14: 0.03710473252 | FS14: 0.03276356151 | FT14: 0.0287482901 | FU14: 0.02524010407 | FV14: 0.02213423075 | FW14: 0.01940371562 | FX14: 0.01698158517 | FY14: 0.01477238731 | FZ14: 0.01278858584 | GA14: 0.0111129114 | GB14: 0.009535131913 | GC14: 0.008238529492 | GD14: 0.006980551485 | GE14: 0.005872002297 | GF14: 0.00490819088 | GG14: 0.004112252602 | GH14: 0.003308550388 | GI14: 0.001714717 | GJ14: 0.0002279936594 | GK14: 1.6084081e-05 | GL14: 1.254842526e-05 | GM14: 8.904653847e-06 | GN14: 0 | GO14: 0 | GP14: 0 | GQ14: 0 | GR14: 0 | GS14: 0 | GT14: 0 | GU14: 0 | GV14: 0 | GW14: 0 | GX14: 0 | GY14: 0 | GZ14: 0 | HA14: 0 | HB14: 0 | HC14: 0 | HD14: 0 | HE14: 0 | HF14: 0 | HG14: 0 | HH14: 0 | HI14: 0 | HJ14: 0 | HK14: 0 | HL14: 0 | HM14: 0 | HN14: 0 | HO14: 0 | HP14: 0 | HQ14: 0 | HR14: 0 | HS14: 0 | HT14: 0 | HU14: 0 | HV14: 0 | HW14: 0 | HX14: 0 | HY14: 0 | HZ14: 0 | IA14: 0 | IB14: 0 | IC14: 0 | ID14: 0 | IE14: 0 | IF14: 0 | IG14: 0 | IH14: 0 | II14: 0 | IJ14: 0 | IK14: 0 | IL14: 0 | IM14: 0 | IN14: 0 | IO14: 0 | IP14: 0 | IQ14: 0 | IR14: 0 | IS14: 0 | IT14: 0 | IU14: 0 | IV14: 0 | IW14: 0 | IX14: 0 | IY14: 0 | IZ14: 0 | JA14: 0 | JB14: 0 | JC14: 0 | JD14: 0 | JE14: 0 | JF14: 0 | JG14: 0 | JH14: 0 | JI14: 0 | JJ14: 0 | JK14: 0 | JL14: 0 | JM14: 0 | JN14: 0 | JO14: 0 | JP14: 0 | JQ14: 0 | JR14: 0 | JS14: 0 | JT14: 0 | JU14: 0 | JV14: 0 | JW14: 0 | JX14: 0 | JY14: 0 | JZ14: 0 | KA14: 0 | KB14: 0 | KC14: 0 | KD14: 0 | KE14: 0 | KF14: 0 | KG14: 0 | KH14: 0 | KI14: 0 | KJ14: 0 | KK14: 0 | KL14: 0 | KM14: 0 | KN14: 0 | KO14: 0 | KP14: 0 | KQ14: 0 | KR14: 0 | KS14: 0 | KT14: 0 | KU14: 0 | KV14: 0 | KW14: 0 | KX14: 0 | KY14: 0 | KZ14: 0 | LA14: 0 | LB14: 0 | LC14: 0 | LD14: 0 | LE14: 0 | LF14: 0 | LG14: 0 | LH14: 0 | LI14: 0 | LJ14: 0 | LK14: 0 | LL14: 0 | LM14: 0 | LN14: 0 | LO14: 0 | LP14: 0 | LQ14: 0 | LR14: 0 | LS14: 0 | LT14: 0 | LU14: 0 | LV14: 0 | LW14: 0 | LX14: 0 | LY14: 0 | LZ14: 0 | MA14: 0 | MB14: 0 | MC14: 0 | MD14: 0 | ME14: 0 | MF14: 0 | MG14: 0 | MH14: 0 | MI14: 0 | MJ14: 0 | MK14: 0 | ML14: 0 | MM14: 0 | MN14: 0 | MO14: 0 | MP14: 0 | MQ14: 0 | MR14: 0 | MS14: 0 | MT14: 0 | MU14: 0 | MV14: 0 | MW14: 0
A15: =Inputs!C15 -> GT 1997-5 M1 | C15: 6145052.106 | D15: 5506518.74 | E15: 4934096.91 | F15: 4421012.243 | G15: 3961146.864 | H15: 3549010.595 | I15: 3179523.606 | J15: 2848598.601 | K15: 2552157.732 | L15: 2286662.209 | M15: 2048855.051 | N15: 1835861.943 | O15: 1645878.855 | P15: 1475724.584 | Q15: 1323109.618 | R15: 1186221.205 | S15: 1063439.31 | T15: 953320.0698 | U15: 854564.491 | V15: 765997.8601 | W15: 686576.1226 | X15: 615363.1873 | Y15: 551507.2571 | Z15: 494255.7212 | AA15: 442923.8323 | AB15: 396903.1375 | AC15: 355649.9149 | AD15: 318663.7937 | AE15: 285507.8359 | AF15: 255788.0927 | AG15: 229151.7022 | AH15: 205282.6367 | AI15: 183890.5197 | AJ15: 164717.1891 | AK15: 147535.3331 | AL15: 132138.4635 | AM15: 118339.5446 | AN15: 105974.2913 | AO15: 94895.59328 | AP15: 84971.00185 | AQ15: 76080.16294 | AR15: 68119.4264 | AS15: 60989.81455 | AT15: 54600.92763 | AU15: 48880.81014 | AV15: 43755.88819 | AW15: 39165.21233 | AX15: 35055.07133 | AY15: 31375.53732 | AZ15: 28081.09897 | BA15: 25130.27078 | BB15: 22487.00498 | BC15: 20121.67835 | BD15: 18004.33316 | BE15: 16108.29686 | BF15: 14410.66178 | BG15: 12891.59013 | BH15: 11531.64002 | BI15: 10315.15307 | BJ15: 9226.280879 | BK15: 8252.366123 | BL15: 7380.57324 | BM15: 6600.313988 | BN15: 5902.436684 | BO15: 5277.708407 | BP15: 4719.182281 | BQ15: 4220.316332 | BR15: 3773.66268 | BS15: 3373.927335 | BT15: 3015.596702 | BU15: 2694.721729 | BV15: 2403.590859 | BW15: 2150.33716 | BX15: 1926.599805 | BY15: 1726.126372 | BZ15: 1546.431183 | CA15: 1385.342856 | CB15: 1241.023751 | CC15: 1111.695061 | CD15: 995.7635168 | CE15: 891.9000769 | CF15: 798.8027982 | CG15: 715.3244502 | CH15: 640.569298 | CI15: 573.5985706 | CJ15: 513.5680038 | CK15: 459.7802023 | CL15: 411.6130087 | CM15: 368.4529892 | CN15: 329.8196694 | CO15: 295.2077933 | CP15: 264.2101424 | CQ15: 236.4192275 | CR15: 211.5601482 | CS15: 189.3040231 | CT15: 169.3810175 | CU15: 151.5420819 | CV15: 135.5649258 | CW15: 121.2623235 | CX15: 108.4592419 | CY15: 96.99638722 | CZ15: 86.74104324 | DA15: 77.56177164 | DB15: 69.34288116 | DC15: 61.98929868 | DD15: 55.42063198 | DE15: 49.5288983 | DF15: 44.26762489 | DG15: 39.55678141 | DH15: 35.33652228 | DI15: 31.57516791 | DJ15: 28.20781387 | DK15: 25.1969534 | DL15: 22.50191289 | DM15: 20.09288323 | DN15: 17.94592124 | DO15: 16.01692819 | DP15: 14.29080015 | DQ15: 12.75568768 | DR15: 11.37693337 | DS15: 10.15366905 | DT15: 9.057598371 | DU15: 8.075572614 | DV15: 7.205527876 | DW15: 6.425955585 | DX15: 5.726110572 | DY15: 5.10291808 | DZ15: 4.545212612 | EA15: 4.045804103 | EB15: 3.602363902 | EC15: 3.202003535 | ED15: 2.815981294 | EE15: 2.505920936 | EF15: 2.236775861 | EG15: 1.995806893 | EH15: 1.781384496 | EI15: 1.589460691 | EJ15: 1.418594183 | EK15: 1.265525379 | EL15: 1.128672729 | EM15: 1.006665247 | EN15: 0.8975529954 | EO15: 0.800378412 | EP15: 0.713485126 | EQ15: 0.6361392147 | ER15: 0.5666007866 | ES15: 0.5050410105 | ET15: 0.4500602229 | EU15: 0.4007582154 | EV15: 0.356966821 | EW15: 0.3177470972 | EX15: 0.2825802341 | EY15: 0.2516385819 | EZ15: 0.2239359302 | FA15: 0.1991355243 | FB15: 0.1771401249 | FC15: 0.1575981263 | FD15: 0.1401123551 | FE15: 0.124592601 | FF15: 0.1106465311 | FG15: 0.0981720782 | FH15: 0.08692954064 | FI15: 0.0771586081 | FJ15: 0.06842248623 | FK15: 0.06068992929 | FL15: 0.05383105314 | FM15: 0.04766603627 | FN15: 0.0421970299 | FO15: 0.03725965521 | FP15: 0.0329214122 | FQ15: 0.02911122376 | FR15: 0.02576629964 | FS15: 0.02278333197 | FT15: 0.02003735716 | FU15: 0.01763314889 | FV15: 0.01556054661 | FW15: 0.01360305779 | FX15: 0.01196794569 | FY15: 0.01046617966 | FZ15: 0.009099735358 | GA15: 0.007915416406 | GB15: 0.006869391093 | GC15: 0.005900945734 | GD15: 0.00505628667 | GE15: 0.004308315733 | GF15: 0.00368748628 | GG15: 0.0031270036 | GH15: 0.002660733731 | GI15: 0.002205369016 | GJ15: 0.001778438836 | GK15: 0.001339109751 | GL15: 0.0003419857296 | GM15: 7.363164616e-05 | GN15: 3.76540834e-05 | GO15: 1.984853804e-05 | GP15: 7.567071738e-06 | GQ15: 6.709888544e-06 | GR15: 5.354724778e-06 | GS15: 4.759651444e-06 | GT15: 4.229562379e-06 | GU15: 0 | GV15: 0 | GW15: 0 | GX15: 0 | GY15: 0 | GZ15: 0 | HA15: 0 | HB15: 0 | HC15: 0 | HD15: 0 | HE15: 0 | HF15: 0 | HG15: 0 | HH15: 0 | HI15: 0 | HJ15: 0 | HK15: 0 | HL15: 0 | HM15: 0 | HN15: 0 | HO15: 0 | HP15: 0 | HQ15: 0 | HR15: 0 | HS15: 0 | HT15: 0 | HU15: 0 | HV15: 0 | HW15: 0 | HX15: 0 | HY15: 0 | HZ15: 0 | IA15: 0 | IB15: 0 | IC15: 0 | ID15: 0 | IE15: 0 | IF15: 0 | IG15: 0 | IH15: 0 | II15: 0 | IJ15: 0 | IK15: 0 | IL15: 0 | IM15: 0 | IN15: 0 | IO15: 0 | IP15: 0 | IQ15: 0 | IR15: 0 | IS15: 0 | IT15: 0 | IU15: 0 | IV15: 0 | IW15: 0 | IX15: 0 | IY15: 0 | IZ15: 0 | JA15: 0 | JB15: 0 | JC15: 0 | JD15: 0 | JE15: 0 | JF15: 0 | JG15: 0 | JH15: 0 | JI15: 0 | JJ15: 0 | JK15: 0 | JL15: 0 | JM15: 0 | JN15: 0 | JO15: 0 | JP15: 0 | JQ15: 0 | JR15: 0 | JS15: 0 | JT15: 0 | JU15: 0 | JV15: 0 | JW15: 0 | JX15: 0 | JY15: 0 | JZ15: 0 | KA15: 0 | KB15: 0 | KC15: 0 | KD15: 0 | KE15: 0 | KF15: 0 | KG15: 0 | KH15: 0 | KI15: 0 | KJ15: 0 | KK15: 0 | KL15: 0 | KM15: 0 | KN15: 0 | KO15: 0 | KP15: 0 | KQ15: 0 | KR15: 0 | KS15: 0 | KT15: 0 | KU15: 0 | KV15: 0 | KW15: 0 | KX15: 0 | KY15: 0 | KZ15: 0 | LA15: 0 | LB15: 0 | LC15: 0 | LD15: 0 | LE15: 0 | LF15: 0 | LG15: 0 | LH15: 0 | LI15: 0 | LJ15: 0 | LK15: 0 | LL15: 0 | LM15: 0 | LN15: 0 | LO15: 0 | LP15: 0 | LQ15: 0 | LR15: 0 | LS15: 0 | LT15: 0 | LU15: 0 | LV15: 0 | LW15: 0 | LX15: 0 | LY15: 0 | LZ15: 0 | MA15: 0 | MB15: 0 | MC15: 0 | MD15: 0 | ME15: 0 | MF15: 0 | MG15: 0 | MH15: 0 | MI15: 0 | MJ15: 0 | MK15: 0 | ML15: 0 | MM15: 0 | MN15: 0 | MO15: 0 | MP15: 0 | MQ15: 0 | MR15: 0 | MS15: 0 | MT15: 0 | MU15: 0 | MV15: 0 | MW15: 0
A16: GT 1999-3 A7 | C16: 13943148.83 | D16: 12553620.41 | E16: 11302230.16 | F16: 10175287.61 | G16: 9160461.059 | H16: 8246618.042 | I16: 7423743.352 | J16: 6682777.815 | K16: 6015583.884 | L16: 5414868.161 | M16: 4873992.909 | N16: 4386997.406 | O16: 3948523.2 | P16: 3553757.637 | Q16: 3198351.192 | R16: 2878395.641 | S16: 2590383.275 | T16: 2331115.821 | U16: 2097739.517 | V16: 1887672.735 | W16: 1698589.489 | X16: 1528403.612 | Y16: 1375223.705 | Z16: 1237354.541 | AA16: 1113268.307 | AB16: 1001594.683 | AC16: 901097.5999 | AD16: 810665.8928 | AE16: 729290.685 | AF16: 656086.1058 | AG16: 590222.5209 | AH16: 530982.7982 | AI16: 477647.1687 | AJ16: 429828.9377 | AK16: 386849.5023 | AL16: 348160.1259 | AM16: 313330.6394 | AN16: 281977.067 | AO16: 253752.4262 | AP16: 228344.4245 | AQ16: 205478.1424 | AR16: 184895.6375 | AS16: 166369.319 | AT16: 149694.7661 | AU16: 134686.1991 | AV16: 121180.2134 | AW16: 109024.4641 | AX16: 98083.22823 | AY16: 88238.65971 | AZ16: 79378.58194 | BA16: 71406.14761 | BB16: 64231.80215 | BC16: 57775.5133 | BD16: 51966.67528 | BE16: 46740.90908 | BF16: 42038.74788 | BG16: 37807.51787 | BH16: 34001.84866 | BI16: 30577.48509 | BJ16: 27496.803 | BK16: 24725.43275 | BL16: 22232.93794 | BM16: 19990.61953 | BN16: 17973.56599 | BO16: 16159.42822 | BP16: 14527.79555 | BQ16: 13060.15954 | BR16: 11740.25013 | BS16: 10552.7425 | BT16: 9485.276218 | BU16: 8525.350643 | BV16: 7662.546046 | BW16: 6886.55241 | BX16: 6189.020786 | BY16: 5561.595524 | BZ16: 4997.49518 | CA16: 4490.54828 | CB16: 4034.711155 | CC16: 3624.963644 | CD16: 3256.69329 | CE16: 2925.50675 | CF16: 2628.028211 | CG16: 2360.522069 | CH16: 2120.18964 | CI16: 1904.32362 | CJ16: 1710.267728 | CK16: 1535.931218 | CL16: 1379.126194 | CM16: 1238.054109 | CN16: 1111.591137 | CO16: 997.7730009 | CP16: 895.2179658 | CQ16: 801.6968282 | CR16: 719.2613868 | CS16: 646.5692127 | CT16: 581.1989904 | CU16: 522.4032267 | CV16: 469.5423653 | CW16: 422.0073521 | CX16: 379.2451427 | CY16: 340.812158 | CZ16: 306.2567691 | DA16: 275.2092333 | DB16: 247.2851045 | DC16: 222.1697136 | DD16: 199.6097846 | DE16: 179.3247083 | DF16: 161.0886267 | DG16: 144.7091088 | DH16: 129.9786391 | DI16: 116.7340666 | DJ16: 104.8431163 | DK16: 94.16139287 | DL16: 84.55904251 | DM16: 75.92973139 | DN16: 68.17407148 | DO16: 61.20841654 | DP16: 54.95182104 | DQ16: 49.32853344 | DR16: 44.28280096 | DS16: 39.74990592 | DT16: 35.67706133 | DU16: 32.01865655 | DV16: 28.73443098 | DW16: 25.78241413 | DX16: 23.1327988 | DY16: 20.75133153 | DZ16: 18.61294944 | EA16: 16.69069418 | EB16: 14.97148824 | EC16: 13.42962128 | ED16: 12.044328 | EE16: 10.79762275 | EF16: 9.681693809 | EG16: 8.679339009 | EH16: 7.78149634 | EI16: 6.975339301 | EJ16: 6.252257388 | EK16: 5.602140426 | EL16: 5.018803327 | EM16: 4.496185525 | EN16: 4.027203399 | EO16: 3.605760411 | EP16: 3.228595569 | EQ16: 2.889769919 | ER16: 2.586546779 | ES16: 2.313960378 | ET16: 2.070361971 | EU16: 1.852096191 | EV16: 1.655172889 | EW16: 1.479972776 | EX16: 1.32096907 | EY16: 1.173100187 | EZ16: 1.045663163 | FA16: 0.935944371 | FB16: 0.8379101341 | FC16: 0.7502267857 | FD16: 0.671718878 | FE16: 0.6009609368 | FF16: 0.5377406196 | FG16: 0.4810824354 | FH16: 0.4303019927 | FI16: 0.3850199996 | FJ16: 0.3444842561 | FK16: 0.3080279132 | FL16: 0.2754021582 | FM16: 0.2462448809 | FN16: 0.2201497763 | FO16: 0.1967743728 | FP16: 0.1758182904 | FQ16: 0.1570502953 | FR16: 0.1402354228 | FS16: 0.1252532974 | FT16: 0.1117587259 | FU16: 0.0996888194 | FV16: 0.08896207082 | FW16: 0.07932093234 | FX16: 0.07074706428 | FY16: 0.06303339066 | FZ16: 0.05620066274 | GA16: 0.05007807555 | GB16: 0.04462546422 | GC16: 0.03967962107 | GD16: 0.03528356113 | GE16: 0.03134707708 | GF16: 0.02790691935 | GG16: 0.0247968735 | GH16: 0.02203011647 | GI16: 0.0195520369 | GJ16: 0.01737448631 | GK16: 0.015428511 | GL16: 0.01365147188 | GM16: 0.0120735335 | GN16: 0.01067736766 | GO16: 0.009456892564 | GP16: 0.008351473313 | GQ16: 0.007375404078 | GR16: 0.006518144626 | GS16: 0.005745683858 | GT16: 0.005029105981 | GU16: 0.004388585726 | GV16: 0.003839939718 | GW16: 0.003344926293 | GX16: 0.002901176914 | GY16: 0.002508966097 | GZ16: 0.002146826474 | HA16: 0.001821097262 | HB16: 0.00154045695 | HC16: 0.001291887358 | HD16: 0.001052679407 | HE16: 0.000831975273 | HF16: 0.0005854869129 | HG16: 0.0002234710338 | HH16: 2.400249418e-05 | HI16: 1.366829747e-05 | HJ16: 8.954139451e-06 | HK16: 3.363758872e-06 | HL16: 3.827878124e-07 | HM16: 3.13052453e-07 | HN16: 2.210685397e-07 | HO16: 0 | HP16: 0 | HQ16: 0 | HR16: 0 | HS16: 0 | HT16: 0 | HU16: 0 | HV16: 0 | HW16: 0 | HX16: 0 | HY16: 0 | HZ16: 0 | IA16: 0 | IB16: 0 | IC16: 0 | ID16: 0 | IE16: 0 | IF16: 0 | IG16: 0 | IH16: 0 | II16: 0 | IJ16: 0 | IK16: 0 | IL16: 0 | IM16: 0 | IN16: 0 | IO16: 0 | IP16: 0 | IQ16: 0 | IR16: 0 | IS16: 0 | IT16: 0 | IU16: 0 | IV16: 0 | IW16: 0 | IX16: 0 | IY16: 0 | IZ16: 0 | JA16: 0 | JB16: 0 | JC16: 0 | JD16: 0 | JE16: 0 | JF16: 0 | JG16: 0 | JH16: 0 | JI16: 0 | JJ16: 0 | JK16: 0 | JL16: 0 | JM16: 0 | JN16: 0 | JO16: 0 | JP16: 0 | JQ16: 0 | JR16: 0 | JS16: 0 | JT16: 0 | JU16: 0 | JV16: 0 | JW16: 0 | JX16: 0 | JY16: 0 | JZ16: 0 | KA16: 0 | KB16: 0 | KC16: 0 | KD16: 0 | KE16: 0 | KF16: 0 | KG16: 0 | KH16: 0 | KI16: 0 | KJ16: 0 | KK16: 0 | KL16: 0 | KM16: 0 | KN16: 0 | KO16: 0 | KP16: 0 | KQ16: 0 | KR16: 0 | KS16: 0 | KT16: 0 | KU16: 0 | KV16: 0 | KW16: 0 | KX16: 0 | KY16: 0 | KZ16: 0 | LA16: 0 | LB16: 0 | LC16: 0 | LD16: 0 | LE16: 0 | LF16: 0 | LG16: 0 | LH16: 0 | LI16: 0 | LJ16: 0 | LK16: 0 | LL16: 0 | LM16: 0 | LN16: 0 | LO16: 0 | LP16: 0 | LQ16: 0 | LR16: 0 | LS16: 0 | LT16: 0 | LU16: 0 | LV16: 0 | LW16: 0 | LX16: 0 | LY16: 0 | LZ16: 0 | MA16: 0 | MB16: 0 | MC16: 0 | MD16: 0 | ME16: 0 | MF16: 0 | MG16: 0 | MH16: 0 | MI16: 0 | MJ16: 0 | MK16: 0 | ML16: 0 | MM16: 0 | MN16: 0 | MO16: 0 | MP16: 0 | MQ16: 0 | MR16: 0 | MS16: 0 | MT16: 0 | MU16: 0 | MV16: 0 | MW16: 0
A17: GT 1997-6 M1 | C17: 12395774.85 | D17: 11143909.1 | E17: 10017960.89 | F17: 9005354.604 | G17: 8094700.843 | H17: 7275793.891 | I17: 6539505.101 | J17: 5877595.425 | K17: 5282552.961 | L17: 4747705.08 | M17: 4267065.44 | N17: 3835265.138 | O17: 3447181.146 | P17: 3099460.064 | Q17: 2787652.327 | R17: 2507190.882 | S17: 2254854.6 | T17: 2027823.649 | U17: 1823562.647 | V17: 1639793.1 | W17: 1474485.386 | X17: 1325778.247 | Y17: 1192016.78 | Z17: 1071705.807 | AA17: 963492.118 | AB17: 866163.9845 | AC17: 778635.257 | AD17: 699917.3712 | AE17: 629127.7206 | AF17: 565466.1238 | AG17: 508222.1773 | AH17: 456752.5417 | AI17: 410471.8643 | AJ17: 368859.4814 | AK17: 331455.6793 | AL17: 297826.9916 | AM17: 267599.2367 | AN17: 240427.4868 | AO17: 216001.6764 | AP17: 194046.5754 | AQ17: 174311.1306 | AR17: 156576.5005 | AS17: 140637.1372 | AT17: 126311.8723 | AU17: 113440.9407 | AV17: 101874.1457 | AW17: 91482.94937 | AX17: 82146.6401 | AY17: 73759.55872 | AZ17: 66226.55579 | BA17: 59460.22825 | BB17: 53380.92884 | BC17: 47920.54557 | BD17: 43014.94113 | BE17: 38609.09007 | BF17: 34652.82674 | BG17: 31100.52249 | BH17: 27910.44314 | BI17: 25047.20872 | BJ17: 22475.48919 | BK17: 20166.87386 | BL17: 18094.4748 | BM17: 16233.99292 | BN17: 14564.51358 | BO17: 13065.44053 | BP17: 11719.62812 | BQ17: 10511.37284 | BR17: 9426.653302 | BS17: 8454.365541 | BT17: 7581.135272 | BU17: 6798.250585 | BV17: 6094.483277 | BW17: 5454.533088 | BX17: 4885.245979 | BY17: 4388.646545 | BZ17: 3943.35471 | CA17: 3543.10803 | CB17: 3183.34049 | CC17: 2859.906608 | CD17: 2569.181339 | CE17: 2307.879857 | CF17: 2072.927392 | CG17: 1861.843929 | CH17: 1672.150513 | CI17: 1501.67716 | CJ17: 1348.519747 | CK17: 1210.895291 | CL17: 1087.262704 | CM17: 976.119713 | CN17: 876.3111235 | CO17: 786.6864524 | CP17: 706.1488063 | CQ17: 633.8056908 | CR17: 568.8215119 | CS17: 510.4915757 | CT17: 458.108206 | CU17: 411.0861606 | CV17: 368.8298283 | CW17: 330.8864489 | CX17: 296.8382973 | CY17: 266.2511303 | CZ17: 238.837625 | DA17: 214.2253605 | DB17: 192.1136409 | DC17: 172.2926711 | DD17: 154.4938358 | DE17: 138.5239938 | DF17: 124.1847972 | DG17: 111.3077209 | DH17: 99.75987584 | DI17: 89.4108714 | DJ17: 80.125312 | DK17: 71.79136732 | DL17: 64.31760393 | DM17: 57.61750664 | DN17: 51.61018122 | DO17: 46.22173773 | DP17: 41.39070659 | DQ17: 37.06107574 | DR17: 33.17163982 | DS17: 29.69133395 | DT17: 26.56401626 | DU17: 23.77346137 | DV17: 21.2724473 | DW17: 19.03048542 | DX17: 17.01491101 | DY17: 15.21613699 | DZ17: 13.59946671 | EA17: 12.15654839 | EB17: 10.85742046 | EC17: 9.696245288 | ED17: 8.650697526 | EE17: 7.67519468 | EF17: 6.818232747 | EG17: 6.094139643 | EH17: 5.452956424 | EI17: 4.878765725 | EJ17: 4.36464771 | EK17: 3.905334115 | EL17: 3.493534241 | EM17: 3.124308523 | EN17: 2.792911478 | EO17: 2.497262697 | EP17: 2.232481947 | EQ17: 1.995712904 | ER17: 1.782780409 | ES17: 1.592417333 | ET17: 1.422421292 | EU17: 1.270618222 | EV17: 1.134654425 | EW17: 1.012416701 | EX17: 0.9033077473 | EY17: 0.8062299617 | EZ17: 0.7192925195 | FA17: 0.6410597236 | FB17: 0.5710404713 | FC17: 0.5092341558 | FD17: 0.4536594056 | FE17: 0.404365413 | FF17: 0.3599917135 | FG17: 0.3207137163 | FH17: 0.2854223816 | FI17: 0.2539977976 | FJ17: 0.2258857805 | FK17: 0.2010155482 | FL17: 0.1784616197 | FM17: 0.1585540366 | FN17: 0.1407548085 | FO17: 0.1249725389 | FP17: 0.11088884 | FQ17: 0.09832292321 | FR17: 0.08703576891 | FS17: 0.07712278721 | FT17: 0.06827742399 | FU17: 0.06030778845 | FV17: 0.05315294976 | FW17: 0.04694270498 | FX17: 0.04141682866 | FY17: 0.03638542734 | FZ17: 0.03181099933 | GA17: 0.02788314497 | GB17: 0.02441011673 | GC17: 0.02132619255 | GD17: 0.01855117774 | GE17: 0.01605826004 | GF17: 0.01384519937 | GG17: 0.01172534639 | GH17: 0.01002383597 | GI17: 0.008417964624 | GJ17: 0.007027275307 | GK17: 0.005714539683 | GL17: 0.004407972929 | GM17: 0.002329758904 | GN17: 0.0004808483947 | GO17: 0.000150207358 | GP17: 9.052254619e-05 | GQ17: 4.216320368e-05 | GR17: 2.543214859e-05 | GS17: 2.106244163e-05 | GT17: 1.878190847e-05 | GU17: 1.674415613e-05 | GV17: 1.492367532e-05 | GW17: 0 | GX17: 0 | GY17: 0 | GZ17: 0 | HA17: 0 | HB17: 0 | HC17: 0 | HD17: 0 | HE17: 0 | HF17: 0 | HG17: 0 | HH17: 0 | HI17: 0 | HJ17: 0 | HK17: 0 | HL17: 0 | HM17: 0 | HN17: 0 | HO17: 0 | HP17: 0 | HQ17: 0 | HR17: 0 | HS17: 0 | HT17: 0 | HU17: 0 | HV17: 0 | HW17: 0 | HX17: 0 | HY17: 0 | HZ17: 0 | IA17: 0 | IB17: 0 | IC17: 0 | ID17: 0 | IE17: 0 | IF17: 0 | IG17: 0 | IH17: 0 | II17: 0 | IJ17: 0 | IK17: 0 | IL17: 0 | IM17: 0 | IN17: 0 | IO17: 0 | IP17: 0 | IQ17: 0 | IR17: 0 | IS17: 0 | IT17: 0 | IU17: 0 | IV17: 0 | IW17: 0 | IX17: 0 | IY17: 0 | IZ17: 0 | JA17: 0 | JB17: 0 | JC17: 0 | JD17: 0 | JE17: 0 | JF17: 0 | JG17: 0 | JH17: 0 | JI17: 0 | JJ17: 0 | JK17: 0 | JL17: 0 | JM17: 0 | JN17: 0 | JO17: 0 | JP17: 0 | JQ17: 0 | JR17: 0 | JS17: 0 | JT17: 0 | JU17: 0 | JV17: 0 | JW17: 0 | JX17: 0 | JY17: 0 | JZ17: 0 | KA17: 0 | KB17: 0 | KC17: 0 | KD17: 0 | KE17: 0 | KF17: 0 | KG17: 0 | KH17: 0 | KI17: 0 | KJ17: 0 | KK17: 0 | KL17: 0 | KM17: 0 | KN17: 0 | KO17: 0 | KP17: 0 | KQ17: 0 | KR17: 0 | KS17: 0 | KT17: 0 | KU17: 0 | KV17: 0 | KW17: 0 | KX17: 0 | KY17: 0 | KZ17: 0 | LA17: 0 | LB17: 0 | LC17: 0 | LD17: 0 | LE17: 0 | LF17: 0 | LG17: 0 | LH17: 0 | LI17: 0 | LJ17: 0 | LK17: 0 | LL17: 0 | LM17: 0 | LN17: 0 | LO17: 0 | LP17: 0 | LQ17: 0 | LR17: 0 | LS17: 0 | LT17: 0 | LU17: 0 | LV17: 0 | LW17: 0 | LX17: 0 | LY17: 0 | LZ17: 0 | MA17: 0 | MB17: 0 | MC17: 0 | MD17: 0 | ME17: 0 | MF17: 0 | MG17: 0 | MH17: 0 | MI17: 0 | MJ17: 0 | MK17: 0 | ML17: 0 | MM17: 0 | MN17: 0 | MO17: 0 | MP17: 0 | MQ17: 0 | MR17: 0 | MS17: 0 | MT17: 0 | MU17: 0 | MV17: 0 | MW17: 0
A18: GT 1999-4 M1 | C18: 0 | D18: 0 | E18: 0 | F18: 0 | G18: 0 | H18: 0 | I18: 0 | J18: 0 | K18: 0 | L18: 0 | M18: 0 | N18: 0 | O18: 0 | P18: 0 | Q18: 0 | R18: 0 | S18: 0 | T18: 0 | U18: 0 | V18: 0 | W18: 0 | X18: 0 | Y18: 0 | Z18: 0 | AA18: 0 | AB18: 0 | AC18: 0 | AD18: 0 | AE18: 0 | AF18: 0 | AG18: 0 | AH18: 0 | AI18: 0 | AJ18: 0 | AK18: 0 | AL18: 0 | AM18: 0 | AN18: 0 | AO18: 0 | AP18: 0 | AQ18: 0 | AR18: 0 | AS18: 0 | AT18: 0 | AU18: 0 | AV18: 0 | AW18: 0 | AX18: 0 | AY18: 0 | AZ18: 0 | BA18: 0 | BB18: 0 | BC18: 0 | BD18: 0 | BE18: 0 | BF18: 0 | BG18: 0 | BH18: 0 | BI18: 0 | BJ18: 0 | BK18: 0 | BL18: 0 | BM18: 0 | BN18: 0 | BO18: 0 | BP18: 0 | BQ18: 0 | BR18: 0 | BS18: 0 | BT18: 0 | BU18: 0 | BV18: 0 | BW18: 0 | BX18: 0 | BY18: 0 | BZ18: 0 | CA18: 0 | CB18: 0 | CC18: 0 | CD18: 0 | CE18: 0 | CF18: 0 | CG18: 0 | CH18: 0 | CI18: 0 | CJ18: 0 | CK18: 0 | CL18: 0 | CM18: 0 | CN18: 0 | CO18: 0 | CP18: 0 | CQ18: 0 | CR18: 0 | CS18: 0 | CT18: 0 | CU18: 0 | CV18: 0 | CW18: 0 | CX18: 0 | CY18: 0 | CZ18: 0 | DA18: 0 | DB18: 0 | DC18: 0 | DD18: 0 | DE18: 0 | DF18: 0 | DG18: 0 | DH18: 0 | DI18: 0 | DJ18: 0 | DK18: 0 | DL18: 0 | DM18: 0 | DN18: 0 | DO18: 0 | DP18: 0 | DQ18: 0 | DR18: 0 | DS18: 0 | DT18: 0 | DU18: 0 | DV18: 0 | DW18: 0 | DX18: 0 | DY18: 0 | DZ18: 0 | EA18: 0 | EB18: 0 | EC18: 0 | ED18: 0 | EE18: 0 | EF18: 0 | EG18: 0 | EH18: 0 | EI18: 0 | EJ18: 0 | EK18: 0 | EL18: 0 | EM18: 0 | EN18: 0 | EO18: 0 | EP18: 0 | EQ18: 0 | ER18: 0 | ES18: 0 | ET18: 0 | EU18: 0 | EV18: 0 | EW18: 0 | EX18: 0 | EY18: 0 | EZ18: 0 | FA18: 0 | FB18: 0 | FC18: 0 | FD18: 0 | FE18: 0 | FF18: 0 | FG18: 0 | FH18: 0 | FI18: 0 | FJ18: 0 | FK18: 0 | FL18: 0 | FM18: 0 | FN18: 0 | FO18: 0 | FP18: 0 | FQ18: 0 | FR18: 0 | FS18: 0 | FT18: 0 | FU18: 0 | FV18: 0 | FW18: 0 | FX18: 0 | FY18: 0 | FZ18: 0 | GA18: 0 | GB18: 0 | GC18: 0 | GD18: 0 | GE18: 0 | GF18: 0 | GG18: 0 | GH18: 0 | GI18: 0 | GJ18: 0 | GK18: 0 | GL18: 0 | GM18: 0 | GN18: 0 | GO18: 0 | GP18: 0 | GQ18: 0 | GR18: 0 | GS18: 0 | GT18: 0 | GU18: 0 | GV18: 0 | GW18: 0 | GX18: 0 | GY18: 0 | GZ18: 0 | HA18: 0 | HB18: 0 | HC18: 0 | HD18: 0 | HE18: 0 | HF18: 0 | HG18: 0 | HH18: 0 | HI18: 0 | HJ18: 0 | HK18: 0 | HL18: 0 | HM18: 0 | HN18: 0 | HO18: 0 | HP18: 0 | HQ18: 0 | HR18: 0 | HS18: 0 | HT18: 0 | HU18: 0 | HV18: 0 | HW18: 0 | HX18: 0 | HY18: 0 | HZ18: 0 | IA18: 0 | IB18: 0 | IC18: 0 | ID18: 0 | IE18: 0 | IF18: 0 | IG18: 0 | IH18: 0 | II18: 0 | IJ18: 0 | IK18: 0 | IL18: 0 | IM18: 0 | IN18: 0 | IO18: 0 | IP18: 0 | IQ18: 0 | IR18: 0 | IS18: 0 | IT18: 0 | IU18: 0 | IV18: 0 | IW18: 0 | IX18: 0 | IY18: 0 | IZ18: 0 | JA18: 0 | JB18: 0 | JC18: 0 | JD18: 0 | JE18: 0 | JF18: 0 | JG18: 0 | JH18: 0 | JI18: 0 | JJ18: 0 | JK18: 0 | JL18: 0 | JM18: 0 | JN18: 0 | JO18: 0 | JP18: 0 | JQ18: 0 | JR18: 0 | JS18: 0 | JT18: 0 | JU18: 0 | JV18: 0 | JW18: 0 | JX18: 0 | JY18: 0 | JZ18: 0 | KA18: 0 | KB18: 0 | KC18: 0 | KD18: 0 | KE18: 0 | KF18: 0 | KG18: 0 | KH18: 0 | KI18: 0 | KJ18: 0 | KK18: 0 | KL18: 0 | KM18: 0 | KN18: 0 | KO18: 0 | KP18: 0 | KQ18: 0 | KR18: 0 | KS18: 0 | KT18: 0 | KU18: 0 | KV18: 0 | KW18: 0 | KX18: 0 | KY18: 0 | KZ18: 0 | LA18: 0 | LB18: 0 | LC18: 0 | LD18: 0 | LE18: 0 | LF18: 0 | LG18: 0 | LH18: 0 | LI18: 0 | LJ18: 0 | LK18: 0 | LL18: 0 | LM18: 0 | LN18: 0 | LO18: 0 | LP18: 0 | LQ18: 0 | LR18: 0 | LS18: 0 | LT18: 0 | LU18: 0 | LV18: 0 | LW18: 0 | LX18: 0 | LY18: 0 | LZ18: 0 | MA18: 0 | MB18: 0 | MC18: 0 | MD18: 0 | ME18: 0 | MF18: 0 | MG18: 0 | MH18: 0 | MI18: 0 | MJ18: 0 | MK18: 0 | ML18: 0 | MM18: 0 | MN18: 0 | MO18: 0 | MP18: 0 | MQ18: 0 | MR18: 0 | MS18: 0 | MT18: 0 | MU18: 0 | MV18: 0 | MW18: 0
A24: ORGN 2004-A M2 | C24: 100139.3406 | D24: 100480.7202 | E24: 100824.6327 | F24: 101170.938 | G24: 101520.9644 | H24: 101874.2352 | I24: 102231.9077 | J24: 102594.5162 | K24: 102961.7407 | L24: 103330.7571 | M24: 103705.5116 | N24: 104082.3622 | O24: 104459.7691 | P24: 104846.3533 | Q24: 105237.0224 | R24: 105628.8419 | S24: 106027.6095 | T24: 106430.4705 | U24: 106829.9893 | V24: 107239.4762 | W24: 107650.9353 | X24: 108066.7046 | Y24: 108484.6033 | Z24: 108904.9504 | AA24: 109330.2498 | AB24: 109758.065 | AC24: 110188.4366 | AD24: 110622.2811 | AE24: 111043.8717 | AF24: 111484.0664 | AG24: 111927.1273 | AH24: 112372.7321 | AI24: 112822.0232 | AJ24: 113271.8786 | AK24: 113729.3563 | AL24: 114167.4542 | AM24: 114631.7365 | AN24: 115100.008 | AO24: 115568.6923 | AP24: 116043.8604 | AQ24: 116521.6476 | AR24: 117002.6715 | AS24: 117413.4879 | AT24: 117900.696 | AU24: 118391.892 | AV24: 118887.2074 | AW24: 119385.258 | AX24: 119886.5788 | AY24: 120391.7074 | AZ24: 120887.3358 | BA24: 121399.6438 | BB24: 121906.056 | BC24: 122424.9835 | BD24: 122946.9196 | BE24: 123472.887 | BF24: 124002.4825 | BG24: 124535.8081 | BH24: 125073.1666 | BI24: 125614.0164 | BJ24: 126158.7856 | BK24: 126707.3299 | BL24: 127260.0619 | BM24: 127817.1407 | BN24: 128278.3364 | BO24: 128630.5578 | BP24: 128892.9843 | BQ24: 128751.3053 | BR24: 128735.1338 | BS24: 129024.0364 | BT24: 128996.7446 | BU24: 129170.1252 | BV24: 128796.7013 | BW24: 128746.5393 | BX24: 128761.482 | BY24: 128782.2223 | BZ24: 128371.2868 | CA24: 127902.0692 | CB24: 127483.9093 | CC24: 126799.1097 | CD24: 126748.9962 | CE24: 126465.2159 | CF24: 126740.6222 | CG24: 126923.3338 | CH24: 127219.1822 | CI24: 127764.4378 | CJ24: 128384.4395 | CK24: 129007.696 | CL24: 129552.5759 | CM24: 130017.2477 | CN24: 130579.2725 | CO24: 131214.2147 | CP24: 131852.4953 | CQ24: 132494.133 | CR24: 133139.1466 | CS24: 133787.1247 | CT24: 134439.1109 | CU24: 135039.9005 | CV24: 135625.3719 | CW24: 136211.1732 | CX24: 136711.2273 | CY24: 137373.9855 | CZ24: 137943.6174 | DA24: 138618.0095 | DB24: 139219.1308 | DC24: 139900.4699 | DD24: 140585.4069 | DE24: 141219.8343 | DF24: 141912.1152 | DG24: 142570.3105 | DH24: 143269.7437 | DI24: 143972.8768 | DJ24: 144679.7308 | DK24: 145390.3265 | DL24: 146104.7595 | DM24: 146823.0431 | DN24: 147545.1326 | DO24: 148221.1953 | DP24: 148950.6927 | DQ24: 149631.0841 | DR24: 150367.9024 | DS24: 151108.6301 | DT24: 151641.0792 | DU24: 152388.7639 | DV24: 152280.7915 | DW24: 151604.8854 | DX24: 148941.1094 | DY24: 144375.192 | DZ24: 139838.0978 | EA24: 136134.764 | EB24: 131682.2695 | EC24: 127790.1621 | ED24: 124754.4401 | EE24: 120721.6177 | EF24: 117615.5497 | EG24: 114132.4628 | EH24: 110412.4526 | EI24: 104423.3593 | EJ24: 99025.63875 | EK24: 93098.79886 | EL24: 85639.56528 | EM24: 80448.39579 | EN24: 77951.71477 | EO24: 75974.22486 | EP24: 72640.7635 | EQ24: 71663.62508 | ER24: 71727.61389 | ES24: 71959.39938 | ET24: 72082.22165 | EU24: 72348.18563 | EV24: 72689.12086 | EW24: 73031.78549 | EX24: 73247.5729 | EY24: 73511.01006 | EZ24: 73857.75204 | FA24: 74206.25451 | FB24: 74556.52703 | FC24: 74705.87353 | FD24: 74919.9717 | FE24: 75273.65567 | FF24: 75629.13697 | FG24: 75814.41966 | FH24: 76172.3119 | FI24: 76389.43466 | FJ24: 76750.32414 | FK24: 77113.04871 | FL24: 77477.61836 | FM24: 77844.04311 | FN24: 78212.33307 | FO24: 78582.49838 | FP24: 78873.93864 | FQ24: 79247.51839 | FR24: 79623.00264 | FS24: 80000.40177 | FT24: 80379.72622 | FU24: 80760.98651 | FV24: 80987.58307 | FW24: 81371.80544 | FX24: 81757.98985 | FY24: 82146.14704 | FZ24: 82536.28777 | GA24: 82928.42289 | GB24: 83322.56331 | GC24: 83718.71999 | GD24: 83955.80395 | GE24: 84068.73451 | GF24: 82792.95327 | GG24: 78936.98224 | GH24: 76797.58943 | GI24: 72010.85507 | GJ24: 67927.45765 | GK24: 63251.31697 | GL24: 60518.23834 | GM24: 56919.97797 | GN24: 55573.80679 | GO24: 54526.65162 | GP24: 54109.04443 | GQ24: 54195.39744 | GR24: 53741.29467 | GS24: 53783.89933 | GT24: 53758.08235 | GU24: 53517.66259 | GV24: 53632.9623 | GW24: 53638.99688 | GX24: 53625.18841 | GY24: 53871.75803 | GZ24: 54119.56505 | HA24: 54368.61623 | HB24: 54618.91836 | HC24: 54870.47826 | HD24: 55123.3028 | HE24: 55377.39891 | HF24: 55632.77353 | HG24: 55889.43365 | HH24: 56147.38631 | HI24: 56406.63858 | HJ24: 56667.19759 | HK24: 56929.07049 | HL24: 57192.26449 | HM24: 57456.78684 | HN24: 57512.47019 | HO24: 57778.5392 | HP24: 57874.05568 | HQ24: 58141.57247 | HR24: 58410.43927 | HS24: 58306.23911 | HT24: 58575.26561 | HU24: 58730.31528 | HV24: 59001.53382 | HW24: 59274.11969 | HX24: 59548.08038 | HY24: 59823.42345 | HZ24: 60100.15648 | IA24: 60214.05595 | IB24: 60492.53628 | IC24: 60632.35739 | ID24: 60651.34473 | IE24: 60093.15732 | IF24: 60026.85761 | IG24: 59936.21521 | IH24: 59897.89549 | II24: 59975.58121 | IJ24: 60250.20527 | IK24: 60037.19226 | IL24: 56698.40687 | IM24: 53361.48583 | IN24: 48825.4703 | IO24: 44398.43539 | IP24: 40611.00975 | IQ24: 38566.33213 | IR24: 31872.17707 | IS24: 26472.29029 | IT24: 20521.16895 | IU24: 15384.27522 | IV24: 13039.75728 | IW24: 11109.98143 | IX24: 10290.96086 | IY24: 8590.45696 | IZ24: 7493.446409 | JA24: 6190.62156 | JB24: 4984.494492 | JC24: 3912.849973 | JD24: 3024.689773 | JE24: 1439.884052 | JF24: 356.3272144 | JG24: 357.7487764 | JH24: 262.4240666 | JI24: 263.6187211 | JJ24: 264.8188141 | JK24: 266.0243704 | JL24: 267.2354148 | JM24: 268.4519724 | JN24: 269.6740682 | JO24: 270.9017274 | JP24: 272.1349755 | JQ24: 273.3738377 | JR24: 274.6183397 | JS24: 275.8685072 | JT24: 277.1243659 | JU24: 278.3859418 | JV24: 279.6532608 | JW24: 280.9263491 | JX24: 282.2052331 | JY24: 283.489939 | JZ24: 284.7804933 | KA24: 286.0769228 | KB24: 287.3792541 | KC24: 288.6875141 | KD24: 290.0017298 | KE24: 291.3219284 | KF24: 0 | KG24: 0 | KH24: 0 | KI24: 0 | KJ24: 0 | KK24: 0 | KL24: 0 | KM24: 0 | KN24: 0 | KO24: 0 | KP24: 0 | KQ24: 0 | KR24: 0 | KS24: 0 | KT24: 0 | KU24: 0 | KV24: 0 | KW24: 0 | KX24: 0 | KY24: 0 | KZ24: 0 | LA24: 0 | LB24: 0 | LC24: 0 | LD24: 0 | LE24: 0 | LF24: 0 | LG24: 0 | LH24: 0 | LI24: 0 | LJ24: 0 | LK24: 0 | LL24: 0 | LM24: 0 | LN24: 0 | LO24: 0 | LP24: 0 | LQ24: 0 | LR24: 0 | LS24: 0 | LT24: 0 | LU24: 0 | LV24: 0 | LW24: 0 | LX24: 0 | LY24: 0 | LZ24: 0 | MA24: 0 | MB24: 0 | MC24: 0 | MD24: 0 | ME24: 0 | MF24: 0 | MG24: 0 | MH24: 0 | MI24: 0 | MJ24: 0 | MK24: 0 | ML24: 0 | MM24: 0 | MN24: 0 | MO24: 0 | MP24: 0 | MQ24: 0 | MR24: 0 | MS24: 0 | MT24: 0 | MU24: 0 | MV24: 0 | MW24: 0
A25: ORGN 2005-A B | C25: 513423.1755 | D25: 506081.8665 | E25: 498816.9895 | F25: 491650.7068 | G25: 484571.2005 | H25: 477571.204 | I25: 470652.9159 | J25: 463813.7221 | K25: 457051.3566 | L25: 450365.0872 | M25: 443755.81 | N25: 437221.7409 | O25: 430762.0946 | P25: 424375.3076 | Q25: 418066.3196 | R25: 411831.8259 | S25: 405675.6541 | T25: 399586.9821 | U25: 393525.9915 | V25: 387586.379 | W25: 381646.7345 | X25: 375675.1472 | Y25: 369905.1084 | Z25: 364243.0629 | AA25: 358625.4276 | AB25: 353094.0232 | AC25: 347534.0292 | AD25: 342129.7771 | AE25: 336797.2786 | AF25: 331522.4243 | AG25: 326319.187 | AH25: 321180.8174 | AI25: 315989.6366 | AJ25: 310830.0713 | AK25: 305828.0318 | AL25: 300959.3622 | AM25: 296066.0791 | AN25: 291327.5782 | AO25: 286604.5642 | AP25: 281900.794 | AQ25: 277415.2965 | AR25: 272999.7783 | AS25: 268660.1573 | AT25: 264370.2125 | AU25: 260130.7039 | AV25: 255940.8792 | AW25: 251733.0678 | AX25: 247643.6124 | AY25: 243604.9039 | AZ25: 239613.9795 | BA25: 235670.001 | BB25: 231772.018 | BC25: 227776.2339 | BD25: 223975.1304 | BE25: 220218.7074 | BF25: 216413.3555 | BG25: 212749.9572 | BH25: 209132.2772 | BI25: 205560.7099 | BJ25: 202005.3782 | BK25: 198464.6465 | BL25: 194890.1451 | BM25: 191513.9837 | BN25: 188184.6592 | BO25: 184660.4182 | BP25: 181136.7701 | BQ25: 177740.9151 | BR25: 174512.3802 | BS25: 171330.4901 | BT25: 168089.0946 | BU25: 165000.7739 | BV25: 161760.5304 | BW25: 158771.9034 | BX25: 155827.7281 | BY25: 152881.0961 | BZ25: 150039.9664 | CA25: 147256.8069 | CB25: 144517.2715 | CC25: 141817.3387 | CD25: 139141.1717 | CE25: 136484.3861 | CF25: 133912.4065 | CG25: 131383.403 | CH25: 128896.3042 | CI25: 126449.5874 | CJ25: 123969.1427 | CK25: 121523.22 | CL25: 119187.4027 | CM25: 116882.9667 | CN25: 114612.6909 | CO25: 112368.1173 | CP25: 110198.7084 | CQ25: 107855.5946 | CR25: 105115.8912 | CS25: 102935.0308 | CT25: 100560.3134 | CU25: 98022.73116 | CV25: 95944.28751 | CW25: 93768.49452 | CX25: 91523.94039 | CY25: 89401.07433 | CZ25: 87504.58345 | DA25: 85325.36658 | DB25: 83493.25319 | DC25: 81289.05093 | DD25: 79572.94095 | DE25: 77915.33448 | DF25: 76046.67145 | DG25: 74295.06371 | DH25: 72677.92509 | DI25: 70038.05925 | DJ25: 68450.10633 | DK25: 66615.5668 | DL25: 64904.19964 | DM25: 62979.57268 | DN25: 61297.61084 | DO25: 59797.11374 | DP25: 58378.47352 | DQ25: 56657.57297 | DR25: 55258.45286 | DS25: 53889.33709 | DT25: 52156.8989 | DU25: 50999.60717 | DV25: 49884.05462 | DW25: 48791.94893 | DX25: 47701.92286 | DY25: 46653.23341 | DZ25: 45625.94514 | EA25: 44617.82673 | EB25: 43626.99274 | EC25: 42567.96138 | ED25: 41613.55447 | EE25: 40664.43843 | EF25: 39776.37357 | EG25: 38905.1841 | EH25: 38060.2476 | EI25: 37236.09635 | EJ25: 36401.59644 | EK25: 35608.72392 | EL25: 34858.77794 | EM25: 34118.63027 | EN25: 33394.59686 | EO25: 32674.45061 | EP25: 31982.85965 | EQ25: 31329.10925 | ER25: 30657.81683 | ES25: 29940.05571 | ET25: 29300.16048 | EU25: 28633.30576 | EV25: 27927.51448 | EW25: 27328.86275 | EX25: 26708.04101 | EY25: 24422.69056 | EZ25: 22587.03188 | FA25: 20123.13885 | FB25: 17632.71759 | FC25: 16010.05707 | FD25: 14279.17924 | FE25: 12984.69759 | FF25: 11384.11984 | FG25: 10050.69989 | FH25: 9564.291109 | FI25: 9424.078285 | FJ25: 9325.097375 | FK25: 9227.176861 | FL25: 9130.30552 | FM25: 9034.472247 | FN25: 8939.666054 | FO25: 8846.873548 | FP25: 8755.990152 | FQ25: 8666.643204 | FR25: 8578.421301 | FS25: 8491.637868 | FT25: 8230.385511 | FU25: 8146.137769 | FV25: 8062.931355 | FW25: 7981.043182 | FX25: 7900.361835 | FY25: 7820.535837 | FZ25: 7741.556166 | GA25: 7663.463586 | GB25: 7586.914754 | GC25: 7511.560434 | GD25: 7437.234641 | GE25: 7363.972507 | GF25: 7291.512615 | GG25: 7220.99406 | GH25: 7151.213488 | GI25: 7082.3824 | GJ25: 7014.518664 | GK25: 6947.36253 | GL25: 6880.906578 | GM25: 6815.143465 | GN25: 6750.148678 | GO25: 6686.231319 | GP25: 6588.036282 | GQ25: 6526.611138 | GR25: 6465.820235 | GS25: 6405.656948 | GT25: 6346.114725 | GU25: 6287.187081 | GV25: 6228.867597 | GW25: 6171.149923 | GX25: 6114.027776 | GY25: 6057.773064 | GZ25: 6002.153608 | HA25: 5947.106177 | HB25: 5892.660383 | HC25: 5839.114006 | HD25: 5786.117017 | HE25: 5733.663688 | HF25: 5682.310816 | HG25: 5631.690934 | HH25: 5494.488349 | HI25: 5280.080319 | HJ25: 4780.577126 | HK25: 4583.379265 | HL25: 4458.753281 | HM25: 4154.148812 | HN25: 4101.835398 | HO25: 4065.179605 | HP25: 4026.080659 | HQ25: 3990.816486 | HR25: 3956.12922 | HS25: 3921.791923 | HT25: 3887.800962 | HU25: 3854.31891 | HV25: 3821.311925 | HW25: 3788.636561 | HX25: 3756.289377 | HY25: 3724.266969 | HZ25: 3692.565968 | IA25: 3655.959448 | IB25: 3625.136098 | IC25: 3594.769824 | ID25: 3564.70697 | IE25: 3534.94439 | IF25: 3505.478973 | IG25: 3476.30764 | IH25: 3447.494534 | II25: 3419.25699 | IJ25: 3377.830423 | IK25: 3350.532992 | IL25: 3323.605965 | IM25: 3296.944588 | IN25: 3270.546117 | IO25: 3244.407836 | IP25: 3137.382653 | IQ25: 3112.227704 | IR25: 3087.321547 | IS25: 3062.66161 | IT25: 3038.245344 | IU25: 3014.070228 | IV25: 2990.133769 | IW25: 2966.433497 | IX25: 2942.966969 | IY25: 2919.731769 | IZ25: 2897.046419 | JA25: 2874.633375 | JB25: 2722.300043 | JC25: 2639.064248 | JD25: 2582.680754 | JE25: 2562.988893 | JF25: 2430.300589 | JG25: 2353.304458 | JH25: 2192.217091 | JI25: 2123.877338 | JJ25: 2108.892508 | JK25: 2094.049959 | JL25: 2078.804577 | JM25: 1998.734608 | JN25: 1966.754245 | JO25: 1892.888262 | JP25: 1522.634644 | JQ25: 1314.974514 | JR25: 757.5434428 | JS25: 470.2072331 | JT25: 323.4985677 | JU25: 211.111574 | JV25: 56.28653794 | JW25: 54.1875954 | JX25: 0 | JY25: 0 | JZ25: 0 | KA25: 0 | KB25: 0 | KC25: 0 | KD25: 0 | KE25: 0 | KF25: 0 | KG25: 0 | KH25: 0 | KI25: 0 | KJ25: 0 | KK25: 0 | KL25: 0 | KM25: 0 | KN25: 0 | KO25: 0 | KP25: 0 | KQ25: 0 | KR25: 0 | KS25: 0 | KT25: 0 | KU25: 0 | KV25: 0 | KW25: 0 | KX25: 0 | KY25: 0 | KZ25: 0 | LA25: 0 | LB25: 0 | LC25: 0 | LD25: 0 | LE25: 0 | LF25: 0 | LG25: 0 | LH25: 0 | LI25: 0 | LJ25: 0 | LK25: 0 | LL25: 0 | LM25: 0 | LN25: 0 | LO25: 0 | LP25: 0 | LQ25: 0 | LR25: 0 | LS25: 0 | LT25: 0 | LU25: 0 | LV25: 0 | LW25: 0 | LX25: 0 | LY25: 0 | LZ25: 0 | MA25: 0 | MB25: 0 | MC25: 0 | MD25: 0 | ME25: 0 | MF25: 0 | MG25: 0 | MH25: 0 | MI25: 0 | MJ25: 0 | MK25: 0 | ML25: 0 | MM25: 0 | MN25: 0 | MO25: 0 | MP25: 0 | MQ25: 0 | MR25: 0 | MS25: 0 | MT25: 0 | MU25: 0 | MV25: 0 | MW25: 0

Sheet Interest
A2: Deal | B2: 0 | C2: =+B2+1 -> 1 | D2: =+C2+1 -> 2 | E2: 3 | F2: 4 | G2: 5 | H2: 6 | I2: 7 | J2: 8 | K2: 9 | L2: 10 | M2: 11 | N2: 12 | O2: 13 | P2: 14 | Q2: 15 | R2: 16 | S2: 17 | T2: 18 | U2: 19 | V2: 20 | W2: 21 | X2: 22 | Y2: 23 | Z2: 24 | AA2: 25 | AB2: 26 | AC2: 27 | AD2: 28 | AE2: 29 | AF2: 30 | AG2: 31 | AH2: 32 | AI2: 33 | AJ2: 34 | AK2: 35 | AL2: 36 | AM2: 37 | AN2: 38 | AO2: 39 | AP2: 40 | AQ2: 41 | AR2: 42 | AS2: 43 | AT2: 44 | AU2: 45 | AV2: 46 | AW2: 47 | AX2: 48 | AY2: 49 | AZ2: 50 | BA2: 51 | BB2: 52 | BC2: 53 | BD2: 54 | BE2: 55 | BF2: 56 | BG2: 57 | BH2: 58 | BI2: 59 | BJ2: 60 | BK2: 61 | BL2: 62 | BM2: 63 | BN2: 64 | BO2: 65 | BP2: =+BO2+1 -> 66 | BQ2: 67 | BR2: 68 | BS2: 69 | BT2: 70 | BU2: 71 | BV2: 72 | BW2: 73 | BX2: 74 | BY2: 75 | BZ2: 76 | CA2: 77 | CB2: 78 | CC2: 79 | CD2: 80 | CE2: 81 | CF2: 82 | CG2: 83 | CH2: 84 | CI2: 85 | CJ2: 86 | CK2: 87 | CL2: 88 | CM2: 89 | CN2: 90 | CO2: 91 | CP2: 92 | CQ2: 93 | CR2: 94 | CS2: 95 | CT2: 96 | CU2: 97 | CV2: 98 | CW2: 99 | CX2: 100 | CY2: 101 | CZ2: 102 | DA2: 103 | DB2: 104 | DC2: 105 | DD2: 106 | DE2: 107 | DF2: 108 | DG2: 109 | DH2: 110 | DI2: 111 | DJ2: 112 | DK2: 113 | DL2: 114 | DM2: 115 | DN2: 116 | DO2: 117 | DP2: 118 | DQ2: 119 | DR2: 120 | DS2: 121 | DT2: 122 | DU2: 123 | DV2: 124 | DW2: 125 | DX2: 126 | DY2: 127 | DZ2: 128 | EA2: 129 | EB2: =+EA2+1 -> 130 | EC2: 131 | ED2: 132 | EE2: 133 | EF2: 134 | EG2: 135 | EH2: 136 | EI2: 137 | EJ2: 138 | EK2: 139 | EL2: 140 | EM2: 141 | EN2: 142 | EO2: 143 | EP2: 144 | EQ2: 145 | ER2: 146 | ES2: 147 | ET2: 148 | EU2: 149 | EV2: 150 | EW2: 151 | EX2: 152 | EY2: 153 | EZ2: 154 | FA2: 155 | FB2: 156 | FC2: 157 | FD2: 158 | FE2: 159 | FF2: 160 | FG2: 161 | FH2: 162 | FI2: 163 | FJ2: 164 | FK2: 165 | FL2: 166 | FM2: 167 | FN2: 168 | FO2: 169 | FP2: 170 | FQ2: 171 | FR2: 172 | FS2: 173 | FT2: 174 | FU2: 175 | FV2: 176 | FW2: 177 | FX2: 178 | FY2: 179 | FZ2: 180 | GA2: 181 | GB2: 182 | GC2: 183 | GD2: 184 | GE2: 185 | GF2: 186 | GG2: 187 | GH2: 188 | GI2: 189 | GJ2: 190 | GK2: 191 | GL2: 192 | GM2: 193 | GN2: =+GM2+1 -> 194 | GO2: 195 | GP2: 196 | GQ2: 197 | GR2: 198 | GS2: 199 | GT2: 200 | GU2: 201 | GV2: 202 | GW2: 203 | GX2: 204 | GY2: 205 | GZ2: 206 | HA2: 207 | HB2: 208 | HC2: 209 | HD2: 210 | HE2: 211 | HF2: 212 | HG2: 213 | HH2: 214 | HI2: 215 | HJ2: 216 | HK2: 217 | HL2: 218 | HM2: 219 | HN2: 220 | HO2: 221 | HP2: 222 | HQ2: 223 | HR2: 224 | HS2: 225 | HT2: 226 | HU2: 227 | HV2: 228 | HW2: 229 | HX2: 230 | HY2: 231 | HZ2: 232 | IA2: 233 | IB2: 234 | IC2: 235 | ID2: 236 | IE2: 237 | IF2: 238 | IG2: 239 | IH2: 240 | II2: 241 | IJ2: 242 | IK2: 243 | IL2: 244 | IM2: 245 | IN2: 246 | IO2: 247 | IP2: 248 | IQ2: 249 | IR2: 250 | IS2: 251 | IT2: 252 | IU2: 253 | IV2: 254 | IW2: 255 | IX2: 256 | IY2: 257 | IZ2: =+IY2+1 -> 258 | JA2: 259 | JB2: 260 | JC2: 261 | JD2: 262 | JE2: 263 | JF2: 264 | JG2: 265 | JH2: 266 | JI2: 267 | JJ2: 268 | JK2: 269 | JL2: 270 | JM2: 271 | JN2: 272 | JO2: 273 | JP2: 274 | JQ2: 275 | JR2: 276 | JS2: 277 | JT2: 278 | JU2: 279 | JV2: 280 | JW2: 281 | JX2: 282 | JY2: 283 | JZ2: 284 | KA2: 285 | KB2: 286 | KC2: 287 | KD2: 288 | KE2: 289 | KF2: 290 | KG2: 291 | KH2: 292 | KI2: 293 | KJ2: 294 | KK2: 295 | KL2: 296 | KM2: 297 | KN2: 298 | KO2: 299 | KP2: 300 | KQ2: 301 | KR2: 302 | KS2: 303 | KT2: 304 | KU2: 305 | KV2: 306 | KW2: 307 | KX2: 308 | KY2: 309 | KZ2: 310 | LA2: 311 | LB2: 312 | LC2: 313 | LD2: 314 | LE2: 315 | LF2: 316 | LG2: 317 | LH2: 318 | LI2: 319 | LJ2: 320 | LK2: 321 | LL2: =+LK2+1 -> 322 | LM2: 323 | LN2: 324 | LO2: 325 | LP2: 326 | LQ2: 327 | LR2: 328 | LS2: 329 | LT2: 330 | LU2: 331 | LV2: 332 | LW2: 333 | LX2: 334 | LY2: 335 | LZ2: 336 | MA2: 337 | MB2: 338 | MC2: 339 | MD2: 340 | ME2: 341 | MF2: 342 | MG2: 343 | MH2: 344 | MI2: 345 | MJ2: 346 | MK2: 347 | ML2: 348 | MM2: 349 | MN2: 350 | MO2: 351 | MP2: 352 | MQ2: 353 | MR2: 354 | MS2: 355 | MT2: 356 | MU2: 357 | MV2: 358 | MW2: 359
A3: =Inputs!C3 -> CBASS 2006-MH1 M2 | C3: 798019.0359 | D3: 720376.7284 | E3: 650110.3233 | F3: 586855.2514 | G3: 529846.6569 | H3: 478330.1434 | I3: 431851.2847 | J3: 389935.5084 | K3: 352067.6226 | L3: 317890.0811 | M3: 287024.162 | N3: 259113.9565 | O3: 233968.7583 | P3: 211225.9477 | Q3: 190686.3926 | R3: 172149.2884 | S3: 155413.4967 | T3: 140292.5346 | U3: 126646.8987 | V3: 114336.9194 | W3: 103221.9791 | X3: 93200.25071 | Y3: 84155.00876 | Z3: 75966.92512 | AA3: 68583.61484 | AB3: 61928.5337 | AC3: 55920.37261 | AD3: 50505.33921 | AE3: 45621.44667 | AF3: 41183.67499 | AG3: 37187.2047 | AH3: 33589.581 | AI3: 30346.61548 | AJ3: 27425.22961 | AK3: 24792.02374 | AL3: 22382.06744 | AM3: 20212.81879 | AN3: 18261.58735 | AO3: 16506.26748 | AP3: 14925.86912 | AQ3: 13504.59214 | AR3: 12192.26399 | AS3: 11010.39782 | AT3: 9948.41802 | AU3: 8994.136727 | AV3: 8135.01368 | AW3: 7364.217153 | AX3: 6649.540586 | AY3: 6005.128548 | AZ3: 5426.048404 | BA3: 4906.906631 | BB3: 4439.076388 | BC3: 4018.087381 | BD3: 3628.046801 | BE3: 3276.038831 | BF3: 2959.467124 | BG3: 2675.369549 | BH3: 2419.552999 | BI3: 2189.535896 | BJ3: 1977.015469 | BK3: 1785.017046 | BL3: 1612.25531 | BM3: 1456.932118 | BN3: 1316.906006 | BO3: 1190.595543 | BP3: 1074.764667 | BQ3: 970.1238663 | BR3: 875.8318953 | BS3: 790.9887031 | BT3: 714.6549583 | BU3: 646.0533581 | BV3: 583.2134662 | BW3: 526.4683108 | BX3: 475.4068196 | BY3: 429.4972872 | BZ3: 388.1126739 | CA3: 350.7619809 | CB3: 316.5831711 | CC3: 285.7049551 | CD3: 257.849986 | CE3: 232.7243716 | CF3: 210.0647408 | CG3: 189.6329989 | CH3: 171.1208119 | CI3: 154.4104955 | CJ3: 139.3461804 | CK3: 125.758473 | CL3: 113.489852 | CM3: 102.4052907 | CN3: 92.38965562 | CO3: 83.35186895 | CP3: 75.19445977 | CQ3: 67.83957567 | CR3: 61.21907779 | CS3: 55.26390134 | CT3: 49.86590222 | CU3: 44.99683669 | CV3: 40.61278759 | CW3: 36.66767891 | CX3: 33.10869757 | CY3: 29.8951087 | CZ3: 26.96803425 | DA3: 24.32820672 | DB3: 21.9419462 | DC3: 19.78945155 | DD3: 17.84278655 | DE3: 16.08587213 | DF3: 14.51354918 | DG3: 13.09616805 | DH3: 11.81765481 | DI3: 10.66425716 | DJ3: 9.622810598 | DK3: 8.681823194 | DL3: 7.833496215 | DM3: 7.067951388 | DN3: 6.376496218 | DO3: 5.75245099 | DP3: 5.189684897 | DQ3: 4.682594051 | DR3: 4.225122936 | DS3: 3.812383936 | DT3: 3.440333119 | DU3: 3.105122738 | DV3: 2.802934154 | DW3: 2.530413283 | DX3: 2.283211281 | DY3: 2.060070387 | DZ3: 1.85878145 | EA3: 1.677100355 | EB3: 1.513143687 | EC3: 1.365080384 | ED3: 1.231461485 | EE3: 1.11089475 | EF3: 1.002087269 | EG3: 0.9039091136 | EH3: 0.8153635555 | EI3: 0.7354021591 | EJ3: 0.6633954082 | EK3: 0.5984310045 | EL3: 0.5398324481 | EM3: 0.4869747314 | EN3: 0.4392616474 | EO3: 0.3961851686 | EP3: 0.3573187129 | EQ3: 0.3222425622 | ER3: 0.290627219 | ES3: 0.2620711652 | ET3: 0.2363073247 | EU3: 0.2130933004 | EV3: 0.1921872684 | EW3: 0.1733312613 | EX3: 0.1563214424 | EY3: 0.1409715468 | EZ3: 0.1270978943 | FA3: 0.1145851746 | FB3: 0.1033289532 | FC3: 0.09316877206 | FD3: 0.0839967823 | FE3: 0.07571866172 | FF3: 0.06825811655 | FG3: 0.06152593746 | FH3: 0.05545707451 | FI3: 0.04997575072 | FJ3: 0.04506358872 | FK3: 0.04058576554 | FL3: 0.03657251687 | FM3: 0.03292524343 | FN3: 0.02968384257 | FO3: 0.02676672719 | FP3: 0.02413320642 | FQ3: 0.02175553303 | FR3: 0.01960781533 | FS3: 0.01767274632 | FT3: 0.01593348792 | FU3: 0.01436637322 | FV3: 0.01295096877 | FW3: 0.01167528731 | FX3: 0.01051988939 | FY3: 0.009480298197 | FZ3: 0.008546841044 | GA3: 0.007705140393 | GB3: 0.006945402078 | GC3: 0.006259557157 | GD3: 0.005640648452 | GE3: 0.005082420594 | GF3: 0.00458136648 | GG3: 0.004129745047 | GH3: 0.003722353401 | GI3: 0.003354386593 | GJ3: 0.003022797127 | GK3: 0.002722825754 | GL3: 0.002454068182 | GM3: 0.002211796639 | GN3: 0.001992747715 | GO3: 0.001794957918 | GP3: 0.001617001461 | GQ3: 0.001456549363 | GR3: 0.001312616109 | GS3: 0.001182895965 | GT3: 0.001065821515 | GU3: 0.0009602606734 | GV3: 0.0008650417491 | GW3: 0.0007791781183 | GX3: 0.0007020546397 | GY3: 0.0006325553208 | GZ3: 0.0005698684157 | HA3: 0.0005133156202 | HB3: 0.0004623221162 | HC3: 0.0004163457311 | HD3: 0.0003750294561 | HE3: 0.0003378015708 | HF3: 0.0003042941621 | HG3: 0.0002740267765 | HH3: 0.0002467363204 | HI3: 0.0002221767015 | HJ3: 0.0002000793063 | HK3: 0.0001802110474 | HL3: 0.0001622981064 | HM3: 0.0001461505445 | HN3: 0.0001315886581 | HO3: 0.0001184714338 | HP3: 0.0001066907409 | HQ3: 9.605544539e-05 | HR3: 8.64866253e-05 | HS3: 7.781944746e-05 | HT3: 7.0028245e-05 | HU3: 6.297104005e-05 | HV3: 5.669181367e-05 | HW3: 5.104393616e-05 | HX3: 4.594007847e-05 | HY3: 4.13565842e-05 | HZ3: 3.718485039e-05 | IA3: 3.347280276e-05 | IB3: 3.013357712e-05 | IC3: 2.712471613e-05 | ID3: 2.441712668e-05 | IE3: 2.196620484e-05 | IF3: 1.977150663e-05 | IG3: 1.779597714e-05 | IH3: 1.601288167e-05 | II3: 1.441183795e-05 | IJ3: 1.297025207e-05 | IK3: 1.166730041e-05 | IL3: 1.049508353e-05 | IM3: 9.44398811e-06 | IN3: 8.498001424e-06 | IO3: 7.63710119e-06 | IP3: 6.868986859e-06 | IQ3: 6.171541368e-06 | IR3: 5.551573434e-06 | IS3: 4.985900552e-06 | IT3: 4.483089038e-06 | IU3: 4.029207872e-06 | IV3: 3.624334015e-06 | IW3: 3.258678503e-06 | IX3: 2.927087359e-06 | IY3: 2.630954188e-06 | IZ3: 2.363048737e-06 | JA3: 2.125240261e-06 | JB3: 1.910191894e-06 | JC3: 1.716452746e-06 | JD3: 1.540542931e-06 | JE3: 1.384554193e-06 | JF3: 1.241740616e-06 | JG3: 1.115253587e-06 | JH3: 1.000120379e-06 | JI3: 8.967239981e-07 | JJ3: 8.051816412e-07 | JK3: 7.224538174e-07 | JL3: 6.488647902e-07 | JM3: 5.820914457e-07 | JN3: 5.205857268e-07 | JO3: 4.658987357e-07 | JP3: 4.16967877e-07 | JQ3: 3.734663189e-07 | JR3: 3.336627459e-07 | JS3: 2.981501235e-07 | JT3: 2.665628127e-07 | JU3: 2.37387776e-07 | JV3: 2.101949788e-07 | JW3: 1.865442139e-07 | JX3: 1.592338733e-07 | JY3: 1.289045066e-07 | JZ3: 9.948661134e-08 | KA3: 6.562675548e-08 | KB3: 3.523591547e-08 | KC3: 4.441624452e-09 | KD3: 0 | KE3: 0 | KF3: 0 | KG3: 0 | KH3: 0 | KI3: 0 | KJ3: 0 | KK3: 0 | KL3: 0 | KM3: 0 | KN3: 0 | KO3: 0 | KP3: 0 | KQ3: 0 | KR3: 0 | KS3: 0 | KT3: 0 | KU3: 0 | KV3: 0 | KW3: 0 | KX3: 0 | KY3: 0 | KZ3: 0 | LA3: 0 | LB3: 0 | LC3: 0 | LD3: 0 | LE3: 0 | LF3: 0 | LG3: 0 | LH3: 0 | LI3: 0 | LJ3: 0 | LK3: 0 | LL3: 0 | LM3: 0 | LN3: 0 | LO3: 0 | LP3: 0 | LQ3: 0 | LR3: 0 | LS3: 0 | LT3: 0 | LU3: 0 | LV3: 0 | LW3: 0 | LX3: 0 | LY3: 0 | LZ3: 0 | MA3: 0 | MB3: 0 | MC3: 0 | MD3: 0 | ME3: 0 | MF3: 0 | MG3: 0 | MH3: 0 | MI3: 0 | MJ3: 0 | MK3: 0 | ML3: 0 | MM3: 0 | MN3: 0 | MO3: 0 | MP3: 0 | MQ3: 0 | MR3: 0 | MS3: 0 | MT3: 0 | MU3: 0 | MV3: 0 | MW3: 0
A4: =Inputs!C4 -> BCM 2000-A A2 | C4: 748575.1162 | D4: 674486.1743 | E4: 608239.5867 | F4: 548491.4439 | G4: 494599.3888 | H4: 445992.1355 | I4: 402152.3372 | J4: 362611.7133 | K4: 326949.5257 | L4: 294786.1383 | M4: 265780.0537 | N4: 239622.5174 | O4: 216033.6782 | P4: 194761.3523 | Q4: 175578.2353 | R4: 158279.9579 | S4: 142681.7148 | T4: 128616.4998 | U4: 115933.9958 | V4: 104498.5945 | W4: 94188.34167 | X4: 84892.57091 | Y4: 76512.57493 | Z4: 68957.36732 | AA4: 62145.96731 | AB4: 56005.68228 | AC4: 50471.04777 | AD4: 45482.31611 | AE4: 40984.9573 | AF4: 36931.33862 | AG4: 33277.70335 | AH4: 29984.57963 | AI4: 27016.85872 | AJ4: 24342.82779 | AK4: 21933.09659 | AL4: 19605.88433 | AM4: 17487.62012 | AN4: 15551.70938 | AO4: 13807.94264 | AP4: 12307.61352 | AQ4: 11083.1477 | AR4: 9988.256284 | AS4: 9001.908589 | AT4: 8112.970094 | AU4: 7311.649169 | AV4: 6589.298753 | AW4: 5938.083805 | AX4: 5351.042743 | AY4: 4821.847014 | AZ4: 4344.840641 | BA4: 3914.958771 | BB4: 3527.520577 | BC4: 3178.369442 | BD4: 2863.641014 | BE4: 2580.014188 | BF4: 2324.366236 | BG4: 2093.999671 | BH4: 1886.35372 | BI4: 1699.278348 | BJ4: 1530.690508 | BK4: 1378.789242 | BL4: 1241.899005 | BM4: 1118.519257 | BN4: 1007.404941 | BO4: 907.2815862 | BP4: 817.0795842 | BQ4: 735.812956 | BR4: 662.5855564 | BS4: 596.6401148 | BT4: 537.2315193 | BU4: 483.6932658 | BV4: 435.4777453 | BW4: 392.0577295 | BX4: 352.9487823 | BY4: 317.7100783 | BZ4: 286.0042807 | CA4: 257.4484724 | CB4: 231.7263703 | CC4: 208.5626772 | CD4: 187.6972676 | CE4: 168.9163227 | CF4: 151.9952408 | CG4: 136.7767577 | CH4: 123.0702906 | CI4: 110.7333378 | CJ4: 99.5902416 | CK4: 89.59165613 | CL4: 80.58637416 | CM4: 72.43889915 | CN4: 65.13294642 | CO4: 58.47477703 | CP4: 52.55140206 | CQ4: 47.22238084 | CR4: 42.44724263 | CS4: 38.13131018 | CT4: 33.48502093 | CU4: 29.05231435 | CV4: 24.84140135 | CW4: 21.32053222 | CX4: 18.56304595 | CY4: 16.05417522 | CZ4: 14.44058235 | DA4: 12.99706605 | DB4: 11.70007778 | DC4: 10.53273558 | DD4: 9.483643614 | DE4: 8.537563324 | DF4: 7.686582527 | DG4: 6.920710014 | DH4: 6.23083818 | DI4: 5.608696585 | DJ4: 5.049161952 | DK4: 4.545211275 | DL4: 4.091342822 | DM4: 3.682389095 | DN4: 3.314239582 | DO4: 2.982573254 | DP4: 2.684197648 | DQ4: 2.415098742 | DR4: 2.172897492 | DS4: 1.954820102 | DT4: 1.758917116 | DU4: 1.582313256 | DV4: 1.423429508 | DW4: 1.28044432 | DX4: 1.151707807 | DY4: 1.0359956 | DZ4: 0.9317293277 | EA4: 0.8377689583 | EB4: 0.753343304 | EC4: 0.6773949234 | ED4: 0.6090018704 | EE4: 0.5472944328 | EF4: 0.4918200969 | EG4: 0.4421598733 | EH4: 0.39752497 | EI4: 0.3571535774 | EJ4: 0.3209768794 | EK4: 0.2884083121 | EL4: 0.2590397365 | EM4: 0.2324135522 | EN4: 0.2088366699 | EO4: 0.1874258473 | EP4: 0.1683018525 | EQ4: 0.1510416121 | ER4: 0.1356262989 | ES4: 0.1217235114 | ET4: 0.1092421389 | EU4: 0.09796072368 | EV4: 0.08778471434 | EW4: 0.07878243669 | EX4: 0.07047009887 | EY4: 0.06303199019 | EZ4: 0.05636783715 | FA4: 0.05020062603 | FB4: 0.04311815273 | FC4: 0.03653502494 | FD4: 0.02978333033 | FE4: 0.02397913366 | FF4: 0.01998195181 | FG4: 0.01771219896 | FH4: 0.01588098063 | FI4: 0.01424422777 | FJ4: 0.01278493464 | FK4: 0.01147814544 | FL4: 0.01030017406 | FM4: 0.00925845699 | FN4: 0.008310641111 | FO4: 0.007469135345 | FP4: 0.006712295521 | FQ4: 0.006030205564 | FR4: 0.005416064189 | FS4: 0.004861418845 | FT4: 0.004361414502 | FU4: 0.003911639696 | FV4: 0.003497931032 | FW4: 0.003140380467 | FX4: 0.002818156336 | FY4: 0.002527099018 | FZ4: 0.002268839736 | GA4: 0.002029732714 | GB4: 0.001820930316 | GC4: 0.001628832259 | GD4: 0.001457982333 | GE4: 0.001304305805 | GF4: 0.001167347121 | GG4: 0.001046601197 | GH4: 0.0009363049448 | GI4: 0.0008394813981 | GJ4: 0.0007524606148 | GK4: 0.0006739845004 | GL4: 0.0006030304064 | GM4: 0.0005401014966 | GN4: 0.0004834329142 | GO4: 0.0004321990892 | GP4: 0.0003861417021 | GQ4: 0.0003444349759 | GR4: 0.0003077191198 | GS4: 0.0002753433065 | GT4: 0.0002460196335 | GU4: 0.0002159692955 | GV4: 0.0001907790912 | GW4: 0.0001691551971 | GX4: 0.0001485991901 | GY4: 0.0001325758975 | GZ4: 0.0001174610131 | HA4: 0.0001028650263 | HB4: 8.965612309e-05 | HC4: 7.878472359e-05 | HD4: 6.765010271e-05 | HE4: 5.887992456e-05 | HF4: 4.965728672e-05 | HG4: 4.267585061e-05 | HH4: 3.630964422e-05 | HI4: 2.955567265e-05 | HJ4: 2.261131848e-05 | HK4: 1.524665549e-05 | HL4: 8.487691604e-06 | HM4: 3.887115122e-06 | HN4: 6.009702594e-07 | HO4: 4.101762917e-08 | HP4: 3.688494619e-08 | HQ4: 0 | HR4: 0 | HS4: 0 | HT4: 0 | HU4: 0 | HV4: 0 | HW4: 0 | HX4: 0 | HY4: 0 | HZ4: 0 | IA4: 0 | IB4: 0 | IC4: 0 | ID4: 0 | IE4: 0 | IF4: 0 | IG4: 0 | IH4: 0 | II4: 0 | IJ4: 0 | IK4: 0 | IL4: 0 | IM4: 0 | IN4: 0 | IO4: 0 | IP4: 0 | IQ4: 0 | IR4: 0 | IS4: 0 | IT4: 0 | IU4: 0 | IV4: 0 | IW4: 0 | IX4: 0 | IY4: 0 | IZ4: 0 | JA4: 0 | JB4: 0 | JC4: 0 | JD4: 0 | JE4: 0 | JF4: 0 | JG4: 0 | JH4: 0 | JI4: 0 | JJ4: 0 | JK4: 0 | JL4: 0 | JM4: 0 | JN4: 0 | JO4: 0 | JP4: 0 | JQ4: 0 | JR4: 0 | JS4: 0 | JT4: 0 | JU4: 0 | JV4: 0 | JW4: 0 | JX4: 0 | JY4: 0 | JZ4: 0 | KA4: 0 | KB4: 0 | KC4: 0 | KD4: 0 | KE4: 0 | KF4: 0 | KG4: 0 | KH4: 0 | KI4: 0 | KJ4: 0 | KK4: 0 | KL4: 0 | KM4: 0 | KN4: 0 | KO4: 0 | KP4: 0 | KQ4: 0 | KR4: 0 | KS4: 0 | KT4: 0 | KU4: 0 | KV4: 0 | KW4: 0 | KX4: 0 | KY4: 0 | KZ4: 0 | LA4: 0 | LB4: 0 | LC4: 0 | LD4: 0 | LE4: 0 | LF4: 0 | LG4: 0 | LH4: 0 | LI4: 0 | LJ4: 0 | LK4: 0 | LL4: 0 | LM4: 0 | LN4: 0 | LO4: 0 | LP4: 0 | LQ4: 0 | LR4: 0 | LS4: 0 | LT4: 0 | LU4: 0 | LV4: 0 | LW4: 0 | LX4: 0 | LY4: 0 | LZ4: 0 | MA4: 0 | MB4: 0 | MC4: 0 | MD4: 0 | ME4: 0 | MF4: 0 | MG4: 0 | MH4: 0 | MI4: 0 | MJ4: 0 | MK4: 0 | ML4: 0 | MM4: 0 | MN4: 0 | MO4: 0 | MP4: 0 | MQ4: 0 | MR4: 0 | MS4: 0 | MT4: 0 | MU4: 0 | MV4: 0 | MW4: 0
A5: =Inputs!C5 -> CNF 2000-1 A5 | C5: 1312627.552 | D5: 1164754.805 | E5: 1033518.117 | F5: 917051.044 | G5: 813695.3262 | H5: 721973.9406 | I5: 640587.9445 | J5: 568368.9343 | K5: 504283.303 | L5: 447412.9972 | M5: 396947.1465 | N5: 352165.6101 | O5: 312430.2898 | P5: 277172.1828 | Q5: 245886.1166 | R5: 218126.4122 | S5: 193498.7426 | T5: 171647.7115 | U5: 152260.1543 | V5: 135058.8503 | W5: 119798.5694 | X5: 106260.1879 | Y5: 94249.5247 | Z5: 83594.29278 | AA5: 74141.62485 | AB5: 65755.7167 | AC5: 58316.89154 | AD5: 51718.28502 | AE5: 45865.65105 | AF5: 40674.76273 | AG5: 36070.31443 | AH5: 31986.54706 | AI5: 28364.28707 | AJ5: 25152.04854 | AK5: 22303.09099 | AL5: 19776.58635 | AM5: 17536.70637 | AN5: 15550.5037 | AO5: 13788.87625 | AP5: 12227.405 | AQ5: 10842.1163 | AR5: 9613.070275 | AS5: 8525.496717 | AT5: 7562.634441 | AU5: 6710.433893 | AV5: 5954.108489 | AW5: 5283.064745 | AX5: 4687.557123 | AY5: 4159.052465 | AZ5: 3690.125155 | BA5: 3274.035932 | BB5: 2904.777632 | BC5: 2577.103531 | BD5: 2286.355676 | BE5: 2028.352589 | BF5: 1799.377053 | BG5: 1596.245305 | BH5: 1416.015843 | BI5: 1256.136174 | BJ5: 1114.281885 | BK5: 988.4249122 | BL5: 876.7408629 | BM5: 777.6670958 | BN5: 689.7794386 | BO5: 611.8126137 | BP5: 542.6245123 | BQ5: 481.267982 | BR5: 426.8375237 | BS5: 378.5352823 | BT5: 335.7107085 | BU5: 297.7178765 | BV5: 264.0088878 | BW5: 234.104936 | BX5: 207.593862 | BY5: 184.0778163 | BZ5: 163.2291011 | CA5: 144.7314509 | CB5: 128.3268696 | CC5: 113.7797977 | CD5: 100.8746328 | CE5: 89.43025295 | CF5: 79.28913901 | CG5: 70.29609794 | CH5: 62.31904222 | CI5: 55.2421972 | CJ5: 48.96886439 | CK5: 43.4043742 | CL5: 38.46945495 | CM5: 34.09788287 | CN5: 30.21969662 | CO5: 26.77997293 | CP5: 23.73138876 | CQ5: 21.02842451 | CR5: 18.63379276 | CS5: 16.51179561 | CT5: 14.62480126 | CU5: 12.95448558 | CV5: 11.47620076 | CW5: 10.16544565 | CX5: 8.998297847 | CY5: 7.965932075 | CZ5: 7.038786475 | DA5: 6.221007464 | DB5: 5.506533771 | DC5: 4.884569623 | DD5: 4.332597352 | DE5: 3.84322327 | DF5: 3.409172855 | DG5: 3.024081943 | DH5: 2.682435152 | DI5: 2.379110126 | DJ5: 2.110048877 | DK5: 1.871586928 | DL5: 1.659353837 | DM5: 1.471550799 | DN5: 1.30509447 | DO5: 1.157246812 | DP5: 1.026177901 | DQ5: 0.9099870974 | DR5: 0.8070059434 | DS5: 0.7156841094 | DT5: 0.6345844562 | DU5: 0.5626526948 | DV5: 0.4988756339 | DW5: 0.4423270576 | DX5: 0.3920771646 | DY5: 0.3476021096 | DZ5: 0.3081633766 | EA5: 0.2731067899 | EB5: 0.2421214433 | EC5: 0.2145846841 | ED5: 0.1902358343 | EE5: 0.1686017721 | EF5: 0.1494625656 | EG5: 0.1324901176 | EH5: 0.1174285543 | EI5: 0.1040726082 | EJ5: 0.09223104542 | EK5: 0.08173934343 | EL5: 0.07243462375 | EM5: 0.06416830518 | EN5: 0.05685273122 | EO5: 0.05037199085 | EP5: 0.0446200806 | EQ5: 0.03952156002 | ER5: 0.03502225065 | ES5: 0.03101463118 | ET5: 0.02747522175 | EU5: 0.02432634498 | EV5: 0.02152227523 | EW5: 0.01905028662 | EX5: 0.01687293914 | EY5: 0.01493201796 | EZ5: 0.01319145936 | FA5: 0.01168120033 | FB5: 0.01033870159 | FC5: 0.009142022659 | FD5: 0.008083027025 | FE5: 0.007147051475 | FF5: 0.006317062134 | FG5: 0.005571157187 | FH5: 0.004886888052 | FI5: 0.00429447917 | FJ5: 0.003773003426 | FK5: 0.003341627257 | FL5: 0.002960874959 | FM5: 0.002622830747 | FN5: 0.002321733945 | FO5: 0.002054895831 | FP5: 0.001819843473 | FQ5: 0.001611352532 | FR5: 0.001427106939 | FS5: 0.001263222837 | FT5: 0.00111862385 | FU5: 0.0009908457918 | FV5: 0.0008776349502 | FW5: 0.0007759844042 | FX5: 0.0006869601195 | FY5: 0.0006077999308 | FZ5: 0.0005371289765 | GA5: 0.0004752424827 | GB5: 0.0004200899262 | GC5: 0.0003717012811 | GD5: 0.0003288098519 | GE5: 0.0002908892157 | GF5: 0.0002571333567 | GG5: 0.0002270622618 | GH5: 0.0002005907023 | GI5: 0.0001771179448 | GJ5: 0.0001564110977 | GK5: 0.0001383060944 | GL5: 0.0001217617653 | GM5: 0.0001073704174 | GN5: 9.456930542e-05 | GO5: 8.347423451e-05 | GP5: 7.363151744e-05 | GQ5: 6.492469695e-05 | GR5: 5.725377774e-05 | GS5: 5.030091733e-05 | GT5: 4.427303369e-05 | GU5: 3.887148076e-05 | GV5: 3.421433295e-05 | GW5: 3.002949601e-05 | GX5: 2.630085646e-05 | GY5: 2.304399917e-05 | GZ5: 2.009219844e-05 | HA5: 1.749558514e-05 | HB5: 1.524153559e-05 | HC5: 1.32101461e-05 | HD5: 1.142699404e-05 | HE5: 9.887631469e-06 | HF5: 8.510804364e-06 | HG5: 7.353463396e-06 | HH5: 6.289241406e-06 | HI5: 5.404075891e-06 | HJ5: 4.583989728e-06 | HK5: 3.842824167e-06 | HL5: 3.172596707e-06 | HM5: 2.616928437e-06 | HN5: 2.076539166e-06 | HO5: 1.466883308e-06 | HP5: 7.147395907e-07 | HQ5: 2.686152924e-07 | HR5: 1.748340101e-08 | HS5: 1.090454822e-08 | HT5: 1.269840172e-09 | HU5: 1.104770664e-09 | HV5: 8.007760347e-10 | HW5: 3.959268301e-10 | HX5: 3.464759374e-10 | HY5: 3.030888167e-10 | HZ5: 0 | IA5: 0 | IB5: 0 | IC5: 0 | ID5: 0 | IE5: 0 | IF5: 0 | IG5: 0 | IH5: 0 | II5: 0 | IJ5: 0 | IK5: 0 | IL5: 0 | IM5: 0 | IN5: 0 | IO5: 0 | IP5: 0 | IQ5: 0 | IR5: 0 | IS5: 0 | IT5: 0 | IU5: 0 | IV5: 0 | IW5: 0 | IX5: 0 | IY5: 0 | IZ5: 0 | JA5: 0 | JB5: 0 | JC5: 0 | JD5: 0 | JE5: 0 | JF5: 0 | JG5: 0 | JH5: 0 | JI5: 0 | JJ5: 0 | JK5: 0 | JL5: 0 | JM5: 0 | JN5: 0 | JO5: 0 | JP5: 0 | JQ5: 0 | JR5: 0 | JS5: 0 | JT5: 0 | JU5: 0 | JV5: 0 | JW5: 0 | JX5: 0 | JY5: 0 | JZ5: 0 | KA5: 0 | KB5: 0 | KC5: 0 | KD5: 0 | KE5: 0 | KF5: 0 | KG5: 0 | KH5: 0 | KI5: 0 | KJ5: 0 | KK5: 0 | KL5: 0 | KM5: 0 | KN5: 0 | KO5: 0 | KP5: 0 | KQ5: 0 | KR5: 0 | KS5: 0 | KT5: 0 | KU5: 0 | KV5: 0 | KW5: 0 | KX5: 0 | KY5: 0 | KZ5: 0 | LA5: 0 | LB5: 0 | LC5: 0 | LD5: 0 | LE5: 0 | LF5: 0 | LG5: 0 | LH5: 0 | LI5: 0 | LJ5: 0 | LK5: 0 | LL5: 0 | LM5: 0 | LN5: 0 | LO5: 0 | LP5: 0 | LQ5: 0 | LR5: 0 | LS5: 0 | LT5: 0 | LU5: 0 | LV5: 0 | LW5: 0 | LX5: 0 | LY5: 0 | LZ5: 0 | MA5: 0 | MB5: 0 | MC5: 0 | MD5: 0 | ME5: 0 | MF5: 0 | MG5: 0 | MH5: 0 | MI5: 0 | MJ5: 0 | MK5: 0 | ML5: 0 | MM5: 0 | MN5: 0 | MO5: 0 | MP5: 0 | MQ5: 0 | MR5: 0 | MS5: 0 | MT5: 0 | MU5: 0 | MV5: 0 | MW5: 0
A6: =Inputs!C6 -> INDMH 1997-1 A5 | C6: 95711.8152 | D6: 86027.74418 | E6: 77322.83026 | F6: 69496.07556 | G6: 62461.41584 | H6: 56136.1133 | I6: 50448.85404 | J6: 45335.80422 | K6: 40743.66176 | L6: 36616.36363 | M6: 32899.13054 | N6: 29567.33715 | O6: 26571.65388 | P6: 23878.93684 | Q6: 21458.09868 | R6: 19281.69333 | S6: 17325.12561 | T6: 15566.26776 | U6: 13985.21256 | V6: 12564.0511 | W6: 11286.67266 | X6: 10138.70778 | Y6: 9107.12878 | Z6: 8180.301585 | AA6: 7347.464296 | AB6: 6599.022329 | AC6: 5926.457438 | AD6: 5322.108226 | AE6: 4779.084207 | AF6: 4291.143641 | AG6: 3853.052246 | AH6: 3459.610425 | AI6: 3106.202005 | AJ6: 2788.806195 | AK6: 2503.672579 | AL6: 2247.536312 | AM6: 2017.461695 | AN6: 1810.778022 | AO6: 1625.22062 | AP6: 1458.572621 | AQ6: 1308.952734 | AR6: 1174.590796 | AS6: 1053.938486 | AT6: 945.6039476 | AU6: 848.3155038 | AV6: 761.0115767 | AW6: 682.6106055 | AX6: 612.2657641 | AY6: 549.14047 | AZ6: 492.5007274 | BA6: 441.6976841 | BB6: 396.0995034 | BC6: 355.1671416 | BD6: 318.4483463 | BE6: 285.4641918 | BF6: 255.8686438 | BG6: 229.3138973 | BH6: 205.5601469 | BI6: 184.2046612 | BJ6: 165.1623707 | BK6: 148.0713217 | BL6: 132.7148605 | BM6: 118.9230982 | BN6: 106.5617543 | BO6: 95.56049335 | BP6: 85.66768079 | BQ6: 76.74107122 | BR6: 68.50674971 | BS6: 61.34926944 | BT6: 55.04826477 | BU6: 49.39054893 | BV6: 44.27996254 | BW6: 39.71616437 | BX6: 35.63287978 | BY6: 31.96682987 | BZ6: 28.6756002 | CA6: 25.71134267 | CB6: 23.06231862 | CC6: 20.68445394 | CD6: 18.55014239 | CE6: 16.6345754 | CF6: 14.91381377 | CG6: 13.36948443 | CH6: 11.98631457 | CI6: 10.73930639 | CJ6: 9.627391164 | CK6: 8.627343064 | CL6: 7.733010492 | CM6: 6.930688428 | CN6: 6.208711451 | CO6: 5.563120145 | CP6: 4.983672414 | CQ6: 4.465456848 | CR6: 3.999709742 | CS6: 3.58317873 | CT6: 3.209075141 | CU6: 2.874305845 | CV6: 2.573235418 | CW6: 2.303920904 | CX6: 2.061029416 | CY6: 1.845482371 | CZ6: 1.65182852 | DA6: 1.477390892 | DB6: 1.322609809 | DC6: 1.183890633 | DD6: 1.059579452 | DE6: 0.9475520647 | DF6: 0.8478860001 | DG6: 0.75828765 | DH6: 0.6776005017 | DI6: 0.6061574902 | DJ6: 0.5415104806 | DK6: 0.4841562469 | DL6: 0.4322251774 | DM6: 0.3859645976 | DN6: 0.3450064298 | DO6: 0.3080963203 | DP6: 0.2752296335 | DQ6: 0.2460508109 | DR6: 0.2189062008 | DS6: 0.1952597709 | DT6: 0.1745618942 | DU6: 0.1558844291 | DV6: 0.1385685547 | DW6: 0.1233441879 | DX6: 0.1100960552 | DY6: 0.09834902393 | DZ6: 0.08726493976 | EA6: 0.0776661065 | EB6: 0.06931394976 | EC6: 0.06189678818 | ED6: 0.05503334943 | EE6: 0.04905228145 | EF6: 0.04384364051 | EG6: 0.039181429 | EH6: 0.03494262956 | EI6: 0.03118036885 | EJ6: 0.02781831714 | EK6: 0.02482440827 | EL6: 0.02216945154 | EM6: 0.01972816039 | EN6: 0.0176140348 | EO6: 0.01570274977 | EP6: 0.01399213743 | EQ6: 0.01248620667 | ER6: 0.01113993353 | ES6: 0.009936588793 | ET6: 0.00886117978 | EU6: 0.007891368247 | EV6: 0.007025767548 | EW6: 0.006211612081 | EX6: 0.005526078936 | EY6: 0.004895324762 | EZ6: 0.004361047401 | FA6: 0.003869180151 | FB6: 0.003411402463 | FC6: 0.003022810092 | FD6: 0.002680083011 | FE6: 0.002380586444 | FF6: 0.002114466198 | FG6: 0.001875198721 | FH6: 0.001653467224 | FI6: 0.001457063521 | FJ6: 0.001280320382 | FK6: 0.001136702011 | FL6: 0.001000227158 | FM6: 0.0008824230577 | FN6: 0.0007764963582 | FO6: 0.0006866096764 | FP6: 0.000604693693 | FQ6: 0.0005236424152 | FR6: 0.000462849917 | FS6: 0.0004019536006 | FT6: 0.0003530830248 | FU6: 0.0003031315291 | FV6: 0.0002621360011 | FW6: 0.0002247468132 | FX6: 0.0001907469041 | FY6: 0.0001600450993 | FZ6: 0.0001310465853 | GA6: 0.0001085428281 | GB6: 8.487034062e-05 | GC6: 7.015690518e-05 | GD6: 5.57845931e-05 | GE6: 4.240550216e-05 | GF6: 3.426159138e-05 | GG6: 2.45214493e-05 | GH6: 1.748168828e-05 | GI6: 9.983862054e-06 | GJ6: 7.34143187e-06 | GK6: 6.190271038e-06 | GL6: 1.624943808e-06 | GM6: 5.1820134e-07 | GN6: 4.653896764e-07 | GO6: 4.179320043e-07 | GP6: 0 | GQ6: 0 | GR6: 0 | GS6: 0 | GT6: 0 | GU6: 0 | GV6: 0 | GW6: 0 | GX6: 0 | GY6: 0 | GZ6: 0 | HA6: 0 | HB6: 0 | HC6: 0 | HD6: 0 | HE6: 0 | HF6: 0 | HG6: 0 | HH6: 0 | HI6: 0 | HJ6: 0 | HK6: 0 | HL6: 0 | HM6: 0 | HN6: 0 | HO6: 0 | HP6: 0 | HQ6: 0 | HR6: 0 | HS6: 0 | HT6: 0 | HU6: 0 | HV6: 0 | HW6: 0 | HX6: 0 | HY6: 0 | HZ6: 0 | IA6: 0 | IB6: 0 | IC6: 0 | ID6: 0 | IE6: 0 | IF6: 0 | IG6: 0 | IH6: 0 | II6: 0 | IJ6: 0 | IK6: 0 | IL6: 0 | IM6: 0 | IN6: 0 | IO6: 0 | IP6: 0 | IQ6: 0 | IR6: 0 | IS6: 0 | IT6: 0 | IU6: 0 | IV6: 0 | IW6: 0 | IX6: 0 | IY6: 0 | IZ6: 0 | JA6: 0 | JB6: 0 | JC6: 0 | JD6: 0 | JE6: 0 | JF6: 0 | JG6: 0 | JH6: 0 | JI6: 0 | JJ6: 0 | JK6: 0 | JL6: 0 | JM6: 0 | JN6: 0 | JO6: 0 | JP6: 0 | JQ6: 0 | JR6: 0 | JS6: 0 | JT6: 0 | JU6: 0 | JV6: 0 | JW6: 0 | JX6: 0 | JY6: 0 | JZ6: 0 | KA6: 0 | KB6: 0 | KC6: 0 | KD6: 0 | KE6: 0 | KF6: 0 | KG6: 0 | KH6: 0 | KI6: 0 | KJ6: 0 | KK6: 0 | KL6: 0 | KM6: 0 | KN6: 0 | KO6: 0 | KP6: 0 | KQ6: 0 | KR6: 0 | KS6: 0 | KT6: 0 | KU6: 0 | KV6: 0 | KW6: 0 | KX6: 0 | KY6: 0 | KZ6: 0 | LA6: 0 | LB6: 0 | LC6: 0 | LD6: 0 | LE6: 0 | LF6: 0 | LG6: 0 | LH6: 0 | LI6: 0 | LJ6: 0 | LK6: 0 | LL6: 0 | LM6: 0 | LN6: 0 | LO6: 0 | LP6: 0 | LQ6: 0 | LR6: 0 | LS6: 0 | LT6: 0 | LU6: 0 | LV6: 0 | LW6: 0 | LX6: 0 | LY6: 0 | LZ6: 0 | MA6: 0 | MB6: 0 | MC6: 0 | MD6: 0 | ME6: 0 | MF6: 0 | MG6: 0 | MH6: 0 | MI6: 0 | MJ6: 0 | MK6: 0 | ML6: 0 | MM6: 0 | MN6: 0 | MO6: 0 | MP6: 0 | MQ6: 0 | MR6: 0 | MS6: 0 | MT6: 0 | MU6: 0 | MV6: 0 | MW6: 0
A7: =Inputs!C7 -> GT 1998-3 M1 | C7: 607369.5963 | D7: 545006.5654 | E7: 489023.8729 | F7: 438771.1635 | G7: 393663.7868 | H7: 353174.9423 | I7: 316835.4558 | J7: 284225.1172 | K7: 254965.7786 | L7: 228711.6308 | M7: 205152.7788 | N7: 184010.8904 | O7: 165040.1939 | P7: 148018.4086 | Q7: 132747.9116 | R7: 119046.7821 | S7: 106756.7152 | T7: 95735.22335 | U7: 85850.82966 | V7: 76983.04226 | W7: 69043.88101 | X7: 61973.25416 | Y7: 55627.67078 | Z7: 49929.4425 | AA7: 44812.85592 | AB7: 40218.80317 | AC7: 36094.14385 | AD7: 32391.12835 | AE7: 29066.68263 | AF7: 26082.29677 | AG7: 23403.52174 | AH7: 20998.97088 | AI7: 18840.47994 | AJ7: 16903.21269 | AK7: 15164.3381 | AL7: 13603.74997 | AM7: 12203.3843 | AN7: 10946.69156 | AO7: 9818.768251 | AP7: 8806.588991 | AQ7: 7898.461461 | AR7: 7083.526021 | AS7: 6352.280031 | AT7: 5696.403072 | AU7: 5107.943442 | AV7: 4580.062904 | AW7: 4106.608952 | AX7: 3681.911836 | AY7: 3300.959804 | AZ7: 2959.16988 | BA7: 2652.62822 | BB7: 2377.707864 | BC7: 2131.146224 | BD7: 1910.013376 | BE7: 1711.723904 | BF7: 1533.879828 | BG7: 1374.449528 | BH7: 1231.550289 | BI7: 1103.420138 | BJ7: 988.5175248 | BK7: 885.5202963 | BL7: 793.2111126 | BM7: 710.4681859 | BN7: 636.310975 | BO7: 569.8318 | BP7: 510.2827029 | BQ7: 456.910107 | BR7: 409.0955382 | BS7: 366.2035323 | BT7: 327.8720522 | BU7: 293.555354 | BV7: 262.7991503 | BW7: 235.2595777 | BX7: 210.5692284 | BY7: 188.4540367 | BZ7: 168.6353563 | CA7: 150.888119 | CB7: 134.9882829 | CC7: 120.7641362 | CD7: 107.9423185 | CE7: 96.11136116 | CF7: 86.18182869 | CG7: 77.30568686 | CH7: 69.33750936 | CI7: 62.18909044 | CJ7: 55.77593811 | CK7: 50.01964386 | CL7: 44.8563564 | CM7: 40.22409942 | CN7: 36.0685125 | CO7: 32.34010359 | CP7: 28.99320497 | CQ7: 25.99302456 | CR7: 23.30167585 | CS7: 20.88610655 | CT7: 18.71782235 | CU7: 16.77673621 | CV7: 15.03342008 | CW7: 13.47115385 | CX7: 12.07037011 | CY7: 10.81551112 | CZ7: 9.689868883 | DA7: 8.681534988 | DB7: 7.776912311 | DC7: 6.96621934 | DD7: 6.239546381 | DE7: 5.588252889 | DF7: 5.004669495 | DG7: 4.481552563 | DH7: 4.012937939 | DI7: 3.592390985 | DJ7: 3.21610032 | DK7: 2.879065873 | DL7: 2.577323521 | DM7: 2.306827449 | DN7: 2.063611558 | DO7: 1.846521695 | DP7: 1.651956105 | DQ7: 1.477886425 | DR7: 1.322024039 | DS7: 1.18270326 | DT7: 1.057926555 | DU7: 0.9460005377 | DV7: 0.8457203338 | DW7: 0.7560014474 | DX7: 0.6756650325 | DY7: 0.604097176 | DZ7: 0.5398577845 | EA7: 0.4822134447 | EB7: 0.4307750217 | EC7: 0.3849069451 | ED7: 0.3435584138 | EE7: 0.306810312 | EF7: 0.2739481051 | EG7: 0.2443757625 | EH7: 0.2180019026 | EI7: 0.1945206175 | EJ7: 0.173224784 | EK7: 0.1542612551 | EL7: 0.1370462261 | EM7: 0.1206477187 | EN7: 0.1077014297 | EO7: 0.0962485289 | EP7: 0.08598540856 | EQ7: 0.07680641664 | ER7: 0.06862506897 | ES7: 0.06131002616 | ET7: 0.05476017442 | EU7: 0.04888548886 | EV7: 0.04365167963 | EW7: 0.03898136656 | EX7: 0.03479233422 | EY7: 0.03104195719 | EZ7: 0.02769524408 | FA7: 0.02471129779 | FB7: 0.02203875879 | FC7: 0.01965885262 | FD7: 0.01752349942 | FE7: 0.0156273631 | FF7: 0.01393013779 | FG7: 0.01240560583 | FH7: 0.01105705042 | FI7: 0.009849876854 | FJ7: 0.008763835378 | FK7: 0.007805153149 | FL7: 0.006946937771 | FM7: 0.006180233518 | FN7: 0.005501981889 | FO7: 0.004891079645 | FP7: 0.004347391816 | FQ7: 0.0038616261 | FR7: 0.003428504327 | FS7: 0.003045519155 | FT7: 0.002703923563 | FU7: 0.002403368899 | FV7: 0.002131004359 | FW7: 0.001890115046 | FX7: 0.001674667042 | FY7: 0.0014827536 | FZ7: 0.001312662758 | GA7: 0.001161391633 | GB7: 0.001026861001 | GC7: 0.0009058279835 | GD7: 0.0007990423953 | GE7: 0.0007056487515 | GF7: 0.0006197853672 | GG7: 0.0005442637371 | GH7: 0.0004776091704 | GI7: 0.0004181117086 | GJ7: 0.000364136628 | GK7: 0.0003166249649 | GL7: 0.0002733572877 | GM7: 0.000235545044 | GN7: 0.0002035364288 | GO7: 0.0001743120576 | GP7: 0.0001478879143 | GQ7: 0.0001242859025 | GR7: 0.0001032577237 | GS7: 8.322630353e-05 | GT7: 6.107326916e-05 | GU7: 1.024400487e-05 | GV7: 3.540049602e-06 | GW7: 2.222310456e-06 | GX7: 2.365533754e-07 | GY7: 1.709372972e-07 | GZ7: 1.491020946e-07 | HA7: 1.298765928e-07 | HB7: 1.129615742e-07 | HC7: 9.293541573e-08 | HD7: 0 | HE7: 0 | HF7: 0 | HG7: 0 | HH7: 0 | HI7: 0 | HJ7: 0 | HK7: 0 | HL7: 0 | HM7: 0 | HN7: 0 | HO7: 0 | HP7: 0 | HQ7: 0 | HR7: 0 | HS7: 0 | HT7: 0 | HU7: 0 | HV7: 0 | HW7: 0 | HX7: 0 | HY7: 0 | HZ7: 0 | IA7: 0 | IB7: 0 | IC7: 0 | ID7: 0 | IE7: 0 | IF7: 0 | IG7: 0 | IH7: 0 | II7: 0 | IJ7: 0 | IK7: 0 | IL7: 0 | IM7: 0 | IN7: 0 | IO7: 0 | IP7: 0 | IQ7: 0 | IR7: 0 | IS7: 0 | IT7: 0 | IU7: 0 | IV7: 0 | IW7: 0 | IX7: 0 | IY7: 0 | IZ7: 0 | JA7: 0 | JB7: 0 | JC7: 0 | JD7: 0 | JE7: 0 | JF7: 0 | JG7: 0 | JH7: 0 | JI7: 0 | JJ7: 0 | JK7: 0 | JL7: 0 | JM7: 0 | JN7: 0 | JO7: 0 | JP7: 0 | JQ7: 0 | JR7: 0 | JS7: 0 | JT7: 0 | JU7: 0 | JV7: 0 | JW7: 0 | JX7: 0 | JY7: 0 | JZ7: 0 | KA7: 0 | KB7: 0 | KC7: 0 | KD7: 0 | KE7: 0 | KF7: 0 | KG7: 0 | KH7: 0 | KI7: 0 | KJ7: 0 | KK7: 0 | KL7: 0 | KM7: 0 | KN7: 0 | KO7: 0 | KP7: 0 | KQ7: 0 | KR7: 0 | KS7: 0 | KT7: 0 | KU7: 0 | KV7: 0 | KW7: 0 | KX7: 0 | KY7: 0 | KZ7: 0 | LA7: 0 | LB7: 0 | LC7: 0 | LD7: 0 | LE7: 0 | LF7: 0 | LG7: 0 | LH7: 0 | LI7: 0 | LJ7: 0 | LK7: 0 | LL7: 0 | LM7: 0 | LN7: 0 | LO7: 0 | LP7: 0 | LQ7: 0 | LR7: 0 | LS7: 0 | LT7: 0 | LU7: 0 | LV7: 0 | LW7: 0 | LX7: 0 | LY7: 0 | LZ7: 0 | MA7: 0 | MB7: 0 | MC7: 0 | MD7: 0 | ME7: 0 | MF7: 0 | MG7: 0 | MH7: 0 | MI7: 0 | MJ7: 0 | MK7: 0 | ML7: 0 | MM7: 0 | MN7: 0 | MO7: 0 | MP7: 0 | MQ7: 0 | MR7: 0 | MS7: 0 | MT7: 0 | MU7: 0 | MV7: 0 | MW7: 0
A8: =Inputs!C8 -> GT 1998-4 A6 | C8: 628949.3806 | D8: 564001.491 | E8: 505739.0246 | F8: 453476.1893 | G8: 406596.2035 | H8: 364542.8662 | I8: 326824.1466 | J8: 292993.3772 | K8: 262652.3792 | L8: 235440.9658 | M8: 211039.3318 | N8: 189158.7629 | O8: 169541.2077 | P8: 151951.6371 | Q8: 136182.0982 | R8: 122044.1151 | S8: 109369.4195 | T8: 98008.01114 | U8: 87826.31917 | V8: 78703.55636 | W8: 70528.34543 | X8: 63205.92194 | Y8: 56690.10202 | Z8: 50847.22067 | AA8: 45604.7427 | AB8: 40901.12814 | AC8: 36681.28347 | AD8: 32895.45674 | AE8: 29499.67622 | AF8: 26453.21684 | AG8: 23720.1416 | AH8: 21268.50002 | AI8: 19069.42891 | AJ8: 17096.90869 | AK8: 15327.90292 | AL8: 13741.20494 | AM8: 12318.0687 | AN8: 11041.95179 | AO8: 9897.434655 | AP8: 8871.190961 | AQ8: 7950.9996 | AR8: 7125.895043 | AS8: 6386.038208 | AT8: 5722.687637 | AU8: 5127.873148 | AV8: 4594.597741 | AW8: 4116.801754 | AX8: 3688.456335 | AY8: 3304.49206 | AZ8: 2960.268217 | BA8: 2651.775047 | BB8: 2375.283256 | BC8: 2127.526915 | BD8: 1905.450947 | BE8: 1706.487109 | BF8: 1528.194828 | BG8: 1368.413325 | BH8: 1225.267225 | BI8: 1097.078161 | BJ8: 982.2551979 | BK8: 879.3639326 | BL8: 787.2308588 | BM8: 704.6935005 | BN8: 630.7567845 | BO8: 564.5160377 | BP8: 505.2065605 | BQ8: 452.1206281 | BR8: 404.5803172 | BS8: 362.0137093 | BT8: 323.8837123 | BU8: 289.7655648 | BV8: 259.2230855 | BW8: 231.8654995 | BX8: 207.3961613 | BY8: 185.4898343 | BZ8: 165.8785328 | CA8: 148.3186216 | CB8: 132.6229447 | CC8: 118.5381847 | CD8: 105.930313 | CE8: 94.56239761 | CF8: 84.14174445 | CG8: 75.34214899 | CH8: 67.5239103 | CI8: 60.50963749 | CJ8: 54.22626567 | CK8: 48.59365335 | CL8: 43.54004022 | CM8: 39.00966418 | CN8: 34.95212939 | CO8: 31.31547293 | CP8: 28.05508786 | CQ8: 25.12969479 | CR8: 22.5112754 | CS8: 20.16445211 | CT8: 18.059068 | CU8: 16.17346629 | CV8: 14.48464964 | CW8: 12.9711833 | CX8: 11.61472403 | CY8: 10.39920088 | CZ8: 9.31022472 | DA8: 8.33487002 | DB8: 7.461190947 | DC8: 6.67830233 | DD8: 5.976985613 | DE8: 5.349818043 | DF8: 4.78799374 | DG8: 4.284080875 | DH8: 3.83312134 | DI8: 3.429737298 | DJ8: 3.068804275 | DK8: 2.745624381 | DL8: 2.456154322 | DM8: 2.196730113 | DN8: 1.964678404 | DO8: 1.757032963 | DP8: 1.571160834 | DQ8: 1.404529641 | DR8: 1.255522583 | DS8: 1.122492543 | DT8: 1.002937701 | DU8: 0.8963345684 | DV8: 0.801196429 | DW8: 0.7158462903 | DX8: 0.6396149763 | DY8: 0.5713842037 | DZ8: 0.5101854299 | EA8: 0.4555165538 | EB8: 0.4065974246 | EC8: 0.3628847537 | ED8: 0.3239983972 | EE8: 0.2891998463 | EF8: 0.2579722975 | EG8: 0.2301168531 | EH8: 0.2052549396 | EI8: 0.1829807197 | EJ8: 0.1631810953 | EK8: 0.1453968094 | EL8: 0.1294973371 | EM8: 0.1152309316 | EN8: 0.1013912846 | EO8: 0.09046093129 | EP8: 0.08075235882 | EQ8: 0.07209613726 | ER8: 0.06435673734 | ES8: 0.05742065889 | ET8: 0.05123855827 | EU8: 0.0457286784 | EV8: 0.04078864202 | EW8: 0.03638548557 | EX8: 0.03244825387 | EY8: 0.02893303575 | EZ8: 0.02579188043 | FA8: 0.02299951293 | FB8: 0.02050518835 | FC8: 0.01827781274 | FD8: 0.01629230517 | FE8: 0.01451827001 | FF8: 0.01293847788 | FG8: 0.01151847763 | FH8: 0.01026113798 | FI8: 0.009131968729 | FJ8: 0.008131814102 | FK8: 0.007230679247 | FL8: 0.006424812901 | FM8: 0.005715068237 | FN8: 0.0050728362 | FO8: 0.004506095217 | FP8: 0.0040076551 | FQ8: 0.003558708703 | FR8: 0.003158618807 | FS8: 0.002802330286 | FT8: 0.002488462385 | FU8: 0.002207873119 | FV8: 0.001955380043 | FW8: 0.001728648106 | FX8: 0.001530576348 | FY8: 0.001354870917 | FZ8: 0.00119773058 | GA8: 0.001061236128 | GB8: 0.000938662282 | GC8: 0.0008312963298 | GD8: 0.0007327244999 | GE8: 0.0006477996865 | GF8: 0.0005706860428 | GG8: 0.0005020949041 | GH8: 0.0004428242832 | GI8: 0.0003877725599 | GJ8: 0.0003397715177 | GK8: 0.0002960095535 | GL8: 0.0002556789466 | GM8: 0.0002216575446 | GN8: 0.0001902117144 | GO8: 0.000163519751 | GP8: 0.0001393687526 | GQ8: 0.0001175478497 | GR8: 9.887927079e-05 | GS8: 8.282990663e-05 | GT8: 6.801908284e-05 | GU8: 4.736533647e-05 | GV8: 8.593815484e-06 | GW8: 2.4188733e-06 | GX8: 7.716350038e-07 | GY8: 1.057775315e-07 | GZ8: 4.796364447e-08 | HA8: 3.983640588e-08 | HB8: 3.283805651e-08 | HC8: 2.719653197e-08 | HD8: 2.301853172e-08 | HE8: 0 | HF8: 0 | HG8: 0 | HH8: 0 | HI8: 0 | HJ8: 0 | HK8: 0 | HL8: 0 | HM8: 0 | HN8: 0 | HO8: 0 | HP8: 0 | HQ8: 0 | HR8: 0 | HS8: 0 | HT8: 0 | HU8: 0 | HV8: 0 | HW8: 0 | HX8: 0 | HY8: 0 | HZ8: 0 | IA8: 0 | IB8: 0 | IC8: 0 | ID8: 0 | IE8: 0 | IF8: 0 | IG8: 0 | IH8: 0 | II8: 0 | IJ8: 0 | IK8: 0 | IL8: 0 | IM8: 0 | IN8: 0 | IO8: 0 | IP8: 0 | IQ8: 0 | IR8: 0 | IS8: 0 | IT8: 0 | IU8: 0 | IV8: 0 | IW8: 0 | IX8: 0 | IY8: 0 | IZ8: 0 | JA8: 0 | JB8: 0 | JC8: 0 | JD8: 0 | JE8: 0 | JF8: 0 | JG8: 0 | JH8: 0 | JI8: 0 | JJ8: 0 | JK8: 0 | JL8: 0 | JM8: 0 | JN8: 0 | JO8: 0 | JP8: 0 | JQ8: 0 | JR8: 0 | JS8: 0 | JT8: 0 | JU8: 0 | JV8: 0 | JW8: 0 | JX8: 0 | JY8: 0 | JZ8: 0 | KA8: 0 | KB8: 0 | KC8: 0 | KD8: 0 | KE8: 0 | KF8: 0 | KG8: 0 | KH8: 0 | KI8: 0 | KJ8: 0 | KK8: 0 | KL8: 0 | KM8: 0 | KN8: 0 | KO8: 0 | KP8: 0 | KQ8: 0 | KR8: 0 | KS8: 0 | KT8: 0 | KU8: 0 | KV8: 0 | KW8: 0 | KX8: 0 | KY8: 0 | KZ8: 0 | LA8: 0 | LB8: 0 | LC8: 0 | LD8: 0 | LE8: 0 | LF8: 0 | LG8: 0 | LH8: 0 | LI8: 0 | LJ8: 0 | LK8: 0 | LL8: 0 | LM8: 0 | LN8: 0 | LO8: 0 | LP8: 0 | LQ8: 0 | LR8: 0 | LS8: 0 | LT8: 0 | LU8: 0 | LV8: 0 | LW8: 0 | LX8: 0 | LY8: 0 | LZ8: 0 | MA8: 0 | MB8: 0 | MC8: 0 | MD8: 0 | ME8: 0 | MF8: 0 | MG8: 0 | MH8: 0 | MI8: 0 | MJ8: 0 | MK8: 0 | ML8: 0 | MM8: 0 | MN8: 0 | MO8: 0 | MP8: 0 | MQ8: 0 | MR8: 0 | MS8: 0 | MT8: 0 | MU8: 0 | MV8: 0 | MW8: 0
